Workbook

Sheet Zał.1_WPF_bazowy
B1: Raport z systemu BeSTi@ - narzędzie opracowane przez Zespół ds. rozwoju technologii IT przy KR RIO | I1: Układ WPF wg Rozporządzenia Ministra Finansów z dnia 10.01.2013 po zmianie z DzU.2013.1736 oraz DzU.2014.1127
B2: Poniższej tabeli WPF nie należy modyfikować.
B3: Do szacowania i analiz służy arkusz "WPF_AnalizaWsk_Projektowanie"
B4: Nr Uchwały: | D4: =DaneZrodlowe!B4 -> 1
B5: Nazwa JST: | D5: =DaneZrodlowe!C4 -> KRZYŻANÓW
B6: WPF za lata: | D6: =CONCATENATE(DaneZrodlowe!N1," - ",DaneZrodlowe!Q1) -> 2015 - 2018
E7: z eWPF
E8: Wykonanie | G8: Plan 3 kw. | H8: Wykonanie | I8: ="" -> 
A9: X | B9: Lp. | C9: Nazwy serii (rysunki) | D9: Wyszczególnienie | E9: =+F9-1 -> 2012 | F9: =+G9-1 -> 2013 | G9: =+H9 -> 2014 | H9: =+I9-1 -> 2014 | I9: =+DaneZrodlowe!$N$1 -> 2015 | J9: =+I9+1 -> 2016 | K9: =+J9+1 -> 2017 | L9: =+K9+1 -> 2018
A10: x | B10: 1 | C10: Dochody ogółem | D10: Dochody ogółem | E10: =14062028.15 -> 14062028.15 | F10: =12708280.6 -> 12708280.6 | G10: =15086054.13 -> 15086054.13 | H10: =15409938.1 -> 15409938.1 | I10: =11885236 -> 11885236 | J10: =13116110 -> 13116110 | K10: =13247270 -> 13247270 | L10: =13379740 -> 13379740
A11: x | B11: 1.1 | C11: Dochody bieżące | D11: Dochody bieżące | E11: =12660364.54 -> 12660364.54 | F11: =11968299.93 -> 11968299.93 | G11: =12203735.06 -> 12203735.06 | H11: =12527619.03 -> 12527619.03 | I11: =11877336 -> 11877336 | J11: =13116110 -> 13116110 | K11: =13247270 -> 13247270 | L11: =13379740 -> 13379740
B12: 1.1.1 | C12: dochody z tytułu udziału we wpływach z podatku dochodowego od osób fizycznych | D12: dochody z tytułu udziału we wpływach z podatku dochodowego od osób fizycznych | E12: =1398132 -> 1398132 | F12: =1390365 -> 1390365 | G12: =1335088 -> 1335088 | H12: =1335088 -> 1335088 | I12: =1418820 -> 1418820 | J12: =1433008 -> 1433008 | K12: =1447338 -> 1447338 | L12: =1461811 -> 1461811
B13: 1.1.2 | C13: dochody z tytułu udziału we wpływach z podatku dochodowego od osób prawnych | D13: dochody z tytułu udziału we wpływach z podatku dochodowego od osób prawnych | E13: =873.76 -> 873.76 | F13: =654.23 -> 654.23 | G13: =1000 -> 1000 | H13: =1000 -> 1000 | I13: =2000 -> 2000 | J13: =2000 -> 2000 | K13: =2000 -> 2000 | L13: =2000 -> 2000
B14: 1.1.3 | C14: podatki i opłaty | D14: podatki i opłaty | E14: =4719070.97 -> 4719070.97 | F14: =3241540.05 -> 3241540.05 | G14: =3910601 -> 3910601 | H14: =3902601 -> 3902601 | I14: =4676056 -> 4676056 | J14: =5842816 -> 5842816 | K14: =5901244 -> 5901244 | L14: =5960256 -> 5960256
B15: 1.1.3.1 | C15: z podatku od nieruchomości | D15: z podatku od nieruchomości | E15: =1608877.11 -> 1608877.11 | F15: =1467888.16 -> 1467888.16 | G15: =1532389 -> 1532389 | H15: =1532389 -> 1532389 | I15: =1534000 -> 1534000 | J15: =2669340 -> 2669340 | K15: =2696034 -> 2696034 | L15: =2723000 -> 2723000
B16: 1.1.4 | C16: z subwencji ogólnej | D16: z subwencji ogólnej | E16: =4481337 -> 4481337 | F16: =4504728 -> 4504728 | G16: =3274658 -> 3274658 | H16: =3274658 -> 3274658 | I16: =3862767 -> 3862767 | J16: =3901395 -> 3901395 | K16: =3940400 -> 3940400 | L16: =3979813 -> 3979813
B17: 1.1.5 | C17: z tytułu dotacji i środków przeznaczonych na cele bieżące | D17: z tytułu dotacji i środków przeznaczonych na cele bieżące | E17: =2060950.81 -> 2060950.81 | F17: =2099883.43 -> 2099883.43 | G17: =2095696.81 -> 2095696.81 | H17: =2433356.95 -> 2433356.95 | I17: =1273753 -> 1273753 | J17: =1273753 -> 1273753 | K17: =1273753 -> 1273753 | L17: =1273753 -> 1273753
A18: x | B18: 1.2 | C18: Dochody majątkowe | D18: Dochody majątkowe, w tym | E18: =1401663.61 -> 1401663.61 | F18: =739980.67 -> 739980.67 | G18: =2882319.07 -> 2882319.07 | H18: =2882319.07 -> 2882319.07 | I18: =7900 -> 7900 | J18: =0 -> 0 | K18: =0 -> 0 | L18: =0 -> 0
A19: x | B19: 1.2.1 | C19: ze sprzedaży majątku | D19: ze sprzedaży majątku | E19: =69038.91 -> 69038.91 | F19: =6200 -> 6200 | G19: =220000 -> 220000 | H19: =220000 -> 220000 | I19: =0 -> 0 | J19: =0 -> 0 | K19: =0 -> 0 | L19: =0 -> 0
B20: 1.2.2 | C20: z tytułu dotacji oraz środków przeznaczonych na inwestycje | D20: z tytułu dotacji oraz środków przeznaczonych na inwestycje | E20: =1332324.7 -> 1332324.7 | F20: =720552.67 -> 720552.67 | G20: =2603609.07 -> 2603609.07 | H20: =2603609.07 -> 2603609.07 | I20: =7900 -> 7900 | J20: =0 -> 0 | K20: =0 -> 0 | L20: =0 -> 0
A21: x | B21: 2 | C21: Wydatki ogółem | D21: Wydatki ogółem | E21: =11481546.43 -> 11481546.43 | F21: =13777530.74 -> 13777530.74 | G21: =14983740.94 -> 14983740.94 | H21: =15322124.91 -> 15322124.91 | I21: =13118844 -> 13118844 | J21: =12414710 -> 12414710 | K21: =12545882.4 -> 12545882.4 | L21: =13379740 -> 13379740
A22: x | B22: 2.1 | C22: Wydatki bieżące | D22: Wydatki bieżące, w tym: | E22: =9055670.43 -> 9055670.43 | F22: =9384342.04 -> 9384342.04 | G22: =9999493.87 -> 9999493.87 | H22: =10334477.84 -> 10334477.84 | I22: =9369229 -> 9369229 | J22: =9654720 -> 9654720 | K22: =9820000.4 -> 9820000.4 | L22: =10030650 -> 10030650
A23: x | B23: 2.1.1 | C23: z tytułu poręczeń i gwarancji | D23: z tytułu poręczeń i gwarancji | E23: =0 -> 0 | F23: =0 -> 0 | G23: =0 -> 0 | H23: =0 -> 0 | I23: =0 -> 0 | J23: =0 -> 0 | K23: =0 -> 0 | L23: =0 -> 0
A24: x | B24: 2.1.1.1 | C24: w tym: gwarancje i poręczenia podlegające wyłączeniu z limitu spłaty zobowiązań, o którym mowa w art. 243 ustawy | D24: w tym: gwarancje i poręczenia podlegające wyłączeniu z limitu spłaty zobowiązań, o którym mowa w art. 243 ustawy | E24: =0 -> 0 | F24: =0 -> 0 | G24: =0 -> 0 | H24: =0 -> 0 | I24: =0 -> 0 | J24: =0 -> 0 | K24: =0 -> 0 | L24: =0 -> 0
B25: 2.1.2 | C25: na spłatę przejętych zobowiązań samodzielnego publicznego zakładu opieki zdrowotnej przekształconego na zasadach określonych w przepisach o działalności leczniczej, w wysokości w jakiej nie podlegają sfinansowaniu dotacją z budżetu państwa | D25: na spłatę przejętych zobowiązań samodzielnego publicznego zakładu opieki zdrowotnej przekształconego na zasadach określonych w przepisach o działalności leczniczej, w wysokości w jakiej nie podlegają sfinansowaniu dotacją z budżetu państwa | E25: =0 -> 0 | F25: =0 -> 0 | G25: =0 -> 0 | H25: =0 -> 0 | I25: =0 -> 0 | J25: =0 -> 0 | K25: =0 -> 0 | L25: =0 -> 0
A26: x | B26: 2.1.3 | C26: wydatki na obsługę długu, w tym: | D26: wydatki na obsługę długu, w tym: | E26: =84758.58 -> 84758.58 | F26: =36975.83 -> 36975.83 | G26: =20000 -> 20000 | H26: =20000 -> 20000 | I26: =100000 -> 100000 | J26: =70000 -> 70000 | K26: =34000 -> 34000 | L26: =0 -> 0
A27: x | B27: 2.1.3.1 | C27: odsetki i dyskonto określone w art. 243 ust. 1 ustawy, w tym: | D27: odsetki i dyskonto określone w art. 243 ust. 1 ustawy, w tym: | E27: =83194.59 -> 83194.59 | F27: =36075.83 -> 36075.83 | G27: =20000 -> 20000 | H27: =20000 -> 20000 | I27: =100000 -> 100000 | J27: =70000 -> 70000 | K27: =34000 -> 34000 | L27: =0 -> 0
A28: x | B28: 2.1.3.1.1 | C28: odsetki i dyskonto podlegające wyłączeniu z limitu spłaty zobowiązań, o którym mowa w art. 243 ustawy, w terminie nie dłuższym niż 90 dni po zakończeniu programu, projektu lub zadania i otrzymaniu refundacji z tych środków (bez odsetek i dyskonta od zobowiązań na wkład krajowy) | D28: odsetki i dyskonto podlegające wyłączeniu z limitu spłaty zobowiązań, o którym mowa w art. 243 ustawy, w terminie nie dłuższym niż 90 dni po zakończeniu programu, projektu lub zadania i otrzymaniu refundacji z tych środków (bez odsetek i dyskonta od zobowiązań na wkład krajowy) | E28: =0 -> 0 | F28: =0 -> 0 | G28: =0 -> 0 | H28: =0 -> 0 | I28: =0 -> 0 | J28: =0 -> 0 | K28: =0 -> 0 | L28: =0 -> 0
A29: x | B29: 2.1.3.1.2 | C29: odsetki i dyskonto podlegające wyłączeniu z limitu spłaty zobowiązań, o którym mowa w art. 243 ustawy, z tytułu zobowiązań zaciągniętych na wkład krajowy | D29: odsetki i dyskonto podlegające wyłączeniu z limitu spłaty zobowiązań, o którym mowa w art. 243 ustawy, z tytułu zobowiązań zaciągniętych na wkład krajowy | E29: =0 -> 0 | F29: =0 -> 0 | G29: =0 -> 0 | H29: =0 -> 0 | I29: =0 -> 0 | J29: =0 -> 0 | K29: =0 -> 0 | L29: =0 -> 0
A30: x | B30: 2.2 | C30: Wydatki majątkowe | D30: Wydatki majątkowe | E30: =2425876 -> 2425876 | F30: =4393188.7 -> 4393188.7 | G30: =4984247.07 -> 4984247.07 | H30: =4987647.07 -> 4987647.07 | I30: =3749615 -> 3749615 | J30: =2759990 -> 2759990 | K30: =2725882 -> 2725882 | L30: =3349090 -> 3349090
A31: x | B31: 3 | C31: Wynik budżetu | D31: Wynik budżetu | E31: =2580481.72 -> 2580481.72 | F31: =-1069250.14 -> -1069250.14 | G31: =102313.19 -> 102313.19 | H31: =87813.19 -> 87813.19 | I31: =-1233608 -> -1233608 | J31: =701400 -> 701400 | K31: =701387.6 -> 701387.6 | L31: =0 -> 0
A32: x | B32: 4 | C32: Przychody budżetu | D32: Przychody budżetu | E32: =1050519.37 -> 1050519.37 | F32: =2496104.74 -> 2496104.74 | G32: =696643 -> 696643 | H32: =541963.4 -> 541963.4 | I32: =1402787.6 -> 1402787.6 | J32: =0 -> 0 | K32: =0 -> 0 | L32: =0 -> 0
A33: x | B33: 4.1 | C33: Nadwyżka budżetowa z lat ubiegłych | D33: Nadwyżka budżetowa z lat ubiegłych | E33: =0 -> 0 | F33: =959945.09 -> 959945.09 | G33: =0 -> 0 | H33: =0 -> 0 | I33: =0 -> 0 | J33: =0 -> 0 | K33: =0 -> 0 | L33: =0 -> 0
A34: x | B34: 4.1.1 | C34: w tym na pokrycie deficytu budżetu | D34: w tym na pokrycie deficytu budżetu | E34: =0 -> 0 | F34: =247105.63 -> 247105.63 | G34: =0 -> 0 | H34: =0 -> 0 | I34: =0 -> 0 | J34: =0 -> 0 | K34: =0 -> 0 | L34: =0 -> 0
A35: x | B35: 4.2 | C35: Wolne środki, o których mowa w art. 217 ust.2 pkt 6 ustawy | D35: Wolne środki, o których mowa w art. 217 ust.2 pkt 6 ustawy | E35: =902519.37 -> 902519.37 | F35: =1422477.65 -> 1422477.65 | G35: =696643 -> 696643 | H35: =516963.4 -> 516963.4 | I35: =0 -> 0 | J35: =0 -> 0 | K35: =0 -> 0 | L35: =0 -> 0
A36: x | B36: 4.2.1 | C36: w tym na pokrycie deficytu budżetu | D36: w tym na pokrycie deficytu budżetu | E36: =0 -> 0 | F36: =733144.51 -> 733144.51 | G36: =0 -> 0 | H36: =0 -> 0 | I36: =0 -> 0 | J36: =0 -> 0 | K36: =0 -> 0 | L36: =0 -> 0
A37: x | B37: 4.3 | C37: Kredyty, pożyczki, emisja papierów wartościowych | D37: Kredyty, pożyczki, emisja papierów wartościowych | E37: =148000 -> 148000 | F37: =89000 -> 89000 | G37: =0 -> 0 | H37: =0 -> 0 | I37: =1402787.6 -> 1402787.6 | J37: =0 -> 0 | K37: =0 -> 0 | L37: =0 -> 0
A38: x | B38: 4.3.1 | C38: w tym na pokrycie deficytu budżetu | D38: w tym na pokrycie deficytu budżetu | E38: =0 -> 0 | F38: =89000 -> 89000 | G38: =0 -> 0 | H38: =0 -> 0 | I38: =1233608 -> 1233608 | J38: =0 -> 0 | K38: =0 -> 0 | L38: =0 -> 0
A39: x | B39: 4.4 | C39: Inne przychody niezwiązane z zaciągnięciem długu | D39: Inne przychody niezwiązane z zaciągnięciem długu | E39: =0 -> 0 | F39: =24682 -> 24682 | G39: =0 -> 0 | H39: =25000 -> 25000 | I39: =0 -> 0 | J39: =0 -> 0 | K39: =0 -> 0 | L39: =0 -> 0
A40: x | B40: 4.4.1 | C40: w tym na pokrycie deficytu budżetu | D40: w tym na pokrycie deficytu budżetu | E40: =0 -> 0 | F40: =0 -> 0 | G40: =0 -> 0 | H40: =0 -> 0 | I40: =0 -> 0 | J40: =0 -> 0 | K40: =0 -> 0 | L40: =0 -> 0
A41: x | B41: 5 | C41: Rozchody budżetu | D41: Rozchody budżetu | E41: =1303202.75 -> 1303202.75 | F41: =737521.46 -> 737521.46 | G41: =798956.19 -> 798956.19 | H41: =629776.59 -> 629776.59 | I41: =169179.6 -> 169179.6 | J41: =701400 -> 701400 | K41: =701387.6 -> 701387.6 | L41: =0 -> 0
A42: x | B42: 5.1 | C42: Spłaty rat kapitałowych kredytów i pożyczek oraz wykup papierów wartościowych | D42: Spłaty rat kapitałowych kredytów i pożyczek oraz wykup papierów wartościowych | E42: =1278520.75 -> 1278520.75 | F42: =737521.46 -> 737521.46 | G42: =773956.19 -> 773956.19 | H42: =604776.59 -> 604776.59 | I42: =169179.6 -> 169179.6 | J42: =701400 -> 701400 | K42: =701387.6 -> 701387.6 | L42: =0 -> 0
A43: x | B43: 5.1.1 | C43: w tym łączna kwota przypadających na dany rok kwot ustawowych wyłączeń z limitu spłaty zobowiązań, o którym mowa w art. 243 ustawy, z tego: | D43: w tym łączna kwota przypadających na dany rok kwot ustawowych wyłączeń z limitu spłaty zobowiązań, o którym mowa w art. 243 ustawy, z tego: | E43: =595645.15 -> 595645.15 | F43: =0 -> 0 | G43: =89000 -> 89000 | H43: =89000 -> 89000 | I43: =0 -> 0 | J43: =0 -> 0 | K43: =0 -> 0 | L43: =0 -> 0
A44: x | B44: 5.1.1.1 | C44: kwota przypadających na dany rok kwot ustawowych wyłączeń określonych w art. 243 ust. 3 ustawy | D44: kwota przypadających na dany rok kwot ustawowych wyłączeń określonych w art. 243 ust. 3 ustawy | E44: =595645.15 -> 595645.15 | F44: =0 -> 0 | G44: =89000 -> 89000 | H44: =89000 -> 89000 | I44: =0 -> 0 | J44: =0 -> 0 | K44: =0 -> 0 | L44: =0 -> 0
A45: x | B45: 5.1.1.2 | C45: kwota przypadających na dany rok kwot ustawowych wyłączeń określonych w art. 243 ust. 3a ustawy | D45: kwota przypadających na dany rok kwot ustawowych wyłączeń określonych w art. 243 ust. 3a ustawy | E45: =0 -> 0 | F45: =0 -> 0 | G45: =0 -> 0 | H45: =0 -> 0 | I45: =0 -> 0 | J45: =0 -> 0 | K45: =0 -> 0 | L45: =0 -> 0
A46: x | B46: 5.1.1.3 | C46: kwota przypadających na dany rok kwot ustawowych wyłączeń innych niż określone w art. 243 ustawy | D46: kwota przypadających na dany rok kwot ustawowych wyłączeń innych niż określone w art. 243 ustawy | E46: =0 -> 0 | F46: =0 -> 0 | G46: =0 -> 0 | H46: =0 -> 0 | I46: =0 -> 0 | J46: =0 -> 0 | K46: =0 -> 0 | L46: =0 -> 0
B47: 5.2 | C47: Inne rozchody niezwiązane ze spłatą długu | D47: Inne rozchody niezwiązane ze spłatą długu | E47: =24682 -> 24682 | F47: =0 -> 0 | G47: =25000 -> 25000 | H47: =25000 -> 25000 | I47: =0 -> 0 | J47: =0 -> 0 | K47: =0 -> 0 | L47: =0 -> 0
A48: x | B48: 6 | C48: Kwota długu | D48: Kwota długu | E48: =1422477.65 -> 1422477.65 | F48: =773956.19 -> 773956.19 | G48: =0 -> 0 | H48: =169179.6 -> 169179.6 | I48: =1402787.6 -> 1402787.6 | J48: =701387.6 -> 701387.6 | K48: =0 -> 0 | L48: =0 -> 0
B49: 7 | C49: Kwota zobowiązań wynikających z przejęcia przez jednostkę samorządu terytorialnego zobowiązań po likwidowanych i przekształcanych jednostkach zaliczanych do sektora finansów publicznych | D49: Kwota zobowiązań wynikających z przejęcia przez jednostkę samorządu terytorialnego zobowiązań po likwidowanych i przekształcanych jednostkach zaliczanych do sektora finansów publicznych | E49: =0 -> 0 | F49: =0 -> 0 | G49: =0 -> 0 | H49: =0 -> 0 | I49: =0 -> 0 | J49: =0 -> 0 | K49: =0 -> 0 | L49: =0 -> 0
B50: 8 | C50: Relacja zrównoważenia wydatków bieżących, o której mowa w art. 242 ustawy | D50: Relacja zrównoważenia wydatków bieżących, o której mowa w art. 242 ustawy | E50: x | F50: x | G50: x | H50: x | I50: x | J50: x | K50: x | L50: x
B51: 8.1 | C51: Różnica między dochodami bieżącymi a wydatkami bieżącymi | D51: Różnica między dochodami bieżącymi a wydatkami bieżącymi | E51: =3604694.11 -> 3604694.11 | F51: =2583957.89 -> 2583957.89 | G51: =2204241.19 -> 2204241.19 | H51: =2193141.19 -> 2193141.19 | I51: =2508107 -> 2508107 | J51: =3461390 -> 3461390 | K51: =3427269.6 -> 3427269.6 | L51: =3349090 -> 3349090
B52: 8.2 | C52: Różnica między dochodami bieżącymi, skorygowanymi o środki a wydatkami bieżącymi, pomniejszonymi o wydatki | D52: Różnica między dochodami bieżącymi, skorygowanymi o środki a wydatkami bieżącymi, pomniejszonymi o wydatki | E52: =4507213.48 -> 4507213.48 | F52: =4966380.63 -> 4966380.63 | G52: =2900884.19 -> 2900884.19 | H52: =2710104.59 -> 2710104.59 | I52: =2508107 -> 2508107 | J52: =3461390 -> 3461390 | K52: =3427269.6 -> 3427269.6 | L52: =3349090 -> 3349090
A53: x | B53: 9 | C53: Wskaźnik spłaty zobowiązań | D53: Wskaźnik spłaty zobowiązań | E53: x | F53: x | G53: x | H53: x | I53: x | J53: x | K53: x | L53: x
A54: x | B54: 9.1 | C54: (R+O) / D (bez wyłączeń) | D54: Wskaźnik planowanej łącznej kwoty spłaty zobowiązań, o której mowa w art. 243 ust. 1 ustawy do dochodów, bez uwzględnienia zobowiązań związku współtworzonego przez jednostkę samorządu terytorialnego i bez uwzględnienia ustawowych wyłączeń przypadających na dany rok. | E54: =0.0968 -> 0.0968 | F54: =0.0609 -> 0.0609 | G54: =0.0526 -> 0.0526 | H54: =0.0405 -> 0.0405 | I54: =0.0226 -> 0.0226 | J54: =0.0588 -> 0.0588 | K54: =0.0555 -> 0.0555 | L54: =0 -> 0
A55: x | B55: 9.2 | C55: (R+O) / D (z wyłączeniami) | D55: Wskaźnik planowanej łącznej kwoty spłaty zobowiązań, o której mowa w art. 243 ust. 1 ustawy do dochodów, bez uwzględnienia zobowiązań związku współtworzonego przez jednostkę samorządu terytorialnego, po uwzględnieniu ustawowych wyłączeń przypadających na dany rok. | E55: =0.0545 -> 0.0545 | F55: =0.0609 -> 0.0609 | G55: =0.0467 -> 0.0467 | H55: =0.0348 -> 0.0348 | I55: =0.0226 -> 0.0226 | J55: =0.0588 -> 0.0588 | K55: =0.0555 -> 0.0555 | L55: =0 -> 0
A56: x | B56: 9.3 | C56: Kwota zobowiązań związku współtworzonego przez jednostkę samorządu terytorialnego przypadających do spłaty w danym roku budżetowym, podlegająca doliczeniu zgodnie z art. 244 ustawy | D56: Kwota zobowiązań związku współtworzonego przez jednostkę samorządu terytorialnego przypadających do spłaty w danym roku budżetowym, podlegająca doliczeniu zgodnie z art. 244 ustawy | E56: =0 -> 0 | F56: =0 -> 0 | G56: =0 -> 0 | H56: =0 -> 0 | I56: =0 -> 0 | J56: =0 -> 0 | K56: =0 -> 0 | L56: =0 -> 0
A57: x | B57: 9.4 | C57: (R+O) / D (z wyłączeniami i zobowiązaniami związków) | D57: Wskaźnik planowanej łącznej kwoty spłaty zobowiązań, o której mowa w art. 243 ust. 1 ustawy do dochodów, po uwzględnieniu zobowiązań związku współtworzonego przez jednostkę samorządu terytorialnego oraz po uwzględnieniu ustawowych wyłączeń przypadających na dany rok | E57: =0.0545 -> 0.0545 | F57: =0.0609 -> 0.0609 | G57: =0.0467 -> 0.0467 | H57: =0.0348 -> 0.0348 | I57: =0.0226 -> 0.0226 | J57: =0.0588 -> 0.0588 | K57: =0.0555 -> 0.0555 | L57: =0 -> 0
A58: x | B58: 9.5 | C58: Wskaźnik dochodów bieżących powiększonych o dochody ze sprzedaży majątku oraz pomniejszonych o wydatki bieżące, do dochodów budżetu, ustalony dla danego roku (wskaźnik jednoroczny) | D58: Wskaźnik dochodów bieżących powiększonych o dochody ze sprzedaży majątku oraz pomniejszonych o wydatki bieżące, do dochodów budżetu, ustalony dla danego roku (wskaźnik jednoroczny) | E58: =+IF(AND(E9>=2013,E9<=2018),IF(E10<>0,(E11+E19-E22+E25)/E10,0),IF(E10<>0,(E11+E19-E22)/E10,0)) -> 0.261252003 | F58: 0.2038165486 | G58: 0.1606941861 | H58: 0.1565964233 | I58: 0.2110271096 | J58: 0.2639037032 | K58: 0.2587151617 | L58: 0.2503105442
A59: x | B59: 9.6 | C59: Dopuszczalny wskaźnik spłaty zobowiązań z art. 243 ustawy, po uwzględnieniu ustawowych wyłączeń (planistyczny) | D59: Dopuszczalny wskaźnik spłaty zobowiązań określony w art. 243 ustawy, po uwzględnieniu ustawowych wyłączeń , obliczony w oparciu o plan 3 kwartału roku poprzedzającego pierwszy rok prognozy (wskaźnik ustalony w oparciu o średnią arytmetyczną z 3 poprzednich lat) | E59: x | F59: x | G59: x | H59: x | I59: =0.2086 -> 0.2086 | J59: =0.1918 -> 0.1918 | K59: =0.2119 -> 0.2119 | L59: =0.2445 -> 0.2445
A60: x | B60: 9.6.1 | C60: Dopuszczalny wskaźnik spłaty zobowiązań z art. 243 ustawy, po uwzględnieniu ustawowych wyłączeń (wykonanie) | D60: Dopuszczalny wskaźnik spłaty zobowiązań określony w art. 243 ustawy, po uwzględnieniu ustawowych wyłączeń, obliczony w oparciu o wykonanie roku poprzedzającego pierwszy rok prognozy (wskaźnik ustalony w oparciu o średnią arytmetyczną z 3 poprzednich lat) | E60: x | F60: x | G60: x | H60: x | I60: =0.2072 -> 0.2072 | J60: =0.1905 -> 0.1905 | K60: =0.2105 -> 0.2105 | L60: =0.2445 -> 0.2445
A61: x | B61: 9.7 | C61: Informacja o spełnieniu wskaźnika spłaty zobowiązań określonego w art. 243 ustawy, po uwzględnieniu zobowiązań związku współtworzonego przez jednostkę samorządu terytorialnego oraz po uwzględnieniu ustawowych wyłączeń, obliczonego w oparciu o plan 3 kwartałów roku poprzedzającego rok budżetowy | D61: Informacja o spełnieniu wskaźnika spłaty zobowiązań określonego w art. 243 ustawy, po uwzględnieniu zobowiązań związku współtworzonego przez jednostkę samorządu terytorialnego oraz po uwzględnieniu ustawowych wyłączeń, obliczonego w oparciu o plan 3 kwartałów roku poprzedzającego rok budżetowy | E61: x | F61: x | G61: x | H61: x | I61: =IF(I57<=I59,"Spełniona","Nie spełniona") -> Spełniona | J61: =IF(J57<=J59,"Spełniona","Nie spełniona") -> Spełniona | K61: =IF(K57<=K59,"Spełniona","Nie spełniona") -> Spełniona | L61: =IF(L57<=L59,"Spełniona","Nie spełniona") -> Spełniona
A62: x | B62: 9.7.1 | C62: Informacja o spełnieniu wskaźnika spłaty zobowiązań określonego w art. 243 ustawy, po uwzględnieniu zobowiązań związku współtworzonego przez jednostkę samorządu terytorialnego oraz po uwzględnieniu ustawowych wyłączeń, obliczonego w oparciu o wykonanie roku poprzedzającego rok budżetowy | D62: Informacja o spełnieniu wskaźnika spłaty zobowiązań określonego w art. 243 ustawy, po uwzględnieniu zobowiązań związku współtworzonego przez jednostkę samorządu terytorialnego oraz po uwzględnieniu ustawowych wyłączeń, obliczonego w oparciu o wykonanie roku poprzedzającego rok budżetowy | E62: x | F62: x | G62: x | H62: x | I62: =IF(I57<=I60,"Spełniona","Nie spełniona") -> Spełniona | J62: =IF(J57<=J60,"Spełniona","Nie spełniona") -> Spełniona | K62: =IF(K57<=K60,"Spełniona","Nie spełniona") -> Spełniona | L62: =IF(L57<=L60,"Spełniona","Nie spełniona") -> Spełniona
B63: 10 | C63: Przeznaczenie prognozowanej nadwyżki budżetowej, w tym na: | D63: Przeznaczenie prognozowanej nadwyżki budżetowej, w tym na: | E63: =0 -> 0 | F63: =0 -> 0 | G63: =0 -> 0 | H63: =0 -> 0 | I63: =0 -> 0 | J63: =701400 -> 701400 | K63: =701387.6 -> 701387.6 | L63: =0 -> 0
B64: 10.1 | C64: Spłaty kredytów, pożyczek i wykup papierów wartościowych | D64: Spłaty kredytów, pożyczek i wykup papierów wartościowych | E64: =0 -> 0 | F64: =0 -> 0 | G64: =102313.19 -> 102313.19 | H64: =87813.19 -> 87813.19 | I64: =0 -> 0 | J64: =701400 -> 701400 | K64: =701387.6 -> 701387.6 | L64: =0 -> 0
B65: 11 | C65: Informacje uzupełniające o wybranych rodzajach wydatków budżetowych | D65: Informacje uzupełniające o wybranych rodzajach wydatków budżetowych | E65: x | F65: x | G65: x | H65: x | I65: x | J65: x | K65: x | L65: x
B66: 11.1 | C66: Wydatki bieżące na wynagrodzenia i składki od nich naliczane | D66: Wydatki bieżące na wynagrodzenia i składki od nich naliczane | E66: =4171528.09 -> 4171528.09 | F66: =4149289.86 -> 4149289.86 | G66: =4357418.68 -> 4357418.68 | H66: =4359798.43 -> 4359798.43 | I66: =4417511 -> 4417511 | J66: =4519114 -> 4519114 | K66: =4614015 -> 4614015 | L66: =4729365 -> 4729365
B67: 11.2 | C67: Wydatki związane z funkcjonowaniem organów jednostki samorządu terytorialnego | D67: Wydatki związane z funkcjonowaniem organów jednostki samorządu terytorialnego | E67: =1438877.18 -> 1438877.18 | F67: =1343112.1 -> 1343112.1 | G67: =1571198 -> 1571198 | H67: =1571198 -> 1571198 | I67: =1539639 -> 1539639 | J67: =1575050 -> 1575050 | K67: =1608127 -> 1608127 | L67: =1648330 -> 1648330
B68: 11.3 | C68: Wydatki objęte limitem, o którym mowa w art. 226 ust. 3 pkt 4 ustawy | D68: Wydatki objęte limitem, o którym mowa w art. 226 ust. 3 pkt 4 ustawy | E68: =718974.51 -> 718974.51 | F68: =3319528.6 -> 3319528.6 | G68: =352571.38 -> 352571.38 | H68: =352571.38 -> 352571.38 | I68: =945000 -> 945000 | J68: =1405000 -> 1405000 | K68: =0 -> 0 | L68: =0 -> 0
B69: 11.3.1 | C69: Wydatki bieżące na przedsięwzięcia | D69: bieżące | E69: =156869.11 -> 156869.11 | F69: =138833.24 -> 138833.24 | G69: =227234.31 -> 227234.31 | H69: =227234.31 -> 227234.31 | I69: =0 -> 0 | J69: =0 -> 0 | K69: =0 -> 0 | L69: =0 -> 0
B70: 11.3.2 | C70: Wydatki majątkowe na przedsięwzięcia | D70: majątkowe | E70: =562105.4 -> 562105.4 | F70: =3180695.36 -> 3180695.36 | G70: =125337.07 -> 125337.07 | H70: =125337.07 -> 125337.07 | I70: =945000 -> 945000 | J70: =1405000 -> 1405000 | K70: =0 -> 0 | L70: =0 -> 0
B71: 11.4 | C71: Wydatki inwestycyjne kontynuowane | D71: Wydatki inwestycyjne kontynuowane | E71: =835040.96 -> 835040.96 | F71: =3180695.36 -> 3180695.36 | G71: =0 -> 0 | H71: =0 -> 0 | I71: =850000 -> 850000 | J71: =1405000 -> 1405000 | K71: =0 -> 0 | L71: =0 -> 0
B72: 11.5 | C72: Nowe wydatki inwestycyjne | D72: Nowe wydatki inwestycyjne | E72: =1590835.04 -> 1590835.04 | F72: =1184793.34 -> 1184793.34 | G72: =4779247.07 -> 4779247.07 | H72: =4782647.07 -> 4782647.07 | I72: =2899615 -> 2899615 | J72: =1354990 -> 1354990 | K72: =2725882 -> 2725882 | L72: =3349090 -> 3349090
B73: 11.6 | C73: Wydatki majątkowe w formie dotacji | D73: Wydatki majątkowe w formie dotacji | E73: =0 -> 0 | F73: =27700 -> 27700 | G73: =205000 -> 205000 | H73: =205000 -> 205000 | I73: =0 -> 0 | J73: =0 -> 0 | K73: =0 -> 0 | L73: =0 -> 0
B74: 12 | C74: Finansowanie programów, projektów lub zadań realizowanych z udziałem środków, o których mowa w art. 5 ust. 1 pkt 2 i 3 ustawy | D74: Finansowanie programów, projektów lub zadań realizowanych z udziałem środków, o których mowa w art. 5 ust. 1 pkt 2 i 3 ustawy | E74: x | F74: x | G74: x | H74: x | I74: x | J74: x | K74: x | L74: x
B75: 12.1 | C75: Dochody bieżące na programy, projekty lub zadania finansowane z udziałem środków, o których mowa w art. 5 ust. 1 pkt 2 i 3 ustawy | D75: Dochody bieżące na programy, projekty lub zadania finansowane z udziałem środków, o których mowa w art. 5 ust. 1 pkt 2 i 3 ustawy | E75: =179911.06 -> 179911.06 | F75: =105623.85 -> 105623.85 | G75: =220846.25 -> 220846.25 | H75: =220846.25 -> 220846.25 | I75: =0 -> 0 | J75: =0 -> 0 | K75: =0 -> 0 | L75: =0 -> 0
B76: 12.1.1 | C76: - w tym środki określone w art. 5 ust. 1 pkt 2 ustawy | D76: - w tym środki określone w art. 5 ust. 1 pkt 2 ustawy | E76: =160689 -> 160689 | F76: =93191.67 -> 93191.67 | G76: =193149.17 -> 193149.17 | H76: =193149.17 -> 193149.17 | I76: =0 -> 0 | J76: =0 -> 0 | K76: =0 -> 0 | L76: =0 -> 0
B77: 12.1.1.1 | C77: - w tym środki określone w art. 5 ust. 1 pkt 2 ustawy wynikające wyłącznie z zawartych umów na realizację programu, projektu lub zadania | D77: - w tym środki określone w art. 5 ust. 1 pkt 2 ustawy wynikające wyłącznie z zawartych umów na realizację programu, projektu lub zadania | E77: =0 -> 0 | F77: =93191.67 -> 93191.67 | G77: =193149.17 -> 193149.17 | H77: =193149.17 -> 193149.17 | I77: =0 -> 0 | J77: =0 -> 0 | K77: =0 -> 0 | L77: =0 -> 0
B78: 12.2 | C78: Dochody majątkowe na programy, projekty lub zadania finansowane z udziałem środków, o których mowa w art. 5 ust. 1 pkt 2 i 3 ustawy | D78: Dochody majątkowe na programy, projekty lub zadania finansowane z udziałem środków, o których mowa w art. 5 ust. 1 pkt 2 i 3 ustawy | E78: =1013324.7 -> 1013324.7 | F78: =478204.67 -> 478204.67 | G78: =2251441.07 -> 2251441.07 | H78: =2251441.07 -> 2251441.07 | I78: =7900 -> 7900 | J78: =0 -> 0 | K78: =0 -> 0 | L78: =0 -> 0
B79: 12.2.1 | C79: - w tym środki określone w art. 5 ust. 1 pkt 2 ustawy | D79: - w tym środki określone w art. 5 ust. 1 pkt 2 ustawy | E79: =826032 -> 826032 | F79: =232601.81 -> 232601.81 | G79: =2195185.51 -> 2195185.51 | H79: =2195185.51 -> 2195185.51 | I79: =0 -> 0 | J79: =0 -> 0 | K79: =0 -> 0 | L79: =0 -> 0
B80: 12.2.1.1 | C80: - w tym środki określone w art. 5 ust. 1 pkt 2 ustawy wynikające wyłącznie z zawartych umów na realizację programu, projektu lub zadania | D80: - w tym środki określone w art. 5 ust. 1 pkt 2 ustawy wynikające wyłącznie z zawartych umów na realizację programu, projektu lub zadania | E80: =0 -> 0 | F80: =232601.81 -> 232601.81 | G80: =2195185.51 -> 2195185.51 | H80: =2195185.51 -> 2195185.51 | I80: =0 -> 0 | J80: =0 -> 0 | K80: =0 -> 0 | L80: =0 -> 0
B81: 12.3 | C81: Wydatki bieżące na programy, projekty lub zadania finansowane z udziałem środków, o których mowa w art. 5 ust. 1 pkt 2 i 3 ustawy | D81: Wydatki bieżące na programy, projekty lub zadania finansowane z udziałem środków, o których mowa w art. 5 ust. 1 pkt 2 i 3 ustawy | E81: =156869.11 -> 156869.11 | F81: =138833.24 -> 138833.24 | G81: =227234.31 -> 227234.31 | H81: =227234.31 -> 227234.31 | I81: =0 -> 0 | J81: =0 -> 0 | K81: =0 -> 0 | L81: =0 -> 0
B82: 12.3.1 | C82: - w tym finansowane środkami określonymi w art. 5 ust. 1 pkt 2 ustawy | D82: - w tym finansowane środkami określonymi w art. 5 ust. 1 pkt 2 ustawy | E82: =133542.58 -> 133542.58 | F82: =120259.63 -> 120259.63 | G82: =193149.17 -> 193149.17 | H82: =193149.17 -> 193149.17 | I82: =0 -> 0 | J82: =0 -> 0 | K82: =0 -> 0 | L82: =0 -> 0
B83: 12.3.2 | C83: Wydatki bieżące na realizację programu, projektu lub zadania wynikające wyłącznie z zawartych umów z podmiotem dysponującym środkami, o których mowa w art. 5 ust. 1 pkt 2 ustawy | D83: Wydatki bieżące na realizację programu, projektu lub zadania wynikające wyłącznie z zawartych umów z podmiotem dysponującym środkami, o których mowa w art. 5 ust. 1 pkt 2 ustawy | E83: =0 -> 0 | F83: =138833.24 -> 138833.24 | G83: =227234.31 -> 227234.31 | H83: =227234.31 -> 227234.31 | I83: =0 -> 0 | J83: =0 -> 0 | K83: =0 -> 0 | L83: =0 -> 0
B84: 12.4 | C84: Wydatki majątkowe na programy, projekty lub zadania finansowane z udziałem środków, o których mowa w art. 5 ust. 1 pkt 2 i 3 ustawy | D84: Wydatki majątkowe na programy, projekty lub zadania finansowane z udziałem środków, o których mowa w art. 5 ust. 1 pkt 2 i 3 ustawy | E84: =562105.4 -> 562105.4 | F84: =3180695.36 -> 3180695.36 | G84: =95037.07 -> 95037.07 | H84: =95037.07 -> 95037.07 | I84: =0 -> 0 | J84: =0 -> 0 | K84: =0 -> 0 | L84: =0 -> 0
B85: 12.4.1 | C85: - w tym finansowane środkami określonymi w art. 5 ust. 1 pkt 2 ustawy | D85: - w tym finansowane środkami określonymi w art. 5 ust. 1 pkt 2 ustawy | E85: =220814.52 -> 220814.52 | F85: =3180695.36 -> 3180695.36 | G85: =80781.51 -> 80781.51 | H85: =80781.51 -> 80781.51 | I85: =0 -> 0 | J85: =0 -> 0 | K85: =0 -> 0 | L85: =0 -> 0
B86: 12.4.2 | C86: Wydatki majątkowe na realizację programu, projektu lub zadania wynikające wyłącznie z zawartych umów z podmiotem dysponującym środkami, o których mowa w art. 5 ust. 1 pkt 2 ustawy | D86: Wydatki majątkowe na realizację programu, projektu lub zadania wynikające wyłącznie z zawartych umów z podmiotem dysponującym środkami, o których mowa w art. 5 ust. 1 pkt 2 ustawy | E86: =0 -> 0 | F86: =2074095.36 -> 2074095.36 | G86: =0 -> 0 | H86: =0 -> 0 | I86: =0 -> 0 | J86: =0 -> 0 | K86: =0 -> 0 | L86: =0 -> 0
B87: 12.5 | C87: Wydatki na wkład krajowy w związku z umową na realizację programu, projektu lub zadania finansowanego z udziałem środków, o których mowa w art. 5 ust. 1 pkt 2 ustawy bez względu na stopień finansowania tymi środkami | D87: Wydatki na wkład krajowy w związku z umową na realizację programu, projektu lub zadania finansowanego z udziałem środków, o których mowa w art. 5 ust. 1 pkt 2 ustawy bez względu na stopień finansowania tymi środkami | E87: =0 -> 0 | F87: =0 -> 0 | G87: =0 -> 0 | H87: =0 -> 0 | I87: =0 -> 0 | J87: =0 -> 0 | K87: =0 -> 0 | L87: =0 -> 0
B88: 12.5.1 | C88: w tym w związku z już zawartą umową na realizację programu, projektu lub zadania | D88: w tym w związku z już zawartą umową na realizację programu, projektu lub zadania | E88: =0 -> 0 | F88: =0 -> 0 | G88: =0 -> 0 | H88: =0 -> 0 | I88: =0 -> 0 | J88: =0 -> 0 | K88: =0 -> 0 | L88: =0 -> 0
B89: 12.6 | C89: Wydatki na wkład krajowy w związku z zawartą po dniu 1 stycznia 2013 r. umową na realizację programu, projektu lub zadania finansowanego w co najmniej 60% środkami, o których mowa w art. 5 ust. 1 pkt 2 ustawy | D89: Wydatki na wkład krajowy w związku z zawartą po dniu 1 stycznia 2013 r. umową na realizację programu, projektu lub zadania finansowanego w co najmniej 60% środkami, o których mowa w art. 5 ust. 1 pkt 2 ustawy | E89: =0 -> 0 | F89: =0 -> 0 | G89: =0 -> 0 | H89: =0 -> 0 | I89: =0 -> 0 | J89: =0 -> 0 | K89: =0 -> 0 | L89: =0 -> 0
B90: 12.6.1 | C90: w tym w związku z już zawartą umową na realizację programu, projektu lub zadania | D90: w tym w związku z już zawartą umową na realizację programu, projektu lub zadania | E90: =0 -> 0 | F90: =0 -> 0 | G90: =0 -> 0 | H90: =0 -> 0 | I90: =0 -> 0 | J90: =0 -> 0 | K90: =0 -> 0 | L90: =0 -> 0
B91: 12.7 | C91: Przychody z tytułu kredytów, pożyczek, emisji papierów wartościowych powstające w związku z umową na realizację programu, projektu lub zadania finansowanego z udziałem środków, o których mowa w art. 5 ust. 1 pkt 2 ustawy bez względu na stopień finansowania tymi środkami | D91: Przychody z tytułu kredytów, pożyczek, emisji papierów wartościowych powstające w związku z umową na realizację programu, projektu lub zadania finansowanego z udziałem środków, o których mowa w art. 5 ust. 1 pkt 2 ustawy bez względu na stopień finansowania tymi środkami | E91: =0 -> 0 | F91: =0 -> 0 | G91: =0 -> 0 | H91: =0 -> 0 | I91: =0 -> 0 | J91: =0 -> 0 | K91: =0 -> 0 | L91: =0 -> 0
B92: 12.7.1 | C92: w tym w związku z już zawartą umową na realizację programu, projektu lub zadania | D92: w tym w związku z już zawartą umową na realizację programu, projektu lub zadania | E92: =0 -> 0 | F92: =0 -> 0 | G92: =0 -> 0 | H92: =0 -> 0 | I92: =0 -> 0 | J92: =0 -> 0 | K92: =0 -> 0 | L92: =0 -> 0
B93: 12.8 | C93: Przychody z tytułu kredytów, pożyczek, emisji papierów wartościowych powstające w związku z zawartą po dniu 1 stycznia 2013 r. umową na realizację programu, projektu lub zadania finansowanego w co najmniej 60% środkami, o których mowa w art. 5 ust. 1 pkt 2 ustawy | D93: Przychody z tytułu kredytów, pożyczek, emisji papierów wartościowych powstające w związku z zawartą po dniu 1 stycznia 2013 r. umową na realizację programu, projektu lub zadania finansowanego w co najmniej 60% środkami, o których mowa w art. 5 ust. 1 pkt 2 ustawy | E93: =0 -> 0 | F93: =0 -> 0 | G93: =0 -> 0 | H93: =0 -> 0 | I93: =0 -> 0 | J93: =0 -> 0 | K93: =0 -> 0 | L93: =0 -> 0
B94: 12.8.1 | C94: w tym w związku z już zawartą umową na realizację programu, projektu lub zadania | D94: w tym w związku z już zawartą umową na realizację programu, projektu lub zadania | E94: =0 -> 0 | F94: =0 -> 0 | G94: =0 -> 0 | H94: =0 -> 0 | I94: =0 -> 0 | J94: =0 -> 0 | K94: =0 -> 0 | L94: =0 -> 0
B95: 13 | C95: Kwoty dotyczące przejęcia i spłaty zobowiązań po samodzielnych publicznych zakładach opieki zdrowotnej oraz pokrycia ujemnego wyniku | D95: Kwoty dotyczące przejęcia i spłaty zobowiązań po samodzielnych publicznych zakładach opieki zdrowotnej oraz pokrycia ujemnego wyniku | E95: x | F95: x | G95: x | H95: x | I95: x | J95: x | K95: x | L95: x
B96: 13.1 | C96: Kwota zobowiązań wynikających z przejęcia przez jednostkę samorządu terytorialnego zobowiązań po likwidowanych i przekształcanych samodzielnych zakładach opieki zdrowotnej | D96: Kwota zobowiązań wynikających z przejęcia przez jednostkę samorządu terytorialnego zobowiązań po likwidowanych i przekształcanych samodzielnych zakładach opieki zdrowotnej | E96: =0 -> 0 | F96: =0 -> 0 | G96: =0 -> 0 | H96: =0 -> 0 | I96: =0 -> 0 | J96: =0 -> 0 | K96: =0 -> 0 | L96: =0 -> 0
B97: 13.2 | C97: Dochody budżetowe z tytułu dotacji celowej z budżetu państwa, o której mowa w art. 196 ustawy z dnia 15 kwietnia 2011 r. o działalności leczniczej (Dz.U. Nr 112, poz. 654, z późn. zm.) | D97: Dochody budżetowe z tytułu dotacji celowej z budżetu państwa, o której mowa w art. 196 ustawy z dnia 15 kwietnia 2011 r. o działalności leczniczej (Dz.U. Nr 112, poz. 654, z późn. zm.) | E97: =0 -> 0 | F97: =0 -> 0 | G97: =0 -> 0 | H97: =0 -> 0 | I97: =0 -> 0 | J97: =0 -> 0 | K97: =0 -> 0 | L97: =0 -> 0
B98: 13.3 | C98: Wysokość zobowiązań podlegających umorzeniu, o którym mowa w art. 190 ustawy o działalności leczniczej | D98: Wysokość zobowiązań podlegających umorzeniu, o którym mowa w art. 190 ustawy o działalności leczniczej | E98: =0 -> 0 | F98: =0 -> 0 | G98: =0 -> 0 | H98: =0 -> 0 | I98: =0 -> 0 | J98: =0 -> 0 | K98: =0 -> 0 | L98: =0 -> 0
B99: 13.4 | C99: Wydatki na spłatę przejętych zobowiązań samodzielnego publicznego zakładu opieki zdrowotnej przekształconego na zasadach określonych w przepisach o działalności leczniczej | D99: Wydatki na spłatę przejętych zobowiązań samodzielnego publicznego zakładu opieki zdrowotnej przekształconego na zasadach określonych w przepisach o działalności leczniczej | E99: =0 -> 0 | F99: =0 -> 0 | G99: =0 -> 0 | H99: =0 -> 0 | I99: =0 -> 0 | J99: =0 -> 0 | K99: =0 -> 0 | L99: =0 -> 0
B100: 13.5 | C100: Wydatki na spłatę przejętych zobowiązań samodzielnego publicznego zakładu opieki zdrowotnej likwidowanego na zasadach określonych w przepisach o działalności leczniczej | D100: Wydatki na spłatę przejętych zobowiązań samodzielnego publicznego zakładu opieki zdrowotnej likwidowanego na zasadach określonych w przepisach o działalności leczniczej | E100: =0 -> 0 | F100: =0 -> 0 | G100: =0 -> 0 | H100: =0 -> 0 | I100: =0 -> 0 | J100: =0 -> 0 | K100: =0 -> 0 | L100: =0 -> 0
B101: 13.6 | C101: Wydatki na spłatę zobowiązań samodzielnego publicznego zakładu opieki zdrowotnej przejętych do końca 2011 r. na podstawie przepisów o zakładach opieki zdrowotnej | D101: Wydatki na spłatę zobowiązań samodzielnego publicznego zakładu opieki zdrowotnej przejętych do końca 2011 r. na podstawie przepisów o zakładach opieki zdrowotnej | E101: =0 -> 0 | F101: =0 -> 0 | G101: =0 -> 0 | H101: =0 -> 0 | I101: =0 -> 0 | J101: =0 -> 0 | K101: =0 -> 0 | L101: =0 -> 0
B102: 13.7 | C102: Wydatki bieżące na pokrycie ujemnego wyniku finansowego samodzielnego publicznego zakładu opieki zdrowotnej | D102: Wydatki bieżące na pokrycie ujemnego wyniku finansowego samodzielnego publicznego zakładu opieki zdrowotnej | E102: =0 -> 0 | F102: =0 -> 0 | G102: =0 -> 0 | H102: =0 -> 0 | I102: =0 -> 0 | J102: =0 -> 0 | K102: =0 -> 0 | L102: =0 -> 0
A103: x | B103: 14 | C103: Dane uzupełniające o długu i jego spłacie | D103: Dane uzupełniające o długu i jego spłacie | E103: x | F103: x | G103: x | H103: x | I103: x | J103: x | K103: x | L103: x
A104: x | B104: 14.1 | C104: Spłaty rat kapitałowych oraz wykup papierów wartościowych, o których mowa w pkt. 5.1., wynikające wyłącznie z tytułu zobowiązań już zaciągniętych | D104: Spłaty rat kapitałowych oraz wykup papierów wartościowych, o których mowa w pkt. 5.1., wynikające wyłącznie z tytułu zobowiązań już zaciągniętych | E104: =1278520.75 -> 1278520.75 | F104: =737521.46 -> 737521.46 | G104: =773956.19 -> 773956.19 | H104: =604776.59 -> 604776.59 | I104: =169179.6 -> 169179.6 | J104: =701400 -> 701400 | K104: =701387.6 -> 701387.6 | L104: =0 -> 0
A105: x | B105: 14.2 | C105: Kwota długu, którego planowana spłata dokona się z wydatków budżetu | D105: Kwota długu, którego planowana spłata dokona się z wydatków budżetu | E105: =0 -> 0 | F105: =0 -> 0 | G105: =0 -> 0 | H105: =0 -> 0 | I105: =0 -> 0 | J105: =0 -> 0 | K105: =0 -> 0 | L105: =0 -> 0
A106: x | B106: 14.3 | C106: Wydatki zmniejszające dług, w tym | D106: Wydatki zmniejszające dług, w tym | E106: =0 -> 0 | F106: =0 -> 0 | G106: =0 -> 0 | H106: =0 -> 0 | I106: =0 -> 0 | J106: =0 -> 0 | K106: =0 -> 0 | L106: =0 -> 0
A107: x | B107: 14.3.1 | C107: spłata zobowiązań wymagalnych z lat poprzednich, innych niż w pkt 14.3.3 | D107: spłata zobowiązań wymagalnych z lat poprzednich, innych niż w pkt 14.3.3 | E107: =0 -> 0 | F107: =0 -> 0 | G107: =0 -> 0 | H107: =0 -> 0 | I107: =0 -> 0 | J107: =0 -> 0 | K107: =0 -> 0 | L107: =0 -> 0
A108: x | B108: 14.3.2 | C108: związane z umowami zaliczanymi do tytułów dłużnych wliczanych do państwowego długu publicznego | D108: związane z umowami zaliczanymi do tytułów dłużnych wliczanych do państwowego długu publicznego | E108: =0 -> 0 | F108: =0 -> 0 | G108: =0 -> 0 | H108: =0 -> 0 | I108: =0 -> 0 | J108: =0 -> 0 | K108: =0 -> 0 | L108: =0 -> 0
A109: x | B109: 14.3.3 | C109: wypłaty z tytułu wymagalnych poręczeń i gwarancji | D109: wypłaty z tytułu wymagalnych poręczeń i gwarancji | E109: =0 -> 0 | F109: =0 -> 0 | G109: =0 -> 0 | H109: =0 -> 0 | I109: =0 -> 0 | J109: =0 -> 0 | K109: =0 -> 0 | L109: =0 -> 0
A110: x | B110: 14.4 | C110: Wynik operacji niekasowych wpływających na kwotę długu ( m.in. umorzenia, różnice kursowe) | D110: Wynik operacji niekasowych wpływających na kwotę długu ( m.in. umorzenia, różnice kursowe) | E110: =0 -> 0 | F110: =0 -> 0 | G110: =0 -> 0 | H110: =0 -> 0 | I110: =0 -> 0 | J110: =0 -> 0 | K110: =0 -> 0 | L110: =0 -> 0
B111: 15 | C111: Dane dotyczące emitowanych obligacji przychodowych | D111: Dane dotyczące emitowanych obligacji przychodowych | E111: x | F111: x | G111: x | H111: x | I111: x | J111: x | K111: x | L111: x
B112: 15.1 | C112: Środki z przedsięwzięcia gromadzone na rachunku bankowym, w tym: | D112: Środki z przedsięwzięcia gromadzone na rachunku bankowym, w tym: | E112: =0 -> 0 | F112: =0 -> 0 | G112: =0 -> 0 | H112: =0 -> 0 | I112: =0 -> 0 | J112: =0 -> 0 | K112: =0 -> 0 | L112: =0 -> 0
A113: x | B113: 15.1.1 | C113: środki na zaspokojenie roszczeń obligatariuszy | D113: środki na zaspokojenie roszczeń obligatariuszy | E113: =0 -> 0 | F113: =0 -> 0 | G113: =0 -> 0 | H113: =0 -> 0 | I113: =0 -> 0 | J113: =0 -> 0 | K113: =0 -> 0 | L113: =0 -> 0
A114: x | B114: 15.2 | C114: Wydatki bieżące z tytułu świadczenia emitenta należnego obligatariuszom, nieuwzględniane w limicie spłaty zobowiązań, o którym mowa w art. 243 ustawy | D114: Wydatki bieżące z tytułu świadczenia emitenta należnego obligatariuszom, nieuwzględniane w limicie spłaty zobowiązań, o którym mowa w art. 243 ustawy | E114: =0 -> 0 | F114: =0 -> 0 | G114: =0 -> 0 | H114: =0 -> 0 | I114: =0 -> 0 | J114: =0 -> 0 | K114: =0 -> 0 | L114: =0 -> 0
B115: 16 | D115: Stopień niezachowania relacji określonych w art. 242-244 ustawy (dotyczy tylko JST objętych procedurą z art. 240a lub 240b) | E115: x | F115: x | G115: x | H115: x | I115: x | J115: x | K115: x | L115: x
B116: 16.1 | D116: Stopień niezachowania relacji zrównoważenia wydatków bieżących, o której mowa w poz. 8.2 | E116: x | F116: x | G116: x | H116: x | I116: =+IF(I52<0,I52,"") ->  | J116: =+IF(J52<0,J52,"") ->  | K116: =+IF(K52<0,K52,"") ->  | L116: =+IF(L52<0,L52,"") -> 
A117: x | B117: 16.2 | D117: Stopień niezachowania wskaźnika spłaty zobowiązań, o którym mowa w poz. 9.7 | E117: x | F117: x | G117: x | H117: x | I117: =IF(I57<=I59,"",I59- I57) ->  | J117: =IF(J57<=J59,"",J59- J57) ->  | K117: =IF(K57<=K59,"",K59- K57) ->  | L117: =IF(L57<=L59,"",L59- L57) -> 
A118: x | B118: 16.3 | D118: Stopień niezachowania wskaźnika spłaty zobowiązań, o którym mowa w poz. 9.7.1 | E118: x | F118: x | G118: x | H118: x | I118: =IF(I57<=I60,"",I60-I57) ->  | J118: =IF(J57<=J60,"",J60-J57) ->  | K118: =IF(K57<=K60,"",K60-K57) ->  | L118: =IF(L57<=L60,"",L60-L57) -> 
B120: UWAGA!
B121: Do symulacji prognozy i obserwacji zmian relacji z art. 242-243 na podstawie danych wprowadzanych ręcznie służy arkusz "WPF_AnalizaWsk_Projektowanie"
B124: Weryfikacja wybranych danych wykazanych w tabeli Wieloletnia Prognoza Finansowa
D125: Reguła formalna
D126: Reguła rachunkowa
D127: Reguła logiczna
D128: Reguły kontrolne
B129: [1.1] + [4.1] + [4.2] >= ([2.1] - [2.1.2]) | C129: [1.1] + [4.1] + [4.2] >= ([2.1] - [2.1.2]) | D129: Spełnienie wskaźnika z art. 242 | E129: x | F129: x | G129: x | H129: x | I129: =IF(ROUND(I11+I33+I35,2)>=ROUND(I22-I25,2),"TAK","NIE") -> TAK | J129: =IF(ROUND(J11+J33+J35,2)>=ROUND(J22-J25,2),"TAK","NIE") -> TAK | K129: =IF(ROUND(K11+K33+K35,2)>=ROUND(K22-K25,2),"TAK","NIE") -> TAK | L129: =IF(ROUND(L11+L33+L35,2)>=ROUND(L22-L25,2),"TAK","NIE") -> TAK
B130: [13.3] = 0 (dla lat 2014 i wyższych) | C130: [13.3] = 0 (dla lat 2014 i wyższych) | D130: Umorzenie zobowiązań, o którym mowa w art. 190 ustawy o działalności leczniczej nie wykracza poza ustawowy okres | E130: x | F130: x | G130: x | H130: x | I130: x | J130: x | K130: =IF(K98=0,"TAK","BŁĄD") -> TAK | L130: =IF(L98=0,"TAK","BŁĄD") -> TAK
B131: [1] + [4] - [2] - [5] = 0 | C131: [1] + [4] - [2] - [5] = 0 | D131: Kontrola poprawności zbilansowania budżetu | E131: x | F131: x | G131: x | H131: x | I131: =IF(ROUND(I10+I32-I21-I41,2)=0,"OK",ROUND(I10+I32-I21-I41,2)) -> OK | J131: =IF(ROUND(J10+J32-J21-J41,2)=0,"OK",ROUND(J10+J32-J21-J41,2)) -> OK | K131: =IF(ROUND(K10+K32-K21-K41,2)=0,"OK",ROUND(K10+K32-K21-K41,2)) -> OK | L131: =IF(ROUND(L10+L32-L21-L41,2)=0,"OK",ROUND(L10+L32-L21-L41,2)) -> OK
B132: [6]"n" = [6]"n-1" + [4.3]"n" - [5.1]"n" + ([14.2]"n"-[14.2]"n-1") + [14.4] | C132: [6]"n" = [6]"n-1" + [4.3]"n" - [5.1]"n" + ([14.2]"n"-[14.2]"n-1") + [14.4] | D132: Kontrola poprawności wyliczenia kwoty długu | E132: x | F132: x | G132: x | H132: x | I132: =+IF(ROUND(H48+I37-I42+(I105-H105)+I110-I48,2)=0,"OK",ROUND(H48+I37-I42+(I105-H105)+I110-I48,2)) -> OK | J132: =+IF(ROUND(I48+J37-J42+(J105-I105)+J110-J48,2)=0,"OK",ROUND(I48+J37-J42+(J105-I105)+J110-J48,2)) -> OK | K132: =+IF(ROUND(J48+K37-K42+(K105-J105)+K110-K48,2)=0,"OK",ROUND(J48+K37-K42+(K105-J105)+K110-K48,2)) -> OK | L132: =+IF(ROUND(K48+L37-L42+(L105-K105)+L110-L48,2)=0,"OK",ROUND(K48+L37-L42+(L105-K105)+L110-L48,2)) -> OK
B133: [14.2] "n" = ( [14.2] "n-1" - [14.3] "n" ) | C133: [14.2] "n" = ( [14.2] "n-1" - [14.3] "n" ) | D133: Analiza zmiany kwoty długu spłacanego wydatkami budżetu - wartości różne od zera wymagają objaśnienia - wartości większe od zera wskazują na powstanie w roku prognozy nowego długu tego typu - wartości mniejsze od zera co do zasady nie powinny wystąpić | E133: x | F133: x | G133: x | H133: x | I133: =+IF(H105=0,"N/D",IF(ROUND(I105+I106-H105,2)=0,"OK",ROUND(I105+I106-H105,2))) -> N/D | J133: =+IF(I105=0,"N/D",IF(ROUND(J105+J106-I105,2)=0,"OK",ROUND(J105+J106-I105,2))) -> N/D | K133: =+IF(J105=0,"N/D",IF(ROUND(K105+K106-J105,2)=0,"OK",ROUND(K105+K106-J105,2))) -> N/D | L133: =+IF(K105=0,"N/D",IF(ROUND(L105+L106-K105,2)=0,"OK",ROUND(L105+L106-K105,2))) -> N/D
B134: [13.1] "n" - ( [13.3] + [13.4] + [13.5] + [13.6] ) "n" = [13.1] "n-1" | C134: [13.1] "n" - ( [13.3] + [13.4] + [13.5] + [13.6] ) "n" = [13.1] "n-1" | D134: Porównanie na koniec roku prognozy stanu zobowiązań przejętych przez jst po likwidowanych i przekształcanych SP ZOZ z wydatkami i umorzeniami poniesionymi na ten cel ze stanem zobowiązań z okresu N-1 | E134: x | F134: x | G134: x | H134: x | I134: =+IF(H96=0,"N/D",IF(ROUND(I96+(I98+I99+I100+I101)-H96,2)=0,"OK",ROUND(I96+(I98+I99+I100+I101)-H96,2))) -> N/D | J134: =+IF(I96=0,"N/D",IF(ROUND(J96+(J98+J99+J100+J101)-I96,2)=0,"OK",ROUND(J96+(J98+J99+J100+J101)-I96,2))) -> N/D | K134: =+IF(J96=0,"N/D",IF(ROUND(K96+(K98+K99+K100+K101)-J96,2)=0,"OK",ROUND(K96+(K98+K99+K100+K101)-J96,2))) -> N/D | L134: =+IF(K96=0,"N/D",IF(ROUND(L96+(L98+L99+L100+L101)-K96,2)=0,"OK",ROUND(L96+(L98+L99+L100+L101)-K96,2))) -> N/D
B135: jeśli [3] < 0 to sprawdź czy [4.1.1] + [4.2.1] + [4.3.1] + [4.4.1] + [3] = 0 | C135: jeśli [3] < 0 to sprawdź czy [4.1.1] + [4.2.1] + [4.3.1] + [4.4.1] + [3] = 0 | D135: Kontrola poprawności wykazania źródeł pokrycia deficytu | E135: x | F135: x | G135: x | H135: x | I135: =IF(I31<0,IF(ROUND(I34+I36+I38+I40+I31,2)=0,"OK",ROUND(I34+I36+I38+I40+I31,2)),"N/D") -> OK | J135: =IF(J31<0,IF(ROUND(J34+J36+J38+J40+J31,2)=0,"OK",ROUND(J34+J36+J38+J40+J31,2)),"N/D") -> N/D | K135: =IF(K31<0,IF(ROUND(K34+K36+K38+K40+K31,2)=0,"OK",ROUND(K34+K36+K38+K40+K31,2)),"N/D") -> N/D | L135: =IF(L31<0,IF(ROUND(L34+L36+L38+L40+L31,2)=0,"OK",ROUND(L34+L36+L38+L40+L31,2)),"N/D") -> N/D
B136: jeśli [3] >= 0 to sprawdź czy [4.1.1]=0 i [4.2.1]=0 i [4.3.1]=0 i [4.4.1] = 0 | C136: jeśli [3] >= 0 to sprawdź czy [4.1.1]=0 i [4.2.1]=0 i [4.3.1]=0 i [4.4.1] = 0 | D136: Kontrola poprawności niewykazania źródeł pokrycia deficytu przy nadwyżce budżetu | E136: x | F136: x | G136: x | H136: x | I136: =IF(I31>=0,IF(ROUND(I34+I36+I38+I40,2)=0,"OK",ROUND(I34+I36+I38+I40,2)),"N/D") -> N/D | J136: =IF(J31>=0,IF(ROUND(J34+J36+J38+J40,2)=0,"OK",ROUND(J34+J36+J38+J40,2)),"N/D") -> OK | K136: =IF(K31>=0,IF(ROUND(K34+K36+K38+K40,2)=0,"OK",ROUND(K34+K36+K38+K40,2)),"N/D") -> OK | L136: =IF(L31>=0,IF(ROUND(L34+L36+L38+L40,2)=0,"OK",ROUND(L34+L36+L38+L40,2)),"N/D") -> OK
B137: [1.1.3] >= [1.1.3.1] | C137: [1.1.3] >= [1.1.3.1] | D137: Reguła logiczna: [1.1.3] >= [1.1.3.1] | E137: x | F137: x | G137: x | H137: x | I137: =IF(I14>=I15,"OK","BŁĄD") -> OK | J137: =IF(J14>=J15,"OK","BŁĄD") -> OK | K137: =IF(K14>=K15,"OK","BŁĄD") -> OK | L137: =IF(L14>=L15,"OK","BŁĄD") -> OK
B138: [1.1.5] >= [13.2] | C138: [1.1.5] >= [13.2] | D138: Reguła logiczna: [1.1.5] >= [13.2] | E138: x | F138: x | G138: x | H138: x | I138: =IF(I17>=I97,"OK","BŁĄD") -> OK | J138: =IF(J17>=J97,"OK","BŁĄD") -> OK | K138: =IF(K17>=K97,"OK","BŁĄD") -> OK | L138: =IF(L17>=L97,"OK","BŁĄD") -> OK
B139: [1.1] >= ([1.1.1] + [1.1.2] + [1.1.3] + [1.1.4] + [1.1.5]) | C139: [1.1] >= ([1.1.1] + [1.1.2] + [1.1.3] + [1.1.4] + [1.1.5]) | D139: Reguła logiczna: [1.1] >= ([1.1.1] + [1.1.2] + [1.1.3] + [1.1.4] + [1.1.5]) | E139: x | F139: x | G139: x | H139: x | I139: =IF(I11>=I12+I13+I14+I16+I17,"OK","BŁĄD") -> OK | J139: =IF(J11>=J12+J13+J14+J16+J17,"OK","BŁĄD") -> OK | K139: =IF(K11>=K12+K13+K14+K16+K17,"OK","BŁĄD") -> OK | L139: =IF(L11>=L12+L13+L14+L16+L17,"OK","BŁĄD") -> OK
B140: [1.1] >= [12.1] | C140: [1.1] >= [12.1] | D140: Reguła logiczna: [1.1] >= [12.1] | E140: x | F140: x | G140: x | H140: x | I140: =IF(I11>=I75,"OK","BŁĄD") -> OK | J140: =IF(J11>=J75,"OK","BŁĄD") -> OK | K140: =IF(K11>=K75,"OK","BŁĄD") -> OK | L140: =IF(L11>=L75,"OK","BŁĄD") -> OK
B141: [1.2] >= [1.2.1] | C141: [1.2] >= [1.2.1] | D141: Reguła logiczna: [1.2] >= [1.2.1] | E141: x | F141: x | G141: x | H141: x | I141: =IF(I18>=I19,"OK","BŁĄD") -> OK | J141: =IF(J18>=J19,"OK","BŁĄD") -> OK | K141: =IF(K18>=K19,"OK","BŁĄD") -> OK | L141: =IF(L18>=L19,"OK","BŁĄD") -> OK
B142: [1.2] >= [1.2.2] | C142: [1.2] >= [1.2.2] | D142: Reguła logiczna: [1.2] >= [1.2.2] | E142: x | F142: x | G142: x | H142: x | I142: =IF(I18>=I20,"OK","BŁĄD") -> OK | J142: =IF(J18>=J20,"OK","BŁĄD") -> OK | K142: =IF(K18>=K20,"OK","BŁĄD") -> OK | L142: =IF(L18>=L20,"OK","BŁĄD") -> OK
B143: [1.2] >= [12.2] | C143: [1.2] >= [12.2] | D143: Reguła logiczna: [1.2] >= [12.2] | E143: x | F143: x | G143: x | H143: x | I143: =IF(I18>=I78,"OK","BŁĄD") -> OK | J143: =IF(J18>=J78,"OK","BŁĄD") -> OK | K143: =IF(K18>=K78,"OK","BŁĄD") -> OK | L143: =IF(L18>=L78,"OK","BŁĄD") -> OK
D144: Reguła logiczna: jeżeli [3] >0 to [10] = [3] | E144: x | F144: x | G144: x | H144: x | I144: =+IF(I31>0,IF(I31=I63,"OK","Błąd"),"N/D") -> N/D | J144: =+IF(J31>0,IF(J31=J63,"OK","Błąd"),"N/D") -> OK | K144: =+IF(K31>0,IF(K31=K63,"OK","Błąd"),"N/D") -> OK | L144: =+IF(L31>0,IF(L31=L63,"OK","Błąd"),"N/D") -> N/D
B145: [10] >= [10.1] | C145: [10] >= [10.1] | D145: Reguła logiczna: [10] >= [10.1] | E145: x | F145: x | G145: x | H145: x | I145: =IF(I63>=I64,"OK","BŁĄD") -> OK | J145: =IF(J63>=J64,"OK","BŁĄD") -> OK | K145: =IF(K63>=K64,"OK","BŁĄD") -> OK | L145: =IF(L63>=L64,"OK","BŁĄD") -> OK
C146: jeśli [10] > 0 to powinno być [10.1] > 0 | D146: Reguła logiczna: jeżeli [10] > 0 to [10.1] >0 | E146: x | F146: x | G146: x | H146: x | I146: =IF(I63>0,IF(I64>0,"OK","BŁĄD"),"N/D") -> N/D | J146: =IF(J63>0,IF(J64>0,"OK","BŁĄD"),"N/D") -> OK | K146: =IF(K63>0,IF(K64>0,"OK","BŁĄD"),"N/D") -> OK | L146: =IF(L63>0,IF(L64>0,"OK","BŁĄD"),"N/D") -> N/D
B147: [12.1] >= [12.1.1] | C147: [12.1] >= [12.1.1] | D147: Reguła logiczna: [12.1] >= [12.1.1] | E147: x | F147: x | G147: x | H147: x | I147: =IF(I75>=I76,"OK","BŁĄD") -> OK | J147: OK | K147: OK | L147: OK
B148: [12.1.1] >= [12.1.1.1] | C148: [12.1.1] >= [12.1.1.1] | D148: Reguła logiczna: [12.1.1] >= [12.1.1.1] | E148: x | F148: x | G148: x | H148: x | I148: OK | J148: OK | K148: OK | L148: OK
B149: [12.2] >= [12.2.1] | C149: [12.2] >= [12.2.1] | D149: Reguła logiczna: [12.2] >= [12.2.1] | E149: x | F149: x | G149: x | H149: x | I149: =IF(I78>=I79,"OK","BŁĄD") -> OK | J149: OK | K149: OK | L149: OK
B150: [12.2.1] >= [12.2.1.1] | C150: [12.2.1] >= [12.2.1.1] | D150: Reguła logiczna: [12.2.1] >= [12.2.1.1] | E150: x | F150: x | G150: x | H150: x | I150: OK | J150: OK | K150: OK | L150: OK
B151: [12.3] >= [12.3.1] | C151: [12.3] >= [12.3.1] | D151: Reguła logiczna: [12.3] >= [12.3.1] | E151: x | F151: x | G151: x | H151: x | I151: =IF(I81>=I82,"OK","BŁĄD") -> OK | J151: =IF(J81>=J82,"OK","BŁĄD") -> OK | K151: =IF(K81>=K82,"OK","BŁĄD") -> OK | L151: =IF(L81>=L82,"OK","BŁĄD") -> OK
B152: [12.3] >= [12.3.2] | C152: [12.3] >= [12.3.2] | D152: Reguła logiczna: [12.3] >= [12.3.2] | E152: x | F152: x | G152: x | H152: x | I152: =IF(I81>=I83,"OK","BŁĄD") -> OK | J152: =IF(J81>=J83,"OK","BŁĄD") -> OK | K152: =IF(K81>=K83,"OK","BŁĄD") -> OK | L152: =IF(L81>=L83,"OK","BŁĄD") -> OK
B153: [12.4] >= [12.4.1] | C153: [12.4] >= [12.4.1] | D153: Reguła logiczna: [12.4] >= [12.4.1] | E153: x | F153: x | G153: x | H153: x | I153: =IF(I84>=I85,"OK","BŁĄD") -> OK | J153: =IF(J84>=J85,"OK","BŁĄD") -> OK | K153: =IF(K84>=K85,"OK","BŁĄD") -> OK | L153: =IF(L84>=L85,"OK","BŁĄD") -> OK
B154: [12.4] >= [12.4.2] | C154: [12.4] >= [12.4.2] | D154: Reguła logiczna: [12.4] >= [12.4.2] | E154: x | F154: x | G154: x | H154: x | I154: =IF(I84>=I86,"OK","BŁĄD") -> OK | J154: =IF(J84>=J86,"OK","BŁĄD") -> OK | K154: =IF(K84>=K86,"OK","BŁĄD") -> OK | L154: =IF(L84>=L86,"OK","BŁĄD") -> OK
B155: [12.4] >= [12.4.1] | C155: [12.4] >= [12.4.1] | D155: Reguła logiczna: [12.5] >= [12.5.1] | E155: x | F155: x | G155: x | H155: x | I155: =IF(I87>=I88,"OK","BŁĄD") -> OK | J155: =IF(J87>=J88,"OK","BŁĄD") -> OK | K155: =IF(K87>=K88,"OK","BŁĄD") -> OK | L155: =IF(L87>=L88,"OK","BŁĄD") -> OK
B156: [12.4] >= [12.4.1] | C156: [12.4] >= [12.4.1] | D156: Reguła logiczna: [12.6] >= [12.6.1] | E156: x | F156: x | G156: x | H156: x | I156: =IF(I89>=I90,"OK","BŁĄD") -> OK | J156: =IF(J89>=J90,"OK","BŁĄD") -> OK | K156: =IF(K89>=K90,"OK","BŁĄD") -> OK | L156: =IF(L89>=L90,"OK","BŁĄD") -> OK
B157: [12.4] >= [12.4.1] | C157: [12.4] >= [12.4.1] | D157: Reguła logiczna: [12.7] >= [12.7.1] | E157: x | F157: x | G157: x | H157: x | I157: =IF(I91>=I92,"OK","BŁĄD") -> OK | J157: =IF(J91>=J92,"OK","BŁĄD") -> OK | K157: =IF(K91>=K92,"OK","BŁĄD") -> OK | L157: =IF(L91>=L92,"OK","BŁĄD") -> OK
B158: [12.4] >= [12.4.1] | C158: [12.4] >= [12.4.1] | D158: Reguła logiczna: [12.8] >= [12.8.1] | E158: x | F158: x | G158: x | H158: x | I158: =IF(I93>=I94,"OK","BŁĄD") -> OK | J158: =IF(J93>=J94,"OK","BŁĄD") -> OK | K158: =IF(K93>=K94,"OK","BŁĄD") -> OK | L158: =IF(L93>=L94,"OK","BŁĄD") -> OK
B159: [13.1] >= [13.3] | C159: [13.1] >= [13.3] | D159: Reguła logiczna: [13.1] >= [13.3] | E159: x | F159: x | G159: x | H159: x | I159: =IF(I96>=I98,"OK","BŁĄD") -> OK | J159: =IF(J96>=J98,"OK","BŁĄD") -> OK | K159: =IF(K96>=K98,"OK","BŁĄD") -> OK | L159: =IF(L96>=L98,"OK","BŁĄD") -> OK
B160: [13.4] >= [2.1.2] | C160: [13.4] >= [2.1.2] | D160: Reguła logiczna: [13.4] >= [2.1.2] | E160: x | F160: x | G160: x | H160: x | I160: =IF(I99>=I25,"OK","BŁĄD") -> OK | J160: =IF(J99>=J25,"OK","BŁĄD") -> OK | K160: =IF(K99>=K25,"OK","BŁĄD") -> OK | L160: =IF(L99>=L25,"OK","BŁĄD") -> OK
B161: [14.3] >= [14.3.1] + [14.3.2] + [14.3.3] | C161: [14.3] >= [14.3.1] + [14.3.2] + [14.3.3] | D161: Reguła logiczna: [14.3] >= [14.3.1] + [14.3.2] + [14.3.3] | E161: x | F161: x | G161: x | H161: x | I161: =IF(I106>=(I107+I108+I109),"OK","BŁĄD") -> OK | J161: =IF(J106>=(J107+J108+J109),"OK","BŁĄD") -> OK | K161: =IF(K106>=(K107+K108+K109),"OK","BŁĄD") -> OK | L161: =IF(L106>=(L107+L108+L109),"OK","BŁĄD") -> OK
B162: [13.1] >= [13.3] | C162: [13.1] >= [13.3] | D162: Reguła logiczna: [15.1] >= [15.1.1] | E162: x | F162: x | G162: x | H162: x | I162: =IF(I112>=I113,"OK","BŁĄD") -> OK | J162: =IF(J112>=J113,"OK","BŁĄD") -> OK | K162: =IF(K112>=K113,"OK","BŁĄD") -> OK | L162: =IF(L112>=L113,"OK","BŁĄD") -> OK
B163: [2.1.1] >= [2.1.1.1] | C163: [2.1.1] >= [2.1.1.1] | D163: Reguła logiczna: [2.1.1] >= [2.1.1.1] | E163: x | F163: x | G163: x | H163: x | I163: =IF(I23>=I24,"OK","BŁĄD") -> OK | J163: =IF(J23>=J24,"OK","BŁĄD") -> OK | K163: =IF(K23>=K24,"OK","BŁĄD") -> OK | L163: =IF(L23>=L24,"OK","BŁĄD") -> OK
B164: [2.1.1] >= [14.3.3] | C164: [2.1.1] >= [14.3.3] | D164: Reguła logiczna: [2.1.1] >= [14.3.3] | E164: x | F164: x | G164: x | H164: x | I164: =IF(I23>=I109,"OK","BŁĄD") -> OK | J164: =IF(J23>=J109,"OK","BŁĄD") -> OK | K164: =IF(K23>=K109,"OK","BŁĄD") -> OK | L164: =IF(L23>=L109,"OK","BŁĄD") -> OK
B165: [2.1.3] >= [2.1.3.1] | C165: [2.1.3] >= [2.1.3.1] | D165: Reguła logiczna: [2.1.3] >= [2.1.3.1] | E165: x | F165: x | G165: x | H165: x | I165: =IF(I26>=I27,"OK","BŁĄD") -> OK | J165: =IF(J26>=J27,"OK","BŁĄD") -> OK | K165: =IF(K26>=K27,"OK","BŁĄD") -> OK | L165: =IF(L26>=L27,"OK","BŁĄD") -> OK
B166: [2.1.3] >= [2.1.3.1] | C166: [2.1.3] >= [2.1.3.1] | D166: Reguła logiczna: [2.1.3.1] >= [2.1.3.1.1]+[2.1.3.1.2] | E166: x | F166: x | G166: x | H166: x | I166: =IF(I27>=(I28+I29),"OK","BŁĄD") -> OK | J166: =IF(J27>=J28,"OK","BŁĄD") -> OK | K166: =IF(K27>=K28,"OK","BŁĄD") -> OK | L166: =IF(L27>=L28,"OK","BŁĄD") -> OK
B167: [2.1] >= ([2.1.1] + [2.1.2] + [2.1.3]) | C167: [2.1] >= ([2.1.1] + [2.1.2] + [2.1.3]) | D167: Reguła logiczna: [2.1] >= ([2.1.1] + [2.1.2] + [2.1.3]) | E167: x | F167: x | G167: x | H167: x | I167: =IF(I22>=(I23+I25+I26),"OK","BŁĄD") -> OK | J167: =IF(J22>=(J23+J25+J26),"OK","BŁĄD") -> OK | K167: =IF(K22>=(K23+K25+K26),"OK","BŁĄD") -> OK | L167: =IF(L22>=(L23+L25+L26),"OK","BŁĄD") -> OK
B168: [2.1] >= [11.1] | C168: [2.1] >= [11.1] | D168: Reguła logiczna: [2.1] >= [11.1] | E168: x | F168: x | G168: x | H168: x | I168: =IF(I22>=I66,"OK","BŁĄD") -> OK | J168: =IF(J22>=J66,"OK","BŁĄD") -> OK | K168: =IF(K22>=K66,"OK","BŁĄD") -> OK | L168: =IF(L22>=L66,"OK","BŁĄD") -> OK
B169: [2.1] >= [11.3.1] | C169: [2.1] >= [11.3.1] | D169: Reguła logiczna: [2.1] >= [11.3.1] | E169: x | F169: x | G169: x | H169: x | I169: =IF(I22>=I69,"OK","BŁĄD") -> OK | J169: =IF(J22>=J69,"OK","BŁĄD") -> OK | K169: =IF(K22>=K69,"OK","BŁĄD") -> OK | L169: =IF(L22>=L69,"OK","BŁĄD") -> OK
B170: [2.1] >= [12.3] | C170: [2.1] >= [12.3] | D170: Reguła logiczna: [2.1] >= [12.3] | E170: x | F170: x | G170: x | H170: x | I170: =IF(I22>=I81,"OK","BŁĄD") -> OK | J170: =IF(J22>=J81,"OK","BŁĄD") -> OK | K170: =IF(K22>=K81,"OK","BŁĄD") -> OK | L170: =IF(L22>=L81,"OK","BŁĄD") -> OK
B171: [2.1] >= [13.7] | C171: [2.1] >= [13.7] | D171: Reguła logiczna: [2.1] >= [13.7] | E171: x | F171: x | G171: x | H171: x | I171: =IF(I22>=I102,"OK","BŁĄD") -> OK | J171: =IF(J22>=J102,"OK","BŁĄD") -> OK | K171: =IF(K22>=K102,"OK","BŁĄD") -> OK | L171: =IF(L22>=L102,"OK","BŁĄD") -> OK
B172: [2.2] >= [11.3.2] | C172: [2.2] >= [11.3.2] | D172: Reguła logiczna: [2.2] >= [11.3.2] | E172: x | F172: x | G172: x | H172: x | I172: =IF(I30>=I70,"OK","BŁĄD") -> OK | J172: =IF(J30>=J70,"OK","BŁĄD") -> OK | K172: =IF(K30>=K70,"OK","BŁĄD") -> OK | L172: =IF(L30>=L70,"OK","BŁĄD") -> OK
B173: [2.2] >= [11.4] + [11.5] | C173: [2.2] >= [11.4] + [11.5] | D173: Reguła logiczna: [2.2] >= [11.4] + [11.5] | E173: x | F173: x | G173: x | H173: x | I173: =IF(I30>=I71+I72,"OK","BŁĄD") -> OK | J173: =IF(J30>=J71+J72,"OK","BŁĄD") -> OK | K173: =IF(K30>=K71+K72,"OK","BŁĄD") -> OK | L173: =IF(L30>=L71+L72,"OK","BŁĄD") -> OK
B174: [2.2] >= [11.6] | C174: [2.2] >= [11.6] | D174: Reguła logiczna: [2.2] >= [11.6] | E174: x | F174: x | G174: x | H174: x | I174: =IF(I30>=I73,"OK","BŁĄD") -> OK | J174: =IF(J30>=J73,"OK","BŁĄD") -> OK | K174: =IF(K30>=K73,"OK","BŁĄD") -> OK | L174: =IF(L30>=L73,"OK","BŁĄD") -> OK
B175: [2.2] >= [12.4] | C175: [2.2] >= [12.4] | D175: Reguła logiczna: [2.2] >= [12.4] | E175: x | F175: x | G175: x | H175: x | I175: =IF(I30>=I84,"OK","BŁĄD") -> OK | J175: =IF(J30>=J84,"OK","BŁĄD") -> OK | K175: =IF(K30>=K84,"OK","BŁĄD") -> OK | L175: =IF(L30>=L84,"OK","BŁĄD") -> OK
B176: [4.1] >= [4.1.1] | C176: [4.1] >= [4.1.1] | D176: Reguła logiczna: [4.1] >= [4.1.1] | E176: x | F176: x | G176: x | H176: x | I176: =IF(I33>=I34,"OK","BŁĄD") -> OK | J176: =IF(J33>=J34,"OK","BŁĄD") -> OK | K176: =IF(K33>=K34,"OK","BŁĄD") -> OK | L176: =IF(L33>=L34,"OK","BŁĄD") -> OK
B177: [4.2] >= [4.2.1] | C177: [4.2] >= [4.2.1] | D177: Reguła logiczna: [4.2] >= [4.2.1] | E177: x | F177: x | G177: x | H177: x | I177: =IF(I35>=I36,"OK","BŁĄD") -> OK | J177: =IF(J35>=J36,"OK","BŁĄD") -> OK | K177: =IF(K35>=K36,"OK","BŁĄD") -> OK | L177: =IF(L35>=L36,"OK","BŁĄD") -> OK
B178: [4.3] >= [4.3.1] | C178: [4.3] >= [4.3.1] | D178: Reguła logiczna: [4.3] >= [4.3.1] | E178: x | F178: x | G178: x | H178: x | I178: =IF(I37>=I38,"OK","BŁĄD") -> OK | J178: =IF(J37>=J38,"OK","BŁĄD") -> OK | K178: =IF(K37>=K38,"OK","BŁĄD") -> OK | L178: =IF(L37>=L38,"OK","BŁĄD") -> OK
B179: [4.4] >= [4.4.1] | C179: [4.4] >= [4.4.1] | D179: Reguła logiczna: [4.4] >= [4.4.1] | E179: x | F179: x | G179: x | H179: x | I179: =IF(I39>=I40,"OK","BŁĄD") -> OK | J179: =IF(J39>=J40,"OK","BŁĄD") -> OK | K179: =IF(K39>=K40,"OK","BŁĄD") -> OK | L179: =IF(L39>=L40,"OK","BŁĄD") -> OK
B180: [5.1] >= [5.1.1] | C180: [5.1] >= [5.1.1] | D180: Reguła logiczna: [5.1] >= [5.1.1] | E180: x | F180: x | G180: x | H180: x | I180: =IF(I42>=I43,"OK","BŁĄD") -> OK | J180: =IF(J42>=J43,"OK","BŁĄD") -> OK | K180: =IF(K42>=K43,"OK","BŁĄD") -> OK | L180: =IF(L42>=L43,"OK","BŁĄD") -> OK
B181: [5.1] >= [10.1] | C181: [5.1] >= [10.1] | D181: Reguła logiczna: [5.1] >= [10.1] | E181: x | F181: x | G181: x | H181: x | I181: =IF(I42>=I64,"OK","BŁĄD") -> OK | J181: =IF(J42>=J64,"OK","BŁĄD") -> OK | K181: =IF(K42>=K64,"OK","BŁĄD") -> OK | L181: =IF(L42>=L64,"OK","BŁĄD") -> OK
B182: [5.1] >= [14.1] | C182: [5.1] >= [14.1] | D182: Reguła logiczna: [5.1] >= [14.1] | E182: x | F182: x | G182: x | H182: x | I182: =IF(I42>=I104,"OK","BŁĄD") -> OK | J182: =IF(J42>=J104,"OK","BŁĄD") -> OK | K182: =IF(K42>=K104,"OK","BŁĄD") -> OK | L182: =IF(L42>=L104,"OK","BŁĄD") -> OK
B183: [6] >=[7] | C183: [6] >=[7] | D183: Reguła logiczna: [6] >=[7] | E183: x | F183: x | G183: x | H183: x | I183: =IF(I48>=I49,"OK","BŁĄD") -> OK | J183: =IF(J48>=J49,"OK","BŁĄD") -> OK | K183: =IF(K48>=K49,"OK","BŁĄD") -> OK | L183: =IF(L48>=L49,"OK","BŁĄD") -> OK
B184: [6] >= [14.2] | C184: [6] >= [14.2] | D184: Reguła logiczna: [6] >= [14.2] | E184: x | F184: x | G184: x | H184: x | I184: =IF(I48>=I105,"OK","BŁĄD") -> OK | J184: =IF(J48>=J105,"OK","BŁĄD") -> OK | K184: =IF(K48>=K105,"OK","BŁĄD") -> OK | L184: =IF(L48>=L105,"OK","BŁĄD") -> OK
B185: 7>=13.1 | C185: 7>=13.1 | D185: Reguła logiczna: 7>=13.1 | E185: x | F185: x | G185: x | H185: x | I185: =IF(I49>=I96,"OK","BŁĄD") -> OK | J185: =IF(J49>=J96,"OK","BŁĄD") -> OK | K185: =IF(K49>=K96,"OK","BŁĄD") -> OK | L185: =IF(L49>=L96,"OK","BŁĄD") -> OK
B186: jeżeli [2.1.3] <> 0 to [2.1.3.1] <> 0 | C186: jeżeli [2.1.3] <> 0 to [2.1.3.1] <> 0 | D186: Reguła logiczna: jeżeli [2.1.3] <> 0 to [2.1.3.1] <> 0 | E186: x | F186: x | G186: x | H186: x | I186: =IF(I26<>0,IF(I27<>0,"OK","BŁĄD"),"N/D") -> OK | J186: =IF(J26<>0,IF(J27<>0,"OK","BŁĄD"),"N/D") -> OK | K186: =IF(K26<>0,IF(K27<>0,"OK","BŁĄD"),"N/D") -> OK | L186: =IF(L26<>0,IF(L27<>0,"OK","BŁĄD"),"N/D") -> N/D
D188: Kontrola poprawności podstawowych kwot
D189: Dochody ogółem = bieżące + majątkowe | E189: =E11+E18 -> 14062028.15 | F189: 12708280.6 | G189: 15086054.13 | H189: 15409938.1 | I189: 11885236 | J189: 13116110 | K189: 13247270 | L189: 13379740
D190: Wydatki ogółem = bieżące + majątkowe | E190: =E22+E30 -> 11481546.43 | F190: 13777530.74 | G190: 14983740.94 | H190: 15322124.91 | I190: 13118844 | J190: 12414710 | K190: 12545882.4 | L190: 13379740
D191: Wynik budżetu = dochody ogółem - wydatki ogółem | E191: =E10-E21 -> 2580481.72 | F191: -1069250.14 | G191: 102313.19 | H191: 87813.19 | I191: -1233608 | J191: 701400 | K191: 701387.6 | L191: 0
D192: Wyliczenie kwoty długu | E192: x | F192: =E48+F37-F42+(F105-E105)+F110 -> 773956.19 | G192: x | H192: =F48+H37-H42+(H105-F105)+H110 -> 169179.6 | I192: =H48+I37-I42+(I105-H105)+I110 -> 1402787.6 | J192: =I48+J37-J42+(J105-I105)+J110 -> 701387.6 | K192: =J48+K37-K42+(K105-J105)+K110 -> 0 | L192: =K48+L37-L42+(L105-K105)+L110 -> 0
D193: Wyliczenie zobowiązań wynikających z przejęcia przez jst zobowiązań po likwidowanych i przekształcanych SZOZ | E193: x | F193: =E96-(F98+F99+F100+F101) -> 0 | G193: x | H193: =F96-(H98+H99+H100+H101) -> 0 | I193: =H96-(I98+I99+I100+I101) -> 0 | J193: =I96-(J98+J99+J100+J101) -> 0 | K193: =J96-(K98+K99+K100+K101) -> 0 | L193: =K96-(L98+L99+L100+L101) -> 0
D195: Analiza ryzyka niespełnienia wskaźnika z art. 243
D196: Analiza składowych wzoru wskaźnika z art. 243
D197: 0 | E197: =+"różnica mniejsza od "&TEXT(D197*100,"0,0")&"%" -> różnica mniejsza od 0,0%
D198: 0.005 | E198: =+"różnica mniejsza od "&TEXT(D198*100,"0,0")&"%" -> różnica mniejsza od 0,5%
D199: 0.01 | E199: =+"różnica mniejsza od "&TEXT(D199*100,"0,0")&"%" -> różnica mniejsza od 1,0%
D200: max. limit spłat (planistyczny) - (R+O)/D (bez wyłączeń) | E200: x | F200: x | G200: x | H200: x | I200: =+IF(I10=0,"",I59-I54) -> 0.186 | J200: =+IF(J10=0,"",J59-J54) -> 0.133 | K200: =+IF(K10=0,"",K59-K54) -> 0.1564 | L200: =+IF(L10=0,"",L59-L54) -> 0.2445
D201: max. limit spłat (planistyczny) - (R+O)/D (z wyłączeniami) | E201: x | F201: x | G201: x | H201: x | I201: =+IF(I10=0,"",I59-I55) -> 0.186 | J201: =+IF(J10=0,"",J59-J55) -> 0.133 | K201: =+IF(K10=0,"",K59-K55) -> 0.1564 | L201: =+IF(L10=0,"",L59-L55) -> 0.2445
D202: max. limit spłat (wg wykonania) - (R+O)/D (bez wyłączeń) | E202: x | F202: x | G202: x | H202: x | I202: =+IF(I10=0,"",I60-I54) -> 0.1846 | J202: =+IF(J10=0,"",J60-J54) -> 0.1317 | K202: =+IF(K10=0,"",K60-K54) -> 0.155 | L202: =+IF(L10=0,"",L60-L54) -> 0.2445
D203: max. limit spłat (wg wykonania) - (R+O)/D (z wyłączeniami) | E203: x | F203: x | G203: x | H203: x | I203: =+IF(I10=0,"",I60-I55) -> 0.1846 | J203: =+IF(J10=0,"",J60-J55) -> 0.1317 | K203: =+IF(K10=0,"",K60-K55) -> 0.155 | L203: =+IF(L10=0,"",L60-L55) -> 0.2445

Sheet WPF_AnalizaWsk_ProjektowanieJST
B1: Raport z systemu BeSTi@ - narzędzie opracowane przez Zespół ds. rozwoju technologii IT przy KR RIO | F1: Pola z tłem tego koloru są obliczane automatycznie i nie powinny być nadpisywane w celu ochrony formuł
B2: Niniejsze zestawienie można samodzielnie formatować i modyfikować wartości | F2: Pola z tłem tego koloru są obliczane automatycznie
B3: Układ WPF wg Rozporządzenia Min.Fin. z 10.01.2013 po zmianie z DzU.2013.1736 oraz DzU.2014.1127 | F3: Pola z tłem tego koloru można edytowac wprowadzając nowe wartości (projektowanie WPF i obliczanie wskaźników)
B5: Nr Uchwały: | D5: =DaneZrodlowe!B4 -> 1 | I5: =D6&" - "&"WPF za lata "&D7&" - Nr Uchwały JST: "&D5 -> KRZYŻANÓW - WPF za lata 2015 - 2018 - Nr Uchwały JST: 1
B6: Nazwa JST: | D6: =DaneZrodlowe!C4 -> KRZYŻANÓW
B7: WPF za lata: | D7: =CONCATENATE(DaneZrodlowe!N1," - ",DaneZrodlowe!Q1) -> 2015 - 2018 | J7: zaokrąglaj wskaźniki procentowe do liczby miejsc po przecinku: | K7: 2
E8: Wykonanie | G8: Plan 3 kw. | H8: Wykonanie | I8: ="" -> 
A9: X | B9: Lp. | C9: Formuła | D9: Wyszczególnienie | E9: =+F9-1 -> 2012 | F9: =+G9-1 -> 2013 | G9: =+H9 -> 2014 | H9: =+I9-1 -> 2014 | I9: =+DaneZrodlowe!$N$1 -> 2015 | J9: =+I9+1 -> 2016 | K9: =+J9+1 -> 2017 | L9: 2018 | M9: 2019 | N9: 2020 | O9: 2021 | P9: 2022 | Q9: 2023 | R9: 2024 | S9: 2025 | T9: 2026 | U9: 2027 | V9: 2028 | W9: 2029 | X9: 2030 | Y9: 2031 | Z9: 2032 | AA9: 2033 | AB9: 2034 | AC9: 2035 | AD9: 2036 | AE9: 2037 | AF9: 2038 | AG9: 2039 | AH9: 2040 | AI9: 2041 | AJ9: 2042 | AK9: 2043 | AL9: 2044
A10: x | B10: 1 | C10: [1.1]+[1.2] | D10: Dochody ogółem | E10: =Zał.1_WPF_bazowy!E10 -> 14062028.15 | F10: =Zał.1_WPF_bazowy!F10 -> 12708280.6 | G10: =Zał.1_WPF_bazowy!G10 -> 15086054.13 | H10: =+H11+H18 -> 15409938.1 | I10: =+I11+I18 -> 11885236 | J10: =+J11+J18 -> 13116110 | K10: 13247270 | L10: 13379740
A11: x | B11: 1.1 | D11: Dochody bieżące | E11: =Zał.1_WPF_bazowy!E11 -> 12660364.54 | F11: =Zał.1_WPF_bazowy!F11 -> 11968299.93 | G11: =Zał.1_WPF_bazowy!G11 -> 12203735.06 | H11: =Zał.1_WPF_bazowy!H11 -> 12527619.03 | I11: =+Zał.1_WPF_bazowy!I11 -> 11877336 | J11: =+Zał.1_WPF_bazowy!J11 -> 13116110 | K11: =+Zał.1_WPF_bazowy!K11 -> 13247270 | L11: =+Zał.1_WPF_bazowy!L11 -> 13379740 | M11: =+Zał.1_WPF_bazowy!#REF! ->  | N11: =+Zał.1_WPF_bazowy!#REF! ->  | O11: =+Zał.1_WPF_bazowy!#REF! ->  | P11: =+Zał.1_WPF_bazowy!#REF! ->  | Q11: =+Zał.1_WPF_bazowy!#REF! ->  | R11: =+Zał.1_WPF_bazowy!#REF! ->  | S11: =+Zał.1_WPF_bazowy!#REF! ->  | T11: =+Zał.1_WPF_bazowy!#REF! ->  | U11: =+Zał.1_WPF_bazowy!#REF! ->  | V11: =+Zał.1_WPF_bazowy!#REF! ->  | W11: =+Zał.1_WPF_bazowy!#REF! ->  | X11: =+Zał.1_WPF_bazowy!#REF! ->  | Y11: =+Zał.1_WPF_bazowy!#REF! ->  | Z11: =+Zał.1_WPF_bazowy!#REF! ->  | AA11: =+Zał.1_WPF_bazowy!#REF! ->  | AB11: =+Zał.1_WPF_bazowy!#REF! ->  | AC11: =+Zał.1_WPF_bazowy!#REF! ->  | AD11: =+Zał.1_WPF_bazowy!#REF! ->  | AE11: =+Zał.1_WPF_bazowy!#REF! ->  | AF11: =+Zał.1_WPF_bazowy!#REF! ->  | AG11: =+Zał.1_WPF_bazowy!#REF! ->  | AH11: =+Zał.1_WPF_bazowy!#REF! ->  | AI11: =+Zał.1_WPF_bazowy!#REF! ->  | AJ11: =+Zał.1_WPF_bazowy!#REF! ->  | AK11: =+Zał.1_WPF_bazowy!#REF! ->  | AL11: =+Zał.1_WPF_bazowy!#REF! -> 
B12: 1.1.1 | D12: dochody z tytułu udziału we wpływach z podatku dochodowego od osób fizycznych | E12: =Zał.1_WPF_bazowy!E12 -> 1398132 | F12: =Zał.1_WPF_bazowy!F12 -> 1390365 | G12: =Zał.1_WPF_bazowy!G12 -> 1335088 | H12: =Zał.1_WPF_bazowy!H12 -> 1335088 | I12: =+Zał.1_WPF_bazowy!I12 -> 1418820 | J12: =+Zał.1_WPF_bazowy!J12 -> 1433008 | K12: =+Zał.1_WPF_bazowy!K12 -> 1447338 | L12: =+Zał.1_WPF_bazowy!L12 -> 1461811 | M12: =+Zał.1_WPF_bazowy!#REF! ->  | N12: =+Zał.1_WPF_bazowy!#REF! ->  | O12: =+Zał.1_WPF_bazowy!#REF! ->  | P12: =+Zał.1_WPF_bazowy!#REF! ->  | Q12: =+Zał.1_WPF_bazowy!#REF! ->  | R12: =+Zał.1_WPF_bazowy!#REF! ->  | S12: =+Zał.1_WPF_bazowy!#REF! ->  | T12: =+Zał.1_WPF_bazowy!#REF! ->  | U12: =+Zał.1_WPF_bazowy!#REF! ->  | V12: =+Zał.1_WPF_bazowy!#REF! ->  | W12: =+Zał.1_WPF_bazowy!#REF! ->  | X12: =+Zał.1_WPF_bazowy!#REF! ->  | Y12: =+Zał.1_WPF_bazowy!#REF! ->  | Z12: =+Zał.1_WPF_bazowy!#REF! ->  | AA12: =+Zał.1_WPF_bazowy!#REF! ->  | AB12: =+Zał.1_WPF_bazowy!#REF! ->  | AC12: =+Zał.1_WPF_bazowy!#REF! ->  | AD12: =+Zał.1_WPF_bazowy!#REF! ->  | AE12: =+Zał.1_WPF_bazowy!#REF! ->  | AF12: =+Zał.1_WPF_bazowy!#REF! ->  | AG12: =+Zał.1_WPF_bazowy!#REF! ->  | AH12: =+Zał.1_WPF_bazowy!#REF! ->  | AI12: =+Zał.1_WPF_bazowy!#REF! ->  | AJ12: =+Zał.1_WPF_bazowy!#REF! ->  | AK12: =+Zał.1_WPF_bazowy!#REF! ->  | AL12: =+Zał.1_WPF_bazowy!#REF! -> 
B13: 1.1.2 | D13: dochody z tytułu udziału we wpływach z podatku dochodowego od osób prawnych | E13: =Zał.1_WPF_bazowy!E13 -> 873.76 | F13: =Zał.1_WPF_bazowy!F13 -> 654.23 | G13: =Zał.1_WPF_bazowy!G13 -> 1000 | H13: =Zał.1_WPF_bazowy!H13 -> 1000 | I13: =+Zał.1_WPF_bazowy!I13 -> 2000 | J13: =+Zał.1_WPF_bazowy!J13 -> 2000 | K13: =+Zał.1_WPF_bazowy!K13 -> 2000 | L13: =+Zał.1_WPF_bazowy!L13 -> 2000 | M13: =+Zał.1_WPF_bazowy!#REF! ->  | N13: =+Zał.1_WPF_bazowy!#REF! ->  | O13: =+Zał.1_WPF_bazowy!#REF! ->  | P13: =+Zał.1_WPF_bazowy!#REF! ->  | Q13: =+Zał.1_WPF_bazowy!#REF! ->  | R13: =+Zał.1_WPF_bazowy!#REF! ->  | S13: =+Zał.1_WPF_bazowy!#REF! ->  | T13: =+Zał.1_WPF_bazowy!#REF! ->  | U13: =+Zał.1_WPF_bazowy!#REF! ->  | V13: =+Zał.1_WPF_bazowy!#REF! ->  | W13: =+Zał.1_WPF_bazowy!#REF! ->  | X13: =+Zał.1_WPF_bazowy!#REF! ->  | Y13: =+Zał.1_WPF_bazowy!#REF! ->  | Z13: =+Zał.1_WPF_bazowy!#REF! ->  | AA13: =+Zał.1_WPF_bazowy!#REF! ->  | AB13: =+Zał.1_WPF_bazowy!#REF! ->  | AC13: =+Zał.1_WPF_bazowy!#REF! ->  | AD13: =+Zał.1_WPF_bazowy!#REF! ->  | AE13: =+Zał.1_WPF_bazowy!#REF! ->  | AF13: =+Zał.1_WPF_bazowy!#REF! ->  | AG13: =+Zał.1_WPF_bazowy!#REF! ->  | AH13: =+Zał.1_WPF_bazowy!#REF! ->  | AI13: =+Zał.1_WPF_bazowy!#REF! ->  | AJ13: =+Zał.1_WPF_bazowy!#REF! ->  | AK13: =+Zał.1_WPF_bazowy!#REF! ->  | AL13: =+Zał.1_WPF_bazowy!#REF! -> 
B14: 1.1.3 | D14: podatki i opłaty | E14: =Zał.1_WPF_bazowy!E14 -> 4719070.97 | F14: =Zał.1_WPF_bazowy!F14 -> 3241540.05 | G14: =Zał.1_WPF_bazowy!G14 -> 3910601 | H14: =Zał.1_WPF_bazowy!H14 -> 3902601 | I14: =+Zał.1_WPF_bazowy!I14 -> 4676056 | J14: =+Zał.1_WPF_bazowy!J14 -> 5842816 | K14: =+Zał.1_WPF_bazowy!K14 -> 5901244 | L14: =+Zał.1_WPF_bazowy!L14 -> 5960256 | M14: =+Zał.1_WPF_bazowy!#REF! ->  | N14: =+Zał.1_WPF_bazowy!#REF! ->  | O14: =+Zał.1_WPF_bazowy!#REF! ->  | P14: =+Zał.1_WPF_bazowy!#REF! ->  | Q14: =+Zał.1_WPF_bazowy!#REF! ->  | R14: =+Zał.1_WPF_bazowy!#REF! ->  | S14: =+Zał.1_WPF_bazowy!#REF! ->  | T14: =+Zał.1_WPF_bazowy!#REF! ->  | U14: =+Zał.1_WPF_bazowy!#REF! ->  | V14: =+Zał.1_WPF_bazowy!#REF! ->  | W14: =+Zał.1_WPF_bazowy!#REF! ->  | X14: =+Zał.1_WPF_bazowy!#REF! ->  | Y14: =+Zał.1_WPF_bazowy!#REF! ->  | Z14: =+Zał.1_WPF_bazowy!#REF! ->  | AA14: =+Zał.1_WPF_bazowy!#REF! ->  | AB14: =+Zał.1_WPF_bazowy!#REF! ->  | AC14: =+Zał.1_WPF_bazowy!#REF! ->  | AD14: =+Zał.1_WPF_bazowy!#REF! ->  | AE14: =+Zał.1_WPF_bazowy!#REF! ->  | AF14: =+Zał.1_WPF_bazowy!#REF! ->  | AG14: =+Zał.1_WPF_bazowy!#REF! ->  | AH14: =+Zał.1_WPF_bazowy!#REF! ->  | AI14: =+Zał.1_WPF_bazowy!#REF! ->  | AJ14: =+Zał.1_WPF_bazowy!#REF! ->  | AK14: =+Zał.1_WPF_bazowy!#REF! ->  | AL14: =+Zał.1_WPF_bazowy!#REF! -> 
B15: 1.1.3.1 | D15: z podatku od nieruchomości | E15: =Zał.1_WPF_bazowy!E15 -> 1608877.11 | F15: =Zał.1_WPF_bazowy!F15 -> 1467888.16 | G15: =Zał.1_WPF_bazowy!G15 -> 1532389 | H15: =Zał.1_WPF_bazowy!H15 -> 1532389 | I15: =+Zał.1_WPF_bazowy!I15 -> 1534000 | J15: =+Zał.1_WPF_bazowy!J15 -> 2669340 | K15: =+Zał.1_WPF_bazowy!K15 -> 2696034 | L15: =+Zał.1_WPF_bazowy!L15 -> 2723000 | M15: =+Zał.1_WPF_bazowy!#REF! ->  | N15: =+Zał.1_WPF_bazowy!#REF! ->  | O15: =+Zał.1_WPF_bazowy!#REF! ->  | P15: =+Zał.1_WPF_bazowy!#REF! ->  | Q15: =+Zał.1_WPF_bazowy!#REF! ->  | R15: =+Zał.1_WPF_bazowy!#REF! ->  | S15: =+Zał.1_WPF_bazowy!#REF! ->  | T15: =+Zał.1_WPF_bazowy!#REF! ->  | U15: =+Zał.1_WPF_bazowy!#REF! ->  | V15: =+Zał.1_WPF_bazowy!#REF! ->  | W15: =+Zał.1_WPF_bazowy!#REF! ->  | X15: =+Zał.1_WPF_bazowy!#REF! ->  | Y15: =+Zał.1_WPF_bazowy!#REF! ->  | Z15: =+Zał.1_WPF_bazowy!#REF! ->  | AA15: =+Zał.1_WPF_bazowy!#REF! ->  | AB15: =+Zał.1_WPF_bazowy!#REF! ->  | AC15: =+Zał.1_WPF_bazowy!#REF! ->  | AD15: =+Zał.1_WPF_bazowy!#REF! ->  | AE15: =+Zał.1_WPF_bazowy!#REF! ->  | AF15: =+Zał.1_WPF_bazowy!#REF! ->  | AG15: =+Zał.1_WPF_bazowy!#REF! ->  | AH15: =+Zał.1_WPF_bazowy!#REF! ->  | AI15: =+Zał.1_WPF_bazowy!#REF! ->  | AJ15: =+Zał.1_WPF_bazowy!#REF! ->  | AK15: =+Zał.1_WPF_bazowy!#REF! ->  | AL15: =+Zał.1_WPF_bazowy!#REF! -> 
B16: 1.1.4 | D16: z subwencji ogólnej | E16: =Zał.1_WPF_bazowy!E16 -> 4481337 | F16: =Zał.1_WPF_bazowy!F16 -> 4504728 | G16: =Zał.1_WPF_bazowy!G16 -> 3274658 | H16: =Zał.1_WPF_bazowy!H16 -> 3274658 | I16: =+Zał.1_WPF_bazowy!I16 -> 3862767 | J16: =+Zał.1_WPF_bazowy!J16 -> 3901395 | K16: =+Zał.1_WPF_bazowy!K16 -> 3940400 | L16: =+Zał.1_WPF_bazowy!L16 -> 3979813 | M16: =+Zał.1_WPF_bazowy!#REF! ->  | N16: =+Zał.1_WPF_bazowy!#REF! ->  | O16: =+Zał.1_WPF_bazowy!#REF! ->  | P16: =+Zał.1_WPF_bazowy!#REF! ->  | Q16: =+Zał.1_WPF_bazowy!#REF! ->  | R16: =+Zał.1_WPF_bazowy!#REF! ->  | S16: =+Zał.1_WPF_bazowy!#REF! ->  | T16: =+Zał.1_WPF_bazowy!#REF! ->  | U16: =+Zał.1_WPF_bazowy!#REF! ->  | V16: =+Zał.1_WPF_bazowy!#REF! ->  | W16: =+Zał.1_WPF_bazowy!#REF! ->  | X16: =+Zał.1_WPF_bazowy!#REF! ->  | Y16: =+Zał.1_WPF_bazowy!#REF! ->  | Z16: =+Zał.1_WPF_bazowy!#REF! ->  | AA16: =+Zał.1_WPF_bazowy!#REF! ->  | AB16: =+Zał.1_WPF_bazowy!#REF! ->  | AC16: =+Zał.1_WPF_bazowy!#REF! ->  | AD16: =+Zał.1_WPF_bazowy!#REF! ->  | AE16: =+Zał.1_WPF_bazowy!#REF! ->  | AF16: =+Zał.1_WPF_bazowy!#REF! ->  | AG16: =+Zał.1_WPF_bazowy!#REF! ->  | AH16: =+Zał.1_WPF_bazowy!#REF! ->  | AI16: =+Zał.1_WPF_bazowy!#REF! ->  | AJ16: =+Zał.1_WPF_bazowy!#REF! ->  | AK16: =+Zał.1_WPF_bazowy!#REF! ->  | AL16: =+Zał.1_WPF_bazowy!#REF! -> 
B17: 1.1.5 | D17: z tytułu dotacji i środków przeznaczonych na cele bieżące | E17: =Zał.1_WPF_bazowy!E17 -> 2060950.81 | F17: =Zał.1_WPF_bazowy!F17 -> 2099883.43 | G17: =Zał.1_WPF_bazowy!G17 -> 2095696.81 | H17: =Zał.1_WPF_bazowy!H17 -> 2433356.95 | I17: =+Zał.1_WPF_bazowy!I17 -> 1273753 | J17: =+Zał.1_WPF_bazowy!J17 -> 1273753 | K17: =+Zał.1_WPF_bazowy!K17 -> 1273753 | L17: =+Zał.1_WPF_bazowy!L17 -> 1273753 | M17: =+Zał.1_WPF_bazowy!#REF! ->  | N17: =+Zał.1_WPF_bazowy!#REF! ->  | O17: =+Zał.1_WPF_bazowy!#REF! ->  | P17: =+Zał.1_WPF_bazowy!#REF! ->  | Q17: =+Zał.1_WPF_bazowy!#REF! ->  | R17: =+Zał.1_WPF_bazowy!#REF! ->  | S17: =+Zał.1_WPF_bazowy!#REF! ->  | T17: =+Zał.1_WPF_bazowy!#REF! ->  | U17: =+Zał.1_WPF_bazowy!#REF! ->  | V17: =+Zał.1_WPF_bazowy!#REF! ->  | W17: =+Zał.1_WPF_bazowy!#REF! ->  | X17: =+Zał.1_WPF_bazowy!#REF! ->  | Y17: =+Zał.1_WPF_bazowy!#REF! ->  | Z17: =+Zał.1_WPF_bazowy!#REF! ->  | AA17: =+Zał.1_WPF_bazowy!#REF! ->  | AB17: =+Zał.1_WPF_bazowy!#REF! ->  | AC17: =+Zał.1_WPF_bazowy!#REF! ->  | AD17: =+Zał.1_WPF_bazowy!#REF! ->  | AE17: =+Zał.1_WPF_bazowy!#REF! ->  | AF17: =+Zał.1_WPF_bazowy!#REF! ->  | AG17: =+Zał.1_WPF_bazowy!#REF! ->  | AH17: =+Zał.1_WPF_bazowy!#REF! ->  | AI17: =+Zał.1_WPF_bazowy!#REF! ->  | AJ17: =+Zał.1_WPF_bazowy!#REF! ->  | AK17: =+Zał.1_WPF_bazowy!#REF! ->  | AL17: =+Zał.1_WPF_bazowy!#REF! -> 
A18: x | B18: 1.2 | D18: Dochody majątkowe, w tym | E18: =Zał.1_WPF_bazowy!E18 -> 1401663.61 | F18: =Zał.1_WPF_bazowy!F18 -> 739980.67 | G18: =Zał.1_WPF_bazowy!G18 -> 2882319.07 | H18: =Zał.1_WPF_bazowy!H18 -> 2882319.07 | I18: =+Zał.1_WPF_bazowy!I18 -> 7900 | J18: =+Zał.1_WPF_bazowy!J18 -> 0 | K18: =+Zał.1_WPF_bazowy!K18 -> 0 | L18: =+Zał.1_WPF_bazowy!L18 -> 0 | M18: =+Zał.1_WPF_bazowy!#REF! ->  | N18: =+Zał.1_WPF_bazowy!#REF! ->  | O18: =+Zał.1_WPF_bazowy!#REF! ->  | P18: =+Zał.1_WPF_bazowy!#REF! ->  | Q18: =+Zał.1_WPF_bazowy!#REF! ->  | R18: =+Zał.1_WPF_bazowy!#REF! ->  | S18: =+Zał.1_WPF_bazowy!#REF! ->  | T18: =+Zał.1_WPF_bazowy!#REF! ->  | U18: =+Zał.1_WPF_bazowy!#REF! ->  | V18: =+Zał.1_WPF_bazowy!#REF! ->  | W18: =+Zał.1_WPF_bazowy!#REF! ->  | X18: =+Zał.1_WPF_bazowy!#REF! ->  | Y18: =+Zał.1_WPF_bazowy!#REF! ->  | Z18: =+Zał.1_WPF_bazowy!#REF! ->  | AA18: =+Zał.1_WPF_bazowy!#REF! ->  | AB18: =+Zał.1_WPF_bazowy!#REF! ->  | AC18: =+Zał.1_WPF_bazowy!#REF! ->  | AD18: =+Zał.1_WPF_bazowy!#REF! ->  | AE18: =+Zał.1_WPF_bazowy!#REF! ->  | AF18: =+Zał.1_WPF_bazowy!#REF! ->  | AG18: =+Zał.1_WPF_bazowy!#REF! ->  | AH18: =+Zał.1_WPF_bazowy!#REF! ->  | AI18: =+Zał.1_WPF_bazowy!#REF! ->  | AJ18: =+Zał.1_WPF_bazowy!#REF! ->  | AK18: =+Zał.1_WPF_bazowy!#REF! ->  | AL18: =+Zał.1_WPF_bazowy!#REF! -> 
A19: x | B19: 1.2.1 | D19: ze sprzedaży majątku | E19: =Zał.1_WPF_bazowy!E19 -> 69038.91 | F19: =Zał.1_WPF_bazowy!F19 -> 6200 | G19: =Zał.1_WPF_bazowy!G19 -> 220000 | H19: =Zał.1_WPF_bazowy!H19 -> 220000 | I19: =+Zał.1_WPF_bazowy!I19 -> 0 | J19: =+Zał.1_WPF_bazowy!J19 -> 0 | K19: =+Zał.1_WPF_bazowy!K19 -> 0 | L19: =+Zał.1_WPF_bazowy!L19 -> 0 | M19: =+Zał.1_WPF_bazowy!#REF! ->  | N19: =+Zał.1_WPF_bazowy!#REF! ->  | O19: =+Zał.1_WPF_bazowy!#REF! ->  | P19: =+Zał.1_WPF_bazowy!#REF! ->  | Q19: =+Zał.1_WPF_bazowy!#REF! ->  | R19: =+Zał.1_WPF_bazowy!#REF! ->  | S19: =+Zał.1_WPF_bazowy!#REF! ->  | T19: =+Zał.1_WPF_bazowy!#REF! ->  | U19: =+Zał.1_WPF_bazowy!#REF! ->  | V19: =+Zał.1_WPF_bazowy!#REF! ->  | W19: =+Zał.1_WPF_bazowy!#REF! ->  | X19: =+Zał.1_WPF_bazowy!#REF! ->  | Y19: =+Zał.1_WPF_bazowy!#REF! ->  | Z19: =+Zał.1_WPF_bazowy!#REF! ->  | AA19: =+Zał.1_WPF_bazowy!#REF! ->  | AB19: =+Zał.1_WPF_bazowy!#REF! ->  | AC19: =+Zał.1_WPF_bazowy!#REF! ->  | AD19: =+Zał.1_WPF_bazowy!#REF! ->  | AE19: =+Zał.1_WPF_bazowy!#REF! ->  | AF19: =+Zał.1_WPF_bazowy!#REF! ->  | AG19: =+Zał.1_WPF_bazowy!#REF! ->  | AH19: =+Zał.1_WPF_bazowy!#REF! ->  | AI19: =+Zał.1_WPF_bazowy!#REF! ->  | AJ19: =+Zał.1_WPF_bazowy!#REF! ->  | AK19: =+Zał.1_WPF_bazowy!#REF! ->  | AL19: =+Zał.1_WPF_bazowy!#REF! -> 
B20: 1.2.2 | D20: z tytułu dotacji oraz środków przeznaczonych na inwestycje | E20: =Zał.1_WPF_bazowy!E20 -> 1332324.7 | F20: =Zał.1_WPF_bazowy!F20 -> 720552.67 | G20: =Zał.1_WPF_bazowy!G20 -> 2603609.07 | H20: =Zał.1_WPF_bazowy!H20 -> 2603609.07 | I20: =+Zał.1_WPF_bazowy!I20 -> 7900 | J20: =+Zał.1_WPF_bazowy!J20 -> 0 | K20: =+Zał.1_WPF_bazowy!K20 -> 0 | L20: =+Zał.1_WPF_bazowy!L20 -> 0 | M20: =+Zał.1_WPF_bazowy!#REF! ->  | N20: =+Zał.1_WPF_bazowy!#REF! ->  | O20: =+Zał.1_WPF_bazowy!#REF! ->  | P20: =+Zał.1_WPF_bazowy!#REF! ->  | Q20: =+Zał.1_WPF_bazowy!#REF! ->  | R20: =+Zał.1_WPF_bazowy!#REF! ->  | S20: =+Zał.1_WPF_bazowy!#REF! ->  | T20: =+Zał.1_WPF_bazowy!#REF! ->  | U20: =+Zał.1_WPF_bazowy!#REF! ->  | V20: =+Zał.1_WPF_bazowy!#REF! ->  | W20: =+Zał.1_WPF_bazowy!#REF! ->  | X20: =+Zał.1_WPF_bazowy!#REF! ->  | Y20: =+Zał.1_WPF_bazowy!#REF! ->  | Z20: =+Zał.1_WPF_bazowy!#REF! ->  | AA20: =+Zał.1_WPF_bazowy!#REF! ->  | AB20: =+Zał.1_WPF_bazowy!#REF! ->  | AC20: =+Zał.1_WPF_bazowy!#REF! ->  | AD20: =+Zał.1_WPF_bazowy!#REF! ->  | AE20: =+Zał.1_WPF_bazowy!#REF! ->  | AF20: =+Zał.1_WPF_bazowy!#REF! ->  | AG20: =+Zał.1_WPF_bazowy!#REF! ->  | AH20: =+Zał.1_WPF_bazowy!#REF! ->  | AI20: =+Zał.1_WPF_bazowy!#REF! ->  | AJ20: =+Zał.1_WPF_bazowy!#REF! ->  | AK20: =+Zał.1_WPF_bazowy!#REF! ->  | AL20: =+Zał.1_WPF_bazowy!#REF! -> 
A21: x | B21: 2 | C21: [2.1]+[2.2] | D21: Wydatki ogółem | E21: =Zał.1_WPF_bazowy!E21 -> 11481546.43 | F21: =Zał.1_WPF_bazowy!F21 -> 13777530.74 | G21: =Zał.1_WPF_bazowy!G21 -> 14983740.94 | H21: =+H22+H30 -> 15322124.91 | I21: =+I22+I30 -> 13118844 | J21: =+J22+J30 -> 12414710 | K21: 12545882.4 | L21: 13379740
A22: x | B22: 2.1 | D22: Wydatki bieżące, w tym: | E22: =Zał.1_WPF_bazowy!E22 -> 9055670.43 | F22: =Zał.1_WPF_bazowy!F22 -> 9384342.04 | G22: =Zał.1_WPF_bazowy!G22 -> 9999493.87 | H22: =Zał.1_WPF_bazowy!H22 -> 10334477.84 | I22: =+Zał.1_WPF_bazowy!I22 -> 9369229 | J22: =+Zał.1_WPF_bazowy!J22 -> 9654720 | K22: =+Zał.1_WPF_bazowy!K22 -> 9820000.4 | L22: =+Zał.1_WPF_bazowy!L22 -> 10030650 | M22: =+Zał.1_WPF_bazowy!#REF! ->  | N22: =+Zał.1_WPF_bazowy!#REF! ->  | O22: =+Zał.1_WPF_bazowy!#REF! ->  | P22: =+Zał.1_WPF_bazowy!#REF! ->  | Q22: =+Zał.1_WPF_bazowy!#REF! ->  | R22: =+Zał.1_WPF_bazowy!#REF! ->  | S22: =+Zał.1_WPF_bazowy!#REF! ->  | T22: =+Zał.1_WPF_bazowy!#REF! ->  | U22: =+Zał.1_WPF_bazowy!#REF! ->  | V22: =+Zał.1_WPF_bazowy!#REF! ->  | W22: =+Zał.1_WPF_bazowy!#REF! ->  | X22: =+Zał.1_WPF_bazowy!#REF! ->  | Y22: =+Zał.1_WPF_bazowy!#REF! ->  | Z22: =+Zał.1_WPF_bazowy!#REF! ->  | AA22: =+Zał.1_WPF_bazowy!#REF! ->  | AB22: =+Zał.1_WPF_bazowy!#REF! ->  | AC22: =+Zał.1_WPF_bazowy!#REF! ->  | AD22: =+Zał.1_WPF_bazowy!#REF! ->  | AE22: =+Zał.1_WPF_bazowy!#REF! ->  | AF22: =+Zał.1_WPF_bazowy!#REF! ->  | AG22: =+Zał.1_WPF_bazowy!#REF! ->  | AH22: =+Zał.1_WPF_bazowy!#REF! ->  | AI22: =+Zał.1_WPF_bazowy!#REF! ->  | AJ22: =+Zał.1_WPF_bazowy!#REF! ->  | AK22: =+Zał.1_WPF_bazowy!#REF! ->  | AL22: =+Zał.1_WPF_bazowy!#REF! -> 
A23: x | B23: 2.1.1 | D23: z tytułu poręczeń i gwarancji | E23: =Zał.1_WPF_bazowy!E23 -> 0 | F23: =Zał.1_WPF_bazowy!F23 -> 0 | G23: =Zał.1_WPF_bazowy!G23 -> 0 | H23: =Zał.1_WPF_bazowy!H23 -> 0 | I23: =+Zał.1_WPF_bazowy!I23 -> 0 | J23: =+Zał.1_WPF_bazowy!J23 -> 0 | K23: =+Zał.1_WPF_bazowy!K23 -> 0 | L23: =+Zał.1_WPF_bazowy!L23 -> 0 | M23: =+Zał.1_WPF_bazowy!#REF! ->  | N23: =+Zał.1_WPF_bazowy!#REF! ->  | O23: =+Zał.1_WPF_bazowy!#REF! ->  | P23: =+Zał.1_WPF_bazowy!#REF! ->  | Q23: =+Zał.1_WPF_bazowy!#REF! ->  | R23: =+Zał.1_WPF_bazowy!#REF! ->  | S23: =+Zał.1_WPF_bazowy!#REF! ->  | T23: =+Zał.1_WPF_bazowy!#REF! ->  | U23: =+Zał.1_WPF_bazowy!#REF! ->  | V23: =+Zał.1_WPF_bazowy!#REF! ->  | W23: =+Zał.1_WPF_bazowy!#REF! ->  | X23: =+Zał.1_WPF_bazowy!#REF! ->  | Y23: =+Zał.1_WPF_bazowy!#REF! ->  | Z23: =+Zał.1_WPF_bazowy!#REF! ->  | AA23: =+Zał.1_WPF_bazowy!#REF! ->  | AB23: =+Zał.1_WPF_bazowy!#REF! ->  | AC23: =+Zał.1_WPF_bazowy!#REF! ->  | AD23: =+Zał.1_WPF_bazowy!#REF! ->  | AE23: =+Zał.1_WPF_bazowy!#REF! ->  | AF23: =+Zał.1_WPF_bazowy!#REF! ->  | AG23: =+Zał.1_WPF_bazowy!#REF! ->  | AH23: =+Zał.1_WPF_bazowy!#REF! ->  | AI23: =+Zał.1_WPF_bazowy!#REF! ->  | AJ23: =+Zał.1_WPF_bazowy!#REF! ->  | AK23: =+Zał.1_WPF_bazowy!#REF! ->  | AL23: =+Zał.1_WPF_bazowy!#REF! -> 
A24: x | B24: 2.1.1.1 | D24: w tym: gwarancje i poręczenia podlegające wyłączeniu z limitu spłaty zobowiązań, o którym mowa w art. 243 ustawy | E24: =Zał.1_WPF_bazowy!E24 -> 0 | F24: =Zał.1_WPF_bazowy!F24 -> 0 | G24: =Zał.1_WPF_bazowy!G24 -> 0 | H24: =Zał.1_WPF_bazowy!H24 -> 0 | I24: =+Zał.1_WPF_bazowy!I24 -> 0 | J24: =+Zał.1_WPF_bazowy!J24 -> 0 | K24: =+Zał.1_WPF_bazowy!K24 -> 0 | L24: =+Zał.1_WPF_bazowy!L24 -> 0 | M24: =+Zał.1_WPF_bazowy!#REF! ->  | N24: =+Zał.1_WPF_bazowy!#REF! ->  | O24: =+Zał.1_WPF_bazowy!#REF! ->  | P24: =+Zał.1_WPF_bazowy!#REF! ->  | Q24: =+Zał.1_WPF_bazowy!#REF! ->  | R24: =+Zał.1_WPF_bazowy!#REF! ->  | S24: =+Zał.1_WPF_bazowy!#REF! ->  | T24: =+Zał.1_WPF_bazowy!#REF! ->  | U24: =+Zał.1_WPF_bazowy!#REF! ->  | V24: =+Zał.1_WPF_bazowy!#REF! ->  | W24: =+Zał.1_WPF_bazowy!#REF! ->  | X24: =+Zał.1_WPF_bazowy!#REF! ->  | Y24: =+Zał.1_WPF_bazowy!#REF! ->  | Z24: =+Zał.1_WPF_bazowy!#REF! ->  | AA24: =+Zał.1_WPF_bazowy!#REF! ->  | AB24: =+Zał.1_WPF_bazowy!#REF! ->  | AC24: =+Zał.1_WPF_bazowy!#REF! ->  | AD24: =+Zał.1_WPF_bazowy!#REF! ->  | AE24: =+Zał.1_WPF_bazowy!#REF! ->  | AF24: =+Zał.1_WPF_bazowy!#REF! ->  | AG24: =+Zał.1_WPF_bazowy!#REF! ->  | AH24: =+Zał.1_WPF_bazowy!#REF! ->  | AI24: =+Zał.1_WPF_bazowy!#REF! ->  | AJ24: =+Zał.1_WPF_bazowy!#REF! ->  | AK24: =+Zał.1_WPF_bazowy!#REF! ->  | AL24: =+Zał.1_WPF_bazowy!#REF! -> 
B25: 2.1.2 | D25: na spłatę przejętych zobowiązań samodzielnego publicznego zakładu opieki zdrowotnej przekształconego na zasadach określonych w przepisach o działalności leczniczej, w wysokości w jakiej nie podlegają sfinansowaniu dotacją z budżetu państwa | E25: =+Zał.1_WPF_bazowy!E25 -> 0 | F25: =+Zał.1_WPF_bazowy!F25 -> 0 | G25: =+Zał.1_WPF_bazowy!G25 -> 0 | H25: =+Zał.1_WPF_bazowy!H25 -> 0 | I25: =+Zał.1_WPF_bazowy!I25 -> 0 | J25: =+Zał.1_WPF_bazowy!J25 -> 0 | K25: =+Zał.1_WPF_bazowy!K25 -> 0 | L25: =+Zał.1_WPF_bazowy!L25 -> 0 | M25: =+Zał.1_WPF_bazowy!#REF! ->  | N25: =+Zał.1_WPF_bazowy!#REF! ->  | O25: =+Zał.1_WPF_bazowy!#REF! ->  | P25: =+Zał.1_WPF_bazowy!#REF! ->  | Q25: =+Zał.1_WPF_bazowy!#REF! ->  | R25: =+Zał.1_WPF_bazowy!#REF! ->  | S25: =+Zał.1_WPF_bazowy!#REF! ->  | T25: =+Zał.1_WPF_bazowy!#REF! ->  | U25: =+Zał.1_WPF_bazowy!#REF! ->  | V25: =+Zał.1_WPF_bazowy!#REF! ->  | W25: =+Zał.1_WPF_bazowy!#REF! ->  | X25: =+Zał.1_WPF_bazowy!#REF! ->  | Y25: =+Zał.1_WPF_bazowy!#REF! ->  | Z25: =+Zał.1_WPF_bazowy!#REF! ->  | AA25: =+Zał.1_WPF_bazowy!#REF! ->  | AB25: =+Zał.1_WPF_bazowy!#REF! ->  | AC25: =+Zał.1_WPF_bazowy!#REF! ->  | AD25: =+Zał.1_WPF_bazowy!#REF! ->  | AE25: =+Zał.1_WPF_bazowy!#REF! ->  | AF25: =+Zał.1_WPF_bazowy!#REF! ->  | AG25: =+Zał.1_WPF_bazowy!#REF! ->  | AH25: =+Zał.1_WPF_bazowy!#REF! ->  | AI25: =+Zał.1_WPF_bazowy!#REF! ->  | AJ25: =+Zał.1_WPF_bazowy!#REF! ->  | AK25: =+Zał.1_WPF_bazowy!#REF! ->  | AL25: =+Zał.1_WPF_bazowy!#REF! -> 
A26: x | B26: 2.1.3 | D26: wydatki na obsługę długu, w tym: | E26: =Zał.1_WPF_bazowy!E26 -> 84758.58 | F26: =Zał.1_WPF_bazowy!F26 -> 36975.83 | G26: =Zał.1_WPF_bazowy!G26 -> 20000 | H26: =Zał.1_WPF_bazowy!H26 -> 20000 | I26: =+Zał.1_WPF_bazowy!I26 -> 100000 | J26: =+Zał.1_WPF_bazowy!J26 -> 70000 | K26: =+Zał.1_WPF_bazowy!K26 -> 34000 | L26: =+Zał.1_WPF_bazowy!L26 -> 0 | M26: =+Zał.1_WPF_bazowy!#REF! ->  | N26: =+Zał.1_WPF_bazowy!#REF! ->  | O26: =+Zał.1_WPF_bazowy!#REF! ->  | P26: =+Zał.1_WPF_bazowy!#REF! ->  | Q26: =+Zał.1_WPF_bazowy!#REF! ->  | R26: =+Zał.1_WPF_bazowy!#REF! ->  | S26: =+Zał.1_WPF_bazowy!#REF! ->  | T26: =+Zał.1_WPF_bazowy!#REF! ->  | U26: =+Zał.1_WPF_bazowy!#REF! ->  | V26: =+Zał.1_WPF_bazowy!#REF! ->  | W26: =+Zał.1_WPF_bazowy!#REF! ->  | X26: =+Zał.1_WPF_bazowy!#REF! ->  | Y26: =+Zał.1_WPF_bazowy!#REF! ->  | Z26: =+Zał.1_WPF_bazowy!#REF! ->  | AA26: =+Zał.1_WPF_bazowy!#REF! ->  | AB26: =+Zał.1_WPF_bazowy!#REF! ->  | AC26: =+Zał.1_WPF_bazowy!#REF! ->  | AD26: =+Zał.1_WPF_bazowy!#REF! ->  | AE26: =+Zał.1_WPF_bazowy!#REF! ->  | AF26: =+Zał.1_WPF_bazowy!#REF! ->  | AG26: =+Zał.1_WPF_bazowy!#REF! ->  | AH26: =+Zał.1_WPF_bazowy!#REF! ->  | AI26: =+Zał.1_WPF_bazowy!#REF! ->  | AJ26: =+Zał.1_WPF_bazowy!#REF! ->  | AK26: =+Zał.1_WPF_bazowy!#REF! ->  | AL26: =+Zał.1_WPF_bazowy!#REF! -> 
A27: x | B27: 2.1.3.1 | D27: odsetki i dyskonto określone w art. 243 ust. 1 ustawy, w tym: | E27: =Zał.1_WPF_bazowy!E27 -> 83194.59 | F27: =Zał.1_WPF_bazowy!F27 -> 36075.83 | G27: =Zał.1_WPF_bazowy!G27 -> 20000 | H27: =Zał.1_WPF_bazowy!H27 -> 20000 | I27: =+Zał.1_WPF_bazowy!I27 -> 100000 | J27: =+Zał.1_WPF_bazowy!J27 -> 70000 | K27: =+Zał.1_WPF_bazowy!K27 -> 34000 | L27: =+Zał.1_WPF_bazowy!L27 -> 0 | M27: =+Zał.1_WPF_bazowy!#REF! ->  | N27: =+Zał.1_WPF_bazowy!#REF! ->  | O27: =+Zał.1_WPF_bazowy!#REF! ->  | P27: =+Zał.1_WPF_bazowy!#REF! ->  | Q27: =+Zał.1_WPF_bazowy!#REF! ->  | R27: =+Zał.1_WPF_bazowy!#REF! ->  | S27: =+Zał.1_WPF_bazowy!#REF! ->  | T27: =+Zał.1_WPF_bazowy!#REF! ->  | U27: =+Zał.1_WPF_bazowy!#REF! ->  | V27: =+Zał.1_WPF_bazowy!#REF! ->  | W27: =+Zał.1_WPF_bazowy!#REF! ->  | X27: =+Zał.1_WPF_bazowy!#REF! ->  | Y27: =+Zał.1_WPF_bazowy!#REF! ->  | Z27: =+Zał.1_WPF_bazowy!#REF! ->  | AA27: =+Zał.1_WPF_bazowy!#REF! ->  | AB27: =+Zał.1_WPF_bazowy!#REF! ->  | AC27: =+Zał.1_WPF_bazowy!#REF! ->  | AD27: =+Zał.1_WPF_bazowy!#REF! ->  | AE27: =+Zał.1_WPF_bazowy!#REF! ->  | AF27: =+Zał.1_WPF_bazowy!#REF! ->  | AG27: =+Zał.1_WPF_bazowy!#REF! ->  | AH27: =+Zał.1_WPF_bazowy!#REF! ->  | AI27: =+Zał.1_WPF_bazowy!#REF! ->  | AJ27: =+Zał.1_WPF_bazowy!#REF! ->  | AK27: =+Zał.1_WPF_bazowy!#REF! ->  | AL27: =+Zał.1_WPF_bazowy!#REF! -> 
A28: x | B28: 2.1.3.1.1 | D28: odsetki i dyskonto podlegające wyłączeniu z limitu spłaty zobowiązań, o którym mowa w art. 243 ustawy, w terminie nie dłuższym niż 90 dni po zakończeniu programu, projektu lub zadania i otrzymaniu refundacji z tych środków (bez odsetek i dyskonta od zobowiązań na wkład krajowy) | E28: =Zał.1_WPF_bazowy!E28 -> 0 | F28: =Zał.1_WPF_bazowy!F28 -> 0 | G28: =Zał.1_WPF_bazowy!G28 -> 0 | H28: =Zał.1_WPF_bazowy!H28 -> 0 | I28: =+Zał.1_WPF_bazowy!I28 -> 0 | J28: =+Zał.1_WPF_bazowy!J28 -> 0 | K28: =+Zał.1_WPF_bazowy!K28 -> 0 | L28: =+Zał.1_WPF_bazowy!L28 -> 0 | M28: =+Zał.1_WPF_bazowy!#REF! ->  | N28: =+Zał.1_WPF_bazowy!#REF! ->  | O28: =+Zał.1_WPF_bazowy!#REF! ->  | P28: =+Zał.1_WPF_bazowy!#REF! ->  | Q28: =+Zał.1_WPF_bazowy!#REF! ->  | R28: =+Zał.1_WPF_bazowy!#REF! ->  | S28: =+Zał.1_WPF_bazowy!#REF! ->  | T28: =+Zał.1_WPF_bazowy!#REF! ->  | U28: =+Zał.1_WPF_bazowy!#REF! ->  | V28: =+Zał.1_WPF_bazowy!#REF! ->  | W28: =+Zał.1_WPF_bazowy!#REF! ->  | X28: =+Zał.1_WPF_bazowy!#REF! ->  | Y28: =+Zał.1_WPF_bazowy!#REF! ->  | Z28: =+Zał.1_WPF_bazowy!#REF! ->  | AA28: =+Zał.1_WPF_bazowy!#REF! ->  | AB28: =+Zał.1_WPF_bazowy!#REF! ->  | AC28: =+Zał.1_WPF_bazowy!#REF! ->  | AD28: =+Zał.1_WPF_bazowy!#REF! ->  | AE28: =+Zał.1_WPF_bazowy!#REF! ->  | AF28: =+Zał.1_WPF_bazowy!#REF! ->  | AG28: =+Zał.1_WPF_bazowy!#REF! ->  | AH28: =+Zał.1_WPF_bazowy!#REF! ->  | AI28: =+Zał.1_WPF_bazowy!#REF! ->  | AJ28: =+Zał.1_WPF_bazowy!#REF! ->  | AK28: =+Zał.1_WPF_bazowy!#REF! ->  | AL28: =+Zał.1_WPF_bazowy!#REF! -> 
A29: x | B29: 2.1.3.1.2 | D29: odsetki i dyskonto podlegające wyłączeniu z limitu spłaty zobowiązań, o którym mowa w art. 243 ustawy, z tytułu zobowiązań zaciągniętych na wkład krajowy | E29: =Zał.1_WPF_bazowy!E29 -> 0 | F29: =Zał.1_WPF_bazowy!F29 -> 0 | G29: =Zał.1_WPF_bazowy!G29 -> 0 | H29: =Zał.1_WPF_bazowy!H29 -> 0 | I29: =+Zał.1_WPF_bazowy!I29 -> 0 | J29: =+Zał.1_WPF_bazowy!J29 -> 0 | K29: =+Zał.1_WPF_bazowy!K29 -> 0 | L29: =+Zał.1_WPF_bazowy!L29 -> 0 | M29: =+Zał.1_WPF_bazowy!#REF! ->  | N29: =+Zał.1_WPF_bazowy!#REF! ->  | O29: =+Zał.1_WPF_bazowy!#REF! ->  | P29: =+Zał.1_WPF_bazowy!#REF! ->  | Q29: =+Zał.1_WPF_bazowy!#REF! ->  | R29: =+Zał.1_WPF_bazowy!#REF! ->  | S29: =+Zał.1_WPF_bazowy!#REF! ->  | T29: =+Zał.1_WPF_bazowy!#REF! ->  | U29: =+Zał.1_WPF_bazowy!#REF! ->  | V29: =+Zał.1_WPF_bazowy!#REF! ->  | W29: =+Zał.1_WPF_bazowy!#REF! ->  | X29: =+Zał.1_WPF_bazowy!#REF! ->  | Y29: =+Zał.1_WPF_bazowy!#REF! ->  | Z29: =+Zał.1_WPF_bazowy!#REF! ->  | AA29: =+Zał.1_WPF_bazowy!#REF! ->  | AB29: =+Zał.1_WPF_bazowy!#REF! ->  | AC29: =+Zał.1_WPF_bazowy!#REF! ->  | AD29: =+Zał.1_WPF_bazowy!#REF! ->  | AE29: =+Zał.1_WPF_bazowy!#REF! ->  | AF29: =+Zał.1_WPF_bazowy!#REF! ->  | AG29: =+Zał.1_WPF_bazowy!#REF! ->  | AH29: =+Zał.1_WPF_bazowy!#REF! ->  | AI29: =+Zał.1_WPF_bazowy!#REF! ->  | AJ29: =+Zał.1_WPF_bazowy!#REF! ->  | AK29: =+Zał.1_WPF_bazowy!#REF! ->  | AL29: =+Zał.1_WPF_bazowy!#REF! -> 
A30: x | B30: 2.2 | D30: Wydatki majątkowe | E30: =Zał.1_WPF_bazowy!E30 -> 2425876 | F30: =Zał.1_WPF_bazowy!F30 -> 4393188.7 | G30: =Zał.1_WPF_bazowy!G30 -> 4984247.07 | H30: =Zał.1_WPF_bazowy!H30 -> 4987647.07 | I30: =+Zał.1_WPF_bazowy!I30 -> 3749615 | J30: =+Zał.1_WPF_bazowy!J30 -> 2759990 | K30: =+Zał.1_WPF_bazowy!K30 -> 2725882 | L30: =+Zał.1_WPF_bazowy!L30 -> 3349090 | M30: =+Zał.1_WPF_bazowy!#REF! ->  | N30: =+Zał.1_WPF_bazowy!#REF! ->  | O30: =+Zał.1_WPF_bazowy!#REF! ->  | P30: =+Zał.1_WPF_bazowy!#REF! ->  | Q30: =+Zał.1_WPF_bazowy!#REF! ->  | R30: =+Zał.1_WPF_bazowy!#REF! ->  | S30: =+Zał.1_WPF_bazowy!#REF! ->  | T30: =+Zał.1_WPF_bazowy!#REF! ->  | U30: =+Zał.1_WPF_bazowy!#REF! ->  | V30: =+Zał.1_WPF_bazowy!#REF! ->  | W30: =+Zał.1_WPF_bazowy!#REF! ->  | X30: =+Zał.1_WPF_bazowy!#REF! ->  | Y30: =+Zał.1_WPF_bazowy!#REF! ->  | Z30: =+Zał.1_WPF_bazowy!#REF! ->  | AA30: =+Zał.1_WPF_bazowy!#REF! ->  | AB30: =+Zał.1_WPF_bazowy!#REF! ->  | AC30: =+Zał.1_WPF_bazowy!#REF! ->  | AD30: =+Zał.1_WPF_bazowy!#REF! ->  | AE30: =+Zał.1_WPF_bazowy!#REF! ->  | AF30: =+Zał.1_WPF_bazowy!#REF! ->  | AG30: =+Zał.1_WPF_bazowy!#REF! ->  | AH30: =+Zał.1_WPF_bazowy!#REF! ->  | AI30: =+Zał.1_WPF_bazowy!#REF! ->  | AJ30: =+Zał.1_WPF_bazowy!#REF! ->  | AK30: =+Zał.1_WPF_bazowy!#REF! ->  | AL30: =+Zał.1_WPF_bazowy!#REF! -> 
A31: x | B31: 3 | C31: [1] -[2] | D31: Wynik budżetu | E31: =Zał.1_WPF_bazowy!E31 -> 2580481.72 | F31: =Zał.1_WPF_bazowy!F31 -> -1069250.14 | G31: =Zał.1_WPF_bazowy!G31 -> 102313.19 | H31: =+H10-H21 -> 87813.19 | I31: =+I10-I21 -> -1233608 | J31: =+J10-J21 -> 701400 | K31: 701387.6 | L31: 0
A32: x | B32: 4 | C32: [4.1] + [4.2] + [4.3] + [4.4] | D32: Przychody budżetu | E32: =Zał.1_WPF_bazowy!E32 -> 1050519.37 | F32: =Zał.1_WPF_bazowy!F32 -> 2496104.74 | G32: =Zał.1_WPF_bazowy!G32 -> 696643 | H32: =+H33+H35+H37+H39 -> 541963.4 | I32: =+I33+I35+I37+I39 -> 1402787.6 | J32: =+J33+J35+J37+J39 -> 0 | K32: 0 | L32: 0
A33: x | B33: 4.1 | D33: Nadwyżka budżetowa z lat ubiegłych | E33: =Zał.1_WPF_bazowy!E33 -> 0 | F33: =Zał.1_WPF_bazowy!F33 -> 959945.09 | G33: =Zał.1_WPF_bazowy!G33 -> 0 | H33: =Zał.1_WPF_bazowy!H33 -> 0 | I33: =+Zał.1_WPF_bazowy!I33 -> 0 | J33: =+Zał.1_WPF_bazowy!J33 -> 0 | K33: =+Zał.1_WPF_bazowy!K33 -> 0 | L33: =+Zał.1_WPF_bazowy!L33 -> 0 | M33: =+Zał.1_WPF_bazowy!#REF! ->  | N33: =+Zał.1_WPF_bazowy!#REF! ->  | O33: =+Zał.1_WPF_bazowy!#REF! ->  | P33: =+Zał.1_WPF_bazowy!#REF! ->  | Q33: =+Zał.1_WPF_bazowy!#REF! ->  | R33: =+Zał.1_WPF_bazowy!#REF! ->  | S33: =+Zał.1_WPF_bazowy!#REF! ->  | T33: =+Zał.1_WPF_bazowy!#REF! ->  | U33: =+Zał.1_WPF_bazowy!#REF! ->  | V33: =+Zał.1_WPF_bazowy!#REF! ->  | W33: =+Zał.1_WPF_bazowy!#REF! ->  | X33: =+Zał.1_WPF_bazowy!#REF! ->  | Y33: =+Zał.1_WPF_bazowy!#REF! ->  | Z33: =+Zał.1_WPF_bazowy!#REF! ->  | AA33: =+Zał.1_WPF_bazowy!#REF! ->  | AB33: =+Zał.1_WPF_bazowy!#REF! ->  | AC33: =+Zał.1_WPF_bazowy!#REF! ->  | AD33: =+Zał.1_WPF_bazowy!#REF! ->  | AE33: =+Zał.1_WPF_bazowy!#REF! ->  | AF33: =+Zał.1_WPF_bazowy!#REF! ->  | AG33: =+Zał.1_WPF_bazowy!#REF! ->  | AH33: =+Zał.1_WPF_bazowy!#REF! ->  | AI33: =+Zał.1_WPF_bazowy!#REF! ->  | AJ33: =+Zał.1_WPF_bazowy!#REF! ->  | AK33: =+Zał.1_WPF_bazowy!#REF! ->  | AL33: =+Zał.1_WPF_bazowy!#REF! -> 
A34: x | B34: 4.1.1 | D34: w tym na pokrycie deficytu budżetu | E34: =Zał.1_WPF_bazowy!E34 -> 0 | F34: =Zał.1_WPF_bazowy!F34 -> 247105.63 | G34: =Zał.1_WPF_bazowy!G34 -> 0 | H34: =Zał.1_WPF_bazowy!H34 -> 0 | I34: =+Zał.1_WPF_bazowy!I34 -> 0 | J34: =+Zał.1_WPF_bazowy!J34 -> 0 | K34: =+Zał.1_WPF_bazowy!K34 -> 0 | L34: =+Zał.1_WPF_bazowy!L34 -> 0 | M34: =+Zał.1_WPF_bazowy!#REF! ->  | N34: =+Zał.1_WPF_bazowy!#REF! ->  | O34: =+Zał.1_WPF_bazowy!#REF! ->  | P34: =+Zał.1_WPF_bazowy!#REF! ->  | Q34: =+Zał.1_WPF_bazowy!#REF! ->  | R34: =+Zał.1_WPF_bazowy!#REF! ->  | S34: =+Zał.1_WPF_bazowy!#REF! ->  | T34: =+Zał.1_WPF_bazowy!#REF! ->  | U34: =+Zał.1_WPF_bazowy!#REF! ->  | V34: =+Zał.1_WPF_bazowy!#REF! ->  | W34: =+Zał.1_WPF_bazowy!#REF! ->  | X34: =+Zał.1_WPF_bazowy!#REF! ->  | Y34: =+Zał.1_WPF_bazowy!#REF! ->  | Z34: =+Zał.1_WPF_bazowy!#REF! ->  | AA34: =+Zał.1_WPF_bazowy!#REF! ->  | AB34: =+Zał.1_WPF_bazowy!#REF! ->  | AC34: =+Zał.1_WPF_bazowy!#REF! ->  | AD34: =+Zał.1_WPF_bazowy!#REF! ->  | AE34: =+Zał.1_WPF_bazowy!#REF! ->  | AF34: =+Zał.1_WPF_bazowy!#REF! ->  | AG34: =+Zał.1_WPF_bazowy!#REF! ->  | AH34: =+Zał.1_WPF_bazowy!#REF! ->  | AI34: =+Zał.1_WPF_bazowy!#REF! ->  | AJ34: =+Zał.1_WPF_bazowy!#REF! ->  | AK34: =+Zał.1_WPF_bazowy!#REF! ->  | AL34: =+Zał.1_WPF_bazowy!#REF! -> 
A35: x | B35: 4.2 | D35: Wolne środki, o których mowa w art. 217 ust.2 pkt 6 ustawy | E35: =Zał.1_WPF_bazowy!E35 -> 902519.37 | F35: =Zał.1_WPF_bazowy!F35 -> 1422477.65 | G35: =Zał.1_WPF_bazowy!G35 -> 696643 | H35: =Zał.1_WPF_bazowy!H35 -> 516963.4 | I35: =+Zał.1_WPF_bazowy!I35 -> 0 | J35: =+Zał.1_WPF_bazowy!J35 -> 0 | K35: =+Zał.1_WPF_bazowy!K35 -> 0 | L35: =+Zał.1_WPF_bazowy!L35 -> 0 | M35: =+Zał.1_WPF_bazowy!#REF! ->  | N35: =+Zał.1_WPF_bazowy!#REF! ->  | O35: =+Zał.1_WPF_bazowy!#REF! ->  | P35: =+Zał.1_WPF_bazowy!#REF! ->  | Q35: =+Zał.1_WPF_bazowy!#REF! ->  | R35: =+Zał.1_WPF_bazowy!#REF! ->  | S35: =+Zał.1_WPF_bazowy!#REF! ->  | T35: =+Zał.1_WPF_bazowy!#REF! ->  | U35: =+Zał.1_WPF_bazowy!#REF! ->  | V35: =+Zał.1_WPF_bazowy!#REF! ->  | W35: =+Zał.1_WPF_bazowy!#REF! ->  | X35: =+Zał.1_WPF_bazowy!#REF! ->  | Y35: =+Zał.1_WPF_bazowy!#REF! ->  | Z35: =+Zał.1_WPF_bazowy!#REF! ->  | AA35: =+Zał.1_WPF_bazowy!#REF! ->  | AB35: =+Zał.1_WPF_bazowy!#REF! ->  | AC35: =+Zał.1_WPF_bazowy!#REF! ->  | AD35: =+Zał.1_WPF_bazowy!#REF! ->  | AE35: =+Zał.1_WPF_bazowy!#REF! ->  | AF35: =+Zał.1_WPF_bazowy!#REF! ->  | AG35: =+Zał.1_WPF_bazowy!#REF! ->  | AH35: =+Zał.1_WPF_bazowy!#REF! ->  | AI35: =+Zał.1_WPF_bazowy!#REF! ->  | AJ35: =+Zał.1_WPF_bazowy!#REF! ->  | AK35: =+Zał.1_WPF_bazowy!#REF! ->  | AL35: =+Zał.1_WPF_bazowy!#REF! -> 
A36: x | B36: 4.2.1 | D36: w tym na pokrycie deficytu budżetu | E36: =Zał.1_WPF_bazowy!E36 -> 0 | F36: =Zał.1_WPF_bazowy!F36 -> 733144.51 | G36: =Zał.1_WPF_bazowy!G36 -> 0 | H36: =Zał.1_WPF_bazowy!H36 -> 0 | I36: =+Zał.1_WPF_bazowy!I36 -> 0 | J36: =+Zał.1_WPF_bazowy!J36 -> 0 | K36: =+Zał.1_WPF_bazowy!K36 -> 0 | L36: =+Zał.1_WPF_bazowy!L36 -> 0 | M36: =+Zał.1_WPF_bazowy!#REF! ->  | N36: =+Zał.1_WPF_bazowy!#REF! ->  | O36: =+Zał.1_WPF_bazowy!#REF! ->  | P36: =+Zał.1_WPF_bazowy!#REF! ->  | Q36: =+Zał.1_WPF_bazowy!#REF! ->  | R36: =+Zał.1_WPF_bazowy!#REF! ->  | S36: =+Zał.1_WPF_bazowy!#REF! ->  | T36: =+Zał.1_WPF_bazowy!#REF! ->  | U36: =+Zał.1_WPF_bazowy!#REF! ->  | V36: =+Zał.1_WPF_bazowy!#REF! ->  | W36: =+Zał.1_WPF_bazowy!#REF! ->  | X36: =+Zał.1_WPF_bazowy!#REF! ->  | Y36: =+Zał.1_WPF_bazowy!#REF! ->  | Z36: =+Zał.1_WPF_bazowy!#REF! ->  | AA36: =+Zał.1_WPF_bazowy!#REF! ->  | AB36: =+Zał.1_WPF_bazowy!#REF! ->  | AC36: =+Zał.1_WPF_bazowy!#REF! ->  | AD36: =+Zał.1_WPF_bazowy!#REF! ->  | AE36: =+Zał.1_WPF_bazowy!#REF! ->  | AF36: =+Zał.1_WPF_bazowy!#REF! ->  | AG36: =+Zał.1_WPF_bazowy!#REF! ->  | AH36: =+Zał.1_WPF_bazowy!#REF! ->  | AI36: =+Zał.1_WPF_bazowy!#REF! ->  | AJ36: =+Zał.1_WPF_bazowy!#REF! ->  | AK36: =+Zał.1_WPF_bazowy!#REF! ->  | AL36: =+Zał.1_WPF_bazowy!#REF! -> 
A37: x | B37: 4.3 | D37: Kredyty, pożyczki, emisja papierów wartościowych | E37: =Zał.1_WPF_bazowy!E37 -> 148000 | F37: =Zał.1_WPF_bazowy!F37 -> 89000 | G37: =Zał.1_WPF_bazowy!G37 -> 0 | H37: =Zał.1_WPF_bazowy!H37 -> 0 | I37: =+Zał.1_WPF_bazowy!I37 -> 1402787.6 | J37: =+Zał.1_WPF_bazowy!J37 -> 0 | K37: =+Zał.1_WPF_bazowy!K37 -> 0 | L37: =+Zał.1_WPF_bazowy!L37 -> 0 | M37: =+Zał.1_WPF_bazowy!#REF! ->  | N37: =+Zał.1_WPF_bazowy!#REF! ->  | O37: =+Zał.1_WPF_bazowy!#REF! ->  | P37: =+Zał.1_WPF_bazowy!#REF! ->  | Q37: =+Zał.1_WPF_bazowy!#REF! ->  | R37: =+Zał.1_WPF_bazowy!#REF! ->  | S37: =+Zał.1_WPF_bazowy!#REF! ->  | T37: =+Zał.1_WPF_bazowy!#REF! ->  | U37: =+Zał.1_WPF_bazowy!#REF! ->  | V37: =+Zał.1_WPF_bazowy!#REF! ->  | W37: =+Zał.1_WPF_bazowy!#REF! ->  | X37: =+Zał.1_WPF_bazowy!#REF! ->  | Y37: =+Zał.1_WPF_bazowy!#REF! ->  | Z37: =+Zał.1_WPF_bazowy!#REF! ->  | AA37: =+Zał.1_WPF_bazowy!#REF! ->  | AB37: =+Zał.1_WPF_bazowy!#REF! ->  | AC37: =+Zał.1_WPF_bazowy!#REF! ->  | AD37: =+Zał.1_WPF_bazowy!#REF! ->  | AE37: =+Zał.1_WPF_bazowy!#REF! ->  | AF37: =+Zał.1_WPF_bazowy!#REF! ->  | AG37: =+Zał.1_WPF_bazowy!#REF! ->  | AH37: =+Zał.1_WPF_bazowy!#REF! ->  | AI37: =+Zał.1_WPF_bazowy!#REF! ->  | AJ37: =+Zał.1_WPF_bazowy!#REF! ->  | AK37: =+Zał.1_WPF_bazowy!#REF! ->  | AL37: =+Zał.1_WPF_bazowy!#REF! -> 
A38: x | B38: 4.3.1 | D38: w tym na pokrycie deficytu budżetu | E38: =Zał.1_WPF_bazowy!E38 -> 0 | F38: =Zał.1_WPF_bazowy!F38 -> 89000 | G38: =Zał.1_WPF_bazowy!G38 -> 0 | H38: =Zał.1_WPF_bazowy!H38 -> 0 | I38: =+Zał.1_WPF_bazowy!I38 -> 1233608 | J38: =+Zał.1_WPF_bazowy!J38 -> 0 | K38: =+Zał.1_WPF_bazowy!K38 -> 0 | L38: =+Zał.1_WPF_bazowy!L38 -> 0 | M38: =+Zał.1_WPF_bazowy!#REF! ->  | N38: =+Zał.1_WPF_bazowy!#REF! ->  | O38: =+Zał.1_WPF_bazowy!#REF! ->  | P38: =+Zał.1_WPF_bazowy!#REF! ->  | Q38: =+Zał.1_WPF_bazowy!#REF! ->  | R38: =+Zał.1_WPF_bazowy!#REF! ->  | S38: =+Zał.1_WPF_bazowy!#REF! ->  | T38: =+Zał.1_WPF_bazowy!#REF! ->  | U38: =+Zał.1_WPF_bazowy!#REF! ->  | V38: =+Zał.1_WPF_bazowy!#REF! ->  | W38: =+Zał.1_WPF_bazowy!#REF! ->  | X38: =+Zał.1_WPF_bazowy!#REF! ->  | Y38: =+Zał.1_WPF_bazowy!#REF! ->  | Z38: =+Zał.1_WPF_bazowy!#REF! ->  | AA38: =+Zał.1_WPF_bazowy!#REF! ->  | AB38: =+Zał.1_WPF_bazowy!#REF! ->  | AC38: =+Zał.1_WPF_bazowy!#REF! ->  | AD38: =+Zał.1_WPF_bazowy!#REF! ->  | AE38: =+Zał.1_WPF_bazowy!#REF! ->  | AF38: =+Zał.1_WPF_bazowy!#REF! ->  | AG38: =+Zał.1_WPF_bazowy!#REF! ->  | AH38: =+Zał.1_WPF_bazowy!#REF! ->  | AI38: =+Zał.1_WPF_bazowy!#REF! ->  | AJ38: =+Zał.1_WPF_bazowy!#REF! ->  | AK38: =+Zał.1_WPF_bazowy!#REF! ->  | AL38: =+Zał.1_WPF_bazowy!#REF! -> 
A39: x | B39: 4.4 | D39: Inne przychody niezwiązane z zaciągnięciem długu | E39: =Zał.1_WPF_bazowy!E39 -> 0 | F39: =Zał.1_WPF_bazowy!F39 -> 24682 | G39: =Zał.1_WPF_bazowy!G39 -> 0 | H39: =Zał.1_WPF_bazowy!H39 -> 25000 | I39: =+Zał.1_WPF_bazowy!I39 -> 0 | J39: =+Zał.1_WPF_bazowy!J39 -> 0 | K39: =+Zał.1_WPF_bazowy!K39 -> 0 | L39: =+Zał.1_WPF_bazowy!L39 -> 0 | M39: =+Zał.1_WPF_bazowy!#REF! ->  | N39: =+Zał.1_WPF_bazowy!#REF! ->  | O39: =+Zał.1_WPF_bazowy!#REF! ->  | P39: =+Zał.1_WPF_bazowy!#REF! ->  | Q39: =+Zał.1_WPF_bazowy!#REF! ->  | R39: =+Zał.1_WPF_bazowy!#REF! ->  | S39: =+Zał.1_WPF_bazowy!#REF! ->  | T39: =+Zał.1_WPF_bazowy!#REF! ->  | U39: =+Zał.1_WPF_bazowy!#REF! ->  | V39: =+Zał.1_WPF_bazowy!#REF! ->  | W39: =+Zał.1_WPF_bazowy!#REF! ->  | X39: =+Zał.1_WPF_bazowy!#REF! ->  | Y39: =+Zał.1_WPF_bazowy!#REF! ->  | Z39: =+Zał.1_WPF_bazowy!#REF! ->  | AA39: =+Zał.1_WPF_bazowy!#REF! ->  | AB39: =+Zał.1_WPF_bazowy!#REF! ->  | AC39: =+Zał.1_WPF_bazowy!#REF! ->  | AD39: =+Zał.1_WPF_bazowy!#REF! ->  | AE39: =+Zał.1_WPF_bazowy!#REF! ->  | AF39: =+Zał.1_WPF_bazowy!#REF! ->  | AG39: =+Zał.1_WPF_bazowy!#REF! ->  | AH39: =+Zał.1_WPF_bazowy!#REF! ->  | AI39: =+Zał.1_WPF_bazowy!#REF! ->  | AJ39: =+Zał.1_WPF_bazowy!#REF! ->  | AK39: =+Zał.1_WPF_bazowy!#REF! ->  | AL39: =+Zał.1_WPF_bazowy!#REF! -> 
A40: x | B40: 4.4.1 | D40: w tym na pokrycie deficytu budżetu | E40: =Zał.1_WPF_bazowy!E40 -> 0 | F40: =Zał.1_WPF_bazowy!F40 -> 0 | G40: =Zał.1_WPF_bazowy!G40 -> 0 | H40: =Zał.1_WPF_bazowy!H40 -> 0 | I40: =+Zał.1_WPF_bazowy!I40 -> 0 | J40: =+Zał.1_WPF_bazowy!J40 -> 0 | K40: =+Zał.1_WPF_bazowy!K40 -> 0 | L40: =+Zał.1_WPF_bazowy!L40 -> 0 | M40: =+Zał.1_WPF_bazowy!#REF! ->  | N40: =+Zał.1_WPF_bazowy!#REF! ->  | O40: =+Zał.1_WPF_bazowy!#REF! ->  | P40: =+Zał.1_WPF_bazowy!#REF! ->  | Q40: =+Zał.1_WPF_bazowy!#REF! ->  | R40: =+Zał.1_WPF_bazowy!#REF! ->  | S40: =+Zał.1_WPF_bazowy!#REF! ->  | T40: =+Zał.1_WPF_bazowy!#REF! ->  | U40: =+Zał.1_WPF_bazowy!#REF! ->  | V40: =+Zał.1_WPF_bazowy!#REF! ->  | W40: =+Zał.1_WPF_bazowy!#REF! ->  | X40: =+Zał.1_WPF_bazowy!#REF! ->  | Y40: =+Zał.1_WPF_bazowy!#REF! ->  | Z40: =+Zał.1_WPF_bazowy!#REF! ->  | AA40: =+Zał.1_WPF_bazowy!#REF! ->  | AB40: =+Zał.1_WPF_bazowy!#REF! ->  | AC40: =+Zał.1_WPF_bazowy!#REF! ->  | AD40: =+Zał.1_WPF_bazowy!#REF! ->  | AE40: =+Zał.1_WPF_bazowy!#REF! ->  | AF40: =+Zał.1_WPF_bazowy!#REF! ->  | AG40: =+Zał.1_WPF_bazowy!#REF! ->  | AH40: =+Zał.1_WPF_bazowy!#REF! ->  | AI40: =+Zał.1_WPF_bazowy!#REF! ->  | AJ40: =+Zał.1_WPF_bazowy!#REF! ->  | AK40: =+Zał.1_WPF_bazowy!#REF! ->  | AL40: =+Zał.1_WPF_bazowy!#REF! -> 
A41: x | B41: 5 | C41: [5.1] + [5.2] | D41: Rozchody budżetu | E41: =Zał.1_WPF_bazowy!E41 -> 1303202.75 | F41: =Zał.1_WPF_bazowy!F41 -> 737521.46 | G41: =Zał.1_WPF_bazowy!G41 -> 798956.19 | H41: =+H42+H47 -> 629776.59 | I41: 169179.6 | J41: 701400 | K41: 701387.6 | L41: 0
A42: x | B42: 5.1 | D42: Spłaty rat kapitałowych kredytów i pożyczek oraz wykup papierów wartościowych | E42: =Zał.1_WPF_bazowy!E42 -> 1278520.75 | F42: =Zał.1_WPF_bazowy!F42 -> 737521.46 | G42: =Zał.1_WPF_bazowy!G42 -> 773956.19 | H42: =Zał.1_WPF_bazowy!H42 -> 604776.59 | I42: =+Zał.1_WPF_bazowy!I42 -> 169179.6 | J42: =+Zał.1_WPF_bazowy!J42 -> 701400 | K42: =+Zał.1_WPF_bazowy!K42 -> 701387.6 | L42: =+Zał.1_WPF_bazowy!L42 -> 0 | M42: =+Zał.1_WPF_bazowy!#REF! ->  | N42: =+Zał.1_WPF_bazowy!#REF! ->  | O42: =+Zał.1_WPF_bazowy!#REF! ->  | P42: =+Zał.1_WPF_bazowy!#REF! ->  | Q42: =+Zał.1_WPF_bazowy!#REF! ->  | R42: =+Zał.1_WPF_bazowy!#REF! ->  | S42: =+Zał.1_WPF_bazowy!#REF! ->  | T42: =+Zał.1_WPF_bazowy!#REF! ->  | U42: =+Zał.1_WPF_bazowy!#REF! ->  | V42: =+Zał.1_WPF_bazowy!#REF! ->  | W42: =+Zał.1_WPF_bazowy!#REF! ->  | X42: =+Zał.1_WPF_bazowy!#REF! ->  | Y42: =+Zał.1_WPF_bazowy!#REF! ->  | Z42: =+Zał.1_WPF_bazowy!#REF! ->  | AA42: =+Zał.1_WPF_bazowy!#REF! ->  | AB42: =+Zał.1_WPF_bazowy!#REF! ->  | AC42: =+Zał.1_WPF_bazowy!#REF! ->  | AD42: =+Zał.1_WPF_bazowy!#REF! ->  | AE42: =+Zał.1_WPF_bazowy!#REF! ->  | AF42: =+Zał.1_WPF_bazowy!#REF! ->  | AG42: =+Zał.1_WPF_bazowy!#REF! ->  | AH42: =+Zał.1_WPF_bazowy!#REF! ->  | AI42: =+Zał.1_WPF_bazowy!#REF! ->  | AJ42: =+Zał.1_WPF_bazowy!#REF! ->  | AK42: =+Zał.1_WPF_bazowy!#REF! ->  | AL42: =+Zał.1_WPF_bazowy!#REF! -> 
A43: x | B43: 5.1.1 | C43: [5.1.1.1] + [5.1.1.2] + [5.1.1.3] | D43: w tym łączna kwota przypadających na dany rok kwot ustawowych wyłączeń z limitu spłaty zobowiązań, o którym mowa w art. 243 ustawy, z tego: | E43: =Zał.1_WPF_bazowy!E43 -> 595645.15 | F43: =Zał.1_WPF_bazowy!F43 -> 0 | G43: =Zał.1_WPF_bazowy!G43 -> 89000 | H43: =+H44+H45+H46 -> 89000 | I43: =+I44+I45+I46 -> 0 | J43: 0 | K43: 0 | L43: 0
A44: x | B44: 5.1.1.1 | D44: kwota przypadających na dany rok kwot ustawowych wyłączeń określonych w art. 243 ust. 3 ustawy | E44: =Zał.1_WPF_bazowy!E44 -> 595645.15 | F44: =Zał.1_WPF_bazowy!F44 -> 0 | G44: =Zał.1_WPF_bazowy!G44 -> 89000 | H44: =Zał.1_WPF_bazowy!H44 -> 89000 | I44: =+Zał.1_WPF_bazowy!I44 -> 0 | J44: =+Zał.1_WPF_bazowy!J44 -> 0 | K44: =+Zał.1_WPF_bazowy!K44 -> 0 | L44: =+Zał.1_WPF_bazowy!L44 -> 0 | M44: =+Zał.1_WPF_bazowy!#REF! ->  | N44: =+Zał.1_WPF_bazowy!#REF! ->  | O44: =+Zał.1_WPF_bazowy!#REF! ->  | P44: =+Zał.1_WPF_bazowy!#REF! ->  | Q44: =+Zał.1_WPF_bazowy!#REF! ->  | R44: =+Zał.1_WPF_bazowy!#REF! ->  | S44: =+Zał.1_WPF_bazowy!#REF! ->  | T44: =+Zał.1_WPF_bazowy!#REF! ->  | U44: =+Zał.1_WPF_bazowy!#REF! ->  | V44: =+Zał.1_WPF_bazowy!#REF! ->  | W44: =+Zał.1_WPF_bazowy!#REF! ->  | X44: =+Zał.1_WPF_bazowy!#REF! ->  | Y44: =+Zał.1_WPF_bazowy!#REF! ->  | Z44: =+Zał.1_WPF_bazowy!#REF! ->  | AA44: =+Zał.1_WPF_bazowy!#REF! ->  | AB44: =+Zał.1_WPF_bazowy!#REF! ->  | AC44: =+Zał.1_WPF_bazowy!#REF! ->  | AD44: =+Zał.1_WPF_bazowy!#REF! ->  | AE44: =+Zał.1_WPF_bazowy!#REF! ->  | AF44: =+Zał.1_WPF_bazowy!#REF! ->  | AG44: =+Zał.1_WPF_bazowy!#REF! ->  | AH44: =+Zał.1_WPF_bazowy!#REF! ->  | AI44: =+Zał.1_WPF_bazowy!#REF! ->  | AJ44: =+Zał.1_WPF_bazowy!#REF! ->  | AK44: =+Zał.1_WPF_bazowy!#REF! ->  | AL44: =+Zał.1_WPF_bazowy!#REF! -> 
A45: x | B45: 5.1.1.2 | D45: kwota przypadających na dany rok kwot ustawowych wyłączeń określonych w art. 243 ust. 3a ustawy | E45: =Zał.1_WPF_bazowy!E45 -> 0 | F45: =Zał.1_WPF_bazowy!F45 -> 0 | G45: =Zał.1_WPF_bazowy!G45 -> 0 | H45: =Zał.1_WPF_bazowy!H45 -> 0 | I45: =+Zał.1_WPF_bazowy!I45 -> 0 | J45: =+Zał.1_WPF_bazowy!J45 -> 0 | K45: =+Zał.1_WPF_bazowy!K45 -> 0 | L45: =+Zał.1_WPF_bazowy!L45 -> 0 | M45: =+Zał.1_WPF_bazowy!#REF! ->  | N45: =+Zał.1_WPF_bazowy!#REF! ->  | O45: =+Zał.1_WPF_bazowy!#REF! ->  | P45: =+Zał.1_WPF_bazowy!#REF! ->  | Q45: =+Zał.1_WPF_bazowy!#REF! ->  | R45: =+Zał.1_WPF_bazowy!#REF! ->  | S45: =+Zał.1_WPF_bazowy!#REF! ->  | T45: =+Zał.1_WPF_bazowy!#REF! ->  | U45: =+Zał.1_WPF_bazowy!#REF! ->  | V45: =+Zał.1_WPF_bazowy!#REF! ->  | W45: =+Zał.1_WPF_bazowy!#REF! ->  | X45: =+Zał.1_WPF_bazowy!#REF! ->  | Y45: =+Zał.1_WPF_bazowy!#REF! ->  | Z45: =+Zał.1_WPF_bazowy!#REF! ->  | AA45: =+Zał.1_WPF_bazowy!#REF! ->  | AB45: =+Zał.1_WPF_bazowy!#REF! ->  | AC45: =+Zał.1_WPF_bazowy!#REF! ->  | AD45: =+Zał.1_WPF_bazowy!#REF! ->  | AE45: =+Zał.1_WPF_bazowy!#REF! ->  | AF45: =+Zał.1_WPF_bazowy!#REF! ->  | AG45: =+Zał.1_WPF_bazowy!#REF! ->  | AH45: =+Zał.1_WPF_bazowy!#REF! ->  | AI45: =+Zał.1_WPF_bazowy!#REF! ->  | AJ45: =+Zał.1_WPF_bazowy!#REF! ->  | AK45: =+Zał.1_WPF_bazowy!#REF! ->  | AL45: =+Zał.1_WPF_bazowy!#REF! -> 
A46: x | B46: 5.1.1.3 | D46: kwota przypadających na dany rok kwot ustawowych wyłączeń innych niż określone w art. 243 ustawy | E46: =Zał.1_WPF_bazowy!E46 -> 0 | F46: =Zał.1_WPF_bazowy!F46 -> 0 | G46: =Zał.1_WPF_bazowy!G46 -> 0 | H46: =Zał.1_WPF_bazowy!H46 -> 0 | I46: =+Zał.1_WPF_bazowy!I46 -> 0 | J46: =+Zał.1_WPF_bazowy!J46 -> 0 | K46: =+Zał.1_WPF_bazowy!K46 -> 0 | L46: =+Zał.1_WPF_bazowy!L46 -> 0 | M46: =+Zał.1_WPF_bazowy!#REF! ->  | N46: =+Zał.1_WPF_bazowy!#REF! ->  | O46: =+Zał.1_WPF_bazowy!#REF! ->  | P46: =+Zał.1_WPF_bazowy!#REF! ->  | Q46: =+Zał.1_WPF_bazowy!#REF! ->  | R46: =+Zał.1_WPF_bazowy!#REF! ->  | S46: =+Zał.1_WPF_bazowy!#REF! ->  | T46: =+Zał.1_WPF_bazowy!#REF! ->  | U46: =+Zał.1_WPF_bazowy!#REF! ->  | V46: =+Zał.1_WPF_bazowy!#REF! ->  | W46: =+Zał.1_WPF_bazowy!#REF! ->  | X46: =+Zał.1_WPF_bazowy!#REF! ->  | Y46: =+Zał.1_WPF_bazowy!#REF! ->  | Z46: =+Zał.1_WPF_bazowy!#REF! ->  | AA46: =+Zał.1_WPF_bazowy!#REF! ->  | AB46: =+Zał.1_WPF_bazowy!#REF! ->  | AC46: =+Zał.1_WPF_bazowy!#REF! ->  | AD46: =+Zał.1_WPF_bazowy!#REF! ->  | AE46: =+Zał.1_WPF_bazowy!#REF! ->  | AF46: =+Zał.1_WPF_bazowy!#REF! ->  | AG46: =+Zał.1_WPF_bazowy!#REF! ->  | AH46: =+Zał.1_WPF_bazowy!#REF! ->  | AI46: =+Zał.1_WPF_bazowy!#REF! ->  | AJ46: =+Zał.1_WPF_bazowy!#REF! ->  | AK46: =+Zał.1_WPF_bazowy!#REF! ->  | AL46: =+Zał.1_WPF_bazowy!#REF! -> 
B47: 5.2 | D47: Inne rozchody niezwiązane ze spłatą długu | E47: =Zał.1_WPF_bazowy!E47 -> 24682 | F47: =Zał.1_WPF_bazowy!F47 -> 0 | G47: =Zał.1_WPF_bazowy!G47 -> 25000 | H47: =Zał.1_WPF_bazowy!H47 -> 25000 | I47: =+Zał.1_WPF_bazowy!I47 -> 0 | J47: =+Zał.1_WPF_bazowy!J47 -> 0 | K47: =+Zał.1_WPF_bazowy!K47 -> 0 | L47: =+Zał.1_WPF_bazowy!L47 -> 0 | M47: =+Zał.1_WPF_bazowy!#REF! ->  | N47: =+Zał.1_WPF_bazowy!#REF! ->  | O47: =+Zał.1_WPF_bazowy!#REF! ->  | P47: =+Zał.1_WPF_bazowy!#REF! ->  | Q47: =+Zał.1_WPF_bazowy!#REF! ->  | R47: =+Zał.1_WPF_bazowy!#REF! ->  | S47: =+Zał.1_WPF_bazowy!#REF! ->  | T47: =+Zał.1_WPF_bazowy!#REF! ->  | U47: =+Zał.1_WPF_bazowy!#REF! ->  | V47: =+Zał.1_WPF_bazowy!#REF! ->  | W47: =+Zał.1_WPF_bazowy!#REF! ->  | X47: =+Zał.1_WPF_bazowy!#REF! ->  | Y47: =+Zał.1_WPF_bazowy!#REF! ->  | Z47: =+Zał.1_WPF_bazowy!#REF! ->  | AA47: =+Zał.1_WPF_bazowy!#REF! ->  | AB47: =+Zał.1_WPF_bazowy!#REF! ->  | AC47: =+Zał.1_WPF_bazowy!#REF! ->  | AD47: =+Zał.1_WPF_bazowy!#REF! ->  | AE47: =+Zał.1_WPF_bazowy!#REF! ->  | AF47: =+Zał.1_WPF_bazowy!#REF! ->  | AG47: =+Zał.1_WPF_bazowy!#REF! ->  | AH47: =+Zał.1_WPF_bazowy!#REF! ->  | AI47: =+Zał.1_WPF_bazowy!#REF! ->  | AJ47: =+Zał.1_WPF_bazowy!#REF! ->  | AK47: =+Zał.1_WPF_bazowy!#REF! ->  | AL47: =+Zał.1_WPF_bazowy!#REF! -> 
A48: x | B48: 6 | D48: Kwota długu | E48: =Zał.1_WPF_bazowy!E48 -> 1422477.65 | F48: =Zał.1_WPF_bazowy!F48 -> 773956.19 | G48: =Zał.1_WPF_bazowy!G48 -> 0 | H48: =Zał.1_WPF_bazowy!H48 -> 169179.6 | I48: =+IF(I10<>0,H48+I37-I42+(I105-H105)+I110,0) -> 1402787.6 | J48: 701387.6 | K48: 1.164153218e-10 | L48: 1.164153218e-10
B49: 7 | D49: Kwota zobowiązań wynikających z przejęcia przez jednostkę samorządu terytorialnego zobowiązań po likwidowanych i przekształcanych jednostkach zaliczanych do sektora finansów publicznych | E49: =Zał.1_WPF_bazowy!E49 -> 0 | F49: =Zał.1_WPF_bazowy!F49 -> 0 | G49: =Zał.1_WPF_bazowy!G49 -> 0 | H49: =Zał.1_WPF_bazowy!H49 -> 0 | I49: =+Zał.1_WPF_bazowy!I49 -> 0 | J49: =+Zał.1_WPF_bazowy!J49 -> 0 | K49: =+Zał.1_WPF_bazowy!K49 -> 0 | L49: =+Zał.1_WPF_bazowy!L49 -> 0 | M49: =+Zał.1_WPF_bazowy!#REF! ->  | N49: =+Zał.1_WPF_bazowy!#REF! ->  | O49: =+Zał.1_WPF_bazowy!#REF! ->  | P49: =+Zał.1_WPF_bazowy!#REF! ->  | Q49: =+Zał.1_WPF_bazowy!#REF! ->  | R49: =+Zał.1_WPF_bazowy!#REF! ->  | S49: =+Zał.1_WPF_bazowy!#REF! ->  | T49: =+Zał.1_WPF_bazowy!#REF! ->  | U49: =+Zał.1_WPF_bazowy!#REF! ->  | V49: =+Zał.1_WPF_bazowy!#REF! ->  | W49: =+Zał.1_WPF_bazowy!#REF! ->  | X49: =+Zał.1_WPF_bazowy!#REF! ->  | Y49: =+Zał.1_WPF_bazowy!#REF! ->  | Z49: =+Zał.1_WPF_bazowy!#REF! ->  | AA49: =+Zał.1_WPF_bazowy!#REF! ->  | AB49: =+Zał.1_WPF_bazowy!#REF! ->  | AC49: =+Zał.1_WPF_bazowy!#REF! ->  | AD49: =+Zał.1_WPF_bazowy!#REF! ->  | AE49: =+Zał.1_WPF_bazowy!#REF! ->  | AF49: =+Zał.1_WPF_bazowy!#REF! ->  | AG49: =+Zał.1_WPF_bazowy!#REF! ->  | AH49: =+Zał.1_WPF_bazowy!#REF! ->  | AI49: =+Zał.1_WPF_bazowy!#REF! ->  | AJ49: =+Zał.1_WPF_bazowy!#REF! ->  | AK49: =+Zał.1_WPF_bazowy!#REF! ->  | AL49: =+Zał.1_WPF_bazowy!#REF! -> 
B50: 8 | D50: Relacja zrównoważenia wydatków bieżących, o której mowa w art. 242 ustawy | E50: x | F50: x | G50: x | H50: x | I50: x | J50: x | K50: x | L50: x | M50: x | N50: x | O50: x | P50: x | Q50: x | R50: x | S50: x | T50: x | U50: x | V50: x | W50: x | X50: x | Y50: x | Z50: x | AA50: x | AB50: x | AC50: x | AD50: x | AE50: x | AF50: x | AG50: x | AH50: x | AI50: x | AJ50: x | AK50: x | AL50: x
B51: 8.1 | C51: [1.1] - [2.1] | D51: Różnica między dochodami bieżącymi a wydatkami bieżącymi | E51: =Zał.1_WPF_bazowy!E51 -> 3604694.11 | F51: =Zał.1_WPF_bazowy!F51 -> 2583957.89 | G51: =Zał.1_WPF_bazowy!G51 -> 2204241.19 | H51: =+H11-H22 -> 2193141.19 | I51: 2508107 | J51: 3461390 | K51: 3427269.6 | L51: 3349090
B52: 8.2 | C52: [1.1] + [4.1] + [4.2] - ( [2.1] - [2.1.2] ) | D52: Różnica między dochodami bieżącymi, skorygowanymi o środki a wydatkami bieżącymi, pomniejszonymi o wydatki | E52: =+IF(AND(E9>=2013,E9<=2015),+E11+E33+E35-(E22-E25),+E11+E33+E35-E22) -> 4507213.48 | F52: 4966380.63 | G52: 2900884.19 | H52: 2710104.59 | I52: 2508107 | J52: 3461390 | K52: 3427269.6 | L52: 3349090
A53: x | B53: 9 | D53: Wskaźnik spłaty zobowiązań | E53: x | F53: x | G53: x | H53: x | I53: x | J53: x | K53: x | L53: x | M53: x | N53: x | O53: x | P53: x | Q53: x | R53: x | S53: x | T53: x | U53: x | V53: x | W53: x | X53: x | Y53: x | Z53: x | AA53: x | AB53: x | AC53: x | AD53: x | AE53: x | AF53: x | AG53: x | AH53: x | AI53: x | AJ53: x | AK53: x | AL53: x
A54: x | B54: 9.1 | C54: ([2.1.1] + [2.1.3.1] + [5.1] ) / [1] | D54: Wskaźnik planowanej łącznej kwoty spłaty zobowiązań, o której mowa w art. 243 ust. 1 ustawy do dochodów, bez uwzględnienia zobowiązań związku współtworzonego przez jednostkę samorządu terytorialnego i bez uwzględnienia ustawowych wyłączeń przypadających na dany rok. | E54: =Zał.1_WPF_bazowy!E54 -> 0.0968 | F54: =Zał.1_WPF_bazowy!F54 -> 0.0609 | G54: =Zał.1_WPF_bazowy!G54 -> 0.0526 | H54: =+IF(H10<>0,ROUND((H23+H27+H42)/H10,$K$7+2),"-") -> 0.0405 | I54: 0.0226 | J54: 0.0588 | K54: 0.0555 | L54: 0
A55: x | B55: 9.2 | C55: ( ([2.1.1]-[2.1.1.1])+([2.1.3.1]-[2.1.3.1.1]-[2.1.3.1.2])+([5.1]-[5.1.1]) )/([1]-[15.1.1]) | D55: Wskaźnik planowanej łącznej kwoty spłaty zobowiązań, o której mowa w art. 243 ust. 1 ustawy do dochodów, bez uwzględnienia zobowiązań związku współtworzonego przez jednostkę samorządu terytorialnego, po uwzględnieniu ustawowych wyłączeń przypadających na dany rok. | E55: =Zał.1_WPF_bazowy!E55 -> 0.0545 | F55: =Zał.1_WPF_bazowy!F55 -> 0.0609 | G55: =Zał.1_WPF_bazowy!G55 -> 0.0467 | H55: =+IF(H10<>0,ROUND((H23-H24+H27-H28-H29+H42-H43)/(H10-H113),$K$7+2),"-") -> 0.0348 | I55: =+IF(I10<>0,ROUND((I23-I24+I27-I28-I29+I42-I43)/(I10-I113),$K$7+2),"-") -> 0.0226 | J55: 0.0588 | K55: 0.0555 | L55: 0
A56: x | B56: 9.3 | D56: Kwota zobowiązań związku współtworzonego przez jednostkę samorządu terytorialnego przypadających do spłaty w danym roku budżetowym, podlegająca doliczeniu zgodnie z art. 244 ustawy | E56: =Zał.1_WPF_bazowy!E56 -> 0 | F56: =Zał.1_WPF_bazowy!F56 -> 0 | G56: =Zał.1_WPF_bazowy!G56 -> 0 | H56: =Zał.1_WPF_bazowy!H56 -> 0 | I56: =+Zał.1_WPF_bazowy!I56 -> 0 | J56: =+Zał.1_WPF_bazowy!J56 -> 0 | K56: =+Zał.1_WPF_bazowy!K56 -> 0 | L56: =+Zał.1_WPF_bazowy!L56 -> 0 | M56: =+Zał.1_WPF_bazowy!#REF! ->  | N56: =+Zał.1_WPF_bazowy!#REF! ->  | O56: =+Zał.1_WPF_bazowy!#REF! ->  | P56: =+Zał.1_WPF_bazowy!#REF! ->  | Q56: =+Zał.1_WPF_bazowy!#REF! ->  | R56: =+Zał.1_WPF_bazowy!#REF! ->  | S56: =+Zał.1_WPF_bazowy!#REF! ->  | T56: =+Zał.1_WPF_bazowy!#REF! ->  | U56: =+Zał.1_WPF_bazowy!#REF! ->  | V56: =+Zał.1_WPF_bazowy!#REF! ->  | W56: =+Zał.1_WPF_bazowy!#REF! ->  | X56: =+Zał.1_WPF_bazowy!#REF! ->  | Y56: =+Zał.1_WPF_bazowy!#REF! ->  | Z56: =+Zał.1_WPF_bazowy!#REF! ->  | AA56: =+Zał.1_WPF_bazowy!#REF! ->  | AB56: =+Zał.1_WPF_bazowy!#REF! ->  | AC56: =+Zał.1_WPF_bazowy!#REF! ->  | AD56: =+Zał.1_WPF_bazowy!#REF! ->  | AE56: =+Zał.1_WPF_bazowy!#REF! ->  | AF56: =+Zał.1_WPF_bazowy!#REF! ->  | AG56: =+Zał.1_WPF_bazowy!#REF! ->  | AH56: =+Zał.1_WPF_bazowy!#REF! ->  | AI56: =+Zał.1_WPF_bazowy!#REF! ->  | AJ56: =+Zał.1_WPF_bazowy!#REF! ->  | AK56: =+Zał.1_WPF_bazowy!#REF! ->  | AL56: =+Zał.1_WPF_bazowy!#REF! -> 
A57: x | B57: 9.4 | C57: (([2.1.1]-[2.1.1.1]) + ([2.1.3.1]-[2.1.3.1.1]-[2.1.3.1.2])+([5.1]-[5.1.1])+[9.3]) /([1]-[15.1.1]) | D57: Wskaźnik planowanej łącznej kwoty spłaty zobowiązań, o której mowa w art. 243 ust. 1 ustawy do dochodów, po uwzględnieniu zobowiązań związku współtworzonego przez jednostkę samorządu terytorialnego oraz po uwzględnieniu ustawowych wyłączeń przypadających na dany rok | E57: =Zał.1_WPF_bazowy!E57 -> 0.0545 | F57: =Zał.1_WPF_bazowy!F57 -> 0.0609 | G57: =Zał.1_WPF_bazowy!G57 -> 0.0467 | H57: =+IF(H10<>0,ROUND((H23-H24+H27-H28-H29+H42-H43+H56)/(H10-H113),$K$7+2),"-") -> 0.0348 | I57: =+IF(I10<>0,ROUND((I23-I24+I27-I28-I29+I42-I43+I56)/(I10-I113),$K$7+2),"-") -> 0.0226 | J57: 0.0588 | K57: 0.0555 | L57: 0
A58: x | B58: 9.5 | C58: (([1.1] - [15.1.1])+[1.2.1] - ([2.1]-[2.1.2]-[15.2]))/ ([1]-[15.1.1]) | D58: Wskaźnik dochodów bieżących powiększonych o dochody ze sprzedaży majątku oraz pomniejszonych o wydatki bieżące, do dochodów budżetu, ustalony dla danego roku (wskaźnik jednoroczny) | E58: =+ROUND(IF(AND(E9>=2013,E9<=2018),IF(E10<>0,(E11-E113+E19-E22+E25+E114)/(E10-E113),0),IF(E10<>0,(E11-E113+E19-E22+E114)/(E10-E113),0)),$K$7+2) -> 0.2613 | F58: =+ROUND(IF(AND(F9>=2013,F9<=2018),IF(F10<>0,(F11-F113+F19-F22+F25+F114)/(F10-F113),0),IF(F10<>0,(F11-F113+F19-F22+F114)/(F10-F113),0)),$K$7+2) -> 0.2038 | G58: 0.1607 | H58: 0.1566 | I58: 0.211 | J58: 0.2639 | K58: 0.2587 | L58: 0.2503
A59: x | B59: 9.6 | C59: średnia z trzech poprzednich lat [9.5] | D59: Dopuszczalny wskaźnik spłaty zobowiązań określony w art. 243 ustawy, po uwzględnieniu ustawowych wyłączeń , obliczony w oparciu o plan 3 kwartału roku poprzedzającego pierwszy rok prognozy (wskaźnik ustalony w oparciu o średnią arytmetyczną z 3 poprzednich lat) | E59: =Zał.1_WPF_bazowy!E59 -> x | F59: =Zał.1_WPF_bazowy!F59 -> x | G59: =Zał.1_WPF_bazowy!G59 -> x | H59: =Zał.1_WPF_bazowy!H59 -> x | I59: =+IF(I10<>0,(G58+F58+E58)/3,"-") -> 0.2086 | J59: =+IF(J10<>0,(I58+G58+F58)/3,"-") -> 0.1918333333 | K59: =+IF(K10<>0,(J58+I58+G58)/3,"-") -> 0.2118666667 | L59: =+IF(L10<>0,(K58+J58+I58)/3,"-") -> 0.2445333333
A60: x | B60: 9.6.1 | C60: średnia z trzech poprzednich lat [9.5] | D60: Dopuszczalny wskaźnik spłaty zobowiązań określony w art. 243 ustawy, po uwzględnieniu ustawowych wyłączeń, obliczony w oparciu o wykonanie roku poprzedzającego pierwszy rok prognozy (wskaźnik ustalony w oparciu o średnią arytmetyczną z 3 poprzednich lat) | E60: =Zał.1_WPF_bazowy!E60 -> x | F60: =Zał.1_WPF_bazowy!F60 -> x | G60: =Zał.1_WPF_bazowy!G60 -> x | H60: =Zał.1_WPF_bazowy!H60 -> x | I60: =+IF(I10<>0,ROUND((H58+F58+E58)/3,$K$7+2),"-") -> 0.2072 | J60: =+IF(J10<>0,ROUND((I58+H58+F58)/3,$K$7+2),"-") -> 0.1905 | K60: =+IF(K10<>0,ROUND((J58+I58+H58)/3,$K$7+2),"-") -> 0.2105 | L60: 0.2445
A61: x | B61: 9.7 | C61: [9.4]-[9.6] | D61: Informacja o spełnieniu wskaźnika spłaty zobowiązań określonego w art. 243 ustawy, po uwzględnieniu zobowiązań związku współtworzonego przez jednostkę samorządu terytorialnego oraz po uwzględnieniu ustawowych wyłączeń, obliczonego w oparciu o plan 3 kwartałów roku poprzedzającego rok budżetowy | E61: =Zał.1_WPF_bazowy!E61 -> x | F61: =Zał.1_WPF_bazowy!F61 -> x | G61: =Zał.1_WPF_bazowy!G61 -> x | H61: =Zał.1_WPF_bazowy!H61 -> x | I61: =+IF(I10<>0,IF(I59>=I57,"Spełniona","Nie spełniona"),"-") -> Spełniona | J61: Spełniona | K61: Spełniona | L61: Spełniona
A62: x | B62: 9.7.1 | C62: [9.4]-[9.6.1] | D62: Informacja o spełnieniu wskaźnika spłaty zobowiązań określonego w art. 243 ustawy, po uwzględnieniu zobowiązań związku współtworzonego przez jednostkę samorządu terytorialnego oraz po uwzględnieniu ustawowych wyłączeń, obliczonego w oparciu o wykonanie roku poprzedzającego rok budżetowy | E62: =Zał.1_WPF_bazowy!E62 -> x | F62: =Zał.1_WPF_bazowy!F62 -> x | G62: =Zał.1_WPF_bazowy!G62 -> x | H62: =Zał.1_WPF_bazowy!H62 -> x | I62: =+IF(I10<>0,IF(I60>=I57,"Spełniona","Nie spełniona"),"-") -> Spełniona | J62: Spełniona | K62: Spełniona | L62: Spełniona
B63: 10 | D63: Przeznaczenie prognozowanej nadwyżki budżetowej, w tym na: | E63: =Zał.1_WPF_bazowy!E63 -> 0 | F63: =Zał.1_WPF_bazowy!F63 -> 0 | G63: =Zał.1_WPF_bazowy!G63 -> 0 | H63: =Zał.1_WPF_bazowy!H63 -> 0 | I63: =+Zał.1_WPF_bazowy!I63 -> 0 | J63: =+Zał.1_WPF_bazowy!J63 -> 701400 | K63: =+Zał.1_WPF_bazowy!K63 -> 701387.6 | L63: =+Zał.1_WPF_bazowy!L63 -> 0 | M63: =+Zał.1_WPF_bazowy!#REF! ->  | N63: =+Zał.1_WPF_bazowy!#REF! ->  | O63: =+Zał.1_WPF_bazowy!#REF! ->  | P63: =+Zał.1_WPF_bazowy!#REF! ->  | Q63: =+Zał.1_WPF_bazowy!#REF! ->  | R63: =+Zał.1_WPF_bazowy!#REF! ->  | S63: =+Zał.1_WPF_bazowy!#REF! ->  | T63: =+Zał.1_WPF_bazowy!#REF! ->  | U63: =+Zał.1_WPF_bazowy!#REF! ->  | V63: =+Zał.1_WPF_bazowy!#REF! ->  | W63: =+Zał.1_WPF_bazowy!#REF! ->  | X63: =+Zał.1_WPF_bazowy!#REF! ->  | Y63: =+Zał.1_WPF_bazowy!#REF! ->  | Z63: =+Zał.1_WPF_bazowy!#REF! ->  | AA63: =+Zał.1_WPF_bazowy!#REF! ->  | AB63: =+Zał.1_WPF_bazowy!#REF! ->  | AC63: =+Zał.1_WPF_bazowy!#REF! ->  | AD63: =+Zał.1_WPF_bazowy!#REF! ->  | AE63: =+Zał.1_WPF_bazowy!#REF! ->  | AF63: =+Zał.1_WPF_bazowy!#REF! ->  | AG63: =+Zał.1_WPF_bazowy!#REF! ->  | AH63: =+Zał.1_WPF_bazowy!#REF! ->  | AI63: =+Zał.1_WPF_bazowy!#REF! ->  | AJ63: =+Zał.1_WPF_bazowy!#REF! ->  | AK63: =+Zał.1_WPF_bazowy!#REF! ->  | AL63: =+Zał.1_WPF_bazowy!#REF! -> 
B64: 10.1 | D64: Spłaty kredytów, pożyczek i wykup papierów wartościowych | E64: =Zał.1_WPF_bazowy!E64 -> 0 | F64: =Zał.1_WPF_bazowy!F64 -> 0 | G64: =Zał.1_WPF_bazowy!G64 -> 102313.19 | H64: =Zał.1_WPF_bazowy!H64 -> 87813.19 | I64: =+Zał.1_WPF_bazowy!I64 -> 0 | J64: =+Zał.1_WPF_bazowy!J64 -> 701400 | K64: =+Zał.1_WPF_bazowy!K64 -> 701387.6 | L64: =+Zał.1_WPF_bazowy!L64 -> 0 | M64: =+Zał.1_WPF_bazowy!#REF! ->  | N64: =+Zał.1_WPF_bazowy!#REF! ->  | O64: =+Zał.1_WPF_bazowy!#REF! ->  | P64: =+Zał.1_WPF_bazowy!#REF! ->  | Q64: =+Zał.1_WPF_bazowy!#REF! ->  | R64: =+Zał.1_WPF_bazowy!#REF! ->  | S64: =+Zał.1_WPF_bazowy!#REF! ->  | T64: =+Zał.1_WPF_bazowy!#REF! ->  | U64: =+Zał.1_WPF_bazowy!#REF! ->  | V64: =+Zał.1_WPF_bazowy!#REF! ->  | W64: =+Zał.1_WPF_bazowy!#REF! ->  | X64: =+Zał.1_WPF_bazowy!#REF! ->  | Y64: =+Zał.1_WPF_bazowy!#REF! ->  | Z64: =+Zał.1_WPF_bazowy!#REF! ->  | AA64: =+Zał.1_WPF_bazowy!#REF! ->  | AB64: =+Zał.1_WPF_bazowy!#REF! ->  | AC64: =+Zał.1_WPF_bazowy!#REF! ->  | AD64: =+Zał.1_WPF_bazowy!#REF! ->  | AE64: =+Zał.1_WPF_bazowy!#REF! ->  | AF64: =+Zał.1_WPF_bazowy!#REF! ->  | AG64: =+Zał.1_WPF_bazowy!#REF! ->  | AH64: =+Zał.1_WPF_bazowy!#REF! ->  | AI64: =+Zał.1_WPF_bazowy!#REF! ->  | AJ64: =+Zał.1_WPF_bazowy!#REF! ->  | AK64: =+Zał.1_WPF_bazowy!#REF! ->  | AL64: =+Zał.1_WPF_bazowy!#REF! -> 
B65: 11 | D65: Informacje uzupełniające o wybranych rodzajach wydatków budżetowych | E65: x | F65: x | G65: x | H65: x | I65: x | J65: x | K65: x | L65: x | M65: x | N65: x | O65: x | P65: x | Q65: x | R65: x | S65: x | T65: x | U65: x | V65: x | W65: x | X65: x | Y65: x | Z65: x | AA65: x | AB65: x | AC65: x | AD65: x | AE65: x | AF65: x | AG65: x | AH65: x | AI65: x | AJ65: x | AK65: x | AL65: x
B66: 11.1 | D66: Wydatki bieżące na wynagrodzenia i składki od nich naliczane | E66: =Zał.1_WPF_bazowy!E66 -> 4171528.09 | F66: =Zał.1_WPF_bazowy!F66 -> 4149289.86 | G66: =Zał.1_WPF_bazowy!G66 -> 4357418.68 | H66: =Zał.1_WPF_bazowy!H66 -> 4359798.43 | I66: =+Zał.1_WPF_bazowy!I66 -> 4417511 | J66: =+Zał.1_WPF_bazowy!J66 -> 4519114 | K66: =+Zał.1_WPF_bazowy!K66 -> 4614015 | L66: =+Zał.1_WPF_bazowy!L66 -> 4729365 | M66: =+Zał.1_WPF_bazowy!#REF! ->  | N66: =+Zał.1_WPF_bazowy!#REF! ->  | O66: =+Zał.1_WPF_bazowy!#REF! ->  | P66: =+Zał.1_WPF_bazowy!#REF! ->  | Q66: =+Zał.1_WPF_bazowy!#REF! ->  | R66: =+Zał.1_WPF_bazowy!#REF! ->  | S66: =+Zał.1_WPF_bazowy!#REF! ->  | T66: =+Zał.1_WPF_bazowy!#REF! ->  | U66: =+Zał.1_WPF_bazowy!#REF! ->  | V66: =+Zał.1_WPF_bazowy!#REF! ->  | W66: =+Zał.1_WPF_bazowy!#REF! ->  | X66: =+Zał.1_WPF_bazowy!#REF! ->  | Y66: =+Zał.1_WPF_bazowy!#REF! ->  | Z66: =+Zał.1_WPF_bazowy!#REF! ->  | AA66: =+Zał.1_WPF_bazowy!#REF! ->  | AB66: =+Zał.1_WPF_bazowy!#REF! ->  | AC66: =+Zał.1_WPF_bazowy!#REF! ->  | AD66: =+Zał.1_WPF_bazowy!#REF! ->  | AE66: =+Zał.1_WPF_bazowy!#REF! ->  | AF66: =+Zał.1_WPF_bazowy!#REF! ->  | AG66: =+Zał.1_WPF_bazowy!#REF! ->  | AH66: =+Zał.1_WPF_bazowy!#REF! ->  | AI66: =+Zał.1_WPF_bazowy!#REF! ->  | AJ66: =+Zał.1_WPF_bazowy!#REF! ->  | AK66: =+Zał.1_WPF_bazowy!#REF! ->  | AL66: =+Zał.1_WPF_bazowy!#REF! -> 
B67: 11.2 | D67: Wydatki związane z funkcjonowaniem organów jednostki samorządu terytorialnego | E67: =Zał.1_WPF_bazowy!E67 -> 1438877.18 | F67: =Zał.1_WPF_bazowy!F67 -> 1343112.1 | G67: =Zał.1_WPF_bazowy!G67 -> 1571198 | H67: =Zał.1_WPF_bazowy!H67 -> 1571198 | I67: =+Zał.1_WPF_bazowy!I67 -> 1539639 | J67: =+Zał.1_WPF_bazowy!J67 -> 1575050 | K67: =+Zał.1_WPF_bazowy!K67 -> 1608127 | L67: =+Zał.1_WPF_bazowy!L67 -> 1648330 | M67: =+Zał.1_WPF_bazowy!#REF! ->  | N67: =+Zał.1_WPF_bazowy!#REF! ->  | O67: =+Zał.1_WPF_bazowy!#REF! ->  | P67: =+Zał.1_WPF_bazowy!#REF! ->  | Q67: =+Zał.1_WPF_bazowy!#REF! ->  | R67: =+Zał.1_WPF_bazowy!#REF! ->  | S67: =+Zał.1_WPF_bazowy!#REF! ->  | T67: =+Zał.1_WPF_bazowy!#REF! ->  | U67: =+Zał.1_WPF_bazowy!#REF! ->  | V67: =+Zał.1_WPF_bazowy!#REF! ->  | W67: =+Zał.1_WPF_bazowy!#REF! ->  | X67: =+Zał.1_WPF_bazowy!#REF! ->  | Y67: =+Zał.1_WPF_bazowy!#REF! ->  | Z67: =+Zał.1_WPF_bazowy!#REF! ->  | AA67: =+Zał.1_WPF_bazowy!#REF! ->  | AB67: =+Zał.1_WPF_bazowy!#REF! ->  | AC67: =+Zał.1_WPF_bazowy!#REF! ->  | AD67: =+Zał.1_WPF_bazowy!#REF! ->  | AE67: =+Zał.1_WPF_bazowy!#REF! ->  | AF67: =+Zał.1_WPF_bazowy!#REF! ->  | AG67: =+Zał.1_WPF_bazowy!#REF! ->  | AH67: =+Zał.1_WPF_bazowy!#REF! ->  | AI67: =+Zał.1_WPF_bazowy!#REF! ->  | AJ67: =+Zał.1_WPF_bazowy!#REF! ->  | AK67: =+Zał.1_WPF_bazowy!#REF! ->  | AL67: =+Zał.1_WPF_bazowy!#REF! -> 
B68: 11.3 | C68: [11.3.1] + [11.3.2] | D68: Wydatki objęte limitem, o którym mowa w art. 226 ust. 3 pkt 4 ustawy | E68: =Zał.1_WPF_bazowy!E68 -> 718974.51 | F68: =Zał.1_WPF_bazowy!F68 -> 3319528.6 | G68: =Zał.1_WPF_bazowy!G68 -> 352571.38 | H68: =+H69+H70 -> 352571.38 | I68: =+I69+I70 -> 945000 | J68: =+J69+J70 -> 1405000 | K68: 0 | L68: 0
B69: 11.3.1 | D69: bieżące | E69: =Zał.1_WPF_bazowy!E69 -> 156869.11 | F69: =Zał.1_WPF_bazowy!F69 -> 138833.24 | G69: =Zał.1_WPF_bazowy!G69 -> 227234.31 | H69: =Zał.1_WPF_bazowy!H69 -> 227234.31 | I69: =+Zał.1_WPF_bazowy!I69 -> 0 | J69: =+Zał.1_WPF_bazowy!J69 -> 0 | K69: =+Zał.1_WPF_bazowy!K69 -> 0 | L69: =+Zał.1_WPF_bazowy!L69 -> 0 | M69: =+Zał.1_WPF_bazowy!#REF! ->  | N69: =+Zał.1_WPF_bazowy!#REF! ->  | O69: =+Zał.1_WPF_bazowy!#REF! ->  | P69: =+Zał.1_WPF_bazowy!#REF! ->  | Q69: =+Zał.1_WPF_bazowy!#REF! ->  | R69: =+Zał.1_WPF_bazowy!#REF! ->  | S69: =+Zał.1_WPF_bazowy!#REF! ->  | T69: =+Zał.1_WPF_bazowy!#REF! ->  | U69: =+Zał.1_WPF_bazowy!#REF! ->  | V69: =+Zał.1_WPF_bazowy!#REF! ->  | W69: =+Zał.1_WPF_bazowy!#REF! ->  | X69: =+Zał.1_WPF_bazowy!#REF! ->  | Y69: =+Zał.1_WPF_bazowy!#REF! ->  | Z69: =+Zał.1_WPF_bazowy!#REF! ->  | AA69: =+Zał.1_WPF_bazowy!#REF! ->  | AB69: =+Zał.1_WPF_bazowy!#REF! ->  | AC69: =+Zał.1_WPF_bazowy!#REF! ->  | AD69: =+Zał.1_WPF_bazowy!#REF! ->  | AE69: =+Zał.1_WPF_bazowy!#REF! ->  | AF69: =+Zał.1_WPF_bazowy!#REF! ->  | AG69: =+Zał.1_WPF_bazowy!#REF! ->  | AH69: =+Zał.1_WPF_bazowy!#REF! ->  | AI69: =+Zał.1_WPF_bazowy!#REF! ->  | AJ69: =+Zał.1_WPF_bazowy!#REF! ->  | AK69: =+Zał.1_WPF_bazowy!#REF! ->  | AL69: =+Zał.1_WPF_bazowy!#REF! -> 
B70: 11.3.2 | D70: majątkowe | E70: =Zał.1_WPF_bazowy!E70 -> 562105.4 | F70: =Zał.1_WPF_bazowy!F70 -> 3180695.36 | G70: =Zał.1_WPF_bazowy!G70 -> 125337.07 | H70: =Zał.1_WPF_bazowy!H70 -> 125337.07 | I70: =+Zał.1_WPF_bazowy!I70 -> 945000 | J70: =+Zał.1_WPF_bazowy!J70 -> 1405000 | K70: =+Zał.1_WPF_bazowy!K70 -> 0 | L70: =+Zał.1_WPF_bazowy!L70 -> 0 | M70: =+Zał.1_WPF_bazowy!#REF! ->  | N70: =+Zał.1_WPF_bazowy!#REF! ->  | O70: =+Zał.1_WPF_bazowy!#REF! ->  | P70: =+Zał.1_WPF_bazowy!#REF! ->  | Q70: =+Zał.1_WPF_bazowy!#REF! ->  | R70: =+Zał.1_WPF_bazowy!#REF! ->  | S70: =+Zał.1_WPF_bazowy!#REF! ->  | T70: =+Zał.1_WPF_bazowy!#REF! ->  | U70: =+Zał.1_WPF_bazowy!#REF! ->  | V70: =+Zał.1_WPF_bazowy!#REF! ->  | W70: =+Zał.1_WPF_bazowy!#REF! ->  | X70: =+Zał.1_WPF_bazowy!#REF! ->  | Y70: =+Zał.1_WPF_bazowy!#REF! ->  | Z70: =+Zał.1_WPF_bazowy!#REF! ->  | AA70: =+Zał.1_WPF_bazowy!#REF! ->  | AB70: =+Zał.1_WPF_bazowy!#REF! ->  | AC70: =+Zał.1_WPF_bazowy!#REF! ->  | AD70: =+Zał.1_WPF_bazowy!#REF! ->  | AE70: =+Zał.1_WPF_bazowy!#REF! ->  | AF70: =+Zał.1_WPF_bazowy!#REF! ->  | AG70: =+Zał.1_WPF_bazowy!#REF! ->  | AH70: =+Zał.1_WPF_bazowy!#REF! ->  | AI70: =+Zał.1_WPF_bazowy!#REF! ->  | AJ70: =+Zał.1_WPF_bazowy!#REF! ->  | AK70: =+Zał.1_WPF_bazowy!#REF! ->  | AL70: =+Zał.1_WPF_bazowy!#REF! -> 
B71: 11.4 | D71: Wydatki inwestycyjne kontynuowane | E71: =Zał.1_WPF_bazowy!E71 -> 835040.96 | F71: =Zał.1_WPF_bazowy!F71 -> 3180695.36 | G71: =Zał.1_WPF_bazowy!G71 -> 0 | H71: =Zał.1_WPF_bazowy!H71 -> 0 | I71: =+Zał.1_WPF_bazowy!I71 -> 850000 | J71: =+Zał.1_WPF_bazowy!J71 -> 1405000 | K71: =+Zał.1_WPF_bazowy!K71 -> 0 | L71: =+Zał.1_WPF_bazowy!L71 -> 0 | M71: =+Zał.1_WPF_bazowy!#REF! ->  | N71: =+Zał.1_WPF_bazowy!#REF! ->  | O71: =+Zał.1_WPF_bazowy!#REF! ->  | P71: =+Zał.1_WPF_bazowy!#REF! ->  | Q71: =+Zał.1_WPF_bazowy!#REF! ->  | R71: =+Zał.1_WPF_bazowy!#REF! ->  | S71: =+Zał.1_WPF_bazowy!#REF! ->  | T71: =+Zał.1_WPF_bazowy!#REF! ->  | U71: =+Zał.1_WPF_bazowy!#REF! ->  | V71: =+Zał.1_WPF_bazowy!#REF! ->  | W71: =+Zał.1_WPF_bazowy!#REF! ->  | X71: =+Zał.1_WPF_bazowy!#REF! ->  | Y71: =+Zał.1_WPF_bazowy!#REF! ->  | Z71: =+Zał.1_WPF_bazowy!#REF! ->  | AA71: =+Zał.1_WPF_bazowy!#REF! ->  | AB71: =+Zał.1_WPF_bazowy!#REF! ->  | AC71: =+Zał.1_WPF_bazowy!#REF! ->  | AD71: =+Zał.1_WPF_bazowy!#REF! ->  | AE71: =+Zał.1_WPF_bazowy!#REF! ->  | AF71: =+Zał.1_WPF_bazowy!#REF! ->  | AG71: =+Zał.1_WPF_bazowy!#REF! ->  | AH71: =+Zał.1_WPF_bazowy!#REF! ->  | AI71: =+Zał.1_WPF_bazowy!#REF! ->  | AJ71: =+Zał.1_WPF_bazowy!#REF! ->  | AK71: =+Zał.1_WPF_bazowy!#REF! ->  | AL71: =+Zał.1_WPF_bazowy!#REF! -> 
B72: 11.5 | D72: Nowe wydatki inwestycyjne | E72: =Zał.1_WPF_bazowy!E72 -> 1590835.04 | F72: =Zał.1_WPF_bazowy!F72 -> 1184793.34 | G72: =Zał.1_WPF_bazowy!G72 -> 4779247.07 | H72: =Zał.1_WPF_bazowy!H72 -> 4782647.07 | I72: =+Zał.1_WPF_bazowy!I72 -> 2899615 | J72: =+Zał.1_WPF_bazowy!J72 -> 1354990 | K72: =+Zał.1_WPF_bazowy!K72 -> 2725882 | L72: =+Zał.1_WPF_bazowy!L72 -> 3349090 | M72: =+Zał.1_WPF_bazowy!#REF! ->  | N72: =+Zał.1_WPF_bazowy!#REF! ->  | O72: =+Zał.1_WPF_bazowy!#REF! ->  | P72: =+Zał.1_WPF_bazowy!#REF! ->  | Q72: =+Zał.1_WPF_bazowy!#REF! ->  | R72: =+Zał.1_WPF_bazowy!#REF! ->  | S72: =+Zał.1_WPF_bazowy!#REF! ->  | T72: =+Zał.1_WPF_bazowy!#REF! ->  | U72: =+Zał.1_WPF_bazowy!#REF! ->  | V72: =+Zał.1_WPF_bazowy!#REF! ->  | W72: =+Zał.1_WPF_bazowy!#REF! ->  | X72: =+Zał.1_WPF_bazowy!#REF! ->  | Y72: =+Zał.1_WPF_bazowy!#REF! ->  | Z72: =+Zał.1_WPF_bazowy!#REF! ->  | AA72: =+Zał.1_WPF_bazowy!#REF! ->  | AB72: =+Zał.1_WPF_bazowy!#REF! ->  | AC72: =+Zał.1_WPF_bazowy!#REF! ->  | AD72: =+Zał.1_WPF_bazowy!#REF! ->  | AE72: =+Zał.1_WPF_bazowy!#REF! ->  | AF72: =+Zał.1_WPF_bazowy!#REF! ->  | AG72: =+Zał.1_WPF_bazowy!#REF! ->  | AH72: =+Zał.1_WPF_bazowy!#REF! ->  | AI72: =+Zał.1_WPF_bazowy!#REF! ->  | AJ72: =+Zał.1_WPF_bazowy!#REF! ->  | AK72: =+Zał.1_WPF_bazowy!#REF! ->  | AL72: =+Zał.1_WPF_bazowy!#REF! -> 
B73: 11.6 | D73: Wydatki majątkowe w formie dotacji | E73: =Zał.1_WPF_bazowy!E73 -> 0 | F73: =Zał.1_WPF_bazowy!F73 -> 27700 | G73: =Zał.1_WPF_bazowy!G73 -> 205000 | H73: =Zał.1_WPF_bazowy!H73 -> 205000 | I73: =+Zał.1_WPF_bazowy!I73 -> 0 | J73: =+Zał.1_WPF_bazowy!J73 -> 0 | K73: =+Zał.1_WPF_bazowy!K73 -> 0 | L73: =+Zał.1_WPF_bazowy!L73 -> 0 | M73: =+Zał.1_WPF_bazowy!#REF! ->  | N73: =+Zał.1_WPF_bazowy!#REF! ->  | O73: =+Zał.1_WPF_bazowy!#REF! ->  | P73: =+Zał.1_WPF_bazowy!#REF! ->  | Q73: =+Zał.1_WPF_bazowy!#REF! ->  | R73: =+Zał.1_WPF_bazowy!#REF! ->  | S73: =+Zał.1_WPF_bazowy!#REF! ->  | T73: =+Zał.1_WPF_bazowy!#REF! ->  | U73: =+Zał.1_WPF_bazowy!#REF! ->  | V73: =+Zał.1_WPF_bazowy!#REF! ->  | W73: =+Zał.1_WPF_bazowy!#REF! ->  | X73: =+Zał.1_WPF_bazowy!#REF! ->  | Y73: =+Zał.1_WPF_bazowy!#REF! ->  | Z73: =+Zał.1_WPF_bazowy!#REF! ->  | AA73: =+Zał.1_WPF_bazowy!#REF! ->  | AB73: =+Zał.1_WPF_bazowy!#REF! ->  | AC73: =+Zał.1_WPF_bazowy!#REF! ->  | AD73: =+Zał.1_WPF_bazowy!#REF! ->  | AE73: =+Zał.1_WPF_bazowy!#REF! ->  | AF73: =+Zał.1_WPF_bazowy!#REF! ->  | AG73: =+Zał.1_WPF_bazowy!#REF! ->  | AH73: =+Zał.1_WPF_bazowy!#REF! ->  | AI73: =+Zał.1_WPF_bazowy!#REF! ->  | AJ73: =+Zał.1_WPF_bazowy!#REF! ->  | AK73: =+Zał.1_WPF_bazowy!#REF! ->  | AL73: =+Zał.1_WPF_bazowy!#REF! -> 
B74: 12 | D74: Finansowanie programów, projektów lub zadań realizowanych z udziałem środków, o których mowa w art. 5 ust. 1 pkt 2 i 3 ustawy | E74: x | F74: x | G74: x | H74: x | I74: x | J74: x | K74: x | L74: x | M74: x | N74: x | O74: x | P74: x | Q74: x | R74: x | S74: x | T74: x | U74: x | V74: x | W74: x | X74: x | Y74: x | Z74: x | AA74: x | AB74: x | AC74: x | AD74: x | AE74: x | AF74: x | AG74: x | AH74: x | AI74: x | AJ74: x | AK74: x | AL74: x
B75: 12.1 | D75: Dochody bieżące na programy, projekty lub zadania finansowane z udziałem środków, o których mowa w art. 5 ust. 1 pkt 2 i 3 ustawy | E75: =Zał.1_WPF_bazowy!E75 -> 179911.06 | F75: =Zał.1_WPF_bazowy!F75 -> 105623.85 | G75: =Zał.1_WPF_bazowy!G75 -> 220846.25 | H75: =Zał.1_WPF_bazowy!H75 -> 220846.25 | I75: =+Zał.1_WPF_bazowy!I75 -> 0 | J75: =+Zał.1_WPF_bazowy!J75 -> 0 | K75: =+Zał.1_WPF_bazowy!K75 -> 0 | L75: =+Zał.1_WPF_bazowy!L75 -> 0 | M75: =+Zał.1_WPF_bazowy!#REF! ->  | N75: =+Zał.1_WPF_bazowy!#REF! ->  | O75: =+Zał.1_WPF_bazowy!#REF! ->  | P75: =+Zał.1_WPF_bazowy!#REF! ->  | Q75: =+Zał.1_WPF_bazowy!#REF! ->  | R75: =+Zał.1_WPF_bazowy!#REF! ->  | S75: =+Zał.1_WPF_bazowy!#REF! ->  | T75: =+Zał.1_WPF_bazowy!#REF! ->  | U75: =+Zał.1_WPF_bazowy!#REF! ->  | V75: =+Zał.1_WPF_bazowy!#REF! ->  | W75: =+Zał.1_WPF_bazowy!#REF! ->  | X75: =+Zał.1_WPF_bazowy!#REF! ->  | Y75: =+Zał.1_WPF_bazowy!#REF! ->  | Z75: =+Zał.1_WPF_bazowy!#REF! ->  | AA75: =+Zał.1_WPF_bazowy!#REF! ->  | AB75: =+Zał.1_WPF_bazowy!#REF! ->  | AC75: =+Zał.1_WPF_bazowy!#REF! ->  | AD75: =+Zał.1_WPF_bazowy!#REF! ->  | AE75: =+Zał.1_WPF_bazowy!#REF! ->  | AF75: =+Zał.1_WPF_bazowy!#REF! ->  | AG75: =+Zał.1_WPF_bazowy!#REF! ->  | AH75: =+Zał.1_WPF_bazowy!#REF! ->  | AI75: =+Zał.1_WPF_bazowy!#REF! ->  | AJ75: =+Zał.1_WPF_bazowy!#REF! ->  | AK75: =+Zał.1_WPF_bazowy!#REF! ->  | AL75: =+Zał.1_WPF_bazowy!#REF! -> 
B76: 12.1.1 | D76: - w tym środki określone w art. 5 ust. 1 pkt 2 ustawy | E76: =Zał.1_WPF_bazowy!E76 -> 160689 | F76: =Zał.1_WPF_bazowy!F76 -> 93191.67 | G76: =Zał.1_WPF_bazowy!G76 -> 193149.17 | H76: =Zał.1_WPF_bazowy!H76 -> 193149.17 | I76: =+Zał.1_WPF_bazowy!I76 -> 0 | J76: =+Zał.1_WPF_bazowy!J76 -> 0 | K76: =+Zał.1_WPF_bazowy!K76 -> 0 | L76: =+Zał.1_WPF_bazowy!L76 -> 0 | M76: =+Zał.1_WPF_bazowy!#REF! ->  | N76: =+Zał.1_WPF_bazowy!#REF! ->  | O76: =+Zał.1_WPF_bazowy!#REF! ->  | P76: =+Zał.1_WPF_bazowy!#REF! ->  | Q76: =+Zał.1_WPF_bazowy!#REF! ->  | R76: =+Zał.1_WPF_bazowy!#REF! ->  | S76: =+Zał.1_WPF_bazowy!#REF! ->  | T76: =+Zał.1_WPF_bazowy!#REF! ->  | U76: =+Zał.1_WPF_bazowy!#REF! ->  | V76: =+Zał.1_WPF_bazowy!#REF! ->  | W76: =+Zał.1_WPF_bazowy!#REF! ->  | X76: =+Zał.1_WPF_bazowy!#REF! ->  | Y76: =+Zał.1_WPF_bazowy!#REF! ->  | Z76: =+Zał.1_WPF_bazowy!#REF! ->  | AA76: =+Zał.1_WPF_bazowy!#REF! ->  | AB76: =+Zał.1_WPF_bazowy!#REF! ->  | AC76: =+Zał.1_WPF_bazowy!#REF! ->  | AD76: =+Zał.1_WPF_bazowy!#REF! ->  | AE76: =+Zał.1_WPF_bazowy!#REF! ->  | AF76: =+Zał.1_WPF_bazowy!#REF! ->  | AG76: =+Zał.1_WPF_bazowy!#REF! ->  | AH76: =+Zał.1_WPF_bazowy!#REF! ->  | AI76: =+Zał.1_WPF_bazowy!#REF! ->  | AJ76: =+Zał.1_WPF_bazowy!#REF! ->  | AK76: =+Zał.1_WPF_bazowy!#REF! ->  | AL76: =+Zał.1_WPF_bazowy!#REF! -> 
B77: 12.1.1.1 | D77: - w tym środki określone w art. 5 ust. 1 pkt 2 ustawy wynikające wyłącznie z zawartych umów na realizację programu, projektu lub zadania | E77: =Zał.1_WPF_bazowy!E77 -> 0 | F77: =Zał.1_WPF_bazowy!F77 -> 93191.67 | G77: =Zał.1_WPF_bazowy!G77 -> 193149.17 | H77: =Zał.1_WPF_bazowy!H77 -> 193149.17 | I77: =+Zał.1_WPF_bazowy!I77 -> 0 | J77: =+Zał.1_WPF_bazowy!J77 -> 0 | K77: =+Zał.1_WPF_bazowy!K77 -> 0 | L77: =+Zał.1_WPF_bazowy!L77 -> 0 | M77: =+Zał.1_WPF_bazowy!#REF! ->  | N77: =+Zał.1_WPF_bazowy!#REF! ->  | O77: =+Zał.1_WPF_bazowy!#REF! ->  | P77: =+Zał.1_WPF_bazowy!#REF! ->  | Q77: =+Zał.1_WPF_bazowy!#REF! ->  | R77: =+Zał.1_WPF_bazowy!#REF! ->  | S77: =+Zał.1_WPF_bazowy!#REF! ->  | T77: =+Zał.1_WPF_bazowy!#REF! ->  | U77: =+Zał.1_WPF_bazowy!#REF! ->  | V77: =+Zał.1_WPF_bazowy!#REF! ->  | W77: =+Zał.1_WPF_bazowy!#REF! ->  | X77: =+Zał.1_WPF_bazowy!#REF! ->  | Y77: =+Zał.1_WPF_bazowy!#REF! ->  | Z77: =+Zał.1_WPF_bazowy!#REF! ->  | AA77: =+Zał.1_WPF_bazowy!#REF! ->  | AB77: =+Zał.1_WPF_bazowy!#REF! ->  | AC77: =+Zał.1_WPF_bazowy!#REF! ->  | AD77: =+Zał.1_WPF_bazowy!#REF! ->  | AE77: =+Zał.1_WPF_bazowy!#REF! ->  | AF77: =+Zał.1_WPF_bazowy!#REF! ->  | AG77: =+Zał.1_WPF_bazowy!#REF! ->  | AH77: =+Zał.1_WPF_bazowy!#REF! ->  | AI77: =+Zał.1_WPF_bazowy!#REF! ->  | AJ77: =+Zał.1_WPF_bazowy!#REF! ->  | AK77: =+Zał.1_WPF_bazowy!#REF! ->  | AL77: =+Zał.1_WPF_bazowy!#REF! -> 
B78: 12.2 | D78: Dochody majątkowe na programy, projekty lub zadania finansowane z udziałem środków, o których mowa w art. 5 ust. 1 pkt 2 i 3 ustawy | E78: =Zał.1_WPF_bazowy!E78 -> 1013324.7 | F78: =Zał.1_WPF_bazowy!F78 -> 478204.67 | G78: =Zał.1_WPF_bazowy!G78 -> 2251441.07 | H78: =Zał.1_WPF_bazowy!H78 -> 2251441.07 | I78: =+Zał.1_WPF_bazowy!I78 -> 7900 | J78: =+Zał.1_WPF_bazowy!J78 -> 0 | K78: =+Zał.1_WPF_bazowy!K78 -> 0 | L78: =+Zał.1_WPF_bazowy!L78 -> 0 | M78: =+Zał.1_WPF_bazowy!#REF! ->  | N78: =+Zał.1_WPF_bazowy!#REF! ->  | O78: =+Zał.1_WPF_bazowy!#REF! ->  | P78: =+Zał.1_WPF_bazowy!#REF! ->  | Q78: =+Zał.1_WPF_bazowy!#REF! ->  | R78: =+Zał.1_WPF_bazowy!#REF! ->  | S78: =+Zał.1_WPF_bazowy!#REF! ->  | T78: =+Zał.1_WPF_bazowy!#REF! ->  | U78: =+Zał.1_WPF_bazowy!#REF! ->  | V78: =+Zał.1_WPF_bazowy!#REF! ->  | W78: =+Zał.1_WPF_bazowy!#REF! ->  | X78: =+Zał.1_WPF_bazowy!#REF! ->  | Y78: =+Zał.1_WPF_bazowy!#REF! ->  | Z78: =+Zał.1_WPF_bazowy!#REF! ->  | AA78: =+Zał.1_WPF_bazowy!#REF! ->  | AB78: =+Zał.1_WPF_bazowy!#REF! ->  | AC78: =+Zał.1_WPF_bazowy!#REF! ->  | AD78: =+Zał.1_WPF_bazowy!#REF! ->  | AE78: =+Zał.1_WPF_bazowy!#REF! ->  | AF78: =+Zał.1_WPF_bazowy!#REF! ->  | AG78: =+Zał.1_WPF_bazowy!#REF! ->  | AH78: =+Zał.1_WPF_bazowy!#REF! ->  | AI78: =+Zał.1_WPF_bazowy!#REF! ->  | AJ78: =+Zał.1_WPF_bazowy!#REF! ->  | AK78: =+Zał.1_WPF_bazowy!#REF! ->  | AL78: =+Zał.1_WPF_bazowy!#REF! -> 
B79: 12.2.1 | D79: - w tym środki określone w art. 5 ust. 1 pkt 2 ustawy | E79: =Zał.1_WPF_bazowy!E79 -> 826032 | F79: =Zał.1_WPF_bazowy!F79 -> 232601.81 | G79: =Zał.1_WPF_bazowy!G79 -> 2195185.51 | H79: =Zał.1_WPF_bazowy!H79 -> 2195185.51 | I79: =+Zał.1_WPF_bazowy!I79 -> 0 | J79: =+Zał.1_WPF_bazowy!J79 -> 0 | K79: =+Zał.1_WPF_bazowy!K79 -> 0 | L79: =+Zał.1_WPF_bazowy!L79 -> 0 | M79: =+Zał.1_WPF_bazowy!#REF! ->  | N79: =+Zał.1_WPF_bazowy!#REF! ->  | O79: =+Zał.1_WPF_bazowy!#REF! ->  | P79: =+Zał.1_WPF_bazowy!#REF! ->  | Q79: =+Zał.1_WPF_bazowy!#REF! ->  | R79: =+Zał.1_WPF_bazowy!#REF! ->  | S79: =+Zał.1_WPF_bazowy!#REF! ->  | T79: =+Zał.1_WPF_bazowy!#REF! ->  | U79: =+Zał.1_WPF_bazowy!#REF! ->  | V79: =+Zał.1_WPF_bazowy!#REF! ->  | W79: =+Zał.1_WPF_bazowy!#REF! ->  | X79: =+Zał.1_WPF_bazowy!#REF! ->  | Y79: =+Zał.1_WPF_bazowy!#REF! ->  | Z79: =+Zał.1_WPF_bazowy!#REF! ->  | AA79: =+Zał.1_WPF_bazowy!#REF! ->  | AB79: =+Zał.1_WPF_bazowy!#REF! ->  | AC79: =+Zał.1_WPF_bazowy!#REF! ->  | AD79: =+Zał.1_WPF_bazowy!#REF! ->  | AE79: =+Zał.1_WPF_bazowy!#REF! ->  | AF79: =+Zał.1_WPF_bazowy!#REF! ->  | AG79: =+Zał.1_WPF_bazowy!#REF! ->  | AH79: =+Zał.1_WPF_bazowy!#REF! ->  | AI79: =+Zał.1_WPF_bazowy!#REF! ->  | AJ79: =+Zał.1_WPF_bazowy!#REF! ->  | AK79: =+Zał.1_WPF_bazowy!#REF! ->  | AL79: =+Zał.1_WPF_bazowy!#REF! -> 
B80: 12.2.1.1 | D80: - w tym środki określone w art. 5 ust. 1 pkt 2 ustawy wynikające wyłącznie z zawartych umów na realizację programu, projektu lub zadania | E80: =Zał.1_WPF_bazowy!E80 -> 0 | F80: =Zał.1_WPF_bazowy!F80 -> 232601.81 | G80: =Zał.1_WPF_bazowy!G80 -> 2195185.51 | H80: =Zał.1_WPF_bazowy!H80 -> 2195185.51 | I80: =+Zał.1_WPF_bazowy!I80 -> 0 | J80: =+Zał.1_WPF_bazowy!J80 -> 0 | K80: =+Zał.1_WPF_bazowy!K80 -> 0 | L80: =+Zał.1_WPF_bazowy!L80 -> 0 | M80: =+Zał.1_WPF_bazowy!#REF! ->  | N80: =+Zał.1_WPF_bazowy!#REF! ->  | O80: =+Zał.1_WPF_bazowy!#REF! ->  | P80: =+Zał.1_WPF_bazowy!#REF! ->  | Q80: =+Zał.1_WPF_bazowy!#REF! ->  | R80: =+Zał.1_WPF_bazowy!#REF! ->  | S80: =+Zał.1_WPF_bazowy!#REF! ->  | T80: =+Zał.1_WPF_bazowy!#REF! ->  | U80: =+Zał.1_WPF_bazowy!#REF! ->  | V80: =+Zał.1_WPF_bazowy!#REF! ->  | W80: =+Zał.1_WPF_bazowy!#REF! ->  | X80: =+Zał.1_WPF_bazowy!#REF! ->  | Y80: =+Zał.1_WPF_bazowy!#REF! ->  | Z80: =+Zał.1_WPF_bazowy!#REF! ->  | AA80: =+Zał.1_WPF_bazowy!#REF! ->  | AB80: =+Zał.1_WPF_bazowy!#REF! ->  | AC80: =+Zał.1_WPF_bazowy!#REF! ->  | AD80: =+Zał.1_WPF_bazowy!#REF! ->  | AE80: =+Zał.1_WPF_bazowy!#REF! ->  | AF80: =+Zał.1_WPF_bazowy!#REF! ->  | AG80: =+Zał.1_WPF_bazowy!#REF! ->  | AH80: =+Zał.1_WPF_bazowy!#REF! ->  | AI80: =+Zał.1_WPF_bazowy!#REF! ->  | AJ80: =+Zał.1_WPF_bazowy!#REF! ->  | AK80: =+Zał.1_WPF_bazowy!#REF! ->  | AL80: =+Zał.1_WPF_bazowy!#REF! -> 
B81: 12.3 | D81: Wydatki bieżące na programy, projekty lub zadania finansowane z udziałem środków, o których mowa w art. 5 ust. 1 pkt 2 i 3 ustawy | E81: =Zał.1_WPF_bazowy!E81 -> 156869.11 | F81: =Zał.1_WPF_bazowy!F81 -> 138833.24 | G81: =Zał.1_WPF_bazowy!G81 -> 227234.31 | H81: =Zał.1_WPF_bazowy!H81 -> 227234.31 | I81: =+Zał.1_WPF_bazowy!I81 -> 0 | J81: =+Zał.1_WPF_bazowy!J81 -> 0 | K81: =+Zał.1_WPF_bazowy!K81 -> 0 | L81: =+Zał.1_WPF_bazowy!L81 -> 0 | M81: =+Zał.1_WPF_bazowy!#REF! ->  | N81: =+Zał.1_WPF_bazowy!#REF! ->  | O81: =+Zał.1_WPF_bazowy!#REF! ->  | P81: =+Zał.1_WPF_bazowy!#REF! ->  | Q81: =+Zał.1_WPF_bazowy!#REF! ->  | R81: =+Zał.1_WPF_bazowy!#REF! ->  | S81: =+Zał.1_WPF_bazowy!#REF! ->  | T81: =+Zał.1_WPF_bazowy!#REF! ->  | U81: =+Zał.1_WPF_bazowy!#REF! ->  | V81: =+Zał.1_WPF_bazowy!#REF! ->  | W81: =+Zał.1_WPF_bazowy!#REF! ->  | X81: =+Zał.1_WPF_bazowy!#REF! ->  | Y81: =+Zał.1_WPF_bazowy!#REF! ->  | Z81: =+Zał.1_WPF_bazowy!#REF! ->  | AA81: =+Zał.1_WPF_bazowy!#REF! ->  | AB81: =+Zał.1_WPF_bazowy!#REF! ->  | AC81: =+Zał.1_WPF_bazowy!#REF! ->  | AD81: =+Zał.1_WPF_bazowy!#REF! ->  | AE81: =+Zał.1_WPF_bazowy!#REF! ->  | AF81: =+Zał.1_WPF_bazowy!#REF! ->  | AG81: =+Zał.1_WPF_bazowy!#REF! ->  | AH81: =+Zał.1_WPF_bazowy!#REF! ->  | AI81: =+Zał.1_WPF_bazowy!#REF! ->  | AJ81: =+Zał.1_WPF_bazowy!#REF! ->  | AK81: =+Zał.1_WPF_bazowy!#REF! ->  | AL81: =+Zał.1_WPF_bazowy!#REF! -> 
B82: 12.3.1 | D82: - w tym finansowane środkami określonymi w art. 5 ust. 1 pkt 2 ustawy | E82: =Zał.1_WPF_bazowy!E82 -> 133542.58 | F82: =Zał.1_WPF_bazowy!F82 -> 120259.63 | G82: =Zał.1_WPF_bazowy!G82 -> 193149.17 | H82: =Zał.1_WPF_bazowy!H82 -> 193149.17 | I82: =+Zał.1_WPF_bazowy!I82 -> 0 | J82: =+Zał.1_WPF_bazowy!J82 -> 0 | K82: =+Zał.1_WPF_bazowy!K82 -> 0 | L82: =+Zał.1_WPF_bazowy!L82 -> 0 | M82: =+Zał.1_WPF_bazowy!#REF! ->  | N82: =+Zał.1_WPF_bazowy!#REF! ->  | O82: =+Zał.1_WPF_bazowy!#REF! ->  | P82: =+Zał.1_WPF_bazowy!#REF! ->  | Q82: =+Zał.1_WPF_bazowy!#REF! ->  | R82: =+Zał.1_WPF_bazowy!#REF! ->  | S82: =+Zał.1_WPF_bazowy!#REF! ->  | T82: =+Zał.1_WPF_bazowy!#REF! ->  | U82: =+Zał.1_WPF_bazowy!#REF! ->  | V82: =+Zał.1_WPF_bazowy!#REF! ->  | W82: =+Zał.1_WPF_bazowy!#REF! ->  | X82: =+Zał.1_WPF_bazowy!#REF! ->  | Y82: =+Zał.1_WPF_bazowy!#REF! ->  | Z82: =+Zał.1_WPF_bazowy!#REF! ->  | AA82: =+Zał.1_WPF_bazowy!#REF! ->  | AB82: =+Zał.1_WPF_bazowy!#REF! ->  | AC82: =+Zał.1_WPF_bazowy!#REF! ->  | AD82: =+Zał.1_WPF_bazowy!#REF! ->  | AE82: =+Zał.1_WPF_bazowy!#REF! ->  | AF82: =+Zał.1_WPF_bazowy!#REF! ->  | AG82: =+Zał.1_WPF_bazowy!#REF! ->  | AH82: =+Zał.1_WPF_bazowy!#REF! ->  | AI82: =+Zał.1_WPF_bazowy!#REF! ->  | AJ82: =+Zał.1_WPF_bazowy!#REF! ->  | AK82: =+Zał.1_WPF_bazowy!#REF! ->  | AL82: =+Zał.1_WPF_bazowy!#REF! -> 
B83: 12.3.2 | D83: Wydatki bieżące na realizację programu, projektu lub zadania wynikające wyłącznie z zawartych umów z podmiotem dysponującym środkami, o których mowa w art. 5 ust. 1 pkt 2 ustawy | E83: =Zał.1_WPF_bazowy!E83 -> 0 | F83: =Zał.1_WPF_bazowy!F83 -> 138833.24 | G83: =Zał.1_WPF_bazowy!G83 -> 227234.31 | H83: =Zał.1_WPF_bazowy!H83 -> 227234.31 | I83: =+Zał.1_WPF_bazowy!I83 -> 0 | J83: =+Zał.1_WPF_bazowy!J83 -> 0 | K83: =+Zał.1_WPF_bazowy!K83 -> 0 | L83: =+Zał.1_WPF_bazowy!L83 -> 0 | M83: =+Zał.1_WPF_bazowy!#REF! ->  | N83: =+Zał.1_WPF_bazowy!#REF! ->  | O83: =+Zał.1_WPF_bazowy!#REF! ->  | P83: =+Zał.1_WPF_bazowy!#REF! ->  | Q83: =+Zał.1_WPF_bazowy!#REF! ->  | R83: =+Zał.1_WPF_bazowy!#REF! ->  | S83: =+Zał.1_WPF_bazowy!#REF! ->  | T83: =+Zał.1_WPF_bazowy!#REF! ->  | U83: =+Zał.1_WPF_bazowy!#REF! ->  | V83: =+Zał.1_WPF_bazowy!#REF! ->  | W83: =+Zał.1_WPF_bazowy!#REF! ->  | X83: =+Zał.1_WPF_bazowy!#REF! ->  | Y83: =+Zał.1_WPF_bazowy!#REF! ->  | Z83: =+Zał.1_WPF_bazowy!#REF! ->  | AA83: =+Zał.1_WPF_bazowy!#REF! ->  | AB83: =+Zał.1_WPF_bazowy!#REF! ->  | AC83: =+Zał.1_WPF_bazowy!#REF! ->  | AD83: =+Zał.1_WPF_bazowy!#REF! ->  | AE83: =+Zał.1_WPF_bazowy!#REF! ->  | AF83: =+Zał.1_WPF_bazowy!#REF! ->  | AG83: =+Zał.1_WPF_bazowy!#REF! ->  | AH83: =+Zał.1_WPF_bazowy!#REF! ->  | AI83: =+Zał.1_WPF_bazowy!#REF! ->  | AJ83: =+Zał.1_WPF_bazowy!#REF! ->  | AK83: =+Zał.1_WPF_bazowy!#REF! ->  | AL83: =+Zał.1_WPF_bazowy!#REF! -> 
B84: 12.4 | D84: Wydatki majątkowe na programy, projekty lub zadania finansowane z udziałem środków, o których mowa w art. 5 ust. 1 pkt 2 i 3 ustawy | E84: =Zał.1_WPF_bazowy!E84 -> 562105.4 | F84: =Zał.1_WPF_bazowy!F84 -> 3180695.36 | G84: =Zał.1_WPF_bazowy!G84 -> 95037.07 | H84: =Zał.1_WPF_bazowy!H84 -> 95037.07 | I84: =+Zał.1_WPF_bazowy!I84 -> 0 | J84: =+Zał.1_WPF_bazowy!J84 -> 0 | K84: =+Zał.1_WPF_bazowy!K84 -> 0 | L84: =+Zał.1_WPF_bazowy!L84 -> 0 | M84: =+Zał.1_WPF_bazowy!#REF! ->  | N84: =+Zał.1_WPF_bazowy!#REF! ->  | O84: =+Zał.1_WPF_bazowy!#REF! ->  | P84: =+Zał.1_WPF_bazowy!#REF! ->  | Q84: =+Zał.1_WPF_bazowy!#REF! ->  | R84: =+Zał.1_WPF_bazowy!#REF! ->  | S84: =+Zał.1_WPF_bazowy!#REF! ->  | T84: =+Zał.1_WPF_bazowy!#REF! ->  | U84: =+Zał.1_WPF_bazowy!#REF! ->  | V84: =+Zał.1_WPF_bazowy!#REF! ->  | W84: =+Zał.1_WPF_bazowy!#REF! ->  | X84: =+Zał.1_WPF_bazowy!#REF! ->  | Y84: =+Zał.1_WPF_bazowy!#REF! ->  | Z84: =+Zał.1_WPF_bazowy!#REF! ->  | AA84: =+Zał.1_WPF_bazowy!#REF! ->  | AB84: =+Zał.1_WPF_bazowy!#REF! ->  | AC84: =+Zał.1_WPF_bazowy!#REF! ->  | AD84: =+Zał.1_WPF_bazowy!#REF! ->  | AE84: =+Zał.1_WPF_bazowy!#REF! ->  | AF84: =+Zał.1_WPF_bazowy!#REF! ->  | AG84: =+Zał.1_WPF_bazowy!#REF! ->  | AH84: =+Zał.1_WPF_bazowy!#REF! ->  | AI84: =+Zał.1_WPF_bazowy!#REF! ->  | AJ84: =+Zał.1_WPF_bazowy!#REF! ->  | AK84: =+Zał.1_WPF_bazowy!#REF! ->  | AL84: =+Zał.1_WPF_bazowy!#REF! -> 
B85: 12.4.1 | D85: - w tym finansowane środkami określonymi w art. 5 ust. 1 pkt 2 ustawy | E85: =Zał.1_WPF_bazowy!E85 -> 220814.52 | F85: =Zał.1_WPF_bazowy!F85 -> 3180695.36 | G85: =Zał.1_WPF_bazowy!G85 -> 80781.51 | H85: =Zał.1_WPF_bazowy!H85 -> 80781.51 | I85: =+Zał.1_WPF_bazowy!I85 -> 0 | J85: =+Zał.1_WPF_bazowy!J85 -> 0 | K85: =+Zał.1_WPF_bazowy!K85 -> 0 | L85: =+Zał.1_WPF_bazowy!L85 -> 0 | M85: =+Zał.1_WPF_bazowy!#REF! ->  | N85: =+Zał.1_WPF_bazowy!#REF! ->  | O85: =+Zał.1_WPF_bazowy!#REF! ->  | P85: =+Zał.1_WPF_bazowy!#REF! ->  | Q85: =+Zał.1_WPF_bazowy!#REF! ->  | R85: =+Zał.1_WPF_bazowy!#REF! ->  | S85: =+Zał.1_WPF_bazowy!#REF! ->  | T85: =+Zał.1_WPF_bazowy!#REF! ->  | U85: =+Zał.1_WPF_bazowy!#REF! ->  | V85: =+Zał.1_WPF_bazowy!#REF! ->  | W85: =+Zał.1_WPF_bazowy!#REF! ->  | X85: =+Zał.1_WPF_bazowy!#REF! ->  | Y85: =+Zał.1_WPF_bazowy!#REF! ->  | Z85: =+Zał.1_WPF_bazowy!#REF! ->  | AA85: =+Zał.1_WPF_bazowy!#REF! ->  | AB85: =+Zał.1_WPF_bazowy!#REF! ->  | AC85: =+Zał.1_WPF_bazowy!#REF! ->  | AD85: =+Zał.1_WPF_bazowy!#REF! ->  | AE85: =+Zał.1_WPF_bazowy!#REF! ->  | AF85: =+Zał.1_WPF_bazowy!#REF! ->  | AG85: =+Zał.1_WPF_bazowy!#REF! ->  | AH85: =+Zał.1_WPF_bazowy!#REF! ->  | AI85: =+Zał.1_WPF_bazowy!#REF! ->  | AJ85: =+Zał.1_WPF_bazowy!#REF! ->  | AK85: =+Zał.1_WPF_bazowy!#REF! ->  | AL85: =+Zał.1_WPF_bazowy!#REF! -> 
B86: 12.4.2 | D86: Wydatki majątkowe na realizację programu, projektu lub zadania wynikające wyłącznie z zawartych umów z podmiotem dysponującym środkami, o których mowa w art. 5 ust. 1 pkt 2 ustawy | E86: =Zał.1_WPF_bazowy!E86 -> 0 | F86: =Zał.1_WPF_bazowy!F86 -> 2074095.36 | G86: =Zał.1_WPF_bazowy!G86 -> 0 | H86: =Zał.1_WPF_bazowy!H86 -> 0 | I86: =+Zał.1_WPF_bazowy!I86 -> 0 | J86: =+Zał.1_WPF_bazowy!J86 -> 0 | K86: =+Zał.1_WPF_bazowy!K86 -> 0 | L86: =+Zał.1_WPF_bazowy!L86 -> 0 | M86: =+Zał.1_WPF_bazowy!#REF! ->  | N86: =+Zał.1_WPF_bazowy!#REF! ->  | O86: =+Zał.1_WPF_bazowy!#REF! ->  | P86: =+Zał.1_WPF_bazowy!#REF! ->  | Q86: =+Zał.1_WPF_bazowy!#REF! ->  | R86: =+Zał.1_WPF_bazowy!#REF! ->  | S86: =+Zał.1_WPF_bazowy!#REF! ->  | T86: =+Zał.1_WPF_bazowy!#REF! ->  | U86: =+Zał.1_WPF_bazowy!#REF! ->  | V86: =+Zał.1_WPF_bazowy!#REF! ->  | W86: =+Zał.1_WPF_bazowy!#REF! ->  | X86: =+Zał.1_WPF_bazowy!#REF! ->  | Y86: =+Zał.1_WPF_bazowy!#REF! ->  | Z86: =+Zał.1_WPF_bazowy!#REF! ->  | AA86: =+Zał.1_WPF_bazowy!#REF! ->  | AB86: =+Zał.1_WPF_bazowy!#REF! ->  | AC86: =+Zał.1_WPF_bazowy!#REF! ->  | AD86: =+Zał.1_WPF_bazowy!#REF! ->  | AE86: =+Zał.1_WPF_bazowy!#REF! ->  | AF86: =+Zał.1_WPF_bazowy!#REF! ->  | AG86: =+Zał.1_WPF_bazowy!#REF! ->  | AH86: =+Zał.1_WPF_bazowy!#REF! ->  | AI86: =+Zał.1_WPF_bazowy!#REF! ->  | AJ86: =+Zał.1_WPF_bazowy!#REF! ->  | AK86: =+Zał.1_WPF_bazowy!#REF! ->  | AL86: =+Zał.1_WPF_bazowy!#REF! -> 
B87: 12.5 | D87: Wydatki na wkład krajowy w związku z umową na realizację programu, projektu lub zadania finansowanego z udziałem środków, o których mowa w art. 5 ust. 1 pkt 2 ustawy bez względu na stopień finansowania tymi środkami | E87: =Zał.1_WPF_bazowy!E87 -> 0 | F87: =Zał.1_WPF_bazowy!F87 -> 0 | G87: =Zał.1_WPF_bazowy!G87 -> 0 | H87: =Zał.1_WPF_bazowy!H87 -> 0 | I87: =+Zał.1_WPF_bazowy!I87 -> 0 | J87: =+Zał.1_WPF_bazowy!J87 -> 0 | K87: =+Zał.1_WPF_bazowy!K87 -> 0 | L87: =+Zał.1_WPF_bazowy!L87 -> 0 | M87: =+Zał.1_WPF_bazowy!#REF! ->  | N87: =+Zał.1_WPF_bazowy!#REF! ->  | O87: =+Zał.1_WPF_bazowy!#REF! ->  | P87: =+Zał.1_WPF_bazowy!#REF! ->  | Q87: =+Zał.1_WPF_bazowy!#REF! ->  | R87: =+Zał.1_WPF_bazowy!#REF! ->  | S87: =+Zał.1_WPF_bazowy!#REF! ->  | T87: =+Zał.1_WPF_bazowy!#REF! ->  | U87: =+Zał.1_WPF_bazowy!#REF! ->  | V87: =+Zał.1_WPF_bazowy!#REF! ->  | W87: =+Zał.1_WPF_bazowy!#REF! ->  | X87: =+Zał.1_WPF_bazowy!#REF! ->  | Y87: =+Zał.1_WPF_bazowy!#REF! ->  | Z87: =+Zał.1_WPF_bazowy!#REF! ->  | AA87: =+Zał.1_WPF_bazowy!#REF! ->  | AB87: =+Zał.1_WPF_bazowy!#REF! ->  | AC87: =+Zał.1_WPF_bazowy!#REF! ->  | AD87: =+Zał.1_WPF_bazowy!#REF! ->  | AE87: =+Zał.1_WPF_bazowy!#REF! ->  | AF87: =+Zał.1_WPF_bazowy!#REF! ->  | AG87: =+Zał.1_WPF_bazowy!#REF! ->  | AH87: =+Zał.1_WPF_bazowy!#REF! ->  | AI87: =+Zał.1_WPF_bazowy!#REF! ->  | AJ87: =+Zał.1_WPF_bazowy!#REF! ->  | AK87: =+Zał.1_WPF_bazowy!#REF! ->  | AL87: =+Zał.1_WPF_bazowy!#REF! -> 
B88: 12.5.1 | D88: w tym w związku z już zawartą umową na realizację programu, projektu lub zadania | E88: =Zał.1_WPF_bazowy!E88 -> 0 | F88: =Zał.1_WPF_bazowy!F88 -> 0 | G88: =Zał.1_WPF_bazowy!G88 -> 0 | H88: =Zał.1_WPF_bazowy!H88 -> 0 | I88: =+Zał.1_WPF_bazowy!I88 -> 0 | J88: =+Zał.1_WPF_bazowy!J88 -> 0 | K88: =+Zał.1_WPF_bazowy!K88 -> 0 | L88: =+Zał.1_WPF_bazowy!L88 -> 0 | M88: =+Zał.1_WPF_bazowy!#REF! ->  | N88: =+Zał.1_WPF_bazowy!#REF! ->  | O88: =+Zał.1_WPF_bazowy!#REF! ->  | P88: =+Zał.1_WPF_bazowy!#REF! ->  | Q88: =+Zał.1_WPF_bazowy!#REF! ->  | R88: =+Zał.1_WPF_bazowy!#REF! ->  | S88: =+Zał.1_WPF_bazowy!#REF! ->  | T88: =+Zał.1_WPF_bazowy!#REF! ->  | U88: =+Zał.1_WPF_bazowy!#REF! ->  | V88: =+Zał.1_WPF_bazowy!#REF! ->  | W88: =+Zał.1_WPF_bazowy!#REF! ->  | X88: =+Zał.1_WPF_bazowy!#REF! ->  | Y88: =+Zał.1_WPF_bazowy!#REF! ->  | Z88: =+Zał.1_WPF_bazowy!#REF! ->  | AA88: =+Zał.1_WPF_bazowy!#REF! ->  | AB88: =+Zał.1_WPF_bazowy!#REF! ->  | AC88: =+Zał.1_WPF_bazowy!#REF! ->  | AD88: =+Zał.1_WPF_bazowy!#REF! ->  | AE88: =+Zał.1_WPF_bazowy!#REF! ->  | AF88: =+Zał.1_WPF_bazowy!#REF! ->  | AG88: =+Zał.1_WPF_bazowy!#REF! ->  | AH88: =+Zał.1_WPF_bazowy!#REF! ->  | AI88: =+Zał.1_WPF_bazowy!#REF! ->  | AJ88: =+Zał.1_WPF_bazowy!#REF! ->  | AK88: =+Zał.1_WPF_bazowy!#REF! ->  | AL88: =+Zał.1_WPF_bazowy!#REF! -> 
B89: 12.6 | D89: Wydatki na wkład krajowy w związku z zawartą po dniu 1 stycznia 2013 r. umową na realizację programu, projektu lub zadania finansowanego w co najmniej 60% środkami, o których mowa w art. 5 ust. 1 pkt 2 ustawy | E89: =Zał.1_WPF_bazowy!E89 -> 0 | F89: =Zał.1_WPF_bazowy!F89 -> 0 | G89: =Zał.1_WPF_bazowy!G89 -> 0 | H89: =Zał.1_WPF_bazowy!H89 -> 0 | I89: =+Zał.1_WPF_bazowy!I89 -> 0 | J89: =+Zał.1_WPF_bazowy!J89 -> 0 | K89: =+Zał.1_WPF_bazowy!K89 -> 0 | L89: =+Zał.1_WPF_bazowy!L89 -> 0 | M89: =+Zał.1_WPF_bazowy!#REF! ->  | N89: =+Zał.1_WPF_bazowy!#REF! ->  | O89: =+Zał.1_WPF_bazowy!#REF! ->  | P89: =+Zał.1_WPF_bazowy!#REF! ->  | Q89: =+Zał.1_WPF_bazowy!#REF! ->  | R89: =+Zał.1_WPF_bazowy!#REF! ->  | S89: =+Zał.1_WPF_bazowy!#REF! ->  | T89: =+Zał.1_WPF_bazowy!#REF! ->  | U89: =+Zał.1_WPF_bazowy!#REF! ->  | V89: =+Zał.1_WPF_bazowy!#REF! ->  | W89: =+Zał.1_WPF_bazowy!#REF! ->  | X89: =+Zał.1_WPF_bazowy!#REF! ->  | Y89: =+Zał.1_WPF_bazowy!#REF! ->  | Z89: =+Zał.1_WPF_bazowy!#REF! ->  | AA89: =+Zał.1_WPF_bazowy!#REF! ->  | AB89: =+Zał.1_WPF_bazowy!#REF! ->  | AC89: =+Zał.1_WPF_bazowy!#REF! ->  | AD89: =+Zał.1_WPF_bazowy!#REF! ->  | AE89: =+Zał.1_WPF_bazowy!#REF! ->  | AF89: =+Zał.1_WPF_bazowy!#REF! ->  | AG89: =+Zał.1_WPF_bazowy!#REF! ->  | AH89: =+Zał.1_WPF_bazowy!#REF! ->  | AI89: =+Zał.1_WPF_bazowy!#REF! ->  | AJ89: =+Zał.1_WPF_bazowy!#REF! ->  | AK89: =+Zał.1_WPF_bazowy!#REF! ->  | AL89: =+Zał.1_WPF_bazowy!#REF! -> 
B90: 12.6.1 | D90: w tym w związku z już zawartą umową na realizację programu, projektu lub zadania | E90: =Zał.1_WPF_bazowy!E90 -> 0 | F90: =Zał.1_WPF_bazowy!F90 -> 0 | G90: =Zał.1_WPF_bazowy!G90 -> 0 | H90: =Zał.1_WPF_bazowy!H90 -> 0 | I90: =+Zał.1_WPF_bazowy!I90 -> 0 | J90: =+Zał.1_WPF_bazowy!J90 -> 0 | K90: =+Zał.1_WPF_bazowy!K90 -> 0 | L90: =+Zał.1_WPF_bazowy!L90 -> 0 | M90: =+Zał.1_WPF_bazowy!#REF! ->  | N90: =+Zał.1_WPF_bazowy!#REF! ->  | O90: =+Zał.1_WPF_bazowy!#REF! ->  | P90: =+Zał.1_WPF_bazowy!#REF! ->  | Q90: =+Zał.1_WPF_bazowy!#REF! ->  | R90: =+Zał.1_WPF_bazowy!#REF! ->  | S90: =+Zał.1_WPF_bazowy!#REF! ->  | T90: =+Zał.1_WPF_bazowy!#REF! ->  | U90: =+Zał.1_WPF_bazowy!#REF! ->  | V90: =+Zał.1_WPF_bazowy!#REF! ->  | W90: =+Zał.1_WPF_bazowy!#REF! ->  | X90: =+Zał.1_WPF_bazowy!#REF! ->  | Y90: =+Zał.1_WPF_bazowy!#REF! ->  | Z90: =+Zał.1_WPF_bazowy!#REF! ->  | AA90: =+Zał.1_WPF_bazowy!#REF! ->  | AB90: =+Zał.1_WPF_bazowy!#REF! ->  | AC90: =+Zał.1_WPF_bazowy!#REF! ->  | AD90: =+Zał.1_WPF_bazowy!#REF! ->  | AE90: =+Zał.1_WPF_bazowy!#REF! ->  | AF90: =+Zał.1_WPF_bazowy!#REF! ->  | AG90: =+Zał.1_WPF_bazowy!#REF! ->  | AH90: =+Zał.1_WPF_bazowy!#REF! ->  | AI90: =+Zał.1_WPF_bazowy!#REF! ->  | AJ90: =+Zał.1_WPF_bazowy!#REF! ->  | AK90: =+Zał.1_WPF_bazowy!#REF! ->  | AL90: =+Zał.1_WPF_bazowy!#REF! -> 
B91: 12.7 | D91: Przychody z tytułu kredytów, pożyczek, emisji papierów wartościowych powstające w związku z umową na realizację programu, projektu lub zadania finansowanego z udziałem środków, o których mowa w art. 5 ust. 1 pkt 2 ustawy bez względu na stopień finansowania tymi środkami | E91: =Zał.1_WPF_bazowy!E91 -> 0 | F91: =Zał.1_WPF_bazowy!F91 -> 0 | G91: =Zał.1_WPF_bazowy!G91 -> 0 | H91: =Zał.1_WPF_bazowy!H91 -> 0 | I91: =+Zał.1_WPF_bazowy!I91 -> 0 | J91: =+Zał.1_WPF_bazowy!J91 -> 0 | K91: =+Zał.1_WPF_bazowy!K91 -> 0 | L91: =+Zał.1_WPF_bazowy!L91 -> 0 | M91: =+Zał.1_WPF_bazowy!#REF! ->  | N91: =+Zał.1_WPF_bazowy!#REF! ->  | O91: =+Zał.1_WPF_bazowy!#REF! ->  | P91: =+Zał.1_WPF_bazowy!#REF! ->  | Q91: =+Zał.1_WPF_bazowy!#REF! ->  | R91: =+Zał.1_WPF_bazowy!#REF! ->  | S91: =+Zał.1_WPF_bazowy!#REF! ->  | T91: =+Zał.1_WPF_bazowy!#REF! ->  | U91: =+Zał.1_WPF_bazowy!#REF! ->  | V91: =+Zał.1_WPF_bazowy!#REF! ->  | W91: =+Zał.1_WPF_bazowy!#REF! ->  | X91: =+Zał.1_WPF_bazowy!#REF! ->  | Y91: =+Zał.1_WPF_bazowy!#REF! ->  | Z91: =+Zał.1_WPF_bazowy!#REF! ->  | AA91: =+Zał.1_WPF_bazowy!#REF! ->  | AB91: =+Zał.1_WPF_bazowy!#REF! ->  | AC91: =+Zał.1_WPF_bazowy!#REF! ->  | AD91: =+Zał.1_WPF_bazowy!#REF! ->  | AE91: =+Zał.1_WPF_bazowy!#REF! ->  | AF91: =+Zał.1_WPF_bazowy!#REF! ->  | AG91: =+Zał.1_WPF_bazowy!#REF! ->  | AH91: =+Zał.1_WPF_bazowy!#REF! ->  | AI91: =+Zał.1_WPF_bazowy!#REF! ->  | AJ91: =+Zał.1_WPF_bazowy!#REF! ->  | AK91: =+Zał.1_WPF_bazowy!#REF! ->  | AL91: =+Zał.1_WPF_bazowy!#REF! -> 
B92: 12.7.1 | D92: w tym w związku z już zawartą umową na realizację programu, projektu lub zadania | E92: =Zał.1_WPF_bazowy!E92 -> 0 | F92: =Zał.1_WPF_bazowy!F92 -> 0 | G92: =Zał.1_WPF_bazowy!G92 -> 0 | H92: =Zał.1_WPF_bazowy!H92 -> 0 | I92: =+Zał.1_WPF_bazowy!I92 -> 0 | J92: =+Zał.1_WPF_bazowy!J92 -> 0 | K92: =+Zał.1_WPF_bazowy!K92 -> 0 | L92: =+Zał.1_WPF_bazowy!L92 -> 0 | M92: =+Zał.1_WPF_bazowy!#REF! ->  | N92: =+Zał.1_WPF_bazowy!#REF! ->  | O92: =+Zał.1_WPF_bazowy!#REF! ->  | P92: =+Zał.1_WPF_bazowy!#REF! ->  | Q92: =+Zał.1_WPF_bazowy!#REF! ->  | R92: =+Zał.1_WPF_bazowy!#REF! ->  | S92: =+Zał.1_WPF_bazowy!#REF! ->  | T92: =+Zał.1_WPF_bazowy!#REF! ->  | U92: =+Zał.1_WPF_bazowy!#REF! ->  | V92: =+Zał.1_WPF_bazowy!#REF! ->  | W92: =+Zał.1_WPF_bazowy!#REF! ->  | X92: =+Zał.1_WPF_bazowy!#REF! ->  | Y92: =+Zał.1_WPF_bazowy!#REF! ->  | Z92: =+Zał.1_WPF_bazowy!#REF! ->  | AA92: =+Zał.1_WPF_bazowy!#REF! ->  | AB92: =+Zał.1_WPF_bazowy!#REF! ->  | AC92: =+Zał.1_WPF_bazowy!#REF! ->  | AD92: =+Zał.1_WPF_bazowy!#REF! ->  | AE92: =+Zał.1_WPF_bazowy!#REF! ->  | AF92: =+Zał.1_WPF_bazowy!#REF! ->  | AG92: =+Zał.1_WPF_bazowy!#REF! ->  | AH92: =+Zał.1_WPF_bazowy!#REF! ->  | AI92: =+Zał.1_WPF_bazowy!#REF! ->  | AJ92: =+Zał.1_WPF_bazowy!#REF! ->  | AK92: =+Zał.1_WPF_bazowy!#REF! ->  | AL92: =+Zał.1_WPF_bazowy!#REF! -> 
B93: 12.8 | D93: Przychody z tytułu kredytów, pożyczek, emisji papierów wartościowych powstające w związku z zawartą po dniu 1 stycznia 2013 r. umową na realizację programu, projektu lub zadania finansowanego w co najmniej 60% środkami, o których mowa w art. 5 ust. 1 pkt 2 ustawy | E93: =Zał.1_WPF_bazowy!E93 -> 0 | F93: =Zał.1_WPF_bazowy!F93 -> 0 | G93: =Zał.1_WPF_bazowy!G93 -> 0 | H93: =Zał.1_WPF_bazowy!H93 -> 0 | I93: =+Zał.1_WPF_bazowy!I93 -> 0 | J93: =+Zał.1_WPF_bazowy!J93 -> 0 | K93: =+Zał.1_WPF_bazowy!K93 -> 0 | L93: =+Zał.1_WPF_bazowy!L93 -> 0 | M93: =+Zał.1_WPF_bazowy!#REF! ->  | N93: =+Zał.1_WPF_bazowy!#REF! ->  | O93: =+Zał.1_WPF_bazowy!#REF! ->  | P93: =+Zał.1_WPF_bazowy!#REF! ->  | Q93: =+Zał.1_WPF_bazowy!#REF! ->  | R93: =+Zał.1_WPF_bazowy!#REF! ->  | S93: =+Zał.1_WPF_bazowy!#REF! ->  | T93: =+Zał.1_WPF_bazowy!#REF! ->  | U93: =+Zał.1_WPF_bazowy!#REF! ->  | V93: =+Zał.1_WPF_bazowy!#REF! ->  | W93: =+Zał.1_WPF_bazowy!#REF! ->  | X93: =+Zał.1_WPF_bazowy!#REF! ->  | Y93: =+Zał.1_WPF_bazowy!#REF! ->  | Z93: =+Zał.1_WPF_bazowy!#REF! ->  | AA93: =+Zał.1_WPF_bazowy!#REF! ->  | AB93: =+Zał.1_WPF_bazowy!#REF! ->  | AC93: =+Zał.1_WPF_bazowy!#REF! ->  | AD93: =+Zał.1_WPF_bazowy!#REF! ->  | AE93: =+Zał.1_WPF_bazowy!#REF! ->  | AF93: =+Zał.1_WPF_bazowy!#REF! ->  | AG93: =+Zał.1_WPF_bazowy!#REF! ->  | AH93: =+Zał.1_WPF_bazowy!#REF! ->  | AI93: =+Zał.1_WPF_bazowy!#REF! ->  | AJ93: =+Zał.1_WPF_bazowy!#REF! ->  | AK93: =+Zał.1_WPF_bazowy!#REF! ->  | AL93: =+Zał.1_WPF_bazowy!#REF! -> 
B94: 12.8.1 | D94: w tym w związku z już zawartą umową na realizację programu, projektu lub zadania | E94: =Zał.1_WPF_bazowy!E94 -> 0 | F94: =Zał.1_WPF_bazowy!F94 -> 0 | G94: =Zał.1_WPF_bazowy!G94 -> 0 | H94: =Zał.1_WPF_bazowy!H94 -> 0 | I94: =+Zał.1_WPF_bazowy!I94 -> 0 | J94: =+Zał.1_WPF_bazowy!J94 -> 0 | K94: =+Zał.1_WPF_bazowy!K94 -> 0 | L94: =+Zał.1_WPF_bazowy!L94 -> 0 | M94: =+Zał.1_WPF_bazowy!#REF! ->  | N94: =+Zał.1_WPF_bazowy!#REF! ->  | O94: =+Zał.1_WPF_bazowy!#REF! ->  | P94: =+Zał.1_WPF_bazowy!#REF! ->  | Q94: =+Zał.1_WPF_bazowy!#REF! ->  | R94: =+Zał.1_WPF_bazowy!#REF! ->  | S94: =+Zał.1_WPF_bazowy!#REF! ->  | T94: =+Zał.1_WPF_bazowy!#REF! ->  | U94: =+Zał.1_WPF_bazowy!#REF! ->  | V94: =+Zał.1_WPF_bazowy!#REF! ->  | W94: =+Zał.1_WPF_bazowy!#REF! ->  | X94: =+Zał.1_WPF_bazowy!#REF! ->  | Y94: =+Zał.1_WPF_bazowy!#REF! ->  | Z94: =+Zał.1_WPF_bazowy!#REF! ->  | AA94: =+Zał.1_WPF_bazowy!#REF! ->  | AB94: =+Zał.1_WPF_bazowy!#REF! ->  | AC94: =+Zał.1_WPF_bazowy!#REF! ->  | AD94: =+Zał.1_WPF_bazowy!#REF! ->  | AE94: =+Zał.1_WPF_bazowy!#REF! ->  | AF94: =+Zał.1_WPF_bazowy!#REF! ->  | AG94: =+Zał.1_WPF_bazowy!#REF! ->  | AH94: =+Zał.1_WPF_bazowy!#REF! ->  | AI94: =+Zał.1_WPF_bazowy!#REF! ->  | AJ94: =+Zał.1_WPF_bazowy!#REF! ->  | AK94: =+Zał.1_WPF_bazowy!#REF! ->  | AL94: =+Zał.1_WPF_bazowy!#REF! -> 
B95: 13 | D95: Kwoty dotyczące przejęcia i spłaty zobowiązań po samodzielnych publicznych zakładach opieki zdrowotnej oraz pokrycia ujemnego wyniku | E95: x | F95: x | G95: x | H95: x | I95: x | J95: x | K95: x | L95: x | M95: x | N95: x | O95: x | P95: x | Q95: x | R95: x | S95: x | T95: x | U95: x | V95: x | W95: x | X95: x | Y95: x | Z95: x | AA95: x | AB95: x | AC95: x | AD95: x | AE95: x | AF95: x | AG95: x | AH95: x | AI95: x | AJ95: x | AK95: x | AL95: x
B96: 13.1 | D96: Kwota zobowiązań wynikających z przejęcia przez jednostkę samorządu terytorialnego zobowiązań po likwidowanych i przekształcanych samodzielnych zakładach opieki zdrowotnej | E96: =Zał.1_WPF_bazowy!E96 -> 0 | F96: =Zał.1_WPF_bazowy!F96 -> 0 | G96: =Zał.1_WPF_bazowy!G96 -> 0 | H96: =Zał.1_WPF_bazowy!H96 -> 0 | I96: =+IF(I10<>0,H96-(I98+I99+I100+I101),0) -> 0 | J96: 0 | K96: 0 | L96: 0
B97: 13.2 | D97: Dochody budżetowe z tytułu dotacji celowej z budżetu państwa, o której mowa w art. 196 ustawy z dnia 15 kwietnia 2011 r. o działalności leczniczej (Dz.U. Nr 112, poz. 654, z późn. zm.) | E97: =Zał.1_WPF_bazowy!E97 -> 0 | F97: =Zał.1_WPF_bazowy!F97 -> 0 | G97: =Zał.1_WPF_bazowy!G97 -> 0 | H97: =Zał.1_WPF_bazowy!H97 -> 0 | I97: =+Zał.1_WPF_bazowy!I97 -> 0 | J97: =+Zał.1_WPF_bazowy!J97 -> 0 | K97: =+Zał.1_WPF_bazowy!K97 -> 0 | L97: =+Zał.1_WPF_bazowy!L97 -> 0 | M97: =+Zał.1_WPF_bazowy!#REF! ->  | N97: =+Zał.1_WPF_bazowy!#REF! ->  | O97: =+Zał.1_WPF_bazowy!#REF! ->  | P97: =+Zał.1_WPF_bazowy!#REF! ->  | Q97: =+Zał.1_WPF_bazowy!#REF! ->  | R97: =+Zał.1_WPF_bazowy!#REF! ->  | S97: =+Zał.1_WPF_bazowy!#REF! ->  | T97: =+Zał.1_WPF_bazowy!#REF! ->  | U97: =+Zał.1_WPF_bazowy!#REF! ->  | V97: =+Zał.1_WPF_bazowy!#REF! ->  | W97: =+Zał.1_WPF_bazowy!#REF! ->  | X97: =+Zał.1_WPF_bazowy!#REF! ->  | Y97: =+Zał.1_WPF_bazowy!#REF! ->  | Z97: =+Zał.1_WPF_bazowy!#REF! ->  | AA97: =+Zał.1_WPF_bazowy!#REF! ->  | AB97: =+Zał.1_WPF_bazowy!#REF! ->  | AC97: =+Zał.1_WPF_bazowy!#REF! ->  | AD97: =+Zał.1_WPF_bazowy!#REF! ->  | AE97: =+Zał.1_WPF_bazowy!#REF! ->  | AF97: =+Zał.1_WPF_bazowy!#REF! ->  | AG97: =+Zał.1_WPF_bazowy!#REF! ->  | AH97: =+Zał.1_WPF_bazowy!#REF! ->  | AI97: =+Zał.1_WPF_bazowy!#REF! ->  | AJ97: =+Zał.1_WPF_bazowy!#REF! ->  | AK97: =+Zał.1_WPF_bazowy!#REF! ->  | AL97: =+Zał.1_WPF_bazowy!#REF! -> 
B98: 13.3 | D98: Wysokość zobowiązań podlegających umorzeniu, o którym mowa w art. 190 ustawy o działalności leczniczej | E98: =Zał.1_WPF_bazowy!E98 -> 0 | F98: =Zał.1_WPF_bazowy!F98 -> 0 | G98: =Zał.1_WPF_bazowy!G98 -> 0 | H98: =Zał.1_WPF_bazowy!H98 -> 0 | I98: =+Zał.1_WPF_bazowy!I98 -> 0 | J98: =+Zał.1_WPF_bazowy!J98 -> 0 | K98: =+Zał.1_WPF_bazowy!K98 -> 0 | L98: =+Zał.1_WPF_bazowy!L98 -> 0 | M98: =+Zał.1_WPF_bazowy!#REF! ->  | N98: =+Zał.1_WPF_bazowy!#REF! ->  | O98: =+Zał.1_WPF_bazowy!#REF! ->  | P98: =+Zał.1_WPF_bazowy!#REF! ->  | Q98: =+Zał.1_WPF_bazowy!#REF! ->  | R98: =+Zał.1_WPF_bazowy!#REF! ->  | S98: =+Zał.1_WPF_bazowy!#REF! ->  | T98: =+Zał.1_WPF_bazowy!#REF! ->  | U98: =+Zał.1_WPF_bazowy!#REF! ->  | V98: =+Zał.1_WPF_bazowy!#REF! ->  | W98: =+Zał.1_WPF_bazowy!#REF! ->  | X98: =+Zał.1_WPF_bazowy!#REF! ->  | Y98: =+Zał.1_WPF_bazowy!#REF! ->  | Z98: =+Zał.1_WPF_bazowy!#REF! ->  | AA98: =+Zał.1_WPF_bazowy!#REF! ->  | AB98: =+Zał.1_WPF_bazowy!#REF! ->  | AC98: =+Zał.1_WPF_bazowy!#REF! ->  | AD98: =+Zał.1_WPF_bazowy!#REF! ->  | AE98: =+Zał.1_WPF_bazowy!#REF! ->  | AF98: =+Zał.1_WPF_bazowy!#REF! ->  | AG98: =+Zał.1_WPF_bazowy!#REF! ->  | AH98: =+Zał.1_WPF_bazowy!#REF! ->  | AI98: =+Zał.1_WPF_bazowy!#REF! ->  | AJ98: =+Zał.1_WPF_bazowy!#REF! ->  | AK98: =+Zał.1_WPF_bazowy!#REF! ->  | AL98: =+Zał.1_WPF_bazowy!#REF! -> 
B99: 13.4 | D99: Wydatki na spłatę przejętych zobowiązań samodzielnego publicznego zakładu opieki zdrowotnej przekształconego na zasadach określonych w przepisach o działalności leczniczej | E99: =Zał.1_WPF_bazowy!E99 -> 0 | F99: =Zał.1_WPF_bazowy!F99 -> 0 | G99: =Zał.1_WPF_bazowy!G99 -> 0 | H99: =Zał.1_WPF_bazowy!H99 -> 0 | I99: =+Zał.1_WPF_bazowy!I99 -> 0 | J99: =+Zał.1_WPF_bazowy!J99 -> 0 | K99: =+Zał.1_WPF_bazowy!K99 -> 0 | L99: =+Zał.1_WPF_bazowy!L99 -> 0 | M99: =+Zał.1_WPF_bazowy!#REF! ->  | N99: =+Zał.1_WPF_bazowy!#REF! ->  | O99: =+Zał.1_WPF_bazowy!#REF! ->  | P99: =+Zał.1_WPF_bazowy!#REF! ->  | Q99: =+Zał.1_WPF_bazowy!#REF! ->  | R99: =+Zał.1_WPF_bazowy!#REF! ->  | S99: =+Zał.1_WPF_bazowy!#REF! ->  | T99: =+Zał.1_WPF_bazowy!#REF! ->  | U99: =+Zał.1_WPF_bazowy!#REF! ->  | V99: =+Zał.1_WPF_bazowy!#REF! ->  | W99: =+Zał.1_WPF_bazowy!#REF! ->  | X99: =+Zał.1_WPF_bazowy!#REF! ->  | Y99: =+Zał.1_WPF_bazowy!#REF! ->  | Z99: =+Zał.1_WPF_bazowy!#REF! ->  | AA99: =+Zał.1_WPF_bazowy!#REF! ->  | AB99: =+Zał.1_WPF_bazowy!#REF! ->  | AC99: =+Zał.1_WPF_bazowy!#REF! ->  | AD99: =+Zał.1_WPF_bazowy!#REF! ->  | AE99: =+Zał.1_WPF_bazowy!#REF! ->  | AF99: =+Zał.1_WPF_bazowy!#REF! ->  | AG99: =+Zał.1_WPF_bazowy!#REF! ->  | AH99: =+Zał.1_WPF_bazowy!#REF! ->  | AI99: =+Zał.1_WPF_bazowy!#REF! ->  | AJ99: =+Zał.1_WPF_bazowy!#REF! ->  | AK99: =+Zał.1_WPF_bazowy!#REF! ->  | AL99: =+Zał.1_WPF_bazowy!#REF! -> 
B100: 13.5 | D100: Wydatki na spłatę przejętych zobowiązań samodzielnego publicznego zakładu opieki zdrowotnej likwidowanego na zasadach określonych w przepisach o działalności leczniczej | E100: =Zał.1_WPF_bazowy!E100 -> 0 | F100: =Zał.1_WPF_bazowy!F100 -> 0 | G100: =Zał.1_WPF_bazowy!G100 -> 0 | H100: =Zał.1_WPF_bazowy!H100 -> 0 | I100: =+Zał.1_WPF_bazowy!I100 -> 0 | J100: =+Zał.1_WPF_bazowy!J100 -> 0 | K100: =+Zał.1_WPF_bazowy!K100 -> 0 | L100: =+Zał.1_WPF_bazowy!L100 -> 0 | M100: =+Zał.1_WPF_bazowy!#REF! ->  | N100: =+Zał.1_WPF_bazowy!#REF! ->  | O100: =+Zał.1_WPF_bazowy!#REF! ->  | P100: =+Zał.1_WPF_bazowy!#REF! ->  | Q100: =+Zał.1_WPF_bazowy!#REF! ->  | R100: =+Zał.1_WPF_bazowy!#REF! ->  | S100: =+Zał.1_WPF_bazowy!#REF! ->  | T100: =+Zał.1_WPF_bazowy!#REF! ->  | U100: =+Zał.1_WPF_bazowy!#REF! ->  | V100: =+Zał.1_WPF_bazowy!#REF! ->  | W100: =+Zał.1_WPF_bazowy!#REF! ->  | X100: =+Zał.1_WPF_bazowy!#REF! ->  | Y100: =+Zał.1_WPF_bazowy!#REF! ->  | Z100: =+Zał.1_WPF_bazowy!#REF! ->  | AA100: =+Zał.1_WPF_bazowy!#REF! ->  | AB100: =+Zał.1_WPF_bazowy!#REF! ->  | AC100: =+Zał.1_WPF_bazowy!#REF! ->  | AD100: =+Zał.1_WPF_bazowy!#REF! ->  | AE100: =+Zał.1_WPF_bazowy!#REF! ->  | AF100: =+Zał.1_WPF_bazowy!#REF! ->  | AG100: =+Zał.1_WPF_bazowy!#REF! ->  | AH100: =+Zał.1_WPF_bazowy!#REF! ->  | AI100: =+Zał.1_WPF_bazowy!#REF! ->  | AJ100: =+Zał.1_WPF_bazowy!#REF! ->  | AK100: =+Zał.1_WPF_bazowy!#REF! ->  | AL100: =+Zał.1_WPF_bazowy!#REF! -> 
B101: 13.6 | D101: Wydatki na spłatę zobowiązań samodzielnego publicznego zakładu opieki zdrowotnej przejętych do końca 2011 r. na podstawie przepisów o zakładach opieki zdrowotnej | E101: =Zał.1_WPF_bazowy!E101 -> 0 | F101: =Zał.1_WPF_bazowy!F101 -> 0 | G101: =Zał.1_WPF_bazowy!G101 -> 0 | H101: =Zał.1_WPF_bazowy!H101 -> 0 | I101: =+Zał.1_WPF_bazowy!I101 -> 0 | J101: =+Zał.1_WPF_bazowy!J101 -> 0 | K101: =+Zał.1_WPF_bazowy!K101 -> 0 | L101: =+Zał.1_WPF_bazowy!L101 -> 0 | M101: =+Zał.1_WPF_bazowy!#REF! ->  | N101: =+Zał.1_WPF_bazowy!#REF! ->  | O101: =+Zał.1_WPF_bazowy!#REF! ->  | P101: =+Zał.1_WPF_bazowy!#REF! ->  | Q101: =+Zał.1_WPF_bazowy!#REF! ->  | R101: =+Zał.1_WPF_bazowy!#REF! ->  | S101: =+Zał.1_WPF_bazowy!#REF! ->  | T101: =+Zał.1_WPF_bazowy!#REF! ->  | U101: =+Zał.1_WPF_bazowy!#REF! ->  | V101: =+Zał.1_WPF_bazowy!#REF! ->  | W101: =+Zał.1_WPF_bazowy!#REF! ->  | X101: =+Zał.1_WPF_bazowy!#REF! ->  | Y101: =+Zał.1_WPF_bazowy!#REF! ->  | Z101: =+Zał.1_WPF_bazowy!#REF! ->  | AA101: =+Zał.1_WPF_bazowy!#REF! ->  | AB101: =+Zał.1_WPF_bazowy!#REF! ->  | AC101: =+Zał.1_WPF_bazowy!#REF! ->  | AD101: =+Zał.1_WPF_bazowy!#REF! ->  | AE101: =+Zał.1_WPF_bazowy!#REF! ->  | AF101: =+Zał.1_WPF_bazowy!#REF! ->  | AG101: =+Zał.1_WPF_bazowy!#REF! ->  | AH101: =+Zał.1_WPF_bazowy!#REF! ->  | AI101: =+Zał.1_WPF_bazowy!#REF! ->  | AJ101: =+Zał.1_WPF_bazowy!#REF! ->  | AK101: =+Zał.1_WPF_bazowy!#REF! ->  | AL101: =+Zał.1_WPF_bazowy!#REF! -> 
B102: 13.7 | D102: Wydatki bieżące na pokrycie ujemnego wyniku finansowego samodzielnego publicznego zakładu opieki zdrowotnej | E102: =Zał.1_WPF_bazowy!E102 -> 0 | F102: =Zał.1_WPF_bazowy!F102 -> 0 | G102: =Zał.1_WPF_bazowy!G102 -> 0 | H102: =Zał.1_WPF_bazowy!H102 -> 0 | I102: =+Zał.1_WPF_bazowy!I102 -> 0 | J102: =+Zał.1_WPF_bazowy!J102 -> 0 | K102: =+Zał.1_WPF_bazowy!K102 -> 0 | L102: =+Zał.1_WPF_bazowy!L102 -> 0 | M102: =+Zał.1_WPF_bazowy!#REF! ->  | N102: =+Zał.1_WPF_bazowy!#REF! ->  | O102: =+Zał.1_WPF_bazowy!#REF! ->  | P102: =+Zał.1_WPF_bazowy!#REF! ->  | Q102: =+Zał.1_WPF_bazowy!#REF! ->  | R102: =+Zał.1_WPF_bazowy!#REF! ->  | S102: =+Zał.1_WPF_bazowy!#REF! ->  | T102: =+Zał.1_WPF_bazowy!#REF! ->  | U102: =+Zał.1_WPF_bazowy!#REF! ->  | V102: =+Zał.1_WPF_bazowy!#REF! ->  | W102: =+Zał.1_WPF_bazowy!#REF! ->  | X102: =+Zał.1_WPF_bazowy!#REF! ->  | Y102: =+Zał.1_WPF_bazowy!#REF! ->  | Z102: =+Zał.1_WPF_bazowy!#REF! ->  | AA102: =+Zał.1_WPF_bazowy!#REF! ->  | AB102: =+Zał.1_WPF_bazowy!#REF! ->  | AC102: =+Zał.1_WPF_bazowy!#REF! ->  | AD102: =+Zał.1_WPF_bazowy!#REF! ->  | AE102: =+Zał.1_WPF_bazowy!#REF! ->  | AF102: =+Zał.1_WPF_bazowy!#REF! ->  | AG102: =+Zał.1_WPF_bazowy!#REF! ->  | AH102: =+Zał.1_WPF_bazowy!#REF! ->  | AI102: =+Zał.1_WPF_bazowy!#REF! ->  | AJ102: =+Zał.1_WPF_bazowy!#REF! ->  | AK102: =+Zał.1_WPF_bazowy!#REF! ->  | AL102: =+Zał.1_WPF_bazowy!#REF! -> 
A103: x | B103: 14 | D103: Dane uzupełniające o długu i jego spłacie | E103: x | F103: x | G103: x | H103: x | I103: x | J103: x | K103: x | L103: x | M103: x | N103: x | O103: x | P103: x | Q103: x | R103: x | S103: x | T103: x | U103: x | V103: x | W103: x | X103: x | Y103: x | Z103: x | AA103: x | AB103: x | AC103: x | AD103: x | AE103: x | AF103: x | AG103: x | AH103: x | AI103: x | AJ103: x | AK103: x | AL103: x
A104: x | B104: 14.1 | D104: Spłaty rat kapitałowych oraz wykup papierów wartościowych, o których mowa w pkt. 5.1., wynikające wyłącznie z tytułu zobowiązań już zaciągniętych | E104: =Zał.1_WPF_bazowy!E104 -> 1278520.75 | F104: =Zał.1_WPF_bazowy!F104 -> 737521.46 | G104: =Zał.1_WPF_bazowy!G104 -> 773956.19 | H104: =Zał.1_WPF_bazowy!H104 -> 604776.59 | I104: =+Zał.1_WPF_bazowy!I104 -> 169179.6 | J104: =+Zał.1_WPF_bazowy!J104 -> 701400 | K104: =+Zał.1_WPF_bazowy!K104 -> 701387.6 | L104: =+Zał.1_WPF_bazowy!L104 -> 0 | M104: =+Zał.1_WPF_bazowy!#REF! ->  | N104: =+Zał.1_WPF_bazowy!#REF! ->  | O104: =+Zał.1_WPF_bazowy!#REF! ->  | P104: =+Zał.1_WPF_bazowy!#REF! ->  | Q104: =+Zał.1_WPF_bazowy!#REF! ->  | R104: =+Zał.1_WPF_bazowy!#REF! ->  | S104: =+Zał.1_WPF_bazowy!#REF! ->  | T104: =+Zał.1_WPF_bazowy!#REF! ->  | U104: =+Zał.1_WPF_bazowy!#REF! ->  | V104: =+Zał.1_WPF_bazowy!#REF! ->  | W104: =+Zał.1_WPF_bazowy!#REF! ->  | X104: =+Zał.1_WPF_bazowy!#REF! ->  | Y104: =+Zał.1_WPF_bazowy!#REF! ->  | Z104: =+Zał.1_WPF_bazowy!#REF! ->  | AA104: =+Zał.1_WPF_bazowy!#REF! ->  | AB104: =+Zał.1_WPF_bazowy!#REF! ->  | AC104: =+Zał.1_WPF_bazowy!#REF! ->  | AD104: =+Zał.1_WPF_bazowy!#REF! ->  | AE104: =+Zał.1_WPF_bazowy!#REF! ->  | AF104: =+Zał.1_WPF_bazowy!#REF! ->  | AG104: =+Zał.1_WPF_bazowy!#REF! ->  | AH104: =+Zał.1_WPF_bazowy!#REF! ->  | AI104: =+Zał.1_WPF_bazowy!#REF! ->  | AJ104: =+Zał.1_WPF_bazowy!#REF! ->  | AK104: =+Zał.1_WPF_bazowy!#REF! ->  | AL104: =+Zał.1_WPF_bazowy!#REF! -> 
A105: x | B105: 14.2 | D105: Kwota długu, którego planowana spłata dokona się z wydatków budżetu | E105: =Zał.1_WPF_bazowy!E105 -> 0 | F105: =Zał.1_WPF_bazowy!F105 -> 0 | G105: =Zał.1_WPF_bazowy!G105 -> 0 | H105: =Zał.1_WPF_bazowy!H105 -> 0 | I105: =+Zał.1_WPF_bazowy!I105 -> 0 | J105: =+Zał.1_WPF_bazowy!J105 -> 0 | K105: =+Zał.1_WPF_bazowy!K105 -> 0 | L105: =+Zał.1_WPF_bazowy!L105 -> 0 | M105: =+Zał.1_WPF_bazowy!#REF! ->  | N105: =+Zał.1_WPF_bazowy!#REF! ->  | O105: =+Zał.1_WPF_bazowy!#REF! ->  | P105: =+Zał.1_WPF_bazowy!#REF! ->  | Q105: =+Zał.1_WPF_bazowy!#REF! ->  | R105: =+Zał.1_WPF_bazowy!#REF! ->  | S105: =+Zał.1_WPF_bazowy!#REF! ->  | T105: =+Zał.1_WPF_bazowy!#REF! ->  | U105: =+Zał.1_WPF_bazowy!#REF! ->  | V105: =+Zał.1_WPF_bazowy!#REF! ->  | W105: =+Zał.1_WPF_bazowy!#REF! ->  | X105: =+Zał.1_WPF_bazowy!#REF! ->  | Y105: =+Zał.1_WPF_bazowy!#REF! ->  | Z105: =+Zał.1_WPF_bazowy!#REF! ->  | AA105: =+Zał.1_WPF_bazowy!#REF! ->  | AB105: =+Zał.1_WPF_bazowy!#REF! ->  | AC105: =+Zał.1_WPF_bazowy!#REF! ->  | AD105: =+Zał.1_WPF_bazowy!#REF! ->  | AE105: =+Zał.1_WPF_bazowy!#REF! ->  | AF105: =+Zał.1_WPF_bazowy!#REF! ->  | AG105: =+Zał.1_WPF_bazowy!#REF! ->  | AH105: =+Zał.1_WPF_bazowy!#REF! ->  | AI105: =+Zał.1_WPF_bazowy!#REF! ->  | AJ105: =+Zał.1_WPF_bazowy!#REF! ->  | AK105: =+Zał.1_WPF_bazowy!#REF! ->  | AL105: =+Zał.1_WPF_bazowy!#REF! -> 
A106: x | B106: 14.3 | D106: Wydatki zmniejszające dług, w tym | E106: =Zał.1_WPF_bazowy!E106 -> 0 | F106: =Zał.1_WPF_bazowy!F106 -> 0 | G106: =Zał.1_WPF_bazowy!G106 -> 0 | H106: =Zał.1_WPF_bazowy!H106 -> 0 | I106: =+Zał.1_WPF_bazowy!I106 -> 0 | J106: =+Zał.1_WPF_bazowy!J106 -> 0 | K106: =+Zał.1_WPF_bazowy!K106 -> 0 | L106: =+Zał.1_WPF_bazowy!L106 -> 0 | M106: =+Zał.1_WPF_bazowy!#REF! ->  | N106: =+Zał.1_WPF_bazowy!#REF! ->  | O106: =+Zał.1_WPF_bazowy!#REF! ->  | P106: =+Zał.1_WPF_bazowy!#REF! ->  | Q106: =+Zał.1_WPF_bazowy!#REF! ->  | R106: =+Zał.1_WPF_bazowy!#REF! ->  | S106: =+Zał.1_WPF_bazowy!#REF! ->  | T106: =+Zał.1_WPF_bazowy!#REF! ->  | U106: =+Zał.1_WPF_bazowy!#REF! ->  | V106: =+Zał.1_WPF_bazowy!#REF! ->  | W106: =+Zał.1_WPF_bazowy!#REF! ->  | X106: =+Zał.1_WPF_bazowy!#REF! ->  | Y106: =+Zał.1_WPF_bazowy!#REF! ->  | Z106: =+Zał.1_WPF_bazowy!#REF! ->  | AA106: =+Zał.1_WPF_bazowy!#REF! ->  | AB106: =+Zał.1_WPF_bazowy!#REF! ->  | AC106: =+Zał.1_WPF_bazowy!#REF! ->  | AD106: =+Zał.1_WPF_bazowy!#REF! ->  | AE106: =+Zał.1_WPF_bazowy!#REF! ->  | AF106: =+Zał.1_WPF_bazowy!#REF! ->  | AG106: =+Zał.1_WPF_bazowy!#REF! ->  | AH106: =+Zał.1_WPF_bazowy!#REF! ->  | AI106: =+Zał.1_WPF_bazowy!#REF! ->  | AJ106: =+Zał.1_WPF_bazowy!#REF! ->  | AK106: =+Zał.1_WPF_bazowy!#REF! ->  | AL106: =+Zał.1_WPF_bazowy!#REF! -> 
A107: x | B107: 14.3.1 | D107: spłata zobowiązań wymagalnych z lat poprzednich, innych niż w pkt 14.3.3 | E107: =Zał.1_WPF_bazowy!E107 -> 0 | F107: =Zał.1_WPF_bazowy!F107 -> 0 | G107: =Zał.1_WPF_bazowy!G107 -> 0 | H107: =Zał.1_WPF_bazowy!H107 -> 0 | I107: =+Zał.1_WPF_bazowy!I107 -> 0 | J107: =+Zał.1_WPF_bazowy!J107 -> 0 | K107: =+Zał.1_WPF_bazowy!K107 -> 0 | L107: =+Zał.1_WPF_bazowy!L107 -> 0 | M107: =+Zał.1_WPF_bazowy!#REF! ->  | N107: =+Zał.1_WPF_bazowy!#REF! ->  | O107: =+Zał.1_WPF_bazowy!#REF! ->  | P107: =+Zał.1_WPF_bazowy!#REF! ->  | Q107: =+Zał.1_WPF_bazowy!#REF! ->  | R107: =+Zał.1_WPF_bazowy!#REF! ->  | S107: =+Zał.1_WPF_bazowy!#REF! ->  | T107: =+Zał.1_WPF_bazowy!#REF! ->  | U107: =+Zał.1_WPF_bazowy!#REF! ->  | V107: =+Zał.1_WPF_bazowy!#REF! ->  | W107: =+Zał.1_WPF_bazowy!#REF! ->  | X107: =+Zał.1_WPF_bazowy!#REF! ->  | Y107: =+Zał.1_WPF_bazowy!#REF! ->  | Z107: =+Zał.1_WPF_bazowy!#REF! ->  | AA107: =+Zał.1_WPF_bazowy!#REF! ->  | AB107: =+Zał.1_WPF_bazowy!#REF! ->  | AC107: =+Zał.1_WPF_bazowy!#REF! ->  | AD107: =+Zał.1_WPF_bazowy!#REF! ->  | AE107: =+Zał.1_WPF_bazowy!#REF! ->  | AF107: =+Zał.1_WPF_bazowy!#REF! ->  | AG107: =+Zał.1_WPF_bazowy!#REF! ->  | AH107: =+Zał.1_WPF_bazowy!#REF! ->  | AI107: =+Zał.1_WPF_bazowy!#REF! ->  | AJ107: =+Zał.1_WPF_bazowy!#REF! ->  | AK107: =+Zał.1_WPF_bazowy!#REF! ->  | AL107: =+Zał.1_WPF_bazowy!#REF! -> 
A108: x | B108: 14.3.2 | D108: związane z umowami zaliczanymi do tytułów dłużnych wliczanych do państwowego długu publicznego | E108: =Zał.1_WPF_bazowy!E108 -> 0 | F108: =Zał.1_WPF_bazowy!F108 -> 0 | G108: =Zał.1_WPF_bazowy!G108 -> 0 | H108: =Zał.1_WPF_bazowy!H108 -> 0 | I108: =+Zał.1_WPF_bazowy!I108 -> 0 | J108: =+Zał.1_WPF_bazowy!J108 -> 0 | K108: =+Zał.1_WPF_bazowy!K108 -> 0 | L108: =+Zał.1_WPF_bazowy!L108 -> 0 | M108: =+Zał.1_WPF_bazowy!#REF! ->  | N108: =+Zał.1_WPF_bazowy!#REF! ->  | O108: =+Zał.1_WPF_bazowy!#REF! ->  | P108: =+Zał.1_WPF_bazowy!#REF! ->  | Q108: =+Zał.1_WPF_bazowy!#REF! ->  | R108: =+Zał.1_WPF_bazowy!#REF! ->  | S108: =+Zał.1_WPF_bazowy!#REF! ->  | T108: =+Zał.1_WPF_bazowy!#REF! ->  | U108: =+Zał.1_WPF_bazowy!#REF! ->  | V108: =+Zał.1_WPF_bazowy!#REF! ->  | W108: =+Zał.1_WPF_bazowy!#REF! ->  | X108: =+Zał.1_WPF_bazowy!#REF! ->  | Y108: =+Zał.1_WPF_bazowy!#REF! ->  | Z108: =+Zał.1_WPF_bazowy!#REF! ->  | AA108: =+Zał.1_WPF_bazowy!#REF! ->  | AB108: =+Zał.1_WPF_bazowy!#REF! ->  | AC108: =+Zał.1_WPF_bazowy!#REF! ->  | AD108: =+Zał.1_WPF_bazowy!#REF! ->  | AE108: =+Zał.1_WPF_bazowy!#REF! ->  | AF108: =+Zał.1_WPF_bazowy!#REF! ->  | AG108: =+Zał.1_WPF_bazowy!#REF! ->  | AH108: =+Zał.1_WPF_bazowy!#REF! ->  | AI108: =+Zał.1_WPF_bazowy!#REF! ->  | AJ108: =+Zał.1_WPF_bazowy!#REF! ->  | AK108: =+Zał.1_WPF_bazowy!#REF! ->  | AL108: =+Zał.1_WPF_bazowy!#REF! -> 
A109: x | B109: 14.3.3 | D109: wypłaty z tytułu wymagalnych poręczeń i gwarancji | E109: =Zał.1_WPF_bazowy!E109 -> 0 | F109: =Zał.1_WPF_bazowy!F109 -> 0 | G109: =Zał.1_WPF_bazowy!G109 -> 0 | H109: =Zał.1_WPF_bazowy!H109 -> 0 | I109: =+Zał.1_WPF_bazowy!I109 -> 0 | J109: =+Zał.1_WPF_bazowy!J109 -> 0 | K109: =+Zał.1_WPF_bazowy!K109 -> 0 | L109: =+Zał.1_WPF_bazowy!L109 -> 0 | M109: =+Zał.1_WPF_bazowy!#REF! ->  | N109: =+Zał.1_WPF_bazowy!#REF! ->  | O109: =+Zał.1_WPF_bazowy!#REF! ->  | P109: =+Zał.1_WPF_bazowy!#REF! ->  | Q109: =+Zał.1_WPF_bazowy!#REF! ->  | R109: =+Zał.1_WPF_bazowy!#REF! ->  | S109: =+Zał.1_WPF_bazowy!#REF! ->  | T109: =+Zał.1_WPF_bazowy!#REF! ->  | U109: =+Zał.1_WPF_bazowy!#REF! ->  | V109: =+Zał.1_WPF_bazowy!#REF! ->  | W109: =+Zał.1_WPF_bazowy!#REF! ->  | X109: =+Zał.1_WPF_bazowy!#REF! ->  | Y109: =+Zał.1_WPF_bazowy!#REF! ->  | Z109: =+Zał.1_WPF_bazowy!#REF! ->  | AA109: =+Zał.1_WPF_bazowy!#REF! ->  | AB109: =+Zał.1_WPF_bazowy!#REF! ->  | AC109: =+Zał.1_WPF_bazowy!#REF! ->  | AD109: =+Zał.1_WPF_bazowy!#REF! ->  | AE109: =+Zał.1_WPF_bazowy!#REF! ->  | AF109: =+Zał.1_WPF_bazowy!#REF! ->  | AG109: =+Zał.1_WPF_bazowy!#REF! ->  | AH109: =+Zał.1_WPF_bazowy!#REF! ->  | AI109: =+Zał.1_WPF_bazowy!#REF! ->  | AJ109: =+Zał.1_WPF_bazowy!#REF! ->  | AK109: =+Zał.1_WPF_bazowy!#REF! ->  | AL109: =+Zał.1_WPF_bazowy!#REF! -> 
A110: x | B110: 14.4 | D110: Wynik operacji niekasowych wpływających na kwotę długu ( m.in. umorzenia, różnice kursowe) | E110: =Zał.1_WPF_bazowy!E110 -> 0 | F110: =Zał.1_WPF_bazowy!F110 -> 0 | G110: =Zał.1_WPF_bazowy!G110 -> 0 | H110: =Zał.1_WPF_bazowy!H110 -> 0 | I110: =+Zał.1_WPF_bazowy!I110 -> 0 | J110: =+Zał.1_WPF_bazowy!J110 -> 0 | K110: =+Zał.1_WPF_bazowy!K110 -> 0 | L110: =+Zał.1_WPF_bazowy!L110 -> 0 | M110: =+Zał.1_WPF_bazowy!#REF! ->  | N110: =+Zał.1_WPF_bazowy!#REF! ->  | O110: =+Zał.1_WPF_bazowy!#REF! ->  | P110: =+Zał.1_WPF_bazowy!#REF! ->  | Q110: =+Zał.1_WPF_bazowy!#REF! ->  | R110: =+Zał.1_WPF_bazowy!#REF! ->  | S110: =+Zał.1_WPF_bazowy!#REF! ->  | T110: =+Zał.1_WPF_bazowy!#REF! ->  | U110: =+Zał.1_WPF_bazowy!#REF! ->  | V110: =+Zał.1_WPF_bazowy!#REF! ->  | W110: =+Zał.1_WPF_bazowy!#REF! ->  | X110: =+Zał.1_WPF_bazowy!#REF! ->  | Y110: =+Zał.1_WPF_bazowy!#REF! ->  | Z110: =+Zał.1_WPF_bazowy!#REF! ->  | AA110: =+Zał.1_WPF_bazowy!#REF! ->  | AB110: =+Zał.1_WPF_bazowy!#REF! ->  | AC110: =+Zał.1_WPF_bazowy!#REF! ->  | AD110: =+Zał.1_WPF_bazowy!#REF! ->  | AE110: =+Zał.1_WPF_bazowy!#REF! ->  | AF110: =+Zał.1_WPF_bazowy!#REF! ->  | AG110: =+Zał.1_WPF_bazowy!#REF! ->  | AH110: =+Zał.1_WPF_bazowy!#REF! ->  | AI110: =+Zał.1_WPF_bazowy!#REF! ->  | AJ110: =+Zał.1_WPF_bazowy!#REF! ->  | AK110: =+Zał.1_WPF_bazowy!#REF! ->  | AL110: =+Zał.1_WPF_bazowy!#REF! -> 
B111: 15 | D111: Dane dotyczące emitowanych obligacji przychodowych | E111: x | F111: x | G111: x | H111: x | I111: x | J111: x | K111: x | L111: x | M111: x | N111: x | O111: x | P111: x | Q111: x | R111: x | S111: x | T111: x | U111: x | V111: x | W111: x | X111: x | Y111: x | Z111: x | AA111: x | AB111: x | AC111: x | AD111: x | AE111: x | AF111: x | AG111: x | AH111: x | AI111: x | AJ111: x | AK111: x | AL111: x
B112: 15.1 | D112: Środki z przedsięwzięcia gromadzone na rachunku bankowym, w tym: | E112: =Zał.1_WPF_bazowy!E112 -> 0 | F112: =Zał.1_WPF_bazowy!F112 -> 0 | G112: =Zał.1_WPF_bazowy!G112 -> 0 | H112: =Zał.1_WPF_bazowy!H112 -> 0 | I112: =+Zał.1_WPF_bazowy!I112 -> 0 | J112: =+Zał.1_WPF_bazowy!J112 -> 0 | K112: =+Zał.1_WPF_bazowy!K112 -> 0 | L112: =+Zał.1_WPF_bazowy!L112 -> 0 | M112: =+Zał.1_WPF_bazowy!#REF! ->  | N112: =+Zał.1_WPF_bazowy!#REF! ->  | O112: =+Zał.1_WPF_bazowy!#REF! ->  | P112: =+Zał.1_WPF_bazowy!#REF! ->  | Q112: =+Zał.1_WPF_bazowy!#REF! ->  | R112: =+Zał.1_WPF_bazowy!#REF! ->  | S112: =+Zał.1_WPF_bazowy!#REF! ->  | T112: =+Zał.1_WPF_bazowy!#REF! ->  | U112: =+Zał.1_WPF_bazowy!#REF! ->  | V112: =+Zał.1_WPF_bazowy!#REF! ->  | W112: =+Zał.1_WPF_bazowy!#REF! ->  | X112: =+Zał.1_WPF_bazowy!#REF! ->  | Y112: =+Zał.1_WPF_bazowy!#REF! ->  | Z112: =+Zał.1_WPF_bazowy!#REF! ->  | AA112: =+Zał.1_WPF_bazowy!#REF! ->  | AB112: =+Zał.1_WPF_bazowy!#REF! ->  | AC112: =+Zał.1_WPF_bazowy!#REF! ->  | AD112: =+Zał.1_WPF_bazowy!#REF! ->  | AE112: =+Zał.1_WPF_bazowy!#REF! ->  | AF112: =+Zał.1_WPF_bazowy!#REF! ->  | AG112: =+Zał.1_WPF_bazowy!#REF! ->  | AH112: =+Zał.1_WPF_bazowy!#REF! ->  | AI112: =+Zał.1_WPF_bazowy!#REF! ->  | AJ112: =+Zał.1_WPF_bazowy!#REF! ->  | AK112: =+Zał.1_WPF_bazowy!#REF! ->  | AL112: =+Zał.1_WPF_bazowy!#REF! -> 
A113: x | B113: 15.1.1 | D113: środki na zaspokojenie roszczeń obligatariuszy | E113: =Zał.1_WPF_bazowy!E113 -> 0 | F113: =Zał.1_WPF_bazowy!F113 -> 0 | G113: =Zał.1_WPF_bazowy!G113 -> 0 | H113: =Zał.1_WPF_bazowy!H113 -> 0 | I113: =+Zał.1_WPF_bazowy!I113 -> 0 | J113: =+Zał.1_WPF_bazowy!J113 -> 0 | K113: =+Zał.1_WPF_bazowy!K113 -> 0 | L113: =+Zał.1_WPF_bazowy!L113 -> 0 | M113: =+Zał.1_WPF_bazowy!#REF! ->  | N113: =+Zał.1_WPF_bazowy!#REF! ->  | O113: =+Zał.1_WPF_bazowy!#REF! ->  | P113: =+Zał.1_WPF_bazowy!#REF! ->  | Q113: =+Zał.1_WPF_bazowy!#REF! ->  | R113: =+Zał.1_WPF_bazowy!#REF! ->  | S113: =+Zał.1_WPF_bazowy!#REF! ->  | T113: =+Zał.1_WPF_bazowy!#REF! ->  | U113: =+Zał.1_WPF_bazowy!#REF! ->  | V113: =+Zał.1_WPF_bazowy!#REF! ->  | W113: =+Zał.1_WPF_bazowy!#REF! ->  | X113: =+Zał.1_WPF_bazowy!#REF! ->  | Y113: =+Zał.1_WPF_bazowy!#REF! ->  | Z113: =+Zał.1_WPF_bazowy!#REF! ->  | AA113: =+Zał.1_WPF_bazowy!#REF! ->  | AB113: =+Zał.1_WPF_bazowy!#REF! ->  | AC113: =+Zał.1_WPF_bazowy!#REF! ->  | AD113: =+Zał.1_WPF_bazowy!#REF! ->  | AE113: =+Zał.1_WPF_bazowy!#REF! ->  | AF113: =+Zał.1_WPF_bazowy!#REF! ->  | AG113: =+Zał.1_WPF_bazowy!#REF! ->  | AH113: =+Zał.1_WPF_bazowy!#REF! ->  | AI113: =+Zał.1_WPF_bazowy!#REF! ->  | AJ113: =+Zał.1_WPF_bazowy!#REF! ->  | AK113: =+Zał.1_WPF_bazowy!#REF! ->  | AL113: =+Zał.1_WPF_bazowy!#REF! -> 
A114: x | B114: 15.2 | D114: Wydatki bieżące z tytułu świadczenia emitenta należnego obligatariuszom, nieuwzględniane w limicie spłaty zobowiązań, o którym mowa w art. 243 ustawy | E114: =Zał.1_WPF_bazowy!E114 -> 0 | F114: =Zał.1_WPF_bazowy!F114 -> 0 | G114: =Zał.1_WPF_bazowy!G114 -> 0 | H114: =Zał.1_WPF_bazowy!H114 -> 0 | I114: =+Zał.1_WPF_bazowy!I114 -> 0 | J114: =+Zał.1_WPF_bazowy!J114 -> 0 | K114: =+Zał.1_WPF_bazowy!K114 -> 0 | L114: =+Zał.1_WPF_bazowy!L114 -> 0 | M114: =+Zał.1_WPF_bazowy!#REF! ->  | N114: =+Zał.1_WPF_bazowy!#REF! ->  | O114: =+Zał.1_WPF_bazowy!#REF! ->  | P114: =+Zał.1_WPF_bazowy!#REF! ->  | Q114: =+Zał.1_WPF_bazowy!#REF! ->  | R114: =+Zał.1_WPF_bazowy!#REF! ->  | S114: =+Zał.1_WPF_bazowy!#REF! ->  | T114: =+Zał.1_WPF_bazowy!#REF! ->  | U114: =+Zał.1_WPF_bazowy!#REF! ->  | V114: =+Zał.1_WPF_bazowy!#REF! ->  | W114: =+Zał.1_WPF_bazowy!#REF! ->  | X114: =+Zał.1_WPF_bazowy!#REF! ->  | Y114: =+Zał.1_WPF_bazowy!#REF! ->  | Z114: =+Zał.1_WPF_bazowy!#REF! ->  | AA114: =+Zał.1_WPF_bazowy!#REF! ->  | AB114: =+Zał.1_WPF_bazowy!#REF! ->  | AC114: =+Zał.1_WPF_bazowy!#REF! ->  | AD114: =+Zał.1_WPF_bazowy!#REF! ->  | AE114: =+Zał.1_WPF_bazowy!#REF! ->  | AF114: =+Zał.1_WPF_bazowy!#REF! ->  | AG114: =+Zał.1_WPF_bazowy!#REF! ->  | AH114: =+Zał.1_WPF_bazowy!#REF! ->  | AI114: =+Zał.1_WPF_bazowy!#REF! ->  | AJ114: =+Zał.1_WPF_bazowy!#REF! ->  | AK114: =+Zał.1_WPF_bazowy!#REF! ->  | AL114: =+Zał.1_WPF_bazowy!#REF! -> 
B115: 16 | D115: Stopień niezachowania relacji określonych w art. 242-244 ustawy (dotyczy tylko JST objętych procedurą z art. 240a lub 240b) | E115: x | F115: x | G115: x | H115: x | I115: x | J115: x | K115: x | L115: x | M115: x | N115: x | O115: x | P115: x | Q115: x | R115: x | S115: x | T115: x | U115: x | V115: x | W115: x | X115: x | Y115: x | Z115: x | AA115: x | AB115: x | AC115: x | AD115: x | AE115: x | AF115: x | AG115: x | AH115: x | AI115: x | AJ115: x | AK115: x | AL115: x
B116: 16.1 | D116: Stopień niezachowania relacji zrównoważenia wydatków bieżących, o której mowa w poz. 8.2 | E116: x | F116: x | G116: x | H116: x | I116: =+IF(I52<0,I52,"") ->  | J116: =+IF(J52<0,J52,"") -> 
A117: x | B117: 16.2 | D117: Stopień niezachowania wskaźnika spłaty zobowiązań, o którym mowa w poz. 9.7 | E117: x | F117: x | G117: x | H117: x | I117: =IF(I57<=I59,"",I59- I57) ->  | J117: =IF(J57<=J59,"",J59- J57) -> 
A118: x | B118: 16.3 | D118: Stopień niezachowania wskaźnika spłaty zobowiązań, o którym mowa w poz. 9.7.1 | E118: x | F118: x | G118: x | H118: x | I118: =IF(I57<=I60,"",I60-I57) ->  | J118: =IF(J57<=J60,"",J60-J57) -> 
B124: Weryfikacja wybranych danych wykazanych w tabeli Wieloletnia Prognoza Finansowa
D125: Reguła formalna
D126: Reguła rachunkowa
D127: Reguła logiczna
D128: Reguły kontrolne
C129: [1.1] + [4.1] + [4.2] >= ([2.1] - [2.1.2]) | D129: Spełnienie wskaźnika z art. 242 | E129: x | F129: x | G129: x | H129: x | I129: =IF(ROUND(I11+I33+I35,2)>=ROUND(I22-I25,2),"TAK","NIE") -> TAK | J129: TAK | K129: TAK | L129: TAK
C130: [13.3] = 0 (dla lat 2014 i wyższych) | D130: Umorzenie zobowiązań, o którym mowa w art. 190 ustawy o działalności leczniczej nie wykracza poza ustawowy okres | E130: x | F130: x | G130: x | H130: x | I130: x | J130: x | K130: =IF(K98=0,"TAK","BŁĄD") -> TAK | L130: TAK
C131: [1] + [4] - [2] - [5] = 0 | D131: Kontrola poprawności zbilansowania budżetu | E131: x | F131: x | G131: x | H131: x | I131: =IF(ROUND(I10+I32-I21-I41,2)=0,"OK",ROUND(I10+I32-I21-I41,2)) -> OK | J131: OK | K131: OK | L131: OK
C132: [6]"n" = [6]"n-1" + [4.3]"n" - [5.1]"n" + ([14.2]"n"-[14.2]"n-1") + [14.4] | D132: Kontrola poprawności wyliczenia kwoty długu | E132: x | F132: x | G132: x | H132: x | I132: =+IF(ROUND(H48+I37-I42+(I105-H105)+I110-I48,2)=0,"OK",ROUND(H48+I37-I42+(I105-H105)+I110-I48,2)) -> OK | J132: OK | K132: OK | L132: OK
C133: [14.2] "n" = ( [14.2] "n-1" - [14.3] "n" ) | D133: Analiza zmiany kwoty długu spłacanego wydatkami budżetu - wartości różne od zera wymagają objaśnienia - wartości większe od zera wskazują na powstanie w roku prognozy nowego długu tego typu - wartości mniejsze od zera co do zasady nie powinny wystąpić | E133: x | F133: x | G133: x | H133: x | I133: =+IF(H105=0,"N/D",IF(ROUND(I105+I106-H105,2)=0,"OK",ROUND(I105+I106-H105,2))) -> N/D | J133: N/D | K133: N/D | L133: N/D | M133: N/D
C134: [13.1] "n" - ( [13.3] + [13.4] + [13.5] + [13.6] ) "n" = [13.1] "n-1" | D134: Porównanie na koniec roku prognozy stanu zobowiązań przejętych przez jst po likwidowanych i przekształcanych SP ZOZ z wydatkami i umorzeniami poniesionymi na ten cel ze stanem zobowiązań z okresu N-1 | E134: x | F134: x | G134: x | H134: x | I134: =+IF(H96=0,"N/D",IF(ROUND(I96+(I98+I99+I100+I101)-H96,2)=0,"OK",ROUND(I96+(I98+I99+I100+I101)-H96,2))) -> N/D | J134: N/D | K134: N/D | L134: N/D | M134: N/D
C135: jeśli [3] < 0 to sprawdź czy [4.1.1] + [4.2.1] + [4.3.1] + [4.4.1] + [3] = 0 | D135: Kontrola poprawności wykazania źródeł pokrycia deficytu | E135: x | F135: x | G135: x | H135: x | I135: =IF(I31<0,IF(ROUND(I34+I36+I38+I40+I31,2)=0,"OK",ROUND(I34+I36+I38+I40+I31,2)),"N/D") -> OK | J135: N/D | K135: N/D | L135: N/D
C136: jeśli [3] >= 0 to sprawdź czy [4.1.1]=0 i [4.2.1]=0 i [4.3.1]=0 i [4.4.1] = 0 | D136: Kontrola poprawności niewykazania źródeł pokrycia deficytu przy nadwyżce budżetu | E136: x | F136: x | G136: x | H136: x | I136: =IF(I31>=0,IF(ROUND(I34+I36+I38+I40,2)=0,"OK",ROUND(I34+I36+I38+I40,2)),"N/D") -> N/D | J136: OK | K136: OK | L136: OK
C137: [1.1.3] >= [1.1.3.1] | D137: Reguła logiczna: [1.1.3] >= [1.1.3.1] | E137: x | F137: x | G137: x | H137: x | I137: =IF(I14>=I15,"OK","BŁĄD") -> OK | J137: OK | K137: OK | L137: OK
C138: [1.1.5] >= [13.2] | D138: Reguła logiczna: [1.1.5] >= [13.2] | E138: x | F138: x | G138: x | H138: x | I138: =IF(I17>=I97,"OK","BŁĄD") -> OK | J138: OK | K138: OK | L138: OK
C139: [1.1] >= ([1.1.1] + [1.1.2] + [1.1.3] + [1.1.4] + [1.1.5]) | D139: Reguła logiczna: [1.1] >= ([1.1.1] + [1.1.2] + [1.1.3] + [1.1.4] + [1.1.5]) | E139: x | F139: x | G139: x | H139: x | I139: =IF(I11>=I12+I13+I14+I16+I17,"OK","BŁĄD") -> OK | J139: OK | K139: OK | L139: OK
C140: [1.1] >= [12.1] | D140: Reguła logiczna: [1.1] >= [12.1] | E140: x | F140: x | G140: x | H140: x | I140: =IF(I11>=I75,"OK","BŁĄD") -> OK | J140: OK | K140: OK | L140: OK
C141: [1.2] >= [1.2.1] | D141: Reguła logiczna: [1.2] >= [1.2.1] | E141: x | F141: x | G141: x | H141: x | I141: =IF(I18>=I19,"OK","BŁĄD") -> OK | J141: OK | K141: OK | L141: OK
C142: [1.2] >= [1.2.2] | D142: Reguła logiczna: [1.2] >= [1.2.2] | E142: x | F142: x | G142: x | H142: x | I142: =IF(I18>=I20,"OK","BŁĄD") -> OK | J142: OK | K142: OK | L142: OK
C143: [1.2] >= [12.2] | D143: Reguła logiczna: [1.2] >= [12.2] | E143: x | F143: x | G143: x | H143: x | I143: =IF(I18>=I78,"OK","BŁĄD") -> OK | J143: OK | K143: OK | L143: OK
D144: Reguła logiczna: jeżeli [3] >0 to [10] = [3] | E144: x | F144: x | G144: x | H144: x | I144: =+IF(I31>0,IF(I31=I63,"OK","Błąd"),"N/D") -> N/D | J144: OK | K144: OK | L144: N/D
C145: [10] >= [10.1] | D145: Reguła logiczna: [10] >= [10.1] | E145: x | F145: x | G145: x | H145: x | I145: =IF(I63>=I64,"OK","BŁĄD") -> OK | J145: OK | K145: OK | L145: OK
C146: jeśli [10] > 0 to powinno być [10.1] > 0 | D146: Reguła logiczna: jeżeli [10] > 0 to [10.1] >0 | E146: x | F146: x | G146: x | H146: x | I146: =IF(I63>0,IF(I64>0,"OK","BŁĄD"),"N/D") -> N/D | J146: OK | K146: OK | L146: N/D
C147: [12.1] >= [12.1.1] | D147: Reguła logiczna: [12.1] >= [12.1.1] | E147: x | F147: x | G147: x | H147: x | I147: =IF(I75>=I76,"OK","BŁĄD") -> OK | J147: OK | K147: OK | L147: OK
C148: [12.1.1] >= [12.1.1.1] | D148: Reguła logiczna: [12.1.1] >= [12.1.1.1] | E148: x | F148: x | G148: x | H148: x | I148: =IF(I76>=I77,"OK","BŁĄD") -> OK | J148: OK | K148: OK | L148: OK
C149: [12.2] >= [12.2.1] | D149: Reguła logiczna: [12.2] >= [12.2.1] | E149: x | F149: x | G149: x | H149: x | I149: =IF(I78>=I79,"OK","BŁĄD") -> OK | J149: OK | K149: OK | L149: OK
C150: [12.2.1] >= [12.2.1.1] | D150: Reguła logiczna: [12.2.1] >= [12.2.1.1] | E150: x | F150: x | G150: x | H150: x | I150: =IF(I79>=I80,"OK","BŁĄD") -> OK | J150: OK | K150: OK | L150: OK
C151: [12.3] >= [12.3.1] | D151: Reguła logiczna: [12.3] >= [12.3.1] | E151: x | F151: x | G151: x | H151: x | I151: =IF(I81>=I82,"OK","BŁĄD") -> OK | J151: OK | K151: OK | L151: OK
C152: [12.3] >= [12.3.2] | D152: Reguła logiczna: [12.3] >= [12.3.2] | E152: x | F152: x | G152: x | H152: x | I152: =IF(I81>=I83,"OK","BŁĄD") -> OK | J152: OK | K152: OK | L152: OK
C153: [12.4] >= [12.4.1] | D153: Reguła logiczna: [12.4] >= [12.4.1] | E153: x | F153: x | G153: x | H153: x | I153: =IF(I84>=I85,"OK","BŁĄD") -> OK | J153: OK | K153: OK | L153: OK
C154: [12.4] >= [12.4.2] | D154: Reguła logiczna: [12.4] >= [12.4.2] | E154: x | F154: x | G154: x | H154: x | I154: =IF(I84>=I86,"OK","BŁĄD") -> OK | J154: OK | K154: OK | L154: OK
C155: [12.4] >= [12.4.1] | D155: Reguła logiczna: [12.5] >= [12.5.1] | E155: x | F155: x | G155: x | H155: x | I155: =IF(I87>=I88,"OK","BŁĄD") -> OK | J155: =IF(J87>=J88,"OK","BŁĄD") -> OK | K155: OK | L155: OK
C156: [12.4] >= [12.4.1] | D156: Reguła logiczna: [12.6] >= [12.6.1] | E156: x | F156: x | G156: x | H156: x | I156: =IF(I89>=I90,"OK","BŁĄD") -> OK | J156: =IF(J89>=J90,"OK","BŁĄD") -> OK | K156: OK | L156: OK
C157: [12.4] >= [12.4.1] | D157: Reguła logiczna: [12.7] >= [12.7.1] | E157: x | F157: x | G157: x | H157: x | I157: =IF(I91>=I92,"OK","BŁĄD") -> OK | J157: =IF(J91>=J92,"OK","BŁĄD") -> OK | K157: OK | L157: OK
C158: [12.4] >= [12.4.1] | D158: Reguła logiczna: [12.8] >= [12.8.1] | E158: x | F158: x | G158: x | H158: x | I158: =IF(I93>=I94,"OK","BŁĄD") -> OK | J158: =IF(J93>=J94,"OK","BŁĄD") -> OK | K158: OK | L158: OK
C159: [13.1] >= [13.3] | D159: Reguła logiczna: [13.1] >= [13.3] | E159: x | F159: x | G159: x | H159: x | I159: =IF(I96>=I98,"OK","BŁĄD") -> OK | J159: OK | K159: OK | L159: OK
C160: [13.4] >= [2.1.2] | D160: Reguła logiczna: [13.4] >= [2.1.2] | E160: x | F160: x | G160: x | H160: x | I160: =IF(I99>=I25,"OK","BŁĄD") -> OK | J160: OK | K160: OK | L160: OK
C161: [14.3] >= [14.3.1] + [14.3.2] + [14.3.3] | D161: Reguła logiczna: [14.3] >= [14.3.1] + [14.3.2] + [14.3.3] | E161: x | F161: x | G161: x | H161: x | I161: =IF(I106>=(I107+I108+I109),"OK","BŁĄD") -> OK | J161: OK | K161: OK | L161: OK
C162: [13.1] >= [13.3] | D162: Reguła logiczna: [15.1] >= [15.1.1] | E162: x | F162: x | G162: x | H162: x | I162: =IF(I112>=I113,"OK","BŁĄD") -> OK | J162: =IF(J112>=J113,"OK","BŁĄD") -> OK | K162: OK | L162: OK
C163: [2.1.1] >= [2.1.1.1] | D163: Reguła logiczna: [2.1.1] >= [2.1.1.1] | E163: x | F163: x | G163: x | H163: x | I163: =IF(I23>=I24,"OK","BŁĄD") -> OK | J163: OK | K163: OK | L163: OK
C164: [2.1.1] >= [14.3.3] | D164: Reguła logiczna: [2.1.1] >= [14.3.3] | E164: x | F164: x | G164: x | H164: x | I164: =IF(I23>=I109,"OK","BŁĄD") -> OK | J164: OK | K164: OK | L164: OK
C165: [2.1.3] >= [2.1.3.1] | D165: Reguła logiczna: [2.1.3] >= [2.1.3.1] | E165: x | F165: x | G165: x | H165: x | I165: =IF(I26>=I27,"OK","BŁĄD") -> OK | J165: OK | K165: OK | L165: OK
C166: [2.1.3] >= [2.1.3.1] | D166: Reguła logiczna: [2.1.3.1] >= [2.1.3.1.1]+[2.1.3.1.2] | E166: x | F166: x | G166: x | H166: x | I166: =IF(I27>=(I28+I29),"OK","BŁĄD") -> OK | J166: =IF(J27>=J28,"OK","BŁĄD") -> OK | K166: OK | L166: OK
C167: [2.1] >= ([2.1.1] + [2.1.2] + [2.1.3]) | D167: Reguła logiczna: [2.1] >= ([2.1.1] + [2.1.2] + [2.1.3]) | E167: x | F167: x | G167: x | H167: x | I167: =IF(I22>=(I23+I25+I26),"OK","BŁĄD") -> OK | J167: OK | K167: OK | L167: OK
C168: [2.1] >= [11.1] | D168: Reguła logiczna: [2.1] >= [11.1] | E168: x | F168: x | G168: x | H168: x | I168: =IF(I22>=I66,"OK","BŁĄD") -> OK | J168: OK | K168: OK | L168: OK
C169: [2.1] >= [11.3.1] | D169: Reguła logiczna: [2.1] >= [11.3.1] | E169: x | F169: x | G169: x | H169: x | I169: =IF(I22>=I69,"OK","BŁĄD") -> OK | J169: OK | K169: OK | L169: OK
C170: [2.1] >= [12.3] | D170: Reguła logiczna: [2.1] >= [12.3] | E170: x | F170: x | G170: x | H170: x | I170: =IF(I22>=I81,"OK","BŁĄD") -> OK | J170: OK | K170: OK | L170: OK
C171: [2.1] >= [13.7] | D171: Reguła logiczna: [2.1] >= [13.7] | E171: x | F171: x | G171: x | H171: x | I171: =IF(I22>=I102,"OK","BŁĄD") -> OK | J171: OK | K171: OK | L171: OK
C172: [2.2] >= [11.3.2] | D172: Reguła logiczna: [2.2] >= [11.3.2] | E172: x | F172: x | G172: x | H172: x | I172: =IF(I30>=I70,"OK","BŁĄD") -> OK | J172: OK | K172: OK | L172: OK
C173: [2.2] >= [11.4] + [11.5] | D173: Reguła logiczna: [2.2] >= [11.4] + [11.5] | E173: x | F173: x | G173: x | H173: x | I173: =IF(I30>=I71+I72,"OK","BŁĄD") -> OK | J173: OK | K173: OK | L173: OK
C174: [2.2] >= [11.6] | D174: Reguła logiczna: [2.2] >= [11.6] | E174: x | F174: x | G174: x | H174: x | I174: =IF(I30>=I73,"OK","BŁĄD") -> OK | J174: OK | K174: OK | L174: OK
C175: [2.2] >= [12.4] | D175: Reguła logiczna: [2.2] >= [12.4] | E175: x | F175: x | G175: x | H175: x | I175: =IF(I30>=I84,"OK","BŁĄD") -> OK | J175: OK | K175: OK | L175: OK
C176: [4.1] >= [4.1.1] | D176: Reguła logiczna: [4.1] >= [4.1.1] | E176: x | F176: x | G176: x | H176: x | I176: =IF(I33>=I34,"OK","BŁĄD") -> OK | J176: OK | K176: OK | L176: OK
C177: [4.2] >= [4.2.1] | D177: Reguła logiczna: [4.2] >= [4.2.1] | E177: x | F177: x | G177: x | H177: x | I177: =IF(I35>=I36,"OK","BŁĄD") -> OK | J177: OK | K177: OK | L177: OK
C178: [4.3] >= [4.3.1] | D178: Reguła logiczna: [4.3] >= [4.3.1] | E178: x | F178: x | G178: x | H178: x | I178: =IF(I37>=I38,"OK","BŁĄD") -> OK | J178: OK | K178: OK | L178: OK
C179: [4.4] >= [4.4.1] | D179: Reguła logiczna: [4.4] >= [4.4.1] | E179: x | F179: x | G179: x | H179: x | I179: =IF(I39>=I40,"OK","BŁĄD") -> OK | J179: OK | K179: OK | L179: OK
C180: [5.1] >= [5.1.1] | D180: Reguła logiczna: [5.1] >= [5.1.1] | E180: x | F180: x | G180: x | H180: x | I180: =IF(I42>=I43,"OK","BŁĄD") -> OK | J180: OK | K180: OK | L180: OK
C181: [5.1] >= [10.1] | D181: Reguła logiczna: [5.1] >= [10.1] | E181: x | F181: x | G181: x | H181: x | I181: =IF(I42>=I64,"OK","BŁĄD") -> OK | J181: OK | K181: OK | L181: OK
C182: [5.1] >= [14.1] | D182: Reguła logiczna: [5.1] >= [14.1] | E182: x | F182: x | G182: x | H182: x | I182: =IF(I42>=I104,"OK","BŁĄD") -> OK | J182: OK | K182: OK | L182: OK
C183: [6] >=[7] | D183: Reguła logiczna: [6] >=[7] | E183: x | F183: x | G183: x | H183: x | I183: =IF(I48>=I49,"OK","BŁĄD") -> OK | J183: OK | K183: OK | L183: OK
C184: [6] >= [14.2] | D184: Reguła logiczna: [6] >= [14.2] | E184: x | F184: x | G184: x | H184: x | I184: =IF(I48>=I105,"OK","BŁĄD") -> OK | J184: OK | K184: OK | L184: OK
C185: 7>=13.1 | D185: Reguła logiczna: 7>=13.1 | E185: x | F185: x | G185: x | H185: x | I185: =IF(I49>=I96,"OK","BŁĄD") -> OK | J185: OK | K185: OK | L185: OK
C186: jeżeli [2.1.3] <> 0 to [2.1.3.1] <> 0 | D186: Reguła logiczna: jeżeli [2.1.3] <> 0 to [2.1.3.1] <> 0 | E186: x | F186: x | G186: x | H186: x | I186: =IF(I26<>0,IF(I27<>0,"OK","BŁĄD"),"N/D") -> OK | J186: OK | K186: OK | L186: N/D
D188: Kontrola poprawności podstawowych kwot
D189: Dochody ogółem = bieżące + majątkowe | E189: =E11+E18 -> 14062028.15 | F189: 12708280.6 | G189: 15086054.13 | H189: 15409938.1 | I189: 11885236 | J189: 13116110 | K189: 13247270 | L189: 13379740
D190: Wydatki ogółem = bieżące + majątkowe | E190: =E22+E30 -> 11481546.43 | F190: 13777530.74 | G190: 14983740.94 | H190: 15322124.91 | I190: 13118844 | J190: 12414710 | K190: 12545882.4 | L190: 13379740
D191: Wynik budżetu = dochody ogółem - wydatki ogółem | E191: =E10-E21 -> 2580481.72 | F191: -1069250.14 | G191: 102313.19 | H191: 87813.19 | I191: -1233608 | J191: 701400 | K191: 701387.6 | L191: 0
D192: Wyliczenie kwoty długu | E192: x | F192: =E48+F37-F42+(F105-E105)+F110 -> 773956.19 | G192: x | H192: =F48+H37-H42+(H105-F105)+H110 -> 169179.6 | I192: =H48+I37-I42+(I105-H105)+I110 -> 1402787.6 | J192: 701387.6 | K192: 1.164153218e-10 | L192: 1.164153218e-10
D193: Wyliczenie zobowiązań wynikających z przejęcia przez jst zobowiązań po likwidowanych i przekształcanych SZOZ | E193: x | F193: =E96-(F98+F99+F100+F101) -> 0 | G193: x | H193: =F96-(H98+H99+H100+H101) -> 0 | I193: =H96-(I98+I99+I100+I101) -> 0 | J193: 0 | K193: 0 | L193: 0
D195: Analiza ryzyka niespełnienia wskaźnika z art. 243
D196: Analiza składowych wzoru wskaźnika z art. 243
D197: 0 | E197: =+"różnica mniejsza od "&TEXT(D197*100,"0,0")&"%" -> różnica mniejsza od 0,0%
D198: 0.005 | E198: =+"różnica mniejsza od "&TEXT(D198*100,"0,0")&"%" -> różnica mniejsza od 0,5%
D199: 0.01 | E199: =+"różnica mniejsza od "&TEXT(D199*100,"0,0")&"%" -> różnica mniejsza od 1,0%
D200: max. limit spłat (planistyczny) - (R+O)/D (bez wyłączeń) | E200: x | F200: x | G200: x | H200: x | I200: =+IF(I10=0,"",I59-I54) -> 0.186 | J200: 0.1330333333 | K200: 0.1563666667 | L200: 0.2445333333
D201: max. limit spłat (planistyczny) - (R+O)/D (z wyłączeniami) | E201: x | F201: x | G201: x | H201: x | I201: =+IF(I10=0,"",I59-I55) -> 0.186 | J201: 0.1330333333 | K201: 0.1563666667 | L201: 0.2445333333
D202: max. limit spłat (wg wykonania) - (R+O)/D (bez wyłączeń) | E202: x | F202: x | G202: x | H202: x | I202: =+IF(I10=0,"",I60-I54) -> 0.1846 | J202: 0.1317 | K202: 0.155 | L202: 0.2445
D203: max. limit spłat (wg wykonania) - (R+O)/D (z wyłączeniami) | E203: x | F203: x | G203: x | H203: x | I203: =+IF(I10=0,"",I60-I55) -> 0.1846 | J203: 0.1317 | K203: 0.155 | L203: 0.2445

Sheet definicja (hidden)
C2: dane z eWPF
C3: dane z Rb
B9: Lp. | C9: Wyszczególnienie | D9: 0 | E9: 0 | F9: =+E9+1 -> 1 | G9: =+F9+1 -> 2 | H9: 3 | I9: 4 | J9: 5 | K9: 6 | L9: 7 | M9: 8 | N9: 9 | O9: 10 | P9: =+O9+1 -> 11 | Q9: 12 | R9: 13 | S9: 14 | T9: 15 | U9: 16 | V9: 17 | W9: 18 | X9: 19 | Y9: 20 | Z9: 21 | AA9: 22 | AB9: 23 | AC9: 24 | AD9: 25 | AE9: 26 | AF9: 27 | AG9: =+AF9+1 -> 28 | AH9: =+AG9+1 -> 29
A10: 10 | B10: 1 | C10: Dochody ogółem | D10: =+"rokwzgl="&D$9&" i lp="&$A10 -> rokwzgl=0 i lp=10 | E10: rokwzgl=0 i lp=10 | F10: rokwzgl=1 i lp=10 | G10: rokwzgl=2 i lp=10 | H10: rokwzgl=3 i lp=10 | I10: rokwzgl=4 i lp=10 | J10: rokwzgl=5 i lp=10 | K10: rokwzgl=6 i lp=10 | L10: rokwzgl=7 i lp=10 | M10: rokwzgl=8 i lp=10 | N10: =+"rokwzgl="&N$9&" i lp="&$A10 -> rokwzgl=9 i lp=10 | O10: rokwzgl=10 i lp=10 | P10: rokwzgl=11 i lp=10 | Q10: rokwzgl=12 i lp=10 | R10: rokwzgl=13 i lp=10 | S10: rokwzgl=14 i lp=10 | T10: rokwzgl=15 i lp=10 | U10: rokwzgl=16 i lp=10 | V10: rokwzgl=17 i lp=10 | W10: rokwzgl=18 i lp=10 | X10: =+"rokwzgl="&X$9&" i lp="&$A10 -> rokwzgl=19 i lp=10 | Y10: rokwzgl=20 i lp=10 | Z10: rokwzgl=21 i lp=10 | AA10: rokwzgl=22 i lp=10 | AB10: rokwzgl=23 i lp=10 | AC10: rokwzgl=24 i lp=10 | AD10: rokwzgl=25 i lp=10 | AE10: rokwzgl=26 i lp=10 | AF10: rokwzgl=27 i lp=10 | AG10: rokwzgl=28 i lp=10 | AH10: rokwzgl=29 i lp=10
A11: 20 | B11: 1.1 | C11: Dochody bieżące | D11: rokwzgl=0 i lp=20 | E11: rokwzgl=0 i lp=20 | F11: rokwzgl=1 i lp=20 | G11: rokwzgl=2 i lp=20 | H11: rokwzgl=3 i lp=20 | I11: rokwzgl=4 i lp=20 | J11: rokwzgl=5 i lp=20 | K11: rokwzgl=6 i lp=20 | L11: rokwzgl=7 i lp=20 | M11: rokwzgl=8 i lp=20 | N11: rokwzgl=9 i lp=20 | O11: rokwzgl=10 i lp=20 | P11: rokwzgl=11 i lp=20 | Q11: rokwzgl=12 i lp=20 | R11: rokwzgl=13 i lp=20 | S11: rokwzgl=14 i lp=20 | T11: rokwzgl=15 i lp=20 | U11: rokwzgl=16 i lp=20 | V11: rokwzgl=17 i lp=20 | W11: rokwzgl=18 i lp=20 | X11: rokwzgl=19 i lp=20 | Y11: rokwzgl=20 i lp=20 | Z11: rokwzgl=21 i lp=20 | AA11: rokwzgl=22 i lp=20 | AB11: rokwzgl=23 i lp=20 | AC11: rokwzgl=24 i lp=20 | AD11: rokwzgl=25 i lp=20 | AE11: rokwzgl=26 i lp=20 | AF11: rokwzgl=27 i lp=20 | AG11: rokwzgl=28 i lp=20 | AH11: rokwzgl=29 i lp=20
A12: 30 | B12: 1.1.1 | C12: dochody z tytułu udziału we wpływach z podatku dochodowego od osób fizycznych | D12: rokwzgl=0 i lp=30 | E12: rokwzgl=0 i lp=30 | F12: rokwzgl=1 i lp=30 | G12: rokwzgl=2 i lp=30 | H12: rokwzgl=3 i lp=30 | I12: rokwzgl=4 i lp=30 | J12: rokwzgl=5 i lp=30 | K12: rokwzgl=6 i lp=30 | L12: rokwzgl=7 i lp=30 | M12: rokwzgl=8 i lp=30 | N12: rokwzgl=9 i lp=30 | O12: rokwzgl=10 i lp=30 | P12: rokwzgl=11 i lp=30 | Q12: rokwzgl=12 i lp=30 | R12: rokwzgl=13 i lp=30 | S12: rokwzgl=14 i lp=30 | T12: rokwzgl=15 i lp=30 | U12: rokwzgl=16 i lp=30 | V12: rokwzgl=17 i lp=30 | W12: rokwzgl=18 i lp=30 | X12: rokwzgl=19 i lp=30 | Y12: rokwzgl=20 i lp=30 | Z12: rokwzgl=21 i lp=30 | AA12: rokwzgl=22 i lp=30 | AB12: rokwzgl=23 i lp=30 | AC12: rokwzgl=24 i lp=30 | AD12: rokwzgl=25 i lp=30 | AE12: rokwzgl=26 i lp=30 | AF12: rokwzgl=27 i lp=30 | AG12: rokwzgl=28 i lp=30 | AH12: rokwzgl=29 i lp=30
A13: 40 | B13: 1.1.2 | C13: dochody z tytułu udziału we wpływach z podatku dochodowego od osób prawnych | D13: rokwzgl=0 i lp=40 | E13: rokwzgl=0 i lp=40 | F13: rokwzgl=1 i lp=40 | G13: rokwzgl=2 i lp=40 | H13: rokwzgl=3 i lp=40 | I13: rokwzgl=4 i lp=40 | J13: rokwzgl=5 i lp=40 | K13: rokwzgl=6 i lp=40 | L13: rokwzgl=7 i lp=40 | M13: rokwzgl=8 i lp=40 | N13: rokwzgl=9 i lp=40 | O13: rokwzgl=10 i lp=40 | P13: rokwzgl=11 i lp=40 | Q13: rokwzgl=12 i lp=40 | R13: rokwzgl=13 i lp=40 | S13: rokwzgl=14 i lp=40 | T13: rokwzgl=15 i lp=40 | U13: rokwzgl=16 i lp=40 | V13: rokwzgl=17 i lp=40 | W13: rokwzgl=18 i lp=40 | X13: rokwzgl=19 i lp=40 | Y13: rokwzgl=20 i lp=40 | Z13: rokwzgl=21 i lp=40 | AA13: rokwzgl=22 i lp=40 | AB13: rokwzgl=23 i lp=40 | AC13: rokwzgl=24 i lp=40 | AD13: rokwzgl=25 i lp=40 | AE13: rokwzgl=26 i lp=40 | AF13: rokwzgl=27 i lp=40 | AG13: rokwzgl=28 i lp=40 | AH13: rokwzgl=29 i lp=40
A14: 50 | B14: 1.1.3 | C14: podatki i opłaty | D14: rokwzgl=0 i lp=50 | E14: rokwzgl=0 i lp=50 | F14: rokwzgl=1 i lp=50 | G14: rokwzgl=2 i lp=50 | H14: rokwzgl=3 i lp=50 | I14: rokwzgl=4 i lp=50 | J14: rokwzgl=5 i lp=50 | K14: rokwzgl=6 i lp=50 | L14: rokwzgl=7 i lp=50 | M14: rokwzgl=8 i lp=50 | N14: rokwzgl=9 i lp=50 | O14: rokwzgl=10 i lp=50 | P14: rokwzgl=11 i lp=50 | Q14: rokwzgl=12 i lp=50 | R14: rokwzgl=13 i lp=50 | S14: rokwzgl=14 i lp=50 | T14: rokwzgl=15 i lp=50 | U14: rokwzgl=16 i lp=50 | V14: rokwzgl=17 i lp=50 | W14: rokwzgl=18 i lp=50 | X14: rokwzgl=19 i lp=50 | Y14: rokwzgl=20 i lp=50 | Z14: rokwzgl=21 i lp=50 | AA14: rokwzgl=22 i lp=50 | AB14: rokwzgl=23 i lp=50 | AC14: rokwzgl=24 i lp=50 | AD14: rokwzgl=25 i lp=50 | AE14: rokwzgl=26 i lp=50 | AF14: rokwzgl=27 i lp=50 | AG14: rokwzgl=28 i lp=50 | AH14: rokwzgl=29 i lp=50
A15: 60 | B15: 1.1.3.1 | C15: z podatku od nieruchomości | D15: rokwzgl=0 i lp=60 | E15: rokwzgl=0 i lp=60 | F15: rokwzgl=1 i lp=60 | G15: rokwzgl=2 i lp=60 | H15: rokwzgl=3 i lp=60 | I15: rokwzgl=4 i lp=60 | J15: rokwzgl=5 i lp=60 | K15: rokwzgl=6 i lp=60 | L15: rokwzgl=7 i lp=60 | M15: rokwzgl=8 i lp=60 | N15: rokwzgl=9 i lp=60 | O15: rokwzgl=10 i lp=60 | P15: rokwzgl=11 i lp=60 | Q15: rokwzgl=12 i lp=60 | R15: rokwzgl=13 i lp=60 | S15: rokwzgl=14 i lp=60 | T15: rokwzgl=15 i lp=60 | U15: rokwzgl=16 i lp=60 | V15: rokwzgl=17 i lp=60 | W15: rokwzgl=18 i lp=60 | X15: rokwzgl=19 i lp=60 | Y15: rokwzgl=20 i lp=60 | Z15: rokwzgl=21 i lp=60 | AA15: rokwzgl=22 i lp=60 | AB15: rokwzgl=23 i lp=60 | AC15: rokwzgl=24 i lp=60 | AD15: rokwzgl=25 i lp=60 | AE15: rokwzgl=26 i lp=60 | AF15: rokwzgl=27 i lp=60 | AG15: rokwzgl=28 i lp=60 | AH15: rokwzgl=29 i lp=60
A16: 70 | B16: 1.1.4 | C16: z subwencji ogólnej | D16: rokwzgl=0 i lp=70 | E16: rokwzgl=0 i lp=70 | F16: rokwzgl=1 i lp=70 | G16: rokwzgl=2 i lp=70 | H16: rokwzgl=3 i lp=70 | I16: rokwzgl=4 i lp=70 | J16: rokwzgl=5 i lp=70 | K16: rokwzgl=6 i lp=70 | L16: rokwzgl=7 i lp=70 | M16: rokwzgl=8 i lp=70 | N16: rokwzgl=9 i lp=70 | O16: rokwzgl=10 i lp=70 | P16: rokwzgl=11 i lp=70 | Q16: rokwzgl=12 i lp=70 | R16: rokwzgl=13 i lp=70 | S16: rokwzgl=14 i lp=70 | T16: rokwzgl=15 i lp=70 | U16: rokwzgl=16 i lp=70 | V16: rokwzgl=17 i lp=70 | W16: rokwzgl=18 i lp=70 | X16: rokwzgl=19 i lp=70 | Y16: rokwzgl=20 i lp=70 | Z16: rokwzgl=21 i lp=70 | AA16: rokwzgl=22 i lp=70 | AB16: rokwzgl=23 i lp=70 | AC16: rokwzgl=24 i lp=70 | AD16: rokwzgl=25 i lp=70 | AE16: rokwzgl=26 i lp=70 | AF16: rokwzgl=27 i lp=70 | AG16: rokwzgl=28 i lp=70 | AH16: rokwzgl=29 i lp=70
A17: 80 | B17: 1.1.5 | C17: z tytułu dotacji i środków przeznaczonych na cele bieżące | D17: rokwzgl=0 i lp=80 | E17: rokwzgl=0 i lp=80 | F17: rokwzgl=1 i lp=80 | G17: rokwzgl=2 i lp=80 | H17: rokwzgl=3 i lp=80 | I17: rokwzgl=4 i lp=80 | J17: rokwzgl=5 i lp=80 | K17: rokwzgl=6 i lp=80 | L17: rokwzgl=7 i lp=80 | M17: rokwzgl=8 i lp=80 | N17: rokwzgl=9 i lp=80 | O17: rokwzgl=10 i lp=80 | P17: rokwzgl=11 i lp=80 | Q17: rokwzgl=12 i lp=80 | R17: rokwzgl=13 i lp=80 | S17: rokwzgl=14 i lp=80 | T17: rokwzgl=15 i lp=80 | U17: rokwzgl=16 i lp=80 | V17: rokwzgl=17 i lp=80 | W17: rokwzgl=18 i lp=80 | X17: rokwzgl=19 i lp=80 | Y17: rokwzgl=20 i lp=80 | Z17: rokwzgl=21 i lp=80 | AA17: rokwzgl=22 i lp=80 | AB17: rokwzgl=23 i lp=80 | AC17: rokwzgl=24 i lp=80 | AD17: rokwzgl=25 i lp=80 | AE17: rokwzgl=26 i lp=80 | AF17: rokwzgl=27 i lp=80 | AG17: rokwzgl=28 i lp=80 | AH17: rokwzgl=29 i lp=80
A18: 90 | B18: 1.2 | C18: Dochody majątkowe, w tym | D18: rokwzgl=0 i lp=90 | E18: rokwzgl=0 i lp=90 | F18: rokwzgl=1 i lp=90 | G18: rokwzgl=2 i lp=90 | H18: rokwzgl=3 i lp=90 | I18: rokwzgl=4 i lp=90 | J18: rokwzgl=5 i lp=90 | K18: rokwzgl=6 i lp=90 | L18: rokwzgl=7 i lp=90 | M18: rokwzgl=8 i lp=90 | N18: rokwzgl=9 i lp=90 | O18: rokwzgl=10 i lp=90 | P18: rokwzgl=11 i lp=90 | Q18: rokwzgl=12 i lp=90 | R18: rokwzgl=13 i lp=90 | S18: rokwzgl=14 i lp=90 | T18: rokwzgl=15 i lp=90 | U18: rokwzgl=16 i lp=90 | V18: rokwzgl=17 i lp=90 | W18: rokwzgl=18 i lp=90 | X18: rokwzgl=19 i lp=90 | Y18: rokwzgl=20 i lp=90 | Z18: rokwzgl=21 i lp=90 | AA18: rokwzgl=22 i lp=90 | AB18: rokwzgl=23 i lp=90 | AC18: rokwzgl=24 i lp=90 | AD18: rokwzgl=25 i lp=90 | AE18: rokwzgl=26 i lp=90 | AF18: rokwzgl=27 i lp=90 | AG18: rokwzgl=28 i lp=90 | AH18: rokwzgl=29 i lp=90
A19: 100 | B19: 1.2.1 | C19: ze sprzedaży majątku | D19: rokwzgl=0 i lp=100 | E19: rokwzgl=0 i lp=100 | F19: rokwzgl=1 i lp=100 | G19: rokwzgl=2 i lp=100 | H19: rokwzgl=3 i lp=100 | I19: rokwzgl=4 i lp=100 | J19: rokwzgl=5 i lp=100 | K19: rokwzgl=6 i lp=100 | L19: rokwzgl=7 i lp=100 | M19: rokwzgl=8 i lp=100 | N19: rokwzgl=9 i lp=100 | O19: rokwzgl=10 i lp=100 | P19: rokwzgl=11 i lp=100 | Q19: rokwzgl=12 i lp=100 | R19: rokwzgl=13 i lp=100 | S19: rokwzgl=14 i lp=100 | T19: rokwzgl=15 i lp=100 | U19: rokwzgl=16 i lp=100 | V19: rokwzgl=17 i lp=100 | W19: rokwzgl=18 i lp=100 | X19: rokwzgl=19 i lp=100 | Y19: rokwzgl=20 i lp=100 | Z19: rokwzgl=21 i lp=100 | AA19: rokwzgl=22 i lp=100 | AB19: rokwzgl=23 i lp=100 | AC19: rokwzgl=24 i lp=100 | AD19: rokwzgl=25 i lp=100 | AE19: rokwzgl=26 i lp=100 | AF19: rokwzgl=27 i lp=100 | AG19: rokwzgl=28 i lp=100 | AH19: rokwzgl=29 i lp=100
A20: 110 | B20: 1.2.2 | C20: z tytułu dotacji oraz środków przeznaczonych na inwestycje | D20: =+"rokwzgl="&D$9&" i lp="&$A20 -> rokwzgl=0 i lp=110 | E20: rokwzgl=0 i lp=110 | F20: rokwzgl=1 i lp=110 | G20: rokwzgl=2 i lp=110 | H20: rokwzgl=3 i lp=110 | I20: rokwzgl=4 i lp=110 | J20: rokwzgl=5 i lp=110 | K20: rokwzgl=6 i lp=110 | L20: rokwzgl=7 i lp=110 | M20: rokwzgl=8 i lp=110 | N20: =+"rokwzgl="&N$9&" i lp="&$A20 -> rokwzgl=9 i lp=110 | O20: rokwzgl=10 i lp=110 | P20: rokwzgl=11 i lp=110 | Q20: rokwzgl=12 i lp=110 | R20: rokwzgl=13 i lp=110 | S20: rokwzgl=14 i lp=110 | T20: rokwzgl=15 i lp=110 | U20: rokwzgl=16 i lp=110 | V20: rokwzgl=17 i lp=110 | W20: rokwzgl=18 i lp=110 | X20: =+"rokwzgl="&X$9&" i lp="&$A20 -> rokwzgl=19 i lp=110 | Y20: rokwzgl=20 i lp=110 | Z20: rokwzgl=21 i lp=110 | AA20: rokwzgl=22 i lp=110 | AB20: rokwzgl=23 i lp=110 | AC20: rokwzgl=24 i lp=110 | AD20: rokwzgl=25 i lp=110 | AE20: rokwzgl=26 i lp=110 | AF20: rokwzgl=27 i lp=110 | AG20: rokwzgl=28 i lp=110 | AH20: rokwzgl=29 i lp=110
A21: 120 | B21: 2 | C21: Wydatki ogółem | D21: rokwzgl=0 i lp=120 | E21: rokwzgl=0 i lp=120 | F21: rokwzgl=1 i lp=120 | G21: rokwzgl=2 i lp=120 | H21: rokwzgl=3 i lp=120 | I21: rokwzgl=4 i lp=120 | J21: rokwzgl=5 i lp=120 | K21: rokwzgl=6 i lp=120 | L21: rokwzgl=7 i lp=120 | M21: rokwzgl=8 i lp=120 | N21: rokwzgl=9 i lp=120 | O21: rokwzgl=10 i lp=120 | P21: rokwzgl=11 i lp=120 | Q21: rokwzgl=12 i lp=120 | R21: rokwzgl=13 i lp=120 | S21: rokwzgl=14 i lp=120 | T21: rokwzgl=15 i lp=120 | U21: rokwzgl=16 i lp=120 | V21: rokwzgl=17 i lp=120 | W21: rokwzgl=18 i lp=120 | X21: rokwzgl=19 i lp=120 | Y21: rokwzgl=20 i lp=120 | Z21: rokwzgl=21 i lp=120 | AA21: rokwzgl=22 i lp=120 | AB21: rokwzgl=23 i lp=120 | AC21: rokwzgl=24 i lp=120 | AD21: rokwzgl=25 i lp=120 | AE21: rokwzgl=26 i lp=120 | AF21: rokwzgl=27 i lp=120 | AG21: rokwzgl=28 i lp=120 | AH21: rokwzgl=29 i lp=120
A22: 130 | B22: 2.1 | C22: Wydatki bieżące, w tym: | D22: rokwzgl=0 i lp=130 | E22: rokwzgl=0 i lp=130 | F22: rokwzgl=1 i lp=130 | G22: rokwzgl=2 i lp=130 | H22: rokwzgl=3 i lp=130 | I22: rokwzgl=4 i lp=130 | J22: rokwzgl=5 i lp=130 | K22: rokwzgl=6 i lp=130 | L22: rokwzgl=7 i lp=130 | M22: rokwzgl=8 i lp=130 | N22: rokwzgl=9 i lp=130 | O22: rokwzgl=10 i lp=130 | P22: rokwzgl=11 i lp=130 | Q22: rokwzgl=12 i lp=130 | R22: rokwzgl=13 i lp=130 | S22: rokwzgl=14 i lp=130 | T22: rokwzgl=15 i lp=130 | U22: rokwzgl=16 i lp=130 | V22: rokwzgl=17 i lp=130 | W22: rokwzgl=18 i lp=130 | X22: rokwzgl=19 i lp=130 | Y22: rokwzgl=20 i lp=130 | Z22: rokwzgl=21 i lp=130 | AA22: rokwzgl=22 i lp=130 | AB22: rokwzgl=23 i lp=130 | AC22: rokwzgl=24 i lp=130 | AD22: rokwzgl=25 i lp=130 | AE22: rokwzgl=26 i lp=130 | AF22: rokwzgl=27 i lp=130 | AG22: rokwzgl=28 i lp=130 | AH22: rokwzgl=29 i lp=130
A23: 140 | B23: 2.1.1 | C23: z tytułu poręczeń i gwarancji | D23: rokwzgl=0 i lp=140 | E23: rokwzgl=0 i lp=140 | F23: rokwzgl=1 i lp=140 | G23: rokwzgl=2 i lp=140 | H23: rokwzgl=3 i lp=140 | I23: rokwzgl=4 i lp=140 | J23: rokwzgl=5 i lp=140 | K23: rokwzgl=6 i lp=140 | L23: rokwzgl=7 i lp=140 | M23: rokwzgl=8 i lp=140 | N23: rokwzgl=9 i lp=140 | O23: rokwzgl=10 i lp=140 | P23: rokwzgl=11 i lp=140 | Q23: rokwzgl=12 i lp=140 | R23: rokwzgl=13 i lp=140 | S23: rokwzgl=14 i lp=140 | T23: rokwzgl=15 i lp=140 | U23: rokwzgl=16 i lp=140 | V23: rokwzgl=17 i lp=140 | W23: rokwzgl=18 i lp=140 | X23: rokwzgl=19 i lp=140 | Y23: rokwzgl=20 i lp=140 | Z23: rokwzgl=21 i lp=140 | AA23: rokwzgl=22 i lp=140 | AB23: rokwzgl=23 i lp=140 | AC23: rokwzgl=24 i lp=140 | AD23: rokwzgl=25 i lp=140 | AE23: rokwzgl=26 i lp=140 | AF23: rokwzgl=27 i lp=140 | AG23: rokwzgl=28 i lp=140 | AH23: rokwzgl=29 i lp=140
A24: 150 | B24: 2.1.1.1 | C24: w tym: gwarancje i poręczenia podlegające wyłączeniu z limitu spłaty zobowiązań, o którym mowa w art. 243 ustawy | D24: rokwzgl=0 i lp=150 | E24: rokwzgl=0 i lp=150 | F24: rokwzgl=1 i lp=150 | G24: rokwzgl=2 i lp=150 | H24: rokwzgl=3 i lp=150 | I24: rokwzgl=4 i lp=150 | J24: rokwzgl=5 i lp=150 | K24: rokwzgl=6 i lp=150 | L24: rokwzgl=7 i lp=150 | M24: rokwzgl=8 i lp=150 | N24: rokwzgl=9 i lp=150 | O24: rokwzgl=10 i lp=150 | P24: rokwzgl=11 i lp=150 | Q24: rokwzgl=12 i lp=150 | R24: rokwzgl=13 i lp=150 | S24: rokwzgl=14 i lp=150 | T24: rokwzgl=15 i lp=150 | U24: rokwzgl=16 i lp=150 | V24: rokwzgl=17 i lp=150 | W24: rokwzgl=18 i lp=150 | X24: rokwzgl=19 i lp=150 | Y24: rokwzgl=20 i lp=150 | Z24: rokwzgl=21 i lp=150 | AA24: rokwzgl=22 i lp=150 | AB24: rokwzgl=23 i lp=150 | AC24: rokwzgl=24 i lp=150 | AD24: rokwzgl=25 i lp=150 | AE24: rokwzgl=26 i lp=150 | AF24: rokwzgl=27 i lp=150 | AG24: rokwzgl=28 i lp=150 | AH24: rokwzgl=29 i lp=150
A25: 160 | B25: 2.1.2 | C25: na spłatę przejętych zobowiązań samodzielnego publicznego zakładu opieki zdrowotnej przekształconego na zasadach określonych w przepisach o działalności leczniczej, w wysokości w jakiej nie podlegają sfinansowaniu dotacją z budżetu państwa | D25: rokwzgl=0 i lp=160 | E25: rokwzgl=0 i lp=160 | F25: rokwzgl=1 i lp=160 | G25: rokwzgl=2 i lp=160 | H25: rokwzgl=3 i lp=160 | I25: rokwzgl=4 i lp=160 | J25: rokwzgl=5 i lp=160 | K25: rokwzgl=6 i lp=160 | L25: rokwzgl=7 i lp=160 | M25: rokwzgl=8 i lp=160 | N25: rokwzgl=9 i lp=160 | O25: rokwzgl=10 i lp=160 | P25: rokwzgl=11 i lp=160 | Q25: rokwzgl=12 i lp=160 | R25: rokwzgl=13 i lp=160 | S25: rokwzgl=14 i lp=160 | T25: rokwzgl=15 i lp=160 | U25: rokwzgl=16 i lp=160 | V25: rokwzgl=17 i lp=160 | W25: rokwzgl=18 i lp=160 | X25: rokwzgl=19 i lp=160 | Y25: rokwzgl=20 i lp=160 | Z25: rokwzgl=21 i lp=160 | AA25: rokwzgl=22 i lp=160 | AB25: rokwzgl=23 i lp=160 | AC25: rokwzgl=24 i lp=160 | AD25: rokwzgl=25 i lp=160 | AE25: rokwzgl=26 i lp=160 | AF25: rokwzgl=27 i lp=160 | AG25: rokwzgl=28 i lp=160 | AH25: rokwzgl=29 i lp=160
A26: 170 | B26: 2.1.3 | C26: wydatki na obsługę długu, w tym: | D26: rokwzgl=0 i lp=170 | E26: rokwzgl=0 i lp=170 | F26: rokwzgl=1 i lp=170 | G26: rokwzgl=2 i lp=170 | H26: rokwzgl=3 i lp=170 | I26: rokwzgl=4 i lp=170 | J26: rokwzgl=5 i lp=170 | K26: rokwzgl=6 i lp=170 | L26: rokwzgl=7 i lp=170 | M26: rokwzgl=8 i lp=170 | N26: rokwzgl=9 i lp=170 | O26: rokwzgl=10 i lp=170 | P26: rokwzgl=11 i lp=170 | Q26: rokwzgl=12 i lp=170 | R26: rokwzgl=13 i lp=170 | S26: rokwzgl=14 i lp=170 | T26: rokwzgl=15 i lp=170 | U26: rokwzgl=16 i lp=170 | V26: rokwzgl=17 i lp=170 | W26: rokwzgl=18 i lp=170 | X26: rokwzgl=19 i lp=170 | Y26: rokwzgl=20 i lp=170 | Z26: rokwzgl=21 i lp=170 | AA26: rokwzgl=22 i lp=170 | AB26: rokwzgl=23 i lp=170 | AC26: rokwzgl=24 i lp=170 | AD26: rokwzgl=25 i lp=170 | AE26: rokwzgl=26 i lp=170 | AF26: rokwzgl=27 i lp=170 | AG26: rokwzgl=28 i lp=170 | AH26: rokwzgl=29 i lp=170
A27: 180 | B27: 2.1.3.1 | C27: odsetki i dyskonto określone w art. 243 ust. 1 ustawy, w tym: | D27: rokwzgl=0 i lp=180 | E27: rokwzgl=0 i lp=180 | F27: rokwzgl=1 i lp=180 | G27: rokwzgl=2 i lp=180 | H27: rokwzgl=3 i lp=180 | I27: rokwzgl=4 i lp=180 | J27: rokwzgl=5 i lp=180 | K27: rokwzgl=6 i lp=180 | L27: rokwzgl=7 i lp=180 | M27: rokwzgl=8 i lp=180 | N27: rokwzgl=9 i lp=180 | O27: rokwzgl=10 i lp=180 | P27: rokwzgl=11 i lp=180 | Q27: rokwzgl=12 i lp=180 | R27: rokwzgl=13 i lp=180 | S27: rokwzgl=14 i lp=180 | T27: rokwzgl=15 i lp=180 | U27: rokwzgl=16 i lp=180 | V27: rokwzgl=17 i lp=180 | W27: rokwzgl=18 i lp=180 | X27: rokwzgl=19 i lp=180 | Y27: rokwzgl=20 i lp=180 | Z27: rokwzgl=21 i lp=180 | AA27: rokwzgl=22 i lp=180 | AB27: rokwzgl=23 i lp=180 | AC27: rokwzgl=24 i lp=180 | AD27: rokwzgl=25 i lp=180 | AE27: rokwzgl=26 i lp=180 | AF27: rokwzgl=27 i lp=180 | AG27: rokwzgl=28 i lp=180 | AH27: rokwzgl=29 i lp=180
A28: 182 | B28: 2.1.3.1.1 | C28: odsetki i dyskonto podlegające wyłączeniu z limitu spłaty zobowiązań, o którym mowa w art. 243 ustawy, w terminie nie dłuższym niż 90 dni po zakończeniu programu, projektu lub zadania i otrzymaniu refundacji z tych środków (bez odsetek i dyskonta od zobowiązań na wkład krajowy) | D28: rokwzgl=0 i lp=182 | E28: rokwzgl=0 i lp=182 | F28: rokwzgl=1 i lp=182 | G28: rokwzgl=2 i lp=182 | H28: rokwzgl=3 i lp=182 | I28: rokwzgl=4 i lp=182 | J28: rokwzgl=5 i lp=182 | K28: rokwzgl=6 i lp=182 | L28: rokwzgl=7 i lp=182 | M28: rokwzgl=8 i lp=182 | N28: rokwzgl=9 i lp=182 | O28: rokwzgl=10 i lp=182 | P28: rokwzgl=11 i lp=182 | Q28: rokwzgl=12 i lp=182 | R28: rokwzgl=13 i lp=182 | S28: rokwzgl=14 i lp=182 | T28: rokwzgl=15 i lp=182 | U28: rokwzgl=16 i lp=182 | V28: rokwzgl=17 i lp=182 | W28: rokwzgl=18 i lp=182 | X28: rokwzgl=19 i lp=182 | Y28: rokwzgl=20 i lp=182 | Z28: rokwzgl=21 i lp=182 | AA28: rokwzgl=22 i lp=182 | AB28: rokwzgl=23 i lp=182 | AC28: rokwzgl=24 i lp=182 | AD28: rokwzgl=25 i lp=182 | AE28: rokwzgl=26 i lp=182 | AF28: rokwzgl=27 i lp=182 | AG28: rokwzgl=28 i lp=182 | AH28: rokwzgl=29 i lp=182
A29: 184 | B29: 2.1.3.1.2 | C29: odsetki i dyskonto podlegające wyłączeniu z limitu spłaty zobowiązań, o którym mowa w art. 243 ustawy, z tytułu zobowiązań zaciągniętych na wkład krajowy | D29: rokwzgl=0 i lp=184 | E29: rokwzgl=0 i lp=184 | F29: rokwzgl=1 i lp=184 | G29: rokwzgl=2 i lp=184 | H29: rokwzgl=3 i lp=184 | I29: rokwzgl=4 i lp=184 | J29: rokwzgl=5 i lp=184 | K29: rokwzgl=6 i lp=184 | L29: rokwzgl=7 i lp=184 | M29: rokwzgl=8 i lp=184 | N29: rokwzgl=9 i lp=184 | O29: rokwzgl=10 i lp=184 | P29: rokwzgl=11 i lp=184 | Q29: rokwzgl=12 i lp=184 | R29: rokwzgl=13 i lp=184 | S29: rokwzgl=14 i lp=184 | T29: rokwzgl=15 i lp=184 | U29: rokwzgl=16 i lp=184 | V29: rokwzgl=17 i lp=184 | W29: rokwzgl=18 i lp=184 | X29: rokwzgl=19 i lp=184 | Y29: rokwzgl=20 i lp=184 | Z29: rokwzgl=21 i lp=184 | AA29: rokwzgl=22 i lp=184 | AB29: rokwzgl=23 i lp=184 | AC29: rokwzgl=24 i lp=184 | AD29: rokwzgl=25 i lp=184 | AE29: rokwzgl=26 i lp=184 | AF29: rokwzgl=27 i lp=184 | AG29: rokwzgl=28 i lp=184 | AH29: rokwzgl=29 i lp=184
A30: 190 | B30: 2.2 | C30: Wydatki majątkowe | D30: rokwzgl=0 i lp=190 | E30: rokwzgl=0 i lp=190 | F30: rokwzgl=1 i lp=190 | G30: rokwzgl=2 i lp=190 | H30: rokwzgl=3 i lp=190 | I30: rokwzgl=4 i lp=190 | J30: rokwzgl=5 i lp=190 | K30: rokwzgl=6 i lp=190 | L30: rokwzgl=7 i lp=190 | M30: rokwzgl=8 i lp=190 | N30: rokwzgl=9 i lp=190 | O30: rokwzgl=10 i lp=190 | P30: rokwzgl=11 i lp=190 | Q30: rokwzgl=12 i lp=190 | R30: rokwzgl=13 i lp=190 | S30: rokwzgl=14 i lp=190 | T30: rokwzgl=15 i lp=190 | U30: rokwzgl=16 i lp=190 | V30: rokwzgl=17 i lp=190 | W30: rokwzgl=18 i lp=190 | X30: rokwzgl=19 i lp=190 | Y30: rokwzgl=20 i lp=190 | Z30: rokwzgl=21 i lp=190 | AA30: rokwzgl=22 i lp=190 | AB30: rokwzgl=23 i lp=190 | AC30: rokwzgl=24 i lp=190 | AD30: rokwzgl=25 i lp=190 | AE30: rokwzgl=26 i lp=190 | AF30: rokwzgl=27 i lp=190 | AG30: rokwzgl=28 i lp=190 | AH30: rokwzgl=29 i lp=190
A31: 200 | B31: 3 | C31: Wynik budżetu | D31: rokwzgl=0 i lp=200 | E31: rokwzgl=0 i lp=200 | F31: rokwzgl=1 i lp=200 | G31: rokwzgl=2 i lp=200 | H31: rokwzgl=3 i lp=200 | I31: rokwzgl=4 i lp=200 | J31: rokwzgl=5 i lp=200 | K31: rokwzgl=6 i lp=200 | L31: rokwzgl=7 i lp=200 | M31: rokwzgl=8 i lp=200 | N31: rokwzgl=9 i lp=200 | O31: rokwzgl=10 i lp=200 | P31: rokwzgl=11 i lp=200 | Q31: rokwzgl=12 i lp=200 | R31: rokwzgl=13 i lp=200 | S31: rokwzgl=14 i lp=200 | T31: rokwzgl=15 i lp=200 | U31: rokwzgl=16 i lp=200 | V31: rokwzgl=17 i lp=200 | W31: rokwzgl=18 i lp=200 | X31: rokwzgl=19 i lp=200 | Y31: rokwzgl=20 i lp=200 | Z31: rokwzgl=21 i lp=200 | AA31: rokwzgl=22 i lp=200 | AB31: rokwzgl=23 i lp=200 | AC31: rokwzgl=24 i lp=200 | AD31: rokwzgl=25 i lp=200 | AE31: rokwzgl=26 i lp=200 | AF31: rokwzgl=27 i lp=200 | AG31: rokwzgl=28 i lp=200 | AH31: rokwzgl=29 i lp=200
A32: 210 | B32: 4 | C32: Przychody budżetu | D32: rokwzgl=0 i lp=210 | E32: rokwzgl=0 i lp=210 | F32: rokwzgl=1 i lp=210 | G32: rokwzgl=2 i lp=210 | H32: rokwzgl=3 i lp=210 | I32: rokwzgl=4 i lp=210 | J32: rokwzgl=5 i lp=210 | K32: rokwzgl=6 i lp=210 | L32: rokwzgl=7 i lp=210 | M32: rokwzgl=8 i lp=210 | N32: rokwzgl=9 i lp=210 | O32: rokwzgl=10 i lp=210 | P32: rokwzgl=11 i lp=210 | Q32: rokwzgl=12 i lp=210 | R32: rokwzgl=13 i lp=210 | S32: rokwzgl=14 i lp=210 | T32: rokwzgl=15 i lp=210 | U32: rokwzgl=16 i lp=210 | V32: rokwzgl=17 i lp=210 | W32: rokwzgl=18 i lp=210 | X32: rokwzgl=19 i lp=210 | Y32: rokwzgl=20 i lp=210 | Z32: rokwzgl=21 i lp=210 | AA32: rokwzgl=22 i lp=210 | AB32: rokwzgl=23 i lp=210 | AC32: rokwzgl=24 i lp=210 | AD32: rokwzgl=25 i lp=210 | AE32: rokwzgl=26 i lp=210 | AF32: rokwzgl=27 i lp=210 | AG32: rokwzgl=28 i lp=210 | AH32: rokwzgl=29 i lp=210
A33: 220 | B33: 4.1 | C33: Nadwyżka budżetowa z lat ubiegłych | D33: rokwzgl=0 i lp=220 | E33: rokwzgl=0 i lp=220 | F33: rokwzgl=1 i lp=220 | G33: rokwzgl=2 i lp=220 | H33: rokwzgl=3 i lp=220 | I33: rokwzgl=4 i lp=220 | J33: rokwzgl=5 i lp=220 | K33: rokwzgl=6 i lp=220 | L33: rokwzgl=7 i lp=220 | M33: rokwzgl=8 i lp=220 | N33: rokwzgl=9 i lp=220 | O33: rokwzgl=10 i lp=220 | P33: rokwzgl=11 i lp=220 | Q33: rokwzgl=12 i lp=220 | R33: rokwzgl=13 i lp=220 | S33: rokwzgl=14 i lp=220 | T33: rokwzgl=15 i lp=220 | U33: rokwzgl=16 i lp=220 | V33: rokwzgl=17 i lp=220 | W33: rokwzgl=18 i lp=220 | X33: rokwzgl=19 i lp=220 | Y33: rokwzgl=20 i lp=220 | Z33: rokwzgl=21 i lp=220 | AA33: rokwzgl=22 i lp=220 | AB33: rokwzgl=23 i lp=220 | AC33: rokwzgl=24 i lp=220 | AD33: rokwzgl=25 i lp=220 | AE33: rokwzgl=26 i lp=220 | AF33: rokwzgl=27 i lp=220 | AG33: rokwzgl=28 i lp=220 | AH33: rokwzgl=29 i lp=220
A34: 230 | B34: 4.1.1 | C34: w tym na pokrycie deficytu budżetu | D34: rokwzgl=0 i lp=230 | E34: rokwzgl=0 i lp=230 | F34: rokwzgl=1 i lp=230 | G34: rokwzgl=2 i lp=230 | H34: rokwzgl=3 i lp=230 | I34: rokwzgl=4 i lp=230 | J34: rokwzgl=5 i lp=230 | K34: rokwzgl=6 i lp=230 | L34: rokwzgl=7 i lp=230 | M34: rokwzgl=8 i lp=230 | N34: rokwzgl=9 i lp=230 | O34: rokwzgl=10 i lp=230 | P34: rokwzgl=11 i lp=230 | Q34: rokwzgl=12 i lp=230 | R34: rokwzgl=13 i lp=230 | S34: rokwzgl=14 i lp=230 | T34: rokwzgl=15 i lp=230 | U34: rokwzgl=16 i lp=230 | V34: rokwzgl=17 i lp=230 | W34: rokwzgl=18 i lp=230 | X34: rokwzgl=19 i lp=230 | Y34: rokwzgl=20 i lp=230 | Z34: rokwzgl=21 i lp=230 | AA34: rokwzgl=22 i lp=230 | AB34: rokwzgl=23 i lp=230 | AC34: rokwzgl=24 i lp=230 | AD34: rokwzgl=25 i lp=230 | AE34: rokwzgl=26 i lp=230 | AF34: rokwzgl=27 i lp=230 | AG34: rokwzgl=28 i lp=230 | AH34: rokwzgl=29 i lp=230
A35: 240 | B35: 4.2 | C35: Wolne środki, o których mowa w art. 217 ust.2 pkt 6 ustawy | D35: rokwzgl=0 i lp=240 | E35: rokwzgl=0 i lp=240 | F35: rokwzgl=1 i lp=240 | G35: rokwzgl=2 i lp=240 | H35: rokwzgl=3 i lp=240 | I35: rokwzgl=4 i lp=240 | J35: rokwzgl=5 i lp=240 | K35: rokwzgl=6 i lp=240 | L35: rokwzgl=7 i lp=240 | M35: rokwzgl=8 i lp=240 | N35: rokwzgl=9 i lp=240 | O35: rokwzgl=10 i lp=240 | P35: rokwzgl=11 i lp=240 | Q35: rokwzgl=12 i lp=240 | R35: rokwzgl=13 i lp=240 | S35: rokwzgl=14 i lp=240 | T35: rokwzgl=15 i lp=240 | U35: rokwzgl=16 i lp=240 | V35: rokwzgl=17 i lp=240 | W35: rokwzgl=18 i lp=240 | X35: rokwzgl=19 i lp=240 | Y35: rokwzgl=20 i lp=240 | Z35: rokwzgl=21 i lp=240 | AA35: rokwzgl=22 i lp=240 | AB35: rokwzgl=23 i lp=240 | AC35: rokwzgl=24 i lp=240 | AD35: rokwzgl=25 i lp=240 | AE35: rokwzgl=26 i lp=240 | AF35: rokwzgl=27 i lp=240 | AG35: rokwzgl=28 i lp=240 | AH35: rokwzgl=29 i lp=240
A36: 250 | B36: 4.2.1 | C36: w tym na pokrycie deficytu budżetu | D36: =+"rokwzgl="&D$9&" i lp="&$A36 -> rokwzgl=0 i lp=250 | E36: rokwzgl=0 i lp=250 | F36: rokwzgl=1 i lp=250 | G36: rokwzgl=2 i lp=250 | H36: rokwzgl=3 i lp=250 | I36: rokwzgl=4 i lp=250 | J36: rokwzgl=5 i lp=250 | K36: rokwzgl=6 i lp=250 | L36: rokwzgl=7 i lp=250 | M36: rokwzgl=8 i lp=250 | N36: =+"rokwzgl="&N$9&" i lp="&$A36 -> rokwzgl=9 i lp=250 | O36: rokwzgl=10 i lp=250 | P36: rokwzgl=11 i lp=250 | Q36: rokwzgl=12 i lp=250 | R36: rokwzgl=13 i lp=250 | S36: rokwzgl=14 i lp=250 | T36: rokwzgl=15 i lp=250 | U36: rokwzgl=16 i lp=250 | V36: rokwzgl=17 i lp=250 | W36: rokwzgl=18 i lp=250 | X36: =+"rokwzgl="&X$9&" i lp="&$A36 -> rokwzgl=19 i lp=250 | Y36: rokwzgl=20 i lp=250 | Z36: rokwzgl=21 i lp=250 | AA36: rokwzgl=22 i lp=250 | AB36: rokwzgl=23 i lp=250 | AC36: rokwzgl=24 i lp=250 | AD36: rokwzgl=25 i lp=250 | AE36: rokwzgl=26 i lp=250 | AF36: rokwzgl=27 i lp=250 | AG36: rokwzgl=28 i lp=250 | AH36: rokwzgl=29 i lp=250
A37: 260 | B37: 4.3 | C37: Kredyty, pożyczki, emisja papierów wartościowych | D37: rokwzgl=0 i lp=260 | E37: rokwzgl=0 i lp=260 | F37: rokwzgl=1 i lp=260 | G37: rokwzgl=2 i lp=260 | H37: rokwzgl=3 i lp=260 | I37: rokwzgl=4 i lp=260 | J37: rokwzgl=5 i lp=260 | K37: rokwzgl=6 i lp=260 | L37: rokwzgl=7 i lp=260 | M37: rokwzgl=8 i lp=260 | N37: rokwzgl=9 i lp=260 | O37: rokwzgl=10 i lp=260 | P37: rokwzgl=11 i lp=260 | Q37: rokwzgl=12 i lp=260 | R37: rokwzgl=13 i lp=260 | S37: rokwzgl=14 i lp=260 | T37: rokwzgl=15 i lp=260 | U37: rokwzgl=16 i lp=260 | V37: rokwzgl=17 i lp=260 | W37: rokwzgl=18 i lp=260 | X37: rokwzgl=19 i lp=260 | Y37: rokwzgl=20 i lp=260 | Z37: rokwzgl=21 i lp=260 | AA37: rokwzgl=22 i lp=260 | AB37: rokwzgl=23 i lp=260 | AC37: rokwzgl=24 i lp=260 | AD37: rokwzgl=25 i lp=260 | AE37: rokwzgl=26 i lp=260 | AF37: rokwzgl=27 i lp=260 | AG37: rokwzgl=28 i lp=260 | AH37: rokwzgl=29 i lp=260
A38: 270 | B38: 4.3.1 | C38: w tym na pokrycie deficytu budżetu | D38: rokwzgl=0 i lp=270 | E38: rokwzgl=0 i lp=270 | F38: rokwzgl=1 i lp=270 | G38: rokwzgl=2 i lp=270 | H38: rokwzgl=3 i lp=270 | I38: rokwzgl=4 i lp=270 | J38: rokwzgl=5 i lp=270 | K38: rokwzgl=6 i lp=270 | L38: rokwzgl=7 i lp=270 | M38: rokwzgl=8 i lp=270 | N38: rokwzgl=9 i lp=270 | O38: rokwzgl=10 i lp=270 | P38: rokwzgl=11 i lp=270 | Q38: rokwzgl=12 i lp=270 | R38: rokwzgl=13 i lp=270 | S38: rokwzgl=14 i lp=270 | T38: rokwzgl=15 i lp=270 | U38: rokwzgl=16 i lp=270 | V38: rokwzgl=17 i lp=270 | W38: rokwzgl=18 i lp=270 | X38: rokwzgl=19 i lp=270 | Y38: rokwzgl=20 i lp=270 | Z38: rokwzgl=21 i lp=270 | AA38: rokwzgl=22 i lp=270 | AB38: rokwzgl=23 i lp=270 | AC38: rokwzgl=24 i lp=270 | AD38: rokwzgl=25 i lp=270 | AE38: rokwzgl=26 i lp=270 | AF38: rokwzgl=27 i lp=270 | AG38: rokwzgl=28 i lp=270 | AH38: rokwzgl=29 i lp=270
A39: 280 | B39: 4.4 | C39: Inne przychody niezwiązane z zaciągnięciem długu | D39: rokwzgl=0 i lp=280 | E39: rokwzgl=0 i lp=280 | F39: rokwzgl=1 i lp=280 | G39: rokwzgl=2 i lp=280 | H39: rokwzgl=3 i lp=280 | I39: rokwzgl=4 i lp=280 | J39: rokwzgl=5 i lp=280 | K39: rokwzgl=6 i lp=280 | L39: rokwzgl=7 i lp=280 | M39: rokwzgl=8 i lp=280 | N39: rokwzgl=9 i lp=280 | O39: rokwzgl=10 i lp=280 | P39: rokwzgl=11 i lp=280 | Q39: rokwzgl=12 i lp=280 | R39: rokwzgl=13 i lp=280 | S39: rokwzgl=14 i lp=280 | T39: rokwzgl=15 i lp=280 | U39: rokwzgl=16 i lp=280 | V39: rokwzgl=17 i lp=280 | W39: rokwzgl=18 i lp=280 | X39: rokwzgl=19 i lp=280 | Y39: rokwzgl=20 i lp=280 | Z39: rokwzgl=21 i lp=280 | AA39: rokwzgl=22 i lp=280 | AB39: rokwzgl=23 i lp=280 | AC39: rokwzgl=24 i lp=280 | AD39: rokwzgl=25 i lp=280 | AE39: rokwzgl=26 i lp=280 | AF39: rokwzgl=27 i lp=280 | AG39: rokwzgl=28 i lp=280 | AH39: rokwzgl=29 i lp=280
A40: 290 | B40: 4.4.1 | C40: w tym na pokrycie deficytu budżetu | D40: rokwzgl=0 i lp=290 | E40: rokwzgl=0 i lp=290 | F40: rokwzgl=1 i lp=290 | G40: rokwzgl=2 i lp=290 | H40: rokwzgl=3 i lp=290 | I40: rokwzgl=4 i lp=290 | J40: rokwzgl=5 i lp=290 | K40: rokwzgl=6 i lp=290 | L40: rokwzgl=7 i lp=290 | M40: rokwzgl=8 i lp=290 | N40: rokwzgl=9 i lp=290 | O40: rokwzgl=10 i lp=290 | P40: rokwzgl=11 i lp=290 | Q40: rokwzgl=12 i lp=290 | R40: rokwzgl=13 i lp=290 | S40: rokwzgl=14 i lp=290 | T40: rokwzgl=15 i lp=290 | U40: rokwzgl=16 i lp=290 | V40: rokwzgl=17 i lp=290 | W40: rokwzgl=18 i lp=290 | X40: rokwzgl=19 i lp=290 | Y40: rokwzgl=20 i lp=290 | Z40: rokwzgl=21 i lp=290 | AA40: rokwzgl=22 i lp=290 | AB40: rokwzgl=23 i lp=290 | AC40: rokwzgl=24 i lp=290 | AD40: rokwzgl=25 i lp=290 | AE40: rokwzgl=26 i lp=290 | AF40: rokwzgl=27 i lp=290 | AG40: rokwzgl=28 i lp=290 | AH40: rokwzgl=29 i lp=290
A41: 300 | B41: 5 | C41: Rozchody budżetu | D41: rokwzgl=0 i lp=300 | E41: rokwzgl=0 i lp=300 | F41: rokwzgl=1 i lp=300 | G41: rokwzgl=2 i lp=300 | H41: rokwzgl=3 i lp=300 | I41: rokwzgl=4 i lp=300 | J41: rokwzgl=5 i lp=300 | K41: rokwzgl=6 i lp=300 | L41: rokwzgl=7 i lp=300 | M41: rokwzgl=8 i lp=300 | N41: rokwzgl=9 i lp=300 | O41: rokwzgl=10 i lp=300 | P41: rokwzgl=11 i lp=300 | Q41: rokwzgl=12 i lp=300 | R41: rokwzgl=13 i lp=300 | S41: rokwzgl=14 i lp=300 | T41: rokwzgl=15 i lp=300 | U41: rokwzgl=16 i lp=300 | V41: rokwzgl=17 i lp=300 | W41: rokwzgl=18 i lp=300 | X41: rokwzgl=19 i lp=300 | Y41: rokwzgl=20 i lp=300 | Z41: rokwzgl=21 i lp=300 | AA41: rokwzgl=22 i lp=300 | AB41: rokwzgl=23 i lp=300 | AC41: rokwzgl=24 i lp=300 | AD41: rokwzgl=25 i lp=300 | AE41: rokwzgl=26 i lp=300 | AF41: rokwzgl=27 i lp=300 | AG41: rokwzgl=28 i lp=300 | AH41: rokwzgl=29 i lp=300
A42: 310 | B42: 5.1 | C42: Spłaty rat kapitałowych kredytów i pożyczek oraz wykup papierów wartościowych | D42: rokwzgl=0 i lp=310 | E42: rokwzgl=0 i lp=310 | F42: rokwzgl=1 i lp=310 | G42: rokwzgl=2 i lp=310 | H42: rokwzgl=3 i lp=310 | I42: rokwzgl=4 i lp=310 | J42: rokwzgl=5 i lp=310 | K42: rokwzgl=6 i lp=310 | L42: rokwzgl=7 i lp=310 | M42: rokwzgl=8 i lp=310 | N42: rokwzgl=9 i lp=310 | O42: rokwzgl=10 i lp=310 | P42: rokwzgl=11 i lp=310 | Q42: rokwzgl=12 i lp=310 | R42: rokwzgl=13 i lp=310 | S42: rokwzgl=14 i lp=310 | T42: rokwzgl=15 i lp=310 | U42: rokwzgl=16 i lp=310 | V42: rokwzgl=17 i lp=310 | W42: rokwzgl=18 i lp=310 | X42: rokwzgl=19 i lp=310 | Y42: rokwzgl=20 i lp=310 | Z42: rokwzgl=21 i lp=310 | AA42: rokwzgl=22 i lp=310 | AB42: rokwzgl=23 i lp=310 | AC42: rokwzgl=24 i lp=310 | AD42: rokwzgl=25 i lp=310 | AE42: rokwzgl=26 i lp=310 | AF42: rokwzgl=27 i lp=310 | AG42: rokwzgl=28 i lp=310 | AH42: rokwzgl=29 i lp=310
A43: 320 | B43: 5.1.1 | C43: w tym łączna kwota przypadających na dany rok kwot ustawowych wyłączeń z limitu spłaty zobowiązań, o którym mowa w art. 243 ustawy, z tego: | D43: rokwzgl=0 i lp=320 | E43: rokwzgl=0 i lp=320 | F43: rokwzgl=1 i lp=320 | G43: rokwzgl=2 i lp=320 | H43: rokwzgl=3 i lp=320 | I43: rokwzgl=4 i lp=320 | J43: rokwzgl=5 i lp=320 | K43: rokwzgl=6 i lp=320 | L43: rokwzgl=7 i lp=320 | M43: rokwzgl=8 i lp=320 | N43: rokwzgl=9 i lp=320 | O43: rokwzgl=10 i lp=320 | P43: rokwzgl=11 i lp=320 | Q43: rokwzgl=12 i lp=320 | R43: rokwzgl=13 i lp=320 | S43: rokwzgl=14 i lp=320 | T43: rokwzgl=15 i lp=320 | U43: rokwzgl=16 i lp=320 | V43: rokwzgl=17 i lp=320 | W43: rokwzgl=18 i lp=320 | X43: rokwzgl=19 i lp=320 | Y43: rokwzgl=20 i lp=320 | Z43: rokwzgl=21 i lp=320 | AA43: rokwzgl=22 i lp=320 | AB43: rokwzgl=23 i lp=320 | AC43: rokwzgl=24 i lp=320 | AD43: rokwzgl=25 i lp=320 | AE43: rokwzgl=26 i lp=320 | AF43: rokwzgl=27 i lp=320 | AG43: rokwzgl=28 i lp=320 | AH43: rokwzgl=29 i lp=320
A44: 332 | B44: 5.1.1.1 | C44: kwota przypadających na dany rok kwot ustawowych wyłączeń określonych w art. 243 ust. 3 ustawy | D44: rokwzgl=0 i lp=332 | E44: rokwzgl=0 i lp=332 | F44: rokwzgl=1 i lp=332 | G44: rokwzgl=2 i lp=332 | H44: rokwzgl=3 i lp=332 | I44: rokwzgl=4 i lp=332 | J44: rokwzgl=5 i lp=332 | K44: rokwzgl=6 i lp=332 | L44: rokwzgl=7 i lp=332 | M44: rokwzgl=8 i lp=332 | N44: rokwzgl=9 i lp=332 | O44: rokwzgl=10 i lp=332 | P44: rokwzgl=11 i lp=332 | Q44: rokwzgl=12 i lp=332 | R44: rokwzgl=13 i lp=332 | S44: rokwzgl=14 i lp=332 | T44: rokwzgl=15 i lp=332 | U44: rokwzgl=16 i lp=332 | V44: rokwzgl=17 i lp=332 | W44: rokwzgl=18 i lp=332 | X44: rokwzgl=19 i lp=332 | Y44: rokwzgl=20 i lp=332 | Z44: rokwzgl=21 i lp=332 | AA44: rokwzgl=22 i lp=332 | AB44: rokwzgl=23 i lp=332 | AC44: rokwzgl=24 i lp=332 | AD44: rokwzgl=25 i lp=332 | AE44: rokwzgl=26 i lp=332 | AF44: rokwzgl=27 i lp=332 | AG44: rokwzgl=28 i lp=332 | AH44: rokwzgl=29 i lp=332
A45: 334 | B45: 5.1.1.2 | C45: kwota przypadających na dany rok kwot ustawowych wyłączeń określonych w art. 243 ust. 3a ustawy | D45: rokwzgl=0 i lp=334 | E45: rokwzgl=0 i lp=334 | F45: rokwzgl=1 i lp=334 | G45: rokwzgl=2 i lp=334 | H45: rokwzgl=3 i lp=334 | I45: rokwzgl=4 i lp=334 | J45: rokwzgl=5 i lp=334 | K45: rokwzgl=6 i lp=334 | L45: rokwzgl=7 i lp=334 | M45: rokwzgl=8 i lp=334 | N45: rokwzgl=9 i lp=334 | O45: rokwzgl=10 i lp=334 | P45: rokwzgl=11 i lp=334 | Q45: rokwzgl=12 i lp=334 | R45: rokwzgl=13 i lp=334 | S45: rokwzgl=14 i lp=334 | T45: rokwzgl=15 i lp=334 | U45: rokwzgl=16 i lp=334 | V45: rokwzgl=17 i lp=334 | W45: rokwzgl=18 i lp=334 | X45: rokwzgl=19 i lp=334 | Y45: rokwzgl=20 i lp=334 | Z45: rokwzgl=21 i lp=334 | AA45: rokwzgl=22 i lp=334 | AB45: rokwzgl=23 i lp=334 | AC45: rokwzgl=24 i lp=334 | AD45: rokwzgl=25 i lp=334 | AE45: rokwzgl=26 i lp=334 | AF45: rokwzgl=27 i lp=334 | AG45: rokwzgl=28 i lp=334 | AH45: rokwzgl=29 i lp=334
A46: 336 | B46: 5.1.1.3 | C46: kwota przypadających na dany rok kwot ustawowych wyłączeń innych niż określone w art. 243 ustawy | D46: =+"rokwzgl="&D$9&" i lp="&$A46 -> rokwzgl=0 i lp=336 | E46: rokwzgl=0 i lp=336 | F46: rokwzgl=1 i lp=336 | G46: rokwzgl=2 i lp=336 | H46: rokwzgl=3 i lp=336 | I46: rokwzgl=4 i lp=336 | J46: rokwzgl=5 i lp=336 | K46: rokwzgl=6 i lp=336 | L46: rokwzgl=7 i lp=336 | M46: rokwzgl=8 i lp=336 | N46: =+"rokwzgl="&N$9&" i lp="&$A46 -> rokwzgl=9 i lp=336 | O46: rokwzgl=10 i lp=336 | P46: rokwzgl=11 i lp=336 | Q46: rokwzgl=12 i lp=336 | R46: rokwzgl=13 i lp=336 | S46: rokwzgl=14 i lp=336 | T46: rokwzgl=15 i lp=336 | U46: rokwzgl=16 i lp=336 | V46: rokwzgl=17 i lp=336 | W46: rokwzgl=18 i lp=336 | X46: =+"rokwzgl="&X$9&" i lp="&$A46 -> rokwzgl=19 i lp=336 | Y46: rokwzgl=20 i lp=336 | Z46: rokwzgl=21 i lp=336 | AA46: rokwzgl=22 i lp=336 | AB46: rokwzgl=23 i lp=336 | AC46: rokwzgl=24 i lp=336 | AD46: rokwzgl=25 i lp=336 | AE46: rokwzgl=26 i lp=336 | AF46: rokwzgl=27 i lp=336 | AG46: rokwzgl=28 i lp=336 | AH46: rokwzgl=29 i lp=336
A47: 340 | B47: 5.2 | C47: Inne rozchody niezwiązane ze spłatą długu | D47: rokwzgl=0 i lp=340 | E47: rokwzgl=0 i lp=340 | F47: rokwzgl=1 i lp=340 | G47: rokwzgl=2 i lp=340 | H47: rokwzgl=3 i lp=340 | I47: rokwzgl=4 i lp=340 | J47: rokwzgl=5 i lp=340 | K47: rokwzgl=6 i lp=340 | L47: rokwzgl=7 i lp=340 | M47: rokwzgl=8 i lp=340 | N47: rokwzgl=9 i lp=340 | O47: rokwzgl=10 i lp=340 | P47: rokwzgl=11 i lp=340 | Q47: rokwzgl=12 i lp=340 | R47: rokwzgl=13 i lp=340 | S47: rokwzgl=14 i lp=340 | T47: rokwzgl=15 i lp=340 | U47: rokwzgl=16 i lp=340 | V47: rokwzgl=17 i lp=340 | W47: rokwzgl=18 i lp=340 | X47: rokwzgl=19 i lp=340 | Y47: rokwzgl=20 i lp=340 | Z47: rokwzgl=21 i lp=340 | AA47: rokwzgl=22 i lp=340 | AB47: rokwzgl=23 i lp=340 | AC47: rokwzgl=24 i lp=340 | AD47: rokwzgl=25 i lp=340 | AE47: rokwzgl=26 i lp=340 | AF47: rokwzgl=27 i lp=340 | AG47: rokwzgl=28 i lp=340 | AH47: rokwzgl=29 i lp=340
A48: 350 | B48: 6 | C48: Kwota długu | D48: rokwzgl=0 i lp=350 | E48: rokwzgl=0 i lp=350 | F48: rokwzgl=1 i lp=350 | G48: rokwzgl=2 i lp=350 | H48: rokwzgl=3 i lp=350 | I48: rokwzgl=4 i lp=350 | J48: rokwzgl=5 i lp=350 | K48: rokwzgl=6 i lp=350 | L48: rokwzgl=7 i lp=350 | M48: rokwzgl=8 i lp=350 | N48: rokwzgl=9 i lp=350 | O48: rokwzgl=10 i lp=350 | P48: rokwzgl=11 i lp=350 | Q48: rokwzgl=12 i lp=350 | R48: rokwzgl=13 i lp=350 | S48: rokwzgl=14 i lp=350 | T48: rokwzgl=15 i lp=350 | U48: rokwzgl=16 i lp=350 | V48: rokwzgl=17 i lp=350 | W48: rokwzgl=18 i lp=350 | X48: rokwzgl=19 i lp=350 | Y48: rokwzgl=20 i lp=350 | Z48: rokwzgl=21 i lp=350 | AA48: rokwzgl=22 i lp=350 | AB48: rokwzgl=23 i lp=350 | AC48: rokwzgl=24 i lp=350 | AD48: rokwzgl=25 i lp=350 | AE48: rokwzgl=26 i lp=350 | AF48: rokwzgl=27 i lp=350 | AG48: rokwzgl=28 i lp=350 | AH48: rokwzgl=29 i lp=350
A49: 400 | B49: 7 | C49: Kwota zobowiązań wynikających z przejęcia przez jednostkę samorządu terytorialnego zobowiązań po likwidowanych i przekształcanych jednostkach zaliczanych do sektora finansów publicznych | D49: rokwzgl=0 i lp=400 | E49: rokwzgl=0 i lp=400 | F49: rokwzgl=1 i lp=400 | G49: rokwzgl=2 i lp=400 | H49: rokwzgl=3 i lp=400 | I49: rokwzgl=4 i lp=400 | J49: rokwzgl=5 i lp=400 | K49: rokwzgl=6 i lp=400 | L49: rokwzgl=7 i lp=400 | M49: rokwzgl=8 i lp=400 | N49: rokwzgl=9 i lp=400 | O49: rokwzgl=10 i lp=400 | P49: rokwzgl=11 i lp=400 | Q49: rokwzgl=12 i lp=400 | R49: rokwzgl=13 i lp=400 | S49: rokwzgl=14 i lp=400 | T49: rokwzgl=15 i lp=400 | U49: rokwzgl=16 i lp=400 | V49: rokwzgl=17 i lp=400 | W49: rokwzgl=18 i lp=400 | X49: rokwzgl=19 i lp=400 | Y49: rokwzgl=20 i lp=400 | Z49: rokwzgl=21 i lp=400 | AA49: rokwzgl=22 i lp=400 | AB49: rokwzgl=23 i lp=400 | AC49: rokwzgl=24 i lp=400 | AD49: rokwzgl=25 i lp=400 | AE49: rokwzgl=26 i lp=400 | AF49: rokwzgl=27 i lp=400 | AG49: rokwzgl=28 i lp=400 | AH49: rokwzgl=29 i lp=400
A50: 410 | B50: 8 | C50: Relacja zrównoważenia wydatków bieżących, o której mowa w art. 242 ustawy | D50: rokwzgl=0 i lp=410 | E50: rokwzgl=0 i lp=410 | F50: rokwzgl=1 i lp=410 | G50: rokwzgl=2 i lp=410 | H50: rokwzgl=3 i lp=410 | I50: rokwzgl=4 i lp=410 | J50: rokwzgl=5 i lp=410 | K50: rokwzgl=6 i lp=410 | L50: rokwzgl=7 i lp=410 | M50: rokwzgl=8 i lp=410 | N50: rokwzgl=9 i lp=410 | O50: rokwzgl=10 i lp=410 | P50: rokwzgl=11 i lp=410 | Q50: rokwzgl=12 i lp=410 | R50: rokwzgl=13 i lp=410 | S50: rokwzgl=14 i lp=410 | T50: rokwzgl=15 i lp=410 | U50: rokwzgl=16 i lp=410 | V50: rokwzgl=17 i lp=410 | W50: rokwzgl=18 i lp=410 | X50: rokwzgl=19 i lp=410 | Y50: rokwzgl=20 i lp=410 | Z50: rokwzgl=21 i lp=410 | AA50: rokwzgl=22 i lp=410 | AB50: rokwzgl=23 i lp=410 | AC50: rokwzgl=24 i lp=410 | AD50: rokwzgl=25 i lp=410 | AE50: rokwzgl=26 i lp=410 | AF50: rokwzgl=27 i lp=410 | AG50: rokwzgl=28 i lp=410 | AH50: rokwzgl=29 i lp=410
A51: 420 | B51: 8.1 | C51: Różnica między dochodami bieżącymi a wydatkami bieżącymi | D51: rokwzgl=0 i lp=420 | E51: rokwzgl=0 i lp=420 | F51: rokwzgl=1 i lp=420 | G51: rokwzgl=2 i lp=420 | H51: rokwzgl=3 i lp=420 | I51: rokwzgl=4 i lp=420 | J51: rokwzgl=5 i lp=420 | K51: rokwzgl=6 i lp=420 | L51: rokwzgl=7 i lp=420 | M51: rokwzgl=8 i lp=420 | N51: rokwzgl=9 i lp=420 | O51: rokwzgl=10 i lp=420 | P51: rokwzgl=11 i lp=420 | Q51: rokwzgl=12 i lp=420 | R51: rokwzgl=13 i lp=420 | S51: rokwzgl=14 i lp=420 | T51: rokwzgl=15 i lp=420 | U51: rokwzgl=16 i lp=420 | V51: rokwzgl=17 i lp=420 | W51: rokwzgl=18 i lp=420 | X51: rokwzgl=19 i lp=420 | Y51: rokwzgl=20 i lp=420 | Z51: rokwzgl=21 i lp=420 | AA51: rokwzgl=22 i lp=420 | AB51: rokwzgl=23 i lp=420 | AC51: rokwzgl=24 i lp=420 | AD51: rokwzgl=25 i lp=420 | AE51: rokwzgl=26 i lp=420 | AF51: rokwzgl=27 i lp=420 | AG51: rokwzgl=28 i lp=420 | AH51: rokwzgl=29 i lp=420
A52: 430 | B52: 8.2 | C52: Różnica między dochodami bieżącymi, skorygowanymi o środki a wydatkami bieżącymi, pomniejszonymi o wydatki | D52: rokwzgl=0 i lp=430 | E52: rokwzgl=0 i lp=430 | F52: rokwzgl=1 i lp=430 | G52: rokwzgl=2 i lp=430 | H52: rokwzgl=3 i lp=430 | I52: rokwzgl=4 i lp=430 | J52: rokwzgl=5 i lp=430 | K52: rokwzgl=6 i lp=430 | L52: rokwzgl=7 i lp=430 | M52: rokwzgl=8 i lp=430 | N52: rokwzgl=9 i lp=430 | O52: rokwzgl=10 i lp=430 | P52: rokwzgl=11 i lp=430 | Q52: rokwzgl=12 i lp=430 | R52: rokwzgl=13 i lp=430 | S52: rokwzgl=14 i lp=430 | T52: rokwzgl=15 i lp=430 | U52: rokwzgl=16 i lp=430 | V52: rokwzgl=17 i lp=430 | W52: rokwzgl=18 i lp=430 | X52: rokwzgl=19 i lp=430 | Y52: rokwzgl=20 i lp=430 | Z52: rokwzgl=21 i lp=430 | AA52: rokwzgl=22 i lp=430 | AB52: rokwzgl=23 i lp=430 | AC52: rokwzgl=24 i lp=430 | AD52: rokwzgl=25 i lp=430 | AE52: rokwzgl=26 i lp=430 | AF52: rokwzgl=27 i lp=430 | AG52: rokwzgl=28 i lp=430 | AH52: rokwzgl=29 i lp=430
A53: 440 | B53: 9 | C53: Wskaźnik spłaty zobowiązań | D53: rokwzgl=0 i lp=440 | E53: rokwzgl=0 i lp=440 | F53: rokwzgl=1 i lp=440 | G53: rokwzgl=2 i lp=440 | H53: rokwzgl=3 i lp=440 | I53: rokwzgl=4 i lp=440 | J53: rokwzgl=5 i lp=440 | K53: rokwzgl=6 i lp=440 | L53: rokwzgl=7 i lp=440 | M53: rokwzgl=8 i lp=440 | N53: rokwzgl=9 i lp=440 | O53: rokwzgl=10 i lp=440 | P53: rokwzgl=11 i lp=440 | Q53: rokwzgl=12 i lp=440 | R53: rokwzgl=13 i lp=440 | S53: rokwzgl=14 i lp=440 | T53: rokwzgl=15 i lp=440 | U53: rokwzgl=16 i lp=440 | V53: rokwzgl=17 i lp=440 | W53: rokwzgl=18 i lp=440 | X53: rokwzgl=19 i lp=440 | Y53: rokwzgl=20 i lp=440 | Z53: rokwzgl=21 i lp=440 | AA53: rokwzgl=22 i lp=440 | AB53: rokwzgl=23 i lp=440 | AC53: rokwzgl=24 i lp=440 | AD53: rokwzgl=25 i lp=440 | AE53: rokwzgl=26 i lp=440 | AF53: rokwzgl=27 i lp=440 | AG53: rokwzgl=28 i lp=440 | AH53: rokwzgl=29 i lp=440
A54: 470 | B54: 9.1 | C54: Wskaźnik planowanej łącznej kwoty spłaty zobowiązań, o której mowa w art. 243 ust. 1 ustawy do dochodów, bez uwzględnienia zobowiązań związku współtworzonego przez jednostkę samorządu terytorialnego i bez uwzględnienia ustawowych wyłączeń przypadających na dany rok. | D54: rokwzgl=0 i lp=470 | E54: rokwzgl=0 i lp=470 | F54: rokwzgl=1 i lp=470 | G54: rokwzgl=2 i lp=470 | H54: rokwzgl=3 i lp=470 | I54: rokwzgl=4 i lp=470 | J54: rokwzgl=5 i lp=470 | K54: rokwzgl=6 i lp=470 | L54: rokwzgl=7 i lp=470 | M54: rokwzgl=8 i lp=470 | N54: rokwzgl=9 i lp=470 | O54: rokwzgl=10 i lp=470 | P54: rokwzgl=11 i lp=470 | Q54: rokwzgl=12 i lp=470 | R54: rokwzgl=13 i lp=470 | S54: rokwzgl=14 i lp=470 | T54: rokwzgl=15 i lp=470 | U54: rokwzgl=16 i lp=470 | V54: rokwzgl=17 i lp=470 | W54: rokwzgl=18 i lp=470 | X54: rokwzgl=19 i lp=470 | Y54: rokwzgl=20 i lp=470 | Z54: rokwzgl=21 i lp=470 | AA54: rokwzgl=22 i lp=470 | AB54: rokwzgl=23 i lp=470 | AC54: rokwzgl=24 i lp=470 | AD54: rokwzgl=25 i lp=470 | AE54: rokwzgl=26 i lp=470 | AF54: rokwzgl=27 i lp=470 | AG54: rokwzgl=28 i lp=470 | AH54: rokwzgl=29 i lp=470
A55: 480 | B55: 9.2 | C55: Wskaźnik planowanej łącznej kwoty spłaty zobowiązań, o której mowa w art. 243 ust. 1 ustawy do dochodów, bez uwzględnienia zobowiązań związku współtworzonego przez jednostkę samorządu terytorialnego, po uwzględnieniu ustawowych wyłączeń przypadających na dany rok. | D55: rokwzgl=0 i lp=480 | E55: rokwzgl=0 i lp=480 | F55: rokwzgl=1 i lp=480 | G55: rokwzgl=2 i lp=480 | H55: rokwzgl=3 i lp=480 | I55: rokwzgl=4 i lp=480 | J55: rokwzgl=5 i lp=480 | K55: rokwzgl=6 i lp=480 | L55: rokwzgl=7 i lp=480 | M55: rokwzgl=8 i lp=480 | N55: rokwzgl=9 i lp=480 | O55: rokwzgl=10 i lp=480 | P55: rokwzgl=11 i lp=480 | Q55: rokwzgl=12 i lp=480 | R55: rokwzgl=13 i lp=480 | S55: rokwzgl=14 i lp=480 | T55: rokwzgl=15 i lp=480 | U55: rokwzgl=16 i lp=480 | V55: rokwzgl=17 i lp=480 | W55: rokwzgl=18 i lp=480 | X55: rokwzgl=19 i lp=480 | Y55: rokwzgl=20 i lp=480 | Z55: rokwzgl=21 i lp=480 | AA55: rokwzgl=22 i lp=480 | AB55: rokwzgl=23 i lp=480 | AC55: rokwzgl=24 i lp=480 | AD55: rokwzgl=25 i lp=480 | AE55: rokwzgl=26 i lp=480 | AF55: rokwzgl=27 i lp=480 | AG55: rokwzgl=28 i lp=480 | AH55: rokwzgl=29 i lp=480
A56: 490 | B56: 9.3 | C56: Kwota zobowiązań związku współtworzonego przez jednostkę samorządu terytorialnego przypadających do spłaty w danym roku budżetowym, podlegająca doliczeniu zgodnie z art. 244 ustawy | D56: =+"rokwzgl="&D$9&" i lp="&$A56 -> rokwzgl=0 i lp=490 | E56: rokwzgl=0 i lp=490 | F56: rokwzgl=1 i lp=490 | G56: rokwzgl=2 i lp=490 | H56: rokwzgl=3 i lp=490 | I56: rokwzgl=4 i lp=490 | J56: rokwzgl=5 i lp=490 | K56: rokwzgl=6 i lp=490 | L56: rokwzgl=7 i lp=490 | M56: rokwzgl=8 i lp=490 | N56: =+"rokwzgl="&N$9&" i lp="&$A56 -> rokwzgl=9 i lp=490 | O56: rokwzgl=10 i lp=490 | P56: rokwzgl=11 i lp=490 | Q56: rokwzgl=12 i lp=490 | R56: rokwzgl=13 i lp=490 | S56: rokwzgl=14 i lp=490 | T56: rokwzgl=15 i lp=490 | U56: rokwzgl=16 i lp=490 | V56: rokwzgl=17 i lp=490 | W56: rokwzgl=18 i lp=490 | X56: =+"rokwzgl="&X$9&" i lp="&$A56 -> rokwzgl=19 i lp=490 | Y56: rokwzgl=20 i lp=490 | Z56: rokwzgl=21 i lp=490 | AA56: rokwzgl=22 i lp=490 | AB56: rokwzgl=23 i lp=490 | AC56: rokwzgl=24 i lp=490 | AD56: rokwzgl=25 i lp=490 | AE56: rokwzgl=26 i lp=490 | AF56: rokwzgl=27 i lp=490 | AG56: rokwzgl=28 i lp=490 | AH56: rokwzgl=29 i lp=490
A57: 500 | B57: 9.4 | C57: Wskaźnik planowanej łącznej kwoty spłaty zobowiązań, o której mowa w art. 243 ust. 1 ustawy do dochodów, po uwzględnieniu zobowiązań związku współtworzonego przez jednostkę samorządu terytorialnego oraz po uwzględnieniu ustawowych wyłączeń przypadających na dany rok | D57: rokwzgl=0 i lp=500 | E57: rokwzgl=0 i lp=500 | F57: rokwzgl=1 i lp=500 | G57: rokwzgl=2 i lp=500 | H57: rokwzgl=3 i lp=500 | I57: rokwzgl=4 i lp=500 | J57: rokwzgl=5 i lp=500 | K57: rokwzgl=6 i lp=500 | L57: rokwzgl=7 i lp=500 | M57: rokwzgl=8 i lp=500 | N57: rokwzgl=9 i lp=500 | O57: rokwzgl=10 i lp=500 | P57: rokwzgl=11 i lp=500 | Q57: rokwzgl=12 i lp=500 | R57: rokwzgl=13 i lp=500 | S57: rokwzgl=14 i lp=500 | T57: rokwzgl=15 i lp=500 | U57: rokwzgl=16 i lp=500 | V57: rokwzgl=17 i lp=500 | W57: rokwzgl=18 i lp=500 | X57: rokwzgl=19 i lp=500 | Y57: rokwzgl=20 i lp=500 | Z57: rokwzgl=21 i lp=500 | AA57: rokwzgl=22 i lp=500 | AB57: rokwzgl=23 i lp=500 | AC57: rokwzgl=24 i lp=500 | AD57: rokwzgl=25 i lp=500 | AE57: rokwzgl=26 i lp=500 | AF57: rokwzgl=27 i lp=500 | AG57: rokwzgl=28 i lp=500 | AH57: rokwzgl=29 i lp=500
A58: 508 | B58: 9.5 | C58: Wskaźnik dochodów bieżących powiększonych o dochody ze sprzedaży majątku oraz pomniejszonych o wydatki bieżące, do dochodów budżetu, ustalony dla danego roku (wskaźnik jednoroczny) | D58: rokwzgl=0 i lp=508 | E58: rokwzgl=0 i lp=508 | F58: rokwzgl=1 i lp=508 | G58: rokwzgl=2 i lp=508 | H58: rokwzgl=3 i lp=508 | I58: rokwzgl=4 i lp=508 | J58: rokwzgl=5 i lp=508 | K58: rokwzgl=6 i lp=508 | L58: rokwzgl=7 i lp=508 | M58: rokwzgl=8 i lp=508 | N58: rokwzgl=9 i lp=508 | O58: rokwzgl=10 i lp=508 | P58: rokwzgl=11 i lp=508 | Q58: rokwzgl=12 i lp=508 | R58: rokwzgl=13 i lp=508 | S58: rokwzgl=14 i lp=508 | T58: rokwzgl=15 i lp=508 | U58: rokwzgl=16 i lp=508 | V58: rokwzgl=17 i lp=508 | W58: rokwzgl=18 i lp=508 | X58: rokwzgl=19 i lp=508 | Y58: rokwzgl=20 i lp=508 | Z58: rokwzgl=21 i lp=508 | AA58: rokwzgl=22 i lp=508 | AB58: rokwzgl=23 i lp=508 | AC58: rokwzgl=24 i lp=508 | AD58: rokwzgl=25 i lp=508 | AE58: rokwzgl=26 i lp=508 | AF58: rokwzgl=27 i lp=508 | AG58: rokwzgl=28 i lp=508 | AH58: rokwzgl=29 i lp=508
A59: 510 | B59: 9.6 | C59: Dopuszczalny wskaźnik spłaty zobowiązań określony w art. 243 ustawy, po uwzględnieniu ustawowych wyłączeń , obliczony w oparciu o plan 3 kwartału roku poprzedzającego pierwszy rok prognozy (wskaźnik ustalony w oparciu o średnią arytmetyczną z 3 poprzednich lat) | D59: rokwzgl=0 i lp=510 | E59: rokwzgl=0 i lp=510 | F59: rokwzgl=1 i lp=510 | G59: rokwzgl=2 i lp=510 | H59: rokwzgl=3 i lp=510 | I59: rokwzgl=4 i lp=510 | J59: rokwzgl=5 i lp=510 | K59: rokwzgl=6 i lp=510 | L59: rokwzgl=7 i lp=510 | M59: rokwzgl=8 i lp=510 | N59: rokwzgl=9 i lp=510 | O59: rokwzgl=10 i lp=510 | P59: rokwzgl=11 i lp=510 | Q59: rokwzgl=12 i lp=510 | R59: rokwzgl=13 i lp=510 | S59: rokwzgl=14 i lp=510 | T59: rokwzgl=15 i lp=510 | U59: rokwzgl=16 i lp=510 | V59: rokwzgl=17 i lp=510 | W59: rokwzgl=18 i lp=510 | X59: rokwzgl=19 i lp=510 | Y59: rokwzgl=20 i lp=510 | Z59: rokwzgl=21 i lp=510 | AA59: rokwzgl=22 i lp=510 | AB59: rokwzgl=23 i lp=510 | AC59: rokwzgl=24 i lp=510 | AD59: rokwzgl=25 i lp=510 | AE59: rokwzgl=26 i lp=510 | AF59: rokwzgl=27 i lp=510 | AG59: rokwzgl=28 i lp=510 | AH59: rokwzgl=29 i lp=510
A60: 520 | B60: 9.6.1 | C60: Dopuszczalny wskaźnik spłaty zobowiązań określony w art. 243 ustawy, po uwzględnieniu ustawowych wyłączeń, obliczony w oparciu o wykonanie roku poprzedzającego pierwszy rok prognozy (wskaźnik ustalony w oparciu o średnią arytmetyczną z 3 poprzednich lat) | D60: rokwzgl=0 i lp=520 | E60: rokwzgl=0 i lp=520 | F60: rokwzgl=1 i lp=520 | G60: rokwzgl=2 i lp=520 | H60: rokwzgl=3 i lp=520 | I60: rokwzgl=4 i lp=520 | J60: rokwzgl=5 i lp=520 | K60: rokwzgl=6 i lp=520 | L60: rokwzgl=7 i lp=520 | M60: rokwzgl=8 i lp=520 | N60: rokwzgl=9 i lp=520 | O60: rokwzgl=10 i lp=520 | P60: rokwzgl=11 i lp=520 | Q60: rokwzgl=12 i lp=520 | R60: rokwzgl=13 i lp=520 | S60: rokwzgl=14 i lp=520 | T60: rokwzgl=15 i lp=520 | U60: rokwzgl=16 i lp=520 | V60: rokwzgl=17 i lp=520 | W60: rokwzgl=18 i lp=520 | X60: rokwzgl=19 i lp=520 | Y60: rokwzgl=20 i lp=520 | Z60: rokwzgl=21 i lp=520 | AA60: rokwzgl=22 i lp=520 | AB60: rokwzgl=23 i lp=520 | AC60: rokwzgl=24 i lp=520 | AD60: rokwzgl=25 i lp=520 | AE60: rokwzgl=26 i lp=520 | AF60: rokwzgl=27 i lp=520 | AG60: rokwzgl=28 i lp=520 | AH60: rokwzgl=29 i lp=520
A61: 530 | B61: 9.7 | C61: Informacja o spełnieniu wskaźnika spłaty zobowiązań określonego w art. 243 ustawy, po uwzględnieniu zobowiązań związku współtworzonego przez jednostkę samorządu terytorialnego oraz po uwzględnieniu ustawowych wyłączeń, obliczonego w oparciu o plan 3 kwartałów roku poprzedzającego rok budżetowy | D61: rokwzgl=0 i lp=530 | E61: rokwzgl=0 i lp=530 | F61: rokwzgl=1 i lp=530 | G61: rokwzgl=2 i lp=530 | H61: rokwzgl=3 i lp=530 | I61: rokwzgl=4 i lp=530 | J61: rokwzgl=5 i lp=530 | K61: rokwzgl=6 i lp=530 | L61: rokwzgl=7 i lp=530 | M61: rokwzgl=8 i lp=530 | N61: rokwzgl=9 i lp=530 | O61: rokwzgl=10 i lp=530 | P61: rokwzgl=11 i lp=530 | Q61: rokwzgl=12 i lp=530 | R61: rokwzgl=13 i lp=530 | S61: rokwzgl=14 i lp=530 | T61: rokwzgl=15 i lp=530 | U61: rokwzgl=16 i lp=530 | V61: rokwzgl=17 i lp=530 | W61: rokwzgl=18 i lp=530 | X61: rokwzgl=19 i lp=530 | Y61: rokwzgl=20 i lp=530 | Z61: rokwzgl=21 i lp=530 | AA61: rokwzgl=22 i lp=530 | AB61: rokwzgl=23 i lp=530 | AC61: rokwzgl=24 i lp=530 | AD61: rokwzgl=25 i lp=530 | AE61: rokwzgl=26 i lp=530 | AF61: rokwzgl=27 i lp=530 | AG61: rokwzgl=28 i lp=530 | AH61: rokwzgl=29 i lp=530
A62: 540 | B62: 9.7.1 | C62: Informacja o spełnieniu wskaźnika spłaty zobowiązań określonego w art. 243 ustawy, po uwzględnieniu zobowiązań związku współtworzonego przez jednostkę samorządu terytorialnego oraz po uwzględnieniu ustawowych wyłączeń, obliczonego w oparciu o wykonanie roku poprzedzającego rok budżetowy | D62: rokwzgl=0 i lp=540 | E62: rokwzgl=0 i lp=540 | F62: rokwzgl=1 i lp=540 | G62: rokwzgl=2 i lp=540 | H62: rokwzgl=3 i lp=540 | I62: rokwzgl=4 i lp=540 | J62: rokwzgl=5 i lp=540 | K62: rokwzgl=6 i lp=540 | L62: rokwzgl=7 i lp=540 | M62: rokwzgl=8 i lp=540 | N62: rokwzgl=9 i lp=540 | O62: rokwzgl=10 i lp=540 | P62: rokwzgl=11 i lp=540 | Q62: rokwzgl=12 i lp=540 | R62: rokwzgl=13 i lp=540 | S62: rokwzgl=14 i lp=540 | T62: rokwzgl=15 i lp=540 | U62: rokwzgl=16 i lp=540 | V62: rokwzgl=17 i lp=540 | W62: rokwzgl=18 i lp=540 | X62: rokwzgl=19 i lp=540 | Y62: rokwzgl=20 i lp=540 | Z62: rokwzgl=21 i lp=540 | AA62: rokwzgl=22 i lp=540 | AB62: rokwzgl=23 i lp=540 | AC62: rokwzgl=24 i lp=540 | AD62: rokwzgl=25 i lp=540 | AE62: rokwzgl=26 i lp=540 | AF62: rokwzgl=27 i lp=540 | AG62: rokwzgl=28 i lp=540 | AH62: rokwzgl=29 i lp=540
A63: 550 | B63: 10 | C63: Przeznaczenie prognozowanej nadwyżki budżetowej, w tym na: | D63: rokwzgl=0 i lp=550 | E63: rokwzgl=0 i lp=550 | F63: rokwzgl=1 i lp=550 | G63: rokwzgl=2 i lp=550 | H63: rokwzgl=3 i lp=550 | I63: rokwzgl=4 i lp=550 | J63: rokwzgl=5 i lp=550 | K63: rokwzgl=6 i lp=550 | L63: rokwzgl=7 i lp=550 | M63: rokwzgl=8 i lp=550 | N63: rokwzgl=9 i lp=550 | O63: rokwzgl=10 i lp=550 | P63: rokwzgl=11 i lp=550 | Q63: rokwzgl=12 i lp=550 | R63: rokwzgl=13 i lp=550 | S63: rokwzgl=14 i lp=550 | T63: rokwzgl=15 i lp=550 | U63: rokwzgl=16 i lp=550 | V63: rokwzgl=17 i lp=550 | W63: rokwzgl=18 i lp=550 | X63: rokwzgl=19 i lp=550 | Y63: rokwzgl=20 i lp=550 | Z63: rokwzgl=21 i lp=550 | AA63: rokwzgl=22 i lp=550 | AB63: rokwzgl=23 i lp=550 | AC63: rokwzgl=24 i lp=550 | AD63: rokwzgl=25 i lp=550 | AE63: rokwzgl=26 i lp=550 | AF63: rokwzgl=27 i lp=550 | AG63: rokwzgl=28 i lp=550 | AH63: rokwzgl=29 i lp=550
A64: 560 | B64: 10.1 | C64: Spłaty kredytów, pożyczek i wykup papierów wartościowych | D64: rokwzgl=0 i lp=560 | E64: rokwzgl=0 i lp=560 | F64: rokwzgl=1 i lp=560 | G64: rokwzgl=2 i lp=560 | H64: rokwzgl=3 i lp=560 | I64: rokwzgl=4 i lp=560 | J64: rokwzgl=5 i lp=560 | K64: rokwzgl=6 i lp=560 | L64: rokwzgl=7 i lp=560 | M64: rokwzgl=8 i lp=560 | N64: rokwzgl=9 i lp=560 | O64: rokwzgl=10 i lp=560 | P64: rokwzgl=11 i lp=560 | Q64: rokwzgl=12 i lp=560 | R64: rokwzgl=13 i lp=560 | S64: rokwzgl=14 i lp=560 | T64: rokwzgl=15 i lp=560 | U64: rokwzgl=16 i lp=560 | V64: rokwzgl=17 i lp=560 | W64: rokwzgl=18 i lp=560 | X64: rokwzgl=19 i lp=560 | Y64: rokwzgl=20 i lp=560 | Z64: rokwzgl=21 i lp=560 | AA64: rokwzgl=22 i lp=560 | AB64: rokwzgl=23 i lp=560 | AC64: rokwzgl=24 i lp=560 | AD64: rokwzgl=25 i lp=560 | AE64: rokwzgl=26 i lp=560 | AF64: rokwzgl=27 i lp=560 | AG64: rokwzgl=28 i lp=560 | AH64: rokwzgl=29 i lp=560
A65: 570 | B65: 11 | C65: Informacje uzupełniające o wybranych rodzajach wydatków budżetowych | D65: rokwzgl=0 i lp=570 | E65: rokwzgl=0 i lp=570 | F65: rokwzgl=1 i lp=570 | G65: rokwzgl=2 i lp=570 | H65: rokwzgl=3 i lp=570 | I65: rokwzgl=4 i lp=570 | J65: rokwzgl=5 i lp=570 | K65: rokwzgl=6 i lp=570 | L65: rokwzgl=7 i lp=570 | M65: rokwzgl=8 i lp=570 | N65: rokwzgl=9 i lp=570 | O65: rokwzgl=10 i lp=570 | P65: rokwzgl=11 i lp=570 | Q65: rokwzgl=12 i lp=570 | R65: rokwzgl=13 i lp=570 | S65: rokwzgl=14 i lp=570 | T65: rokwzgl=15 i lp=570 | U65: rokwzgl=16 i lp=570 | V65: rokwzgl=17 i lp=570 | W65: rokwzgl=18 i lp=570 | X65: rokwzgl=19 i lp=570 | Y65: rokwzgl=20 i lp=570 | Z65: rokwzgl=21 i lp=570 | AA65: rokwzgl=22 i lp=570 | AB65: rokwzgl=23 i lp=570 | AC65: rokwzgl=24 i lp=570 | AD65: rokwzgl=25 i lp=570 | AE65: rokwzgl=26 i lp=570 | AF65: rokwzgl=27 i lp=570 | AG65: rokwzgl=28 i lp=570 | AH65: rokwzgl=29 i lp=570
A66: 580 | B66: 11.1 | C66: Wydatki bieżące na wynagrodzenia i składki od nich naliczane | D66: =+"rokwzgl="&D$9&" i lp="&$A66 -> rokwzgl=0 i lp=580 | E66: rokwzgl=0 i lp=580 | F66: rokwzgl=1 i lp=580 | G66: rokwzgl=2 i lp=580 | H66: rokwzgl=3 i lp=580 | I66: rokwzgl=4 i lp=580 | J66: rokwzgl=5 i lp=580 | K66: rokwzgl=6 i lp=580 | L66: rokwzgl=7 i lp=580 | M66: rokwzgl=8 i lp=580 | N66: =+"rokwzgl="&N$9&" i lp="&$A66 -> rokwzgl=9 i lp=580 | O66: rokwzgl=10 i lp=580 | P66: rokwzgl=11 i lp=580 | Q66: rokwzgl=12 i lp=580 | R66: rokwzgl=13 i lp=580 | S66: rokwzgl=14 i lp=580 | T66: rokwzgl=15 i lp=580 | U66: rokwzgl=16 i lp=580 | V66: rokwzgl=17 i lp=580 | W66: rokwzgl=18 i lp=580 | X66: =+"rokwzgl="&X$9&" i lp="&$A66 -> rokwzgl=19 i lp=580 | Y66: rokwzgl=20 i lp=580 | Z66: rokwzgl=21 i lp=580 | AA66: rokwzgl=22 i lp=580 | AB66: rokwzgl=23 i lp=580 | AC66: rokwzgl=24 i lp=580 | AD66: rokwzgl=25 i lp=580 | AE66: rokwzgl=26 i lp=580 | AF66: rokwzgl=27 i lp=580 | AG66: rokwzgl=28 i lp=580 | AH66: rokwzgl=29 i lp=580
A67: 590 | B67: 11.2 | C67: Wydatki związane z funkcjonowaniem organów jednostki samorządu terytorialnego | D67: rokwzgl=0 i lp=590 | E67: rokwzgl=0 i lp=590 | F67: rokwzgl=1 i lp=590 | G67: rokwzgl=2 i lp=590 | H67: rokwzgl=3 i lp=590 | I67: rokwzgl=4 i lp=590 | J67: rokwzgl=5 i lp=590 | K67: rokwzgl=6 i lp=590 | L67: rokwzgl=7 i lp=590 | M67: rokwzgl=8 i lp=590 | N67: rokwzgl=9 i lp=590 | O67: rokwzgl=10 i lp=590 | P67: rokwzgl=11 i lp=590 | Q67: rokwzgl=12 i lp=590 | R67: rokwzgl=13 i lp=590 | S67: rokwzgl=14 i lp=590 | T67: rokwzgl=15 i lp=590 | U67: rokwzgl=16 i lp=590 | V67: rokwzgl=17 i lp=590 | W67: rokwzgl=18 i lp=590 | X67: rokwzgl=19 i lp=590 | Y67: rokwzgl=20 i lp=590 | Z67: rokwzgl=21 i lp=590 | AA67: rokwzgl=22 i lp=590 | AB67: rokwzgl=23 i lp=590 | AC67: rokwzgl=24 i lp=590 | AD67: rokwzgl=25 i lp=590 | AE67: rokwzgl=26 i lp=590 | AF67: rokwzgl=27 i lp=590 | AG67: rokwzgl=28 i lp=590 | AH67: rokwzgl=29 i lp=590
A68: 600 | B68: 11.3 | C68: Wydatki objęte limitem, o którym mowa w art. 226 ust. 3 pkt 4 ustawy | D68: rokwzgl=0 i lp=600 | E68: rokwzgl=0 i lp=600 | F68: rokwzgl=1 i lp=600 | G68: rokwzgl=2 i lp=600 | H68: rokwzgl=3 i lp=600 | I68: rokwzgl=4 i lp=600 | J68: rokwzgl=5 i lp=600 | K68: rokwzgl=6 i lp=600 | L68: rokwzgl=7 i lp=600 | M68: rokwzgl=8 i lp=600 | N68: rokwzgl=9 i lp=600 | O68: rokwzgl=10 i lp=600 | P68: rokwzgl=11 i lp=600 | Q68: rokwzgl=12 i lp=600 | R68: rokwzgl=13 i lp=600 | S68: rokwzgl=14 i lp=600 | T68: rokwzgl=15 i lp=600 | U68: rokwzgl=16 i lp=600 | V68: rokwzgl=17 i lp=600 | W68: rokwzgl=18 i lp=600 | X68: rokwzgl=19 i lp=600 | Y68: rokwzgl=20 i lp=600 | Z68: rokwzgl=21 i lp=600 | AA68: rokwzgl=22 i lp=600 | AB68: rokwzgl=23 i lp=600 | AC68: rokwzgl=24 i lp=600 | AD68: rokwzgl=25 i lp=600 | AE68: rokwzgl=26 i lp=600 | AF68: rokwzgl=27 i lp=600 | AG68: rokwzgl=28 i lp=600 | AH68: rokwzgl=29 i lp=600
A69: 610 | B69: 11.3.1 | C69: bieżące | D69: rokwzgl=0 i lp=610 | E69: rokwzgl=0 i lp=610 | F69: rokwzgl=1 i lp=610 | G69: rokwzgl=2 i lp=610 | H69: rokwzgl=3 i lp=610 | I69: rokwzgl=4 i lp=610 | J69: rokwzgl=5 i lp=610 | K69: rokwzgl=6 i lp=610 | L69: rokwzgl=7 i lp=610 | M69: rokwzgl=8 i lp=610 | N69: rokwzgl=9 i lp=610 | O69: rokwzgl=10 i lp=610 | P69: rokwzgl=11 i lp=610 | Q69: rokwzgl=12 i lp=610 | R69: rokwzgl=13 i lp=610 | S69: rokwzgl=14 i lp=610 | T69: rokwzgl=15 i lp=610 | U69: rokwzgl=16 i lp=610 | V69: rokwzgl=17 i lp=610 | W69: rokwzgl=18 i lp=610 | X69: rokwzgl=19 i lp=610 | Y69: rokwzgl=20 i lp=610 | Z69: rokwzgl=21 i lp=610 | AA69: rokwzgl=22 i lp=610 | AB69: rokwzgl=23 i lp=610 | AC69: rokwzgl=24 i lp=610 | AD69: rokwzgl=25 i lp=610 | AE69: rokwzgl=26 i lp=610 | AF69: rokwzgl=27 i lp=610 | AG69: rokwzgl=28 i lp=610 | AH69: rokwzgl=29 i lp=610
A70: 620 | B70: 11.3.2 | C70: majątkowe | D70: rokwzgl=0 i lp=620 | E70: rokwzgl=0 i lp=620 | F70: rokwzgl=1 i lp=620 | G70: rokwzgl=2 i lp=620 | H70: rokwzgl=3 i lp=620 | I70: rokwzgl=4 i lp=620 | J70: rokwzgl=5 i lp=620 | K70: rokwzgl=6 i lp=620 | L70: rokwzgl=7 i lp=620 | M70: rokwzgl=8 i lp=620 | N70: rokwzgl=9 i lp=620 | O70: rokwzgl=10 i lp=620 | P70: rokwzgl=11 i lp=620 | Q70: rokwzgl=12 i lp=620 | R70: rokwzgl=13 i lp=620 | S70: rokwzgl=14 i lp=620 | T70: rokwzgl=15 i lp=620 | U70: rokwzgl=16 i lp=620 | V70: rokwzgl=17 i lp=620 | W70: rokwzgl=18 i lp=620 | X70: rokwzgl=19 i lp=620 | Y70: rokwzgl=20 i lp=620 | Z70: rokwzgl=21 i lp=620 | AA70: rokwzgl=22 i lp=620 | AB70: rokwzgl=23 i lp=620 | AC70: rokwzgl=24 i lp=620 | AD70: rokwzgl=25 i lp=620 | AE70: rokwzgl=26 i lp=620 | AF70: rokwzgl=27 i lp=620 | AG70: rokwzgl=28 i lp=620 | AH70: rokwzgl=29 i lp=620
A71: 630 | B71: 11.4 | C71: Wydatki inwestycyjne kontynuowane | D71: rokwzgl=0 i lp=630 | E71: rokwzgl=0 i lp=630 | F71: rokwzgl=1 i lp=630 | G71: rokwzgl=2 i lp=630 | H71: rokwzgl=3 i lp=630 | I71: rokwzgl=4 i lp=630 | J71: rokwzgl=5 i lp=630 | K71: rokwzgl=6 i lp=630 | L71: rokwzgl=7 i lp=630 | M71: rokwzgl=8 i lp=630 | N71: rokwzgl=9 i lp=630 | O71: rokwzgl=10 i lp=630 | P71: rokwzgl=11 i lp=630 | Q71: rokwzgl=12 i lp=630 | R71: rokwzgl=13 i lp=630 | S71: rokwzgl=14 i lp=630 | T71: rokwzgl=15 i lp=630 | U71: rokwzgl=16 i lp=630 | V71: rokwzgl=17 i lp=630 | W71: rokwzgl=18 i lp=630 | X71: rokwzgl=19 i lp=630 | Y71: rokwzgl=20 i lp=630 | Z71: rokwzgl=21 i lp=630 | AA71: rokwzgl=22 i lp=630 | AB71: rokwzgl=23 i lp=630 | AC71: rokwzgl=24 i lp=630 | AD71: rokwzgl=25 i lp=630 | AE71: rokwzgl=26 i lp=630 | AF71: rokwzgl=27 i lp=630 | AG71: rokwzgl=28 i lp=630 | AH71: rokwzgl=29 i lp=630
A72: 640 | B72: 11.5 | C72: Nowe wydatki inwestycyjne | D72: rokwzgl=0 i lp=640 | E72: rokwzgl=0 i lp=640 | F72: rokwzgl=1 i lp=640 | G72: rokwzgl=2 i lp=640 | H72: rokwzgl=3 i lp=640 | I72: rokwzgl=4 i lp=640 | J72: rokwzgl=5 i lp=640 | K72: rokwzgl=6 i lp=640 | L72: rokwzgl=7 i lp=640 | M72: rokwzgl=8 i lp=640 | N72: rokwzgl=9 i lp=640 | O72: rokwzgl=10 i lp=640 | P72: rokwzgl=11 i lp=640 | Q72: rokwzgl=12 i lp=640 | R72: rokwzgl=13 i lp=640 | S72: rokwzgl=14 i lp=640 | T72: rokwzgl=15 i lp=640 | U72: rokwzgl=16 i lp=640 | V72: rokwzgl=17 i lp=640 | W72: rokwzgl=18 i lp=640 | X72: rokwzgl=19 i lp=640 | Y72: rokwzgl=20 i lp=640 | Z72: rokwzgl=21 i lp=640 | AA72: rokwzgl=22 i lp=640 | AB72: rokwzgl=23 i lp=640 | AC72: rokwzgl=24 i lp=640 | AD72: rokwzgl=25 i lp=640 | AE72: rokwzgl=26 i lp=640 | AF72: rokwzgl=27 i lp=640 | AG72: rokwzgl=28 i lp=640 | AH72: rokwzgl=29 i lp=640
A73: 650 | B73: 11.6 | C73: Wydatki majątkowe w formie dotacji | D73: rokwzgl=0 i lp=650 | E73: rokwzgl=0 i lp=650 | F73: rokwzgl=1 i lp=650 | G73: rokwzgl=2 i lp=650 | H73: rokwzgl=3 i lp=650 | I73: rokwzgl=4 i lp=650 | J73: rokwzgl=5 i lp=650 | K73: rokwzgl=6 i lp=650 | L73: rokwzgl=7 i lp=650 | M73: rokwzgl=8 i lp=650 | N73: rokwzgl=9 i lp=650 | O73: rokwzgl=10 i lp=650 | P73: rokwzgl=11 i lp=650 | Q73: rokwzgl=12 i lp=650 | R73: rokwzgl=13 i lp=650 | S73: rokwzgl=14 i lp=650 | T73: rokwzgl=15 i lp=650 | U73: rokwzgl=16 i lp=650 | V73: rokwzgl=17 i lp=650 | W73: rokwzgl=18 i lp=650 | X73: rokwzgl=19 i lp=650 | Y73: rokwzgl=20 i lp=650 | Z73: rokwzgl=21 i lp=650 | AA73: rokwzgl=22 i lp=650 | AB73: rokwzgl=23 i lp=650 | AC73: rokwzgl=24 i lp=650 | AD73: rokwzgl=25 i lp=650 | AE73: rokwzgl=26 i lp=650 | AF73: rokwzgl=27 i lp=650 | AG73: rokwzgl=28 i lp=650 | AH73: rokwzgl=29 i lp=650
A74: 660 | B74: 12 | C74: Finansowanie programów, projektów lub zadań realizowanych z udziałem środków, o których mowa w art. 5 ust. 1 pkt 2 i 3 ustawy | D74: rokwzgl=0 i lp=660 | E74: rokwzgl=0 i lp=660 | F74: rokwzgl=1 i lp=660 | G74: rokwzgl=2 i lp=660 | H74: rokwzgl=3 i lp=660 | I74: rokwzgl=4 i lp=660 | J74: rokwzgl=5 i lp=660 | K74: rokwzgl=6 i lp=660 | L74: rokwzgl=7 i lp=660 | M74: rokwzgl=8 i lp=660 | N74: rokwzgl=9 i lp=660 | O74: rokwzgl=10 i lp=660 | P74: rokwzgl=11 i lp=660 | Q74: rokwzgl=12 i lp=660 | R74: rokwzgl=13 i lp=660 | S74: rokwzgl=14 i lp=660 | T74: rokwzgl=15 i lp=660 | U74: rokwzgl=16 i lp=660 | V74: rokwzgl=17 i lp=660 | W74: rokwzgl=18 i lp=660 | X74: rokwzgl=19 i lp=660 | Y74: rokwzgl=20 i lp=660 | Z74: rokwzgl=21 i lp=660 | AA74: rokwzgl=22 i lp=660 | AB74: rokwzgl=23 i lp=660 | AC74: rokwzgl=24 i lp=660 | AD74: rokwzgl=25 i lp=660 | AE74: rokwzgl=26 i lp=660 | AF74: rokwzgl=27 i lp=660 | AG74: rokwzgl=28 i lp=660 | AH74: rokwzgl=29 i lp=660
A75: 670 | B75: 12.1 | C75: Dochody bieżące na programy, projekty lub zadania finansowane z udziałem środków, o których mowa w art. 5 ust. 1 pkt 2 i 3 ustawy | D75: rokwzgl=0 i lp=670 | E75: rokwzgl=0 i lp=670 | F75: rokwzgl=1 i lp=670 | G75: rokwzgl=2 i lp=670 | H75: rokwzgl=3 i lp=670 | I75: rokwzgl=4 i lp=670 | J75: rokwzgl=5 i lp=670 | K75: rokwzgl=6 i lp=670 | L75: rokwzgl=7 i lp=670 | M75: rokwzgl=8 i lp=670 | N75: rokwzgl=9 i lp=670 | O75: rokwzgl=10 i lp=670 | P75: rokwzgl=11 i lp=670 | Q75: rokwzgl=12 i lp=670 | R75: rokwzgl=13 i lp=670 | S75: rokwzgl=14 i lp=670 | T75: rokwzgl=15 i lp=670 | U75: rokwzgl=16 i lp=670 | V75: rokwzgl=17 i lp=670 | W75: rokwzgl=18 i lp=670 | X75: rokwzgl=19 i lp=670 | Y75: rokwzgl=20 i lp=670 | Z75: rokwzgl=21 i lp=670 | AA75: rokwzgl=22 i lp=670 | AB75: rokwzgl=23 i lp=670 | AC75: rokwzgl=24 i lp=670 | AD75: rokwzgl=25 i lp=670 | AE75: rokwzgl=26 i lp=670 | AF75: rokwzgl=27 i lp=670 | AG75: rokwzgl=28 i lp=670 | AH75: rokwzgl=29 i lp=670
A76: 680 | B76: 12.1.1 | C76: - w tym środki określone w art. 5 ust. 1 pkt 2 ustawy | D76: =+"rokwzgl="&D$9&" i lp="&$A76 -> rokwzgl=0 i lp=680 | E76: rokwzgl=0 i lp=680 | F76: rokwzgl=1 i lp=680 | G76: rokwzgl=2 i lp=680 | H76: rokwzgl=3 i lp=680 | I76: rokwzgl=4 i lp=680 | J76: rokwzgl=5 i lp=680 | K76: rokwzgl=6 i lp=680 | L76: rokwzgl=7 i lp=680 | M76: rokwzgl=8 i lp=680 | N76: rokwzgl=9 i lp=680 | O76: rokwzgl=10 i lp=680 | P76: rokwzgl=11 i lp=680 | Q76: rokwzgl=12 i lp=680 | R76: rokwzgl=13 i lp=680 | S76: rokwzgl=14 i lp=680 | T76: rokwzgl=15 i lp=680 | U76: rokwzgl=16 i lp=680 | V76: rokwzgl=17 i lp=680 | W76: rokwzgl=18 i lp=680 | X76: rokwzgl=19 i lp=680 | Y76: rokwzgl=20 i lp=680 | Z76: rokwzgl=21 i lp=680 | AA76: rokwzgl=22 i lp=680 | AB76: rokwzgl=23 i lp=680 | AC76: rokwzgl=24 i lp=680 | AD76: rokwzgl=25 i lp=680 | AE76: rokwzgl=26 i lp=680 | AF76: rokwzgl=27 i lp=680 | AG76: rokwzgl=28 i lp=680 | AH76: =+"rokwzgl="&AH$9&" i lp="&$A76 -> rokwzgl=29 i lp=680
A77: 690 | B77: 12.1.1.1 | C77: - w tym środki określone w art. 5 ust. 1 pkt 2 ustawy wynikające wyłącznie z zawartych umów na realizację programu, projektu lub zadania | D77: =+"rokwzgl="&D$9&" i lp="&$A77 -> rokwzgl=0 i lp=690 | E77: =+"rokwzgl="&E$9&" i lp="&$A77 -> rokwzgl=0 i lp=690 | F77: =+"rokwzgl="&F$9&" i lp="&$A77 -> rokwzgl=1 i lp=690 | G77: =+"rokwzgl="&G$9&" i lp="&$A77 -> rokwzgl=2 i lp=690 | H77: =+"rokwzgl="&H$9&" i lp="&$A77 -> rokwzgl=3 i lp=690 | I77: =+"rokwzgl="&I$9&" i lp="&$A77 -> rokwzgl=4 i lp=690 | J77: rokwzgl=5 i lp=690 | K77: rokwzgl=6 i lp=690 | L77: rokwzgl=7 i lp=690 | M77: rokwzgl=8 i lp=690 | N77: rokwzgl=9 i lp=690 | O77: rokwzgl=10 i lp=690 | P77: rokwzgl=11 i lp=690 | Q77: rokwzgl=12 i lp=690 | R77: rokwzgl=13 i lp=690 | S77: rokwzgl=14 i lp=690 | T77: rokwzgl=15 i lp=690 | U77: rokwzgl=16 i lp=690 | V77: rokwzgl=17 i lp=690 | W77: rokwzgl=18 i lp=690 | X77: rokwzgl=19 i lp=690 | Y77: rokwzgl=20 i lp=690 | Z77: rokwzgl=21 i lp=690 | AA77: rokwzgl=22 i lp=690 | AB77: rokwzgl=23 i lp=690 | AC77: rokwzgl=24 i lp=690 | AD77: rokwzgl=25 i lp=690 | AE77: rokwzgl=26 i lp=690 | AF77: rokwzgl=27 i lp=690 | AG77: rokwzgl=28 i lp=690 | AH77: rokwzgl=29 i lp=690
A78: 700 | B78: 12.2 | C78: Dochody majątkowe na programy, projekty lub zadania finansowane z udziałem środków, o których mowa w art. 5 ust. 1 pkt 2 i 3 ustawy | D78: =+"rokwzgl="&D$9&" i lp="&$A78 -> rokwzgl=0 i lp=700 | E78: rokwzgl=0 i lp=700 | F78: rokwzgl=1 i lp=700 | G78: rokwzgl=2 i lp=700 | H78: rokwzgl=3 i lp=700 | I78: rokwzgl=4 i lp=700 | J78: rokwzgl=5 i lp=700 | K78: rokwzgl=6 i lp=700 | L78: rokwzgl=7 i lp=700 | M78: rokwzgl=8 i lp=700 | N78: rokwzgl=9 i lp=700 | O78: rokwzgl=10 i lp=700 | P78: rokwzgl=11 i lp=700 | Q78: rokwzgl=12 i lp=700 | R78: rokwzgl=13 i lp=700 | S78: rokwzgl=14 i lp=700 | T78: rokwzgl=15 i lp=700 | U78: rokwzgl=16 i lp=700 | V78: rokwzgl=17 i lp=700 | W78: rokwzgl=18 i lp=700 | X78: rokwzgl=19 i lp=700 | Y78: rokwzgl=20 i lp=700 | Z78: rokwzgl=21 i lp=700 | AA78: rokwzgl=22 i lp=700 | AB78: rokwzgl=23 i lp=700 | AC78: rokwzgl=24 i lp=700 | AD78: rokwzgl=25 i lp=700 | AE78: rokwzgl=26 i lp=700 | AF78: rokwzgl=27 i lp=700 | AG78: rokwzgl=28 i lp=700 | AH78: rokwzgl=29 i lp=700
A79: 710 | B79: 12.2.1 | C79: - w tym środki określone w art. 5 ust. 1 pkt 2 ustawy | D79: rokwzgl=0 i lp=710 | E79: rokwzgl=0 i lp=710 | F79: rokwzgl=1 i lp=710 | G79: rokwzgl=2 i lp=710 | H79: rokwzgl=3 i lp=710 | I79: rokwzgl=4 i lp=710 | J79: rokwzgl=5 i lp=710 | K79: rokwzgl=6 i lp=710 | L79: rokwzgl=7 i lp=710 | M79: rokwzgl=8 i lp=710 | N79: rokwzgl=9 i lp=710 | O79: rokwzgl=10 i lp=710 | P79: rokwzgl=11 i lp=710 | Q79: rokwzgl=12 i lp=710 | R79: rokwzgl=13 i lp=710 | S79: rokwzgl=14 i lp=710 | T79: rokwzgl=15 i lp=710 | U79: rokwzgl=16 i lp=710 | V79: rokwzgl=17 i lp=710 | W79: rokwzgl=18 i lp=710 | X79: rokwzgl=19 i lp=710 | Y79: rokwzgl=20 i lp=710 | Z79: rokwzgl=21 i lp=710 | AA79: rokwzgl=22 i lp=710 | AB79: rokwzgl=23 i lp=710 | AC79: rokwzgl=24 i lp=710 | AD79: rokwzgl=25 i lp=710 | AE79: rokwzgl=26 i lp=710 | AF79: rokwzgl=27 i lp=710 | AG79: rokwzgl=28 i lp=710 | AH79: rokwzgl=29 i lp=710
A80: 720 | B80: 12.2.1.1 | C80: - w tym środki określone w art. 5 ust. 1 pkt 2 ustawy wynikające wyłącznie z zawartych umów na realizację programu, projektu lub zadania | D80: rokwzgl=0 i lp=720 | E80: rokwzgl=0 i lp=720 | F80: rokwzgl=1 i lp=720 | G80: rokwzgl=2 i lp=720 | H80: rokwzgl=3 i lp=720 | I80: rokwzgl=4 i lp=720 | J80: rokwzgl=5 i lp=720 | K80: rokwzgl=6 i lp=720 | L80: rokwzgl=7 i lp=720 | M80: rokwzgl=8 i lp=720 | N80: rokwzgl=9 i lp=720 | O80: rokwzgl=10 i lp=720 | P80: rokwzgl=11 i lp=720 | Q80: rokwzgl=12 i lp=720 | R80: rokwzgl=13 i lp=720 | S80: rokwzgl=14 i lp=720 | T80: rokwzgl=15 i lp=720 | U80: rokwzgl=16 i lp=720 | V80: rokwzgl=17 i lp=720 | W80: rokwzgl=18 i lp=720 | X80: rokwzgl=19 i lp=720 | Y80: rokwzgl=20 i lp=720 | Z80: rokwzgl=21 i lp=720 | AA80: rokwzgl=22 i lp=720 | AB80: rokwzgl=23 i lp=720 | AC80: rokwzgl=24 i lp=720 | AD80: rokwzgl=25 i lp=720 | AE80: rokwzgl=26 i lp=720 | AF80: rokwzgl=27 i lp=720 | AG80: rokwzgl=28 i lp=720 | AH80: rokwzgl=29 i lp=720
A81: 730 | B81: 12.3 | C81: Wydatki bieżące na programy, projekty lub zadania finansowane z udziałem środków, o których mowa w art. 5 ust. 1 pkt 2 i 3 ustawy | D81: rokwzgl=0 i lp=730 | E81: rokwzgl=0 i lp=730 | F81: rokwzgl=1 i lp=730 | G81: rokwzgl=2 i lp=730 | H81: rokwzgl=3 i lp=730 | I81: rokwzgl=4 i lp=730 | J81: rokwzgl=5 i lp=730 | K81: rokwzgl=6 i lp=730 | L81: rokwzgl=7 i lp=730 | M81: rokwzgl=8 i lp=730 | N81: rokwzgl=9 i lp=730 | O81: rokwzgl=10 i lp=730 | P81: rokwzgl=11 i lp=730 | Q81: rokwzgl=12 i lp=730 | R81: rokwzgl=13 i lp=730 | S81: rokwzgl=14 i lp=730 | T81: rokwzgl=15 i lp=730 | U81: rokwzgl=16 i lp=730 | V81: rokwzgl=17 i lp=730 | W81: rokwzgl=18 i lp=730 | X81: rokwzgl=19 i lp=730 | Y81: rokwzgl=20 i lp=730 | Z81: rokwzgl=21 i lp=730 | AA81: rokwzgl=22 i lp=730 | AB81: rokwzgl=23 i lp=730 | AC81: rokwzgl=24 i lp=730 | AD81: rokwzgl=25 i lp=730 | AE81: rokwzgl=26 i lp=730 | AF81: rokwzgl=27 i lp=730 | AG81: rokwzgl=28 i lp=730 | AH81: rokwzgl=29 i lp=730
A82: 740 | B82: 12.3.1 | C82: - w tym finansowane środkami określonymi w art. 5 ust. 1 pkt 2 ustawy | D82: rokwzgl=0 i lp=740 | E82: rokwzgl=0 i lp=740 | F82: rokwzgl=1 i lp=740 | G82: rokwzgl=2 i lp=740 | H82: rokwzgl=3 i lp=740 | I82: rokwzgl=4 i lp=740 | J82: rokwzgl=5 i lp=740 | K82: rokwzgl=6 i lp=740 | L82: rokwzgl=7 i lp=740 | M82: rokwzgl=8 i lp=740 | N82: rokwzgl=9 i lp=740 | O82: rokwzgl=10 i lp=740 | P82: rokwzgl=11 i lp=740 | Q82: rokwzgl=12 i lp=740 | R82: rokwzgl=13 i lp=740 | S82: rokwzgl=14 i lp=740 | T82: rokwzgl=15 i lp=740 | U82: rokwzgl=16 i lp=740 | V82: rokwzgl=17 i lp=740 | W82: rokwzgl=18 i lp=740 | X82: rokwzgl=19 i lp=740 | Y82: rokwzgl=20 i lp=740 | Z82: rokwzgl=21 i lp=740 | AA82: rokwzgl=22 i lp=740 | AB82: rokwzgl=23 i lp=740 | AC82: rokwzgl=24 i lp=740 | AD82: rokwzgl=25 i lp=740 | AE82: rokwzgl=26 i lp=740 | AF82: rokwzgl=27 i lp=740 | AG82: rokwzgl=28 i lp=740 | AH82: rokwzgl=29 i lp=740
A83: 750 | B83: 12.3.2 | C83: Wydatki bieżące na realizację programu, projektu lub zadania wynikające wyłącznie z zawartych umów z podmiotem dysponującym środkami, o których mowa w art. 5 ust. 1 pkt 2 ustawy | D83: rokwzgl=0 i lp=750 | E83: rokwzgl=0 i lp=750 | F83: rokwzgl=1 i lp=750 | G83: rokwzgl=2 i lp=750 | H83: rokwzgl=3 i lp=750 | I83: rokwzgl=4 i lp=750 | J83: rokwzgl=5 i lp=750 | K83: rokwzgl=6 i lp=750 | L83: rokwzgl=7 i lp=750 | M83: rokwzgl=8 i lp=750 | N83: rokwzgl=9 i lp=750 | O83: rokwzgl=10 i lp=750 | P83: rokwzgl=11 i lp=750 | Q83: rokwzgl=12 i lp=750 | R83: rokwzgl=13 i lp=750 | S83: rokwzgl=14 i lp=750 | T83: rokwzgl=15 i lp=750 | U83: rokwzgl=16 i lp=750 | V83: rokwzgl=17 i lp=750 | W83: rokwzgl=18 i lp=750 | X83: rokwzgl=19 i lp=750 | Y83: rokwzgl=20 i lp=750 | Z83: rokwzgl=21 i lp=750 | AA83: rokwzgl=22 i lp=750 | AB83: rokwzgl=23 i lp=750 | AC83: rokwzgl=24 i lp=750 | AD83: rokwzgl=25 i lp=750 | AE83: rokwzgl=26 i lp=750 | AF83: rokwzgl=27 i lp=750 | AG83: rokwzgl=28 i lp=750 | AH83: rokwzgl=29 i lp=750
A84: 760 | B84: 12.4 | C84: Wydatki majątkowe na programy, projekty lub zadania finansowane z udziałem środków, o których mowa w art. 5 ust. 1 pkt 2 i 3 ustawy | D84: rokwzgl=0 i lp=760 | E84: rokwzgl=0 i lp=760 | F84: rokwzgl=1 i lp=760 | G84: rokwzgl=2 i lp=760 | H84: rokwzgl=3 i lp=760 | I84: rokwzgl=4 i lp=760 | J84: rokwzgl=5 i lp=760 | K84: rokwzgl=6 i lp=760 | L84: rokwzgl=7 i lp=760 | M84: rokwzgl=8 i lp=760 | N84: rokwzgl=9 i lp=760 | O84: rokwzgl=10 i lp=760 | P84: rokwzgl=11 i lp=760 | Q84: rokwzgl=12 i lp=760 | R84: rokwzgl=13 i lp=760 | S84: rokwzgl=14 i lp=760 | T84: rokwzgl=15 i lp=760 | U84: rokwzgl=16 i lp=760 | V84: rokwzgl=17 i lp=760 | W84: rokwzgl=18 i lp=760 | X84: rokwzgl=19 i lp=760 | Y84: rokwzgl=20 i lp=760 | Z84: rokwzgl=21 i lp=760 | AA84: rokwzgl=22 i lp=760 | AB84: rokwzgl=23 i lp=760 | AC84: rokwzgl=24 i lp=760 | AD84: rokwzgl=25 i lp=760 | AE84: rokwzgl=26 i lp=760 | AF84: rokwzgl=27 i lp=760 | AG84: rokwzgl=28 i lp=760 | AH84: rokwzgl=29 i lp=760
A85: 761 | B85: 12.4.1 | C85: - w tym finansowane środkami określonymi w art. 5 ust. 1 pkt 2 ustawy | D85: rokwzgl=0 i lp=761 | E85: rokwzgl=0 i lp=761 | F85: rokwzgl=1 i lp=761 | G85: rokwzgl=2 i lp=761 | H85: rokwzgl=3 i lp=761 | I85: rokwzgl=4 i lp=761 | J85: rokwzgl=5 i lp=761 | K85: rokwzgl=6 i lp=761 | L85: rokwzgl=7 i lp=761 | M85: rokwzgl=8 i lp=761 | N85: rokwzgl=9 i lp=761 | O85: rokwzgl=10 i lp=761 | P85: rokwzgl=11 i lp=761 | Q85: rokwzgl=12 i lp=761 | R85: rokwzgl=13 i lp=761 | S85: rokwzgl=14 i lp=761 | T85: rokwzgl=15 i lp=761 | U85: rokwzgl=16 i lp=761 | V85: rokwzgl=17 i lp=761 | W85: rokwzgl=18 i lp=761 | X85: rokwzgl=19 i lp=761 | Y85: rokwzgl=20 i lp=761 | Z85: rokwzgl=21 i lp=761 | AA85: rokwzgl=22 i lp=761 | AB85: rokwzgl=23 i lp=761 | AC85: rokwzgl=24 i lp=761 | AD85: rokwzgl=25 i lp=761 | AE85: rokwzgl=26 i lp=761 | AF85: rokwzgl=27 i lp=761 | AG85: rokwzgl=28 i lp=761 | AH85: rokwzgl=29 i lp=761
A86: 762 | B86: 12.4.2 | C86: Wydatki majątkowe na realizację programu, projektu lub zadania wynikające wyłącznie z zawartych umów z podmiotem dysponującym środkami, o których mowa w art. 5 ust. 1 pkt 2 ustawy | D86: rokwzgl=0 i lp=762 | E86: rokwzgl=0 i lp=762 | F86: rokwzgl=1 i lp=762 | G86: rokwzgl=2 i lp=762 | H86: rokwzgl=3 i lp=762 | I86: rokwzgl=4 i lp=762 | J86: rokwzgl=5 i lp=762 | K86: rokwzgl=6 i lp=762 | L86: rokwzgl=7 i lp=762 | M86: rokwzgl=8 i lp=762 | N86: rokwzgl=9 i lp=762 | O86: rokwzgl=10 i lp=762 | P86: rokwzgl=11 i lp=762 | Q86: rokwzgl=12 i lp=762 | R86: rokwzgl=13 i lp=762 | S86: rokwzgl=14 i lp=762 | T86: rokwzgl=15 i lp=762 | U86: rokwzgl=16 i lp=762 | V86: rokwzgl=17 i lp=762 | W86: rokwzgl=18 i lp=762 | X86: rokwzgl=19 i lp=762 | Y86: rokwzgl=20 i lp=762 | Z86: rokwzgl=21 i lp=762 | AA86: rokwzgl=22 i lp=762 | AB86: rokwzgl=23 i lp=762 | AC86: rokwzgl=24 i lp=762 | AD86: rokwzgl=25 i lp=762 | AE86: rokwzgl=26 i lp=762 | AF86: rokwzgl=27 i lp=762 | AG86: rokwzgl=28 i lp=762 | AH86: rokwzgl=29 i lp=762
A87: 763 | B87: 12.5 | C87: Wydatki na wkład krajowy w związku z umową na realizację programu, projektu lub zadania finansowanego z udziałem środków, o których mowa w art. 5 ust. 1 pkt 2 ustawy bez względu na stopień finansowania tymi środkami | D87: rokwzgl=0 i lp=763 | E87: rokwzgl=0 i lp=763 | F87: rokwzgl=1 i lp=763 | G87: rokwzgl=2 i lp=763 | H87: rokwzgl=3 i lp=763 | I87: rokwzgl=4 i lp=763 | J87: rokwzgl=5 i lp=763 | K87: rokwzgl=6 i lp=763 | L87: rokwzgl=7 i lp=763 | M87: rokwzgl=8 i lp=763 | N87: rokwzgl=9 i lp=763 | O87: rokwzgl=10 i lp=763 | P87: rokwzgl=11 i lp=763 | Q87: rokwzgl=12 i lp=763 | R87: rokwzgl=13 i lp=763 | S87: rokwzgl=14 i lp=763 | T87: rokwzgl=15 i lp=763 | U87: rokwzgl=16 i lp=763 | V87: rokwzgl=17 i lp=763 | W87: rokwzgl=18 i lp=763 | X87: rokwzgl=19 i lp=763 | Y87: rokwzgl=20 i lp=763 | Z87: rokwzgl=21 i lp=763 | AA87: rokwzgl=22 i lp=763 | AB87: rokwzgl=23 i lp=763 | AC87: rokwzgl=24 i lp=763 | AD87: rokwzgl=25 i lp=763 | AE87: rokwzgl=26 i lp=763 | AF87: rokwzgl=27 i lp=763 | AG87: rokwzgl=28 i lp=763 | AH87: rokwzgl=29 i lp=763
A88: 764 | B88: 12.5.1 | C88: w tym w związku z już zawartą umową na realizację programu, projektu lub zadania | D88: rokwzgl=0 i lp=764 | E88: rokwzgl=0 i lp=764 | F88: rokwzgl=1 i lp=764 | G88: rokwzgl=2 i lp=764 | H88: rokwzgl=3 i lp=764 | I88: rokwzgl=4 i lp=764 | J88: rokwzgl=5 i lp=764 | K88: rokwzgl=6 i lp=764 | L88: rokwzgl=7 i lp=764 | M88: rokwzgl=8 i lp=764 | N88: rokwzgl=9 i lp=764 | O88: rokwzgl=10 i lp=764 | P88: rokwzgl=11 i lp=764 | Q88: rokwzgl=12 i lp=764 | R88: rokwzgl=13 i lp=764 | S88: rokwzgl=14 i lp=764 | T88: rokwzgl=15 i lp=764 | U88: rokwzgl=16 i lp=764 | V88: rokwzgl=17 i lp=764 | W88: rokwzgl=18 i lp=764 | X88: rokwzgl=19 i lp=764 | Y88: rokwzgl=20 i lp=764 | Z88: rokwzgl=21 i lp=764 | AA88: rokwzgl=22 i lp=764 | AB88: rokwzgl=23 i lp=764 | AC88: rokwzgl=24 i lp=764 | AD88: rokwzgl=25 i lp=764 | AE88: rokwzgl=26 i lp=764 | AF88: rokwzgl=27 i lp=764 | AG88: rokwzgl=28 i lp=764 | AH88: rokwzgl=29 i lp=764
A89: 765 | B89: 12.6 | C89: Wydatki na wkład krajowy w związku z zawartą po dniu 1 stycznia 2013 r. umową na realizację programu, projektu lub zadania finansowanego w co najmniej 60% środkami, o których mowa w art. 5 ust. 1 pkt 2 ustawy | D89: rokwzgl=0 i lp=765 | E89: rokwzgl=0 i lp=765 | F89: rokwzgl=1 i lp=765 | G89: rokwzgl=2 i lp=765 | H89: rokwzgl=3 i lp=765 | I89: rokwzgl=4 i lp=765 | J89: rokwzgl=5 i lp=765 | K89: rokwzgl=6 i lp=765 | L89: rokwzgl=7 i lp=765 | M89: rokwzgl=8 i lp=765 | N89: rokwzgl=9 i lp=765 | O89: rokwzgl=10 i lp=765 | P89: rokwzgl=11 i lp=765 | Q89: rokwzgl=12 i lp=765 | R89: rokwzgl=13 i lp=765 | S89: rokwzgl=14 i lp=765 | T89: rokwzgl=15 i lp=765 | U89: rokwzgl=16 i lp=765 | V89: rokwzgl=17 i lp=765 | W89: rokwzgl=18 i lp=765 | X89: rokwzgl=19 i lp=765 | Y89: rokwzgl=20 i lp=765 | Z89: rokwzgl=21 i lp=765 | AA89: rokwzgl=22 i lp=765 | AB89: rokwzgl=23 i lp=765 | AC89: rokwzgl=24 i lp=765 | AD89: rokwzgl=25 i lp=765 | AE89: rokwzgl=26 i lp=765 | AF89: rokwzgl=27 i lp=765 | AG89: rokwzgl=28 i lp=765 | AH89: rokwzgl=29 i lp=765
A90: 766 | B90: 12.6.1 | C90: w tym w związku z już zawartą umową na realizację programu, projektu lub zadania | D90: rokwzgl=0 i lp=766 | E90: rokwzgl=0 i lp=766 | F90: rokwzgl=1 i lp=766 | G90: rokwzgl=2 i lp=766 | H90: rokwzgl=3 i lp=766 | I90: rokwzgl=4 i lp=766 | J90: rokwzgl=5 i lp=766 | K90: rokwzgl=6 i lp=766 | L90: rokwzgl=7 i lp=766 | M90: rokwzgl=8 i lp=766 | N90: rokwzgl=9 i lp=766 | O90: rokwzgl=10 i lp=766 | P90: rokwzgl=11 i lp=766 | Q90: rokwzgl=12 i lp=766 | R90: rokwzgl=13 i lp=766 | S90: rokwzgl=14 i lp=766 | T90: rokwzgl=15 i lp=766 | U90: rokwzgl=16 i lp=766 | V90: rokwzgl=17 i lp=766 | W90: rokwzgl=18 i lp=766 | X90: rokwzgl=19 i lp=766 | Y90: rokwzgl=20 i lp=766 | Z90: rokwzgl=21 i lp=766 | AA90: rokwzgl=22 i lp=766 | AB90: rokwzgl=23 i lp=766 | AC90: rokwzgl=24 i lp=766 | AD90: rokwzgl=25 i lp=766 | AE90: rokwzgl=26 i lp=766 | AF90: rokwzgl=27 i lp=766 | AG90: rokwzgl=28 i lp=766 | AH90: rokwzgl=29 i lp=766
A91: 767 | B91: 12.7 | C91: Przychody z tytułu kredytów, pożyczek, emisji papierów wartościowych powstające w związku z umową na realizację programu, projektu lub zadania finansowanego z udziałem środków, o których mowa w art. 5 ust. 1 pkt 2 ustawy bez względu na stopień finansowania tymi środkami | D91: rokwzgl=0 i lp=767 | E91: rokwzgl=0 i lp=767 | F91: rokwzgl=1 i lp=767 | G91: rokwzgl=2 i lp=767 | H91: rokwzgl=3 i lp=767 | I91: rokwzgl=4 i lp=767 | J91: rokwzgl=5 i lp=767 | K91: rokwzgl=6 i lp=767 | L91: rokwzgl=7 i lp=767 | M91: rokwzgl=8 i lp=767 | N91: rokwzgl=9 i lp=767 | O91: rokwzgl=10 i lp=767 | P91: rokwzgl=11 i lp=767 | Q91: rokwzgl=12 i lp=767 | R91: rokwzgl=13 i lp=767 | S91: rokwzgl=14 i lp=767 | T91: rokwzgl=15 i lp=767 | U91: rokwzgl=16 i lp=767 | V91: rokwzgl=17 i lp=767 | W91: rokwzgl=18 i lp=767 | X91: rokwzgl=19 i lp=767 | Y91: rokwzgl=20 i lp=767 | Z91: rokwzgl=21 i lp=767 | AA91: rokwzgl=22 i lp=767 | AB91: rokwzgl=23 i lp=767 | AC91: rokwzgl=24 i lp=767 | AD91: rokwzgl=25 i lp=767 | AE91: rokwzgl=26 i lp=767 | AF91: rokwzgl=27 i lp=767 | AG91: rokwzgl=28 i lp=767 | AH91: rokwzgl=29 i lp=767
A92: 768 | B92: 12.7.1 | C92: w tym w związku z już zawartą umową na realizację programu, projektu lub zadania | D92: rokwzgl=0 i lp=768 | E92: rokwzgl=0 i lp=768 | F92: rokwzgl=1 i lp=768 | G92: rokwzgl=2 i lp=768 | H92: rokwzgl=3 i lp=768 | I92: rokwzgl=4 i lp=768 | J92: rokwzgl=5 i lp=768 | K92: rokwzgl=6 i lp=768 | L92: rokwzgl=7 i lp=768 | M92: rokwzgl=8 i lp=768 | N92: rokwzgl=9 i lp=768 | O92: rokwzgl=10 i lp=768 | P92: rokwzgl=11 i lp=768 | Q92: rokwzgl=12 i lp=768 | R92: rokwzgl=13 i lp=768 | S92: rokwzgl=14 i lp=768 | T92: rokwzgl=15 i lp=768 | U92: rokwzgl=16 i lp=768 | V92: rokwzgl=17 i lp=768 | W92: rokwzgl=18 i lp=768 | X92: rokwzgl=19 i lp=768 | Y92: rokwzgl=20 i lp=768 | Z92: rokwzgl=21 i lp=768 | AA92: rokwzgl=22 i lp=768 | AB92: rokwzgl=23 i lp=768 | AC92: rokwzgl=24 i lp=768 | AD92: rokwzgl=25 i lp=768 | AE92: rokwzgl=26 i lp=768 | AF92: rokwzgl=27 i lp=768 | AG92: rokwzgl=28 i lp=768 | AH92: rokwzgl=29 i lp=768
A93: 769 | B93: 12.8 | C93: Przychody z tytułu kredytów, pożyczek, emisji papierów wartościowych powstające w związku z zawartą po dniu 1 stycznia 2013 r. umową na realizację programu, projektu lub zadania finansowanego w co najmniej 60% środkami, o których mowa w art. 5 ust. 1 pkt 2 ustawy | D93: rokwzgl=0 i lp=769 | E93: rokwzgl=0 i lp=769 | F93: rokwzgl=1 i lp=769 | G93: rokwzgl=2 i lp=769 | H93: rokwzgl=3 i lp=769 | I93: rokwzgl=4 i lp=769 | J93: rokwzgl=5 i lp=769 | K93: rokwzgl=6 i lp=769 | L93: rokwzgl=7 i lp=769 | M93: rokwzgl=8 i lp=769 | N93: rokwzgl=9 i lp=769 | O93: rokwzgl=10 i lp=769 | P93: rokwzgl=11 i lp=769 | Q93: rokwzgl=12 i lp=769 | R93: rokwzgl=13 i lp=769 | S93: rokwzgl=14 i lp=769 | T93: rokwzgl=15 i lp=769 | U93: rokwzgl=16 i lp=769 | V93: rokwzgl=17 i lp=769 | W93: rokwzgl=18 i lp=769 | X93: rokwzgl=19 i lp=769 | Y93: rokwzgl=20 i lp=769 | Z93: rokwzgl=21 i lp=769 | AA93: rokwzgl=22 i lp=769 | AB93: rokwzgl=23 i lp=769 | AC93: rokwzgl=24 i lp=769 | AD93: rokwzgl=25 i lp=769 | AE93: rokwzgl=26 i lp=769 | AF93: rokwzgl=27 i lp=769 | AG93: rokwzgl=28 i lp=769 | AH93: rokwzgl=29 i lp=769
A94: 770 | B94: 12.8.1 | C94: w tym w związku z już zawartą umową na realizację programu, projektu lub zadania | D94: rokwzgl=0 i lp=770 | E94: rokwzgl=0 i lp=770 | F94: rokwzgl=1 i lp=770 | G94: rokwzgl=2 i lp=770 | H94: rokwzgl=3 i lp=770 | I94: rokwzgl=4 i lp=770 | J94: rokwzgl=5 i lp=770 | K94: rokwzgl=6 i lp=770 | L94: rokwzgl=7 i lp=770 | M94: rokwzgl=8 i lp=770 | N94: rokwzgl=9 i lp=770 | O94: rokwzgl=10 i lp=770 | P94: rokwzgl=11 i lp=770 | Q94: rokwzgl=12 i lp=770 | R94: rokwzgl=13 i lp=770 | S94: rokwzgl=14 i lp=770 | T94: rokwzgl=15 i lp=770 | U94: rokwzgl=16 i lp=770 | V94: rokwzgl=17 i lp=770 | W94: rokwzgl=18 i lp=770 | X94: rokwzgl=19 i lp=770 | Y94: rokwzgl=20 i lp=770 | Z94: rokwzgl=21 i lp=770 | AA94: rokwzgl=22 i lp=770 | AB94: rokwzgl=23 i lp=770 | AC94: rokwzgl=24 i lp=770 | AD94: rokwzgl=25 i lp=770 | AE94: rokwzgl=26 i lp=770 | AF94: rokwzgl=27 i lp=770 | AG94: rokwzgl=28 i lp=770 | AH94: rokwzgl=29 i lp=770
A95: 790 | B95: 13 | C95: Kwoty dotyczące przejęcia i spłaty zobowiązań po samodzielnych publicznych zakładach opieki zdrowotnej oraz pokrycia ujemnego wyniku | D95: rokwzgl=0 i lp=790 | E95: rokwzgl=0 i lp=790 | F95: rokwzgl=1 i lp=790 | G95: rokwzgl=2 i lp=790 | H95: rokwzgl=3 i lp=790 | I95: rokwzgl=4 i lp=790 | J95: rokwzgl=5 i lp=790 | K95: rokwzgl=6 i lp=790 | L95: rokwzgl=7 i lp=790 | M95: rokwzgl=8 i lp=790 | N95: rokwzgl=9 i lp=790 | O95: rokwzgl=10 i lp=790 | P95: rokwzgl=11 i lp=790 | Q95: rokwzgl=12 i lp=790 | R95: rokwzgl=13 i lp=790 | S95: rokwzgl=14 i lp=790 | T95: rokwzgl=15 i lp=790 | U95: rokwzgl=16 i lp=790 | V95: rokwzgl=17 i lp=790 | W95: rokwzgl=18 i lp=790 | X95: rokwzgl=19 i lp=790 | Y95: rokwzgl=20 i lp=790 | Z95: rokwzgl=21 i lp=790 | AA95: rokwzgl=22 i lp=790 | AB95: rokwzgl=23 i lp=790 | AC95: rokwzgl=24 i lp=790 | AD95: rokwzgl=25 i lp=790 | AE95: rokwzgl=26 i lp=790 | AF95: rokwzgl=27 i lp=790 | AG95: rokwzgl=28 i lp=790 | AH95: rokwzgl=29 i lp=790
A96: 800 | B96: 13.1 | C96: Kwota zobowiązań wynikających z przejęcia przez jednostkę samorządu terytorialnego zobowiązań po likwidowanych i przekształcanych samodzielnych zakładach opieki zdrowotnej | D96: rokwzgl=0 i lp=800 | E96: rokwzgl=0 i lp=800 | F96: rokwzgl=1 i lp=800 | G96: rokwzgl=2 i lp=800 | H96: rokwzgl=3 i lp=800 | I96: rokwzgl=4 i lp=800 | J96: rokwzgl=5 i lp=800 | K96: rokwzgl=6 i lp=800 | L96: rokwzgl=7 i lp=800 | M96: rokwzgl=8 i lp=800 | N96: rokwzgl=9 i lp=800 | O96: rokwzgl=10 i lp=800 | P96: rokwzgl=11 i lp=800 | Q96: rokwzgl=12 i lp=800 | R96: rokwzgl=13 i lp=800 | S96: rokwzgl=14 i lp=800 | T96: rokwzgl=15 i lp=800 | U96: rokwzgl=16 i lp=800 | V96: rokwzgl=17 i lp=800 | W96: rokwzgl=18 i lp=800 | X96: rokwzgl=19 i lp=800 | Y96: rokwzgl=20 i lp=800 | Z96: rokwzgl=21 i lp=800 | AA96: rokwzgl=22 i lp=800 | AB96: rokwzgl=23 i lp=800 | AC96: rokwzgl=24 i lp=800 | AD96: rokwzgl=25 i lp=800 | AE96: rokwzgl=26 i lp=800 | AF96: rokwzgl=27 i lp=800 | AG96: rokwzgl=28 i lp=800 | AH96: rokwzgl=29 i lp=800
A97: 810 | B97: 13.2 | C97: Dochody budżetowe z tytułu dotacji celowej z budżetu państwa, o której mowa w art. 196 ustawy z dnia 15 kwietnia 2011 r. o działalności leczniczej (Dz.U. Nr 112, poz. 654, z późn. zm.) | D97: rokwzgl=0 i lp=810 | E97: rokwzgl=0 i lp=810 | F97: rokwzgl=1 i lp=810 | G97: rokwzgl=2 i lp=810 | H97: rokwzgl=3 i lp=810 | I97: rokwzgl=4 i lp=810 | J97: rokwzgl=5 i lp=810 | K97: rokwzgl=6 i lp=810 | L97: rokwzgl=7 i lp=810 | M97: rokwzgl=8 i lp=810 | N97: rokwzgl=9 i lp=810 | O97: rokwzgl=10 i lp=810 | P97: rokwzgl=11 i lp=810 | Q97: rokwzgl=12 i lp=810 | R97: rokwzgl=13 i lp=810 | S97: rokwzgl=14 i lp=810 | T97: rokwzgl=15 i lp=810 | U97: rokwzgl=16 i lp=810 | V97: rokwzgl=17 i lp=810 | W97: rokwzgl=18 i lp=810 | X97: rokwzgl=19 i lp=810 | Y97: rokwzgl=20 i lp=810 | Z97: rokwzgl=21 i lp=810 | AA97: rokwzgl=22 i lp=810 | AB97: rokwzgl=23 i lp=810 | AC97: rokwzgl=24 i lp=810 | AD97: rokwzgl=25 i lp=810 | AE97: rokwzgl=26 i lp=810 | AF97: rokwzgl=27 i lp=810 | AG97: rokwzgl=28 i lp=810 | AH97: rokwzgl=29 i lp=810
A98: 820 | B98: 13.3 | C98: Wysokość zobowiązań podlegających umorzeniu, o którym mowa w art. 190 ustawy o działalności leczniczej | D98: rokwzgl=0 i lp=820 | E98: rokwzgl=0 i lp=820 | F98: rokwzgl=1 i lp=820 | G98: rokwzgl=2 i lp=820 | H98: rokwzgl=3 i lp=820 | I98: rokwzgl=4 i lp=820 | J98: rokwzgl=5 i lp=820 | K98: rokwzgl=6 i lp=820 | L98: rokwzgl=7 i lp=820 | M98: rokwzgl=8 i lp=820 | N98: rokwzgl=9 i lp=820 | O98: rokwzgl=10 i lp=820 | P98: rokwzgl=11 i lp=820 | Q98: rokwzgl=12 i lp=820 | R98: rokwzgl=13 i lp=820 | S98: rokwzgl=14 i lp=820 | T98: rokwzgl=15 i lp=820 | U98: rokwzgl=16 i lp=820 | V98: rokwzgl=17 i lp=820 | W98: rokwzgl=18 i lp=820 | X98: rokwzgl=19 i lp=820 | Y98: rokwzgl=20 i lp=820 | Z98: rokwzgl=21 i lp=820 | AA98: rokwzgl=22 i lp=820 | AB98: rokwzgl=23 i lp=820 | AC98: rokwzgl=24 i lp=820 | AD98: rokwzgl=25 i lp=820 | AE98: rokwzgl=26 i lp=820 | AF98: rokwzgl=27 i lp=820 | AG98: rokwzgl=28 i lp=820 | AH98: rokwzgl=29 i lp=820
A99: 830 | B99: 13.4 | C99: Wydatki na spłatę przejętych zobowiązań samodzielnego publicznego zakładu opieki zdrowotnej przekształconego na zasadach określonych w przepisach o działalności leczniczej | D99: rokwzgl=0 i lp=830 | E99: rokwzgl=0 i lp=830 | F99: rokwzgl=1 i lp=830 | G99: rokwzgl=2 i lp=830 | H99: rokwzgl=3 i lp=830 | I99: rokwzgl=4 i lp=830 | J99: rokwzgl=5 i lp=830 | K99: rokwzgl=6 i lp=830 | L99: rokwzgl=7 i lp=830 | M99: rokwzgl=8 i lp=830 | N99: rokwzgl=9 i lp=830 | O99: rokwzgl=10 i lp=830 | P99: rokwzgl=11 i lp=830 | Q99: rokwzgl=12 i lp=830 | R99: rokwzgl=13 i lp=830 | S99: rokwzgl=14 i lp=830 | T99: rokwzgl=15 i lp=830 | U99: rokwzgl=16 i lp=830 | V99: rokwzgl=17 i lp=830 | W99: rokwzgl=18 i lp=830 | X99: rokwzgl=19 i lp=830 | Y99: rokwzgl=20 i lp=830 | Z99: rokwzgl=21 i lp=830 | AA99: rokwzgl=22 i lp=830 | AB99: rokwzgl=23 i lp=830 | AC99: rokwzgl=24 i lp=830 | AD99: rokwzgl=25 i lp=830 | AE99: rokwzgl=26 i lp=830 | AF99: rokwzgl=27 i lp=830 | AG99: rokwzgl=28 i lp=830 | AH99: rokwzgl=29 i lp=830
A100: 840 | B100: 13.5 | C100: Wydatki na spłatę przejętych zobowiązań samodzielnego publicznego zakładu opieki zdrowotnej likwidowanego na zasadach określonych w przepisach o działalności leczniczej | D100: rokwzgl=0 i lp=840 | E100: rokwzgl=0 i lp=840 | F100: rokwzgl=1 i lp=840 | G100: rokwzgl=2 i lp=840 | H100: rokwzgl=3 i lp=840 | I100: rokwzgl=4 i lp=840 | J100: rokwzgl=5 i lp=840 | K100: rokwzgl=6 i lp=840 | L100: rokwzgl=7 i lp=840 | M100: rokwzgl=8 i lp=840 | N100: rokwzgl=9 i lp=840 | O100: rokwzgl=10 i lp=840 | P100: rokwzgl=11 i lp=840 | Q100: rokwzgl=12 i lp=840 | R100: rokwzgl=13 i lp=840 | S100: rokwzgl=14 i lp=840 | T100: rokwzgl=15 i lp=840 | U100: rokwzgl=16 i lp=840 | V100: rokwzgl=17 i lp=840 | W100: rokwzgl=18 i lp=840 | X100: rokwzgl=19 i lp=840 | Y100: =+"rokwzgl="&Y$9&" i lp="&$A100 -> rokwzgl=20 i lp=840 | Z100: rokwzgl=21 i lp=840 | AA100: rokwzgl=22 i lp=840 | AB100: rokwzgl=23 i lp=840 | AC100: rokwzgl=24 i lp=840 | AD100: rokwzgl=25 i lp=840 | AE100: rokwzgl=26 i lp=840 | AF100: rokwzgl=27 i lp=840 | AG100: rokwzgl=28 i lp=840 | AH100: rokwzgl=29 i lp=840
A101: 850 | B101: 13.6 | C101: Wydatki na spłatę zobowiązań samodzielnego publicznego zakładu opieki zdrowotnej przejętych do końca 2011 r. na podstawie przepisów o zakładach opieki zdrowotnej | D101: rokwzgl=0 i lp=850 | E101: rokwzgl=0 i lp=850 | F101: rokwzgl=1 i lp=850 | G101: rokwzgl=2 i lp=850 | H101: rokwzgl=3 i lp=850 | I101: rokwzgl=4 i lp=850 | J101: rokwzgl=5 i lp=850 | K101: rokwzgl=6 i lp=850 | L101: rokwzgl=7 i lp=850 | M101: rokwzgl=8 i lp=850 | N101: rokwzgl=9 i lp=850 | O101: rokwzgl=10 i lp=850 | P101: rokwzgl=11 i lp=850 | Q101: rokwzgl=12 i lp=850 | R101: rokwzgl=13 i lp=850 | S101: rokwzgl=14 i lp=850 | T101: rokwzgl=15 i lp=850 | U101: rokwzgl=16 i lp=850 | V101: rokwzgl=17 i lp=850 | W101: rokwzgl=18 i lp=850 | X101: rokwzgl=19 i lp=850 | Y101: rokwzgl=20 i lp=850 | Z101: rokwzgl=21 i lp=850 | AA101: rokwzgl=22 i lp=850 | AB101: rokwzgl=23 i lp=850 | AC101: rokwzgl=24 i lp=850 | AD101: rokwzgl=25 i lp=850 | AE101: rokwzgl=26 i lp=850 | AF101: rokwzgl=27 i lp=850 | AG101: rokwzgl=28 i lp=850 | AH101: rokwzgl=29 i lp=850
A102: 860 | B102: 13.7 | C102: Wydatki bieżące na pokrycie ujemnego wyniku finansowego samodzielnego publicznego zakładu opieki zdrowotnej | D102: rokwzgl=0 i lp=860 | E102: rokwzgl=0 i lp=860 | F102: rokwzgl=1 i lp=860 | G102: rokwzgl=2 i lp=860 | H102: rokwzgl=3 i lp=860 | I102: rokwzgl=4 i lp=860 | J102: rokwzgl=5 i lp=860 | K102: rokwzgl=6 i lp=860 | L102: rokwzgl=7 i lp=860 | M102: rokwzgl=8 i lp=860 | N102: rokwzgl=9 i lp=860 | O102: rokwzgl=10 i lp=860 | P102: rokwzgl=11 i lp=860 | Q102: rokwzgl=12 i lp=860 | R102: rokwzgl=13 i lp=860 | S102: =+"rokwzgl="&S$9&" i lp="&$A102 -> rokwzgl=14 i lp=860 | T102: rokwzgl=15 i lp=860 | U102: rokwzgl=16 i lp=860 | V102: rokwzgl=17 i lp=860 | W102: rokwzgl=18 i lp=860 | X102: rokwzgl=19 i lp=860 | Y102: rokwzgl=20 i lp=860 | Z102: rokwzgl=21 i lp=860 | AA102: rokwzgl=22 i lp=860 | AB102: rokwzgl=23 i lp=860 | AC102: rokwzgl=24 i lp=860 | AD102: rokwzgl=25 i lp=860 | AE102: rokwzgl=26 i lp=860 | AF102: rokwzgl=27 i lp=860 | AG102: rokwzgl=28 i lp=860 | AH102: rokwzgl=29 i lp=860
A103: 870 | B103: 14 | C103: Dane uzupełniające o długu i jego spłacie | D103: =+"rokwzgl="&D$9&" i lp="&$A103 -> rokwzgl=0 i lp=870 | E103: rokwzgl=0 i lp=870 | F103: rokwzgl=1 i lp=870 | G103: rokwzgl=2 i lp=870 | H103: rokwzgl=3 i lp=870 | I103: rokwzgl=4 i lp=870 | J103: rokwzgl=5 i lp=870 | K103: rokwzgl=6 i lp=870 | L103: rokwzgl=7 i lp=870 | M103: rokwzgl=8 i lp=870 | N103: rokwzgl=9 i lp=870 | O103: rokwzgl=10 i lp=870 | P103: rokwzgl=11 i lp=870 | Q103: rokwzgl=12 i lp=870 | R103: rokwzgl=13 i lp=870 | S103: rokwzgl=14 i lp=870 | T103: rokwzgl=15 i lp=870 | U103: rokwzgl=16 i lp=870 | V103: rokwzgl=17 i lp=870 | W103: rokwzgl=18 i lp=870 | X103: rokwzgl=19 i lp=870 | Y103: rokwzgl=20 i lp=870 | Z103: rokwzgl=21 i lp=870 | AA103: rokwzgl=22 i lp=870 | AB103: rokwzgl=23 i lp=870 | AC103: rokwzgl=24 i lp=870 | AD103: rokwzgl=25 i lp=870 | AE103: rokwzgl=26 i lp=870 | AF103: rokwzgl=27 i lp=870 | AG103: rokwzgl=28 i lp=870 | AH103: rokwzgl=29 i lp=870
A104: 880 | B104: 14.1 | C104: Spłaty rat kapitałowych oraz wykup papierów wartościowych, o których mowa w pkt. 5.1., wynikające wyłącznie z tytułu zobowiązań już zaciągniętych | D104: rokwzgl=0 i lp=880 | E104: rokwzgl=0 i lp=880 | F104: rokwzgl=1 i lp=880 | G104: rokwzgl=2 i lp=880 | H104: rokwzgl=3 i lp=880 | I104: rokwzgl=4 i lp=880 | J104: rokwzgl=5 i lp=880 | K104: rokwzgl=6 i lp=880 | L104: rokwzgl=7 i lp=880 | M104: rokwzgl=8 i lp=880 | N104: rokwzgl=9 i lp=880 | O104: rokwzgl=10 i lp=880 | P104: rokwzgl=11 i lp=880 | Q104: rokwzgl=12 i lp=880 | R104: rokwzgl=13 i lp=880 | S104: rokwzgl=14 i lp=880 | T104: rokwzgl=15 i lp=880 | U104: rokwzgl=16 i lp=880 | V104: rokwzgl=17 i lp=880 | W104: rokwzgl=18 i lp=880 | X104: rokwzgl=19 i lp=880 | Y104: rokwzgl=20 i lp=880 | Z104: rokwzgl=21 i lp=880 | AA104: rokwzgl=22 i lp=880 | AB104: rokwzgl=23 i lp=880 | AC104: rokwzgl=24 i lp=880 | AD104: rokwzgl=25 i lp=880 | AE104: rokwzgl=26 i lp=880 | AF104: rokwzgl=27 i lp=880 | AG104: rokwzgl=28 i lp=880 | AH104: rokwzgl=29 i lp=880
A105: 890 | B105: 14.2 | C105: Kwota długu, którego planowana spłata dokona się z wydatków budżetu | D105: rokwzgl=0 i lp=890 | E105: rokwzgl=0 i lp=890 | F105: rokwzgl=1 i lp=890 | G105: rokwzgl=2 i lp=890 | H105: rokwzgl=3 i lp=890 | I105: rokwzgl=4 i lp=890 | J105: rokwzgl=5 i lp=890 | K105: rokwzgl=6 i lp=890 | L105: rokwzgl=7 i lp=890 | M105: rokwzgl=8 i lp=890 | N105: rokwzgl=9 i lp=890 | O105: rokwzgl=10 i lp=890 | P105: rokwzgl=11 i lp=890 | Q105: rokwzgl=12 i lp=890 | R105: rokwzgl=13 i lp=890 | S105: rokwzgl=14 i lp=890 | T105: rokwzgl=15 i lp=890 | U105: rokwzgl=16 i lp=890 | V105: rokwzgl=17 i lp=890 | W105: rokwzgl=18 i lp=890 | X105: rokwzgl=19 i lp=890 | Y105: rokwzgl=20 i lp=890 | Z105: rokwzgl=21 i lp=890 | AA105: rokwzgl=22 i lp=890 | AB105: rokwzgl=23 i lp=890 | AC105: rokwzgl=24 i lp=890 | AD105: rokwzgl=25 i lp=890 | AE105: rokwzgl=26 i lp=890 | AF105: rokwzgl=27 i lp=890 | AG105: rokwzgl=28 i lp=890 | AH105: rokwzgl=29 i lp=890
A106: 900 | B106: 14.3 | C106: Wydatki zmniejszające dług, w tym | D106: rokwzgl=0 i lp=900 | E106: rokwzgl=0 i lp=900 | F106: rokwzgl=1 i lp=900 | G106: rokwzgl=2 i lp=900 | H106: rokwzgl=3 i lp=900 | I106: rokwzgl=4 i lp=900 | J106: rokwzgl=5 i lp=900 | K106: rokwzgl=6 i lp=900 | L106: rokwzgl=7 i lp=900 | M106: rokwzgl=8 i lp=900 | N106: rokwzgl=9 i lp=900 | O106: rokwzgl=10 i lp=900 | P106: rokwzgl=11 i lp=900 | Q106: rokwzgl=12 i lp=900 | R106: rokwzgl=13 i lp=900 | S106: rokwzgl=14 i lp=900 | T106: rokwzgl=15 i lp=900 | U106: rokwzgl=16 i lp=900 | V106: rokwzgl=17 i lp=900 | W106: rokwzgl=18 i lp=900 | X106: rokwzgl=19 i lp=900 | Y106: rokwzgl=20 i lp=900 | Z106: rokwzgl=21 i lp=900 | AA106: rokwzgl=22 i lp=900 | AB106: rokwzgl=23 i lp=900 | AC106: rokwzgl=24 i lp=900 | AD106: rokwzgl=25 i lp=900 | AE106: rokwzgl=26 i lp=900 | AF106: rokwzgl=27 i lp=900 | AG106: rokwzgl=28 i lp=900 | AH106: rokwzgl=29 i lp=900
A107: 910 | B107: 14.3.1 | C107: spłata zobowiązań wymagalnych z lat poprzednich, innych niż w pkt 14.3.3 | D107: rokwzgl=0 i lp=910 | E107: rokwzgl=0 i lp=910 | F107: rokwzgl=1 i lp=910 | G107: rokwzgl=2 i lp=910 | H107: rokwzgl=3 i lp=910 | I107: rokwzgl=4 i lp=910 | J107: rokwzgl=5 i lp=910 | K107: rokwzgl=6 i lp=910 | L107: rokwzgl=7 i lp=910 | M107: rokwzgl=8 i lp=910 | N107: rokwzgl=9 i lp=910 | O107: rokwzgl=10 i lp=910 | P107: rokwzgl=11 i lp=910 | Q107: rokwzgl=12 i lp=910 | R107: rokwzgl=13 i lp=910 | S107: rokwzgl=14 i lp=910 | T107: rokwzgl=15 i lp=910 | U107: rokwzgl=16 i lp=910 | V107: rokwzgl=17 i lp=910 | W107: rokwzgl=18 i lp=910 | X107: rokwzgl=19 i lp=910 | Y107: rokwzgl=20 i lp=910 | Z107: rokwzgl=21 i lp=910 | AA107: rokwzgl=22 i lp=910 | AB107: rokwzgl=23 i lp=910 | AC107: rokwzgl=24 i lp=910 | AD107: rokwzgl=25 i lp=910 | AE107: rokwzgl=26 i lp=910 | AF107: rokwzgl=27 i lp=910 | AG107: rokwzgl=28 i lp=910 | AH107: rokwzgl=29 i lp=910
A108: 920 | B108: 14.3.2 | C108: związane z umowami zaliczanymi do tytułów dłużnych wliczanych do państwowego długu publicznego | D108: rokwzgl=0 i lp=920 | E108: rokwzgl=0 i lp=920 | F108: rokwzgl=1 i lp=920 | G108: rokwzgl=2 i lp=920 | H108: rokwzgl=3 i lp=920 | I108: rokwzgl=4 i lp=920 | J108: rokwzgl=5 i lp=920 | K108: rokwzgl=6 i lp=920 | L108: rokwzgl=7 i lp=920 | M108: rokwzgl=8 i lp=920 | N108: rokwzgl=9 i lp=920 | O108: rokwzgl=10 i lp=920 | P108: rokwzgl=11 i lp=920 | Q108: rokwzgl=12 i lp=920 | R108: rokwzgl=13 i lp=920 | S108: rokwzgl=14 i lp=920 | T108: rokwzgl=15 i lp=920 | U108: rokwzgl=16 i lp=920 | V108: rokwzgl=17 i lp=920 | W108: rokwzgl=18 i lp=920 | X108: rokwzgl=19 i lp=920 | Y108: rokwzgl=20 i lp=920 | Z108: rokwzgl=21 i lp=920 | AA108: rokwzgl=22 i lp=920 | AB108: rokwzgl=23 i lp=920 | AC108: rokwzgl=24 i lp=920 | AD108: rokwzgl=25 i lp=920 | AE108: rokwzgl=26 i lp=920 | AF108: rokwzgl=27 i lp=920 | AG108: rokwzgl=28 i lp=920 | AH108: rokwzgl=29 i lp=920
